Workbook

Sheet Introduction
C4: Joint Monitoring Programme for Water Supply, Sanitation and Hygiene
C6: Estimates on household water, sanitation and hygiene by wealth quintile and sub-national region in
C7: =+Water!B5 -> Namibia
C9: Updated May 2021
C11: Follow the links below to find the following information:
C13: JMP Estimates
C14: WASH status and trends by wealth quintile (customized quintiles made without water and sanitation assets)
C15: Water
C16: Sanitation
C17: Hygiene
C19: Data inputs
C20: customized wealth quintiles and subnational data:
C21: =IF(INDIRECT(CONCATENATE("Water","!B105"))=0,"",INDIRECT(CONCATENATE("Water","!B105"))) -> DHS00
C22: =IF(INDIRECT(CONCATENATE("Water","!B106"))=0,"",INDIRECT(CONCATENATE("Water","!B106"))) -> DHS07
C23: =IF(INDIRECT(CONCATENATE("Water","!B107"))=0,"",INDIRECT(CONCATENATE("Water","!B107"))) -> DHS13
C24: =IF(INDIRECT(CONCATENATE("Water","!B108"))=0,"",INDIRECT(CONCATENATE("Water","!B108"))) -> 
C25: =IF(INDIRECT(CONCATENATE("Water","!B109"))=0,"",INDIRECT(CONCATENATE("Water","!B109"))) -> 
C26: =IF(INDIRECT(CONCATENATE("Water","!B110"))=0,"",INDIRECT(CONCATENATE("Water","!B110"))) -> 
C27: =IF(INDIRECT(CONCATENATE("Water","!B111"))=0,"",INDIRECT(CONCATENATE("Water","!B111"))) -> 
C28: =IF(INDIRECT(CONCATENATE("Water","!B112"))=0,"",INDIRECT(CONCATENATE("Water","!B112"))) -> 
C29: =IF(INDIRECT(CONCATENATE("Water","!B113"))=0,"",INDIRECT(CONCATENATE("Water","!B113"))) -> 
C30: =IF(INDIRECT(CONCATENATE("Water","!B114"))=0,"",INDIRECT(CONCATENATE("Water","!B114"))) -> 
C31: =IF(INDIRECT(CONCATENATE("Water","!B115"))=0,"",INDIRECT(CONCATENATE("Water","!B115"))) -> 
C32: =IF(INDIRECT(CONCATENATE("Water","!B116"))=0,"",INDIRECT(CONCATENATE("Water","!B116"))) -> 
L55: =+IF(ISNUMBER(M48), "", "Insufficient data to estimate safely managed sanitation services at national level") -> Insufficient data to estimate safely managed sanitation services at national level

Sheet Water
A1: BGD
B4: Summary of trends in use of drinking water by wealth quintile (%)
B5: =IF(ISERROR(INDIRECT(CONCATENATE($B105,"!A2"))),"",INDIRECT(CONCATENATE($B105,"!A2"))) -> Namibia
B7: =B118 -> National use of drinking water sources, 2000–2019 | J7: =B218 -> Urban use of drinking water sources, 2000–2019 | R7: =B318 -> Rural use of drinking water sources, 2000–2019
B31: =IF(ISERROR(INDIRECT(CONCATENATE($B105,"!A2"))),"",INDIRECT(CONCATENATE($B105,"!A2"))) -> Namibia | F31: Poorest | J31: Poor | N31: Middle | R31: Rich | V31: Richest
F32: Basic | G32: Limited | H32: Unimproved | I32: Surface water | J32: Basic | K32: Limited | L32: Unimproved | M32: Surface water | N32: Basic | O32: Limited | P32: Unimproved | Q32: Surface water | R32: Basic | S32: Limited | T32: Unimproved | U32: Surface water | V32: Basic | W32: Limited | X32: Unimproved | Y32: Surface water
B33: NATIONAL | D33: Estimate | E33: =C99 -> 2000 | F33: =E99 -> 53.42862415 | G33: =F99 -> 10.87915498 | H33: 17.91925128 | I33: 17.77296959 | J33: =J99 -> 55.7166794 | K33: =K99 -> 10.1411525 | L33: 21.54807382 | M33: 12.59409428 | N33: =O99 -> 69.40842373 | O33: =P99 -> 5.815006052 | P33: 19.09465456 | Q33: 5.681915658 | R33: =T99 -> 90.6275349 | S33: =U99 -> 0.8579028553 | T33: 5.183875314 | U33: 3.330686936 | V33: =Y99 -> 99.58911536 | W33: =Z99 -> 0.09968880416 | X33: 0.2892212296 | Y33: 0.02197461109
E34: =C100 -> 2019 | F34: =E100 -> 57.49255706 | G34: 11.70665441 | H34: 15.87866399 | I34: 14.92212454 | J34: =J100 -> 67.40118616 | K34: 12.26788306 | L34: 10.95530322 | M34: 9.375627559 | N34: =O100 -> 85.61383591 | O34: 7.172688086 | P34: 4.231819881 | Q34: 2.981656123 | R34: =T100 -> 98.77251713 | S34: 0.9350052892 | T34: 0.2924775787 | U34: 0 | V34: =Y100 -> 99.45739548 | W34: 0.09955695243 | X34: 0.40542825 | Y34: 0.03761931762
B36: URBAN | D36: Estimate | E36: =C199 -> 2000 | F36: =E199 -> 89.29109563 | G36: =F199 -> 3.702987256 | H36: 6.752025938 | I36: 0.2538911746 | J36: =J199 -> 96.87482343 | K36: =K199 -> 0.907860279 | L36: 2.217316287 | M36: 0 | N36: =O199 -> 99.16154467 | O36: =P199 -> 0.03306486985 | P36: 0.8053904612 | Q36: 0 | R36: =T199 -> 99.9 | S36: =U199 -> 0.1 | T36: 0 | U36: 0 | V36: =Y199 -> 99.64986091 | W36: =Z199 -> 0 | X36: 0.3501390915 | Y36: 0
E37: =C200 -> 2019 | F37: =E200 -> 90.91763746 | G37: 3.770441504 | H37: 4.284741121 | I37: 1.027179918 | J37: =J200 -> 95.75692375 | K37: 0.8973839067 | L37: 3.345692343 | M37: 0 | N37: =O200 -> 97.84160263 | O37: 0.03262474246 | P37: 2.125772631 | Q37: 0 | R37: =T200 -> 99.52348274 | S37: 0.09962310585 | T37: 0.376894154 | U37: 0 | V37: =Y200 -> 99.37929282 | W37: 0 | X37: 0.6207071824 | Y37: 0
B39: RURAL | D39: Estimate | E39: =C299 -> 2000 | F39: =E299 -> 49.72864518 | G39: =F299 -> 11.26773182 | H39: 20.30464037 | I39: 18.69898263 | J39: =J299 -> 54.12657565 | K39: =K299 -> 11.834315 | L39: 16.3077906 | M39: 17.73131875 | N39: =O299 -> 54.43759724 | O39: =P299 -> 10.79038765 | P39: 25.14073634 | Q39: 9.631278768 | R39: =T299 -> 64.17211637 | S39: =U299 -> 7.832851275 | T39: 20.56638802 | U39: 7.428644338 | V39: =Y299 -> 83.82077773 | W39: =Z299 -> 3.316851513 | X39: 6.530023939 | Y39: 6.332346822
E40: =C300 -> 2019 | F40: =E300 -> 54.7246312 | G40: 12.39974397 | H40: 13.790054 | I40: 19.08557084 | J40: =J300 -> 55.08824298 | K40: 12.04457537 | L40: 19.87789368 | M40: 12.98928797 | N40: =O300 -> 62.07755277 | O40: 12.30474696 | P40: 13.56544774 | Q40: 12.05225253 | R40: =T300 -> 75.34185857 | S40: 9.196230487 | T40: 8.57605681 | U40: 6.885854129 | V40: =Y300 -> 92.75274777 | W40: 3.670296317 | X40: 3.092607466 | Y40: 0.4843484431
A97: NATIONAL | D97: Poorest | I97: Poor | N97: Middle | S97: Rich | X97: Richest
D98: Improved | E98: Basic | F98: Limited | G98: Unimproved | H98: Surface water | I98: Improved | J98: Basic | K98: Limited | L98: Unimproved | M98: Surface water | N98: Improved | O98: Basic | P98: Limited | Q98: Unimproved | R98: Surface water | S98: Improved | T98: Basic | U98: Limited | V98: Unimproved | W98: Surface water | X98: Improved | Y98: Basic | Z98: Limited | AA98: Unimproved | AB98: Surface water
A99: Forecast period: | C99: 2000 | D99: =IF((D101+H101)>100,D101*100/(D101+H101),D101) -> 64.30777913 | E99: =D99*AVERAGEIF(E105:E116,">0")/100 -> 53.42862415 | F99: =D99*(100-AVERAGEIF(E105:E116,">0"))/100 -> 10.87915498 | G99: =100-(E99+F99+H99) -> 17.91925128 | H99: =IF((D101+H101)>100,H101*100/(D101+H101),H101) -> 17.77296959 | I99: =IF((I101+M101)>100,I101*100/(I101+M101),I101) -> 65.8578319 | J99: =I99*AVERAGEIF(J105:J116,">0")/100 -> 55.7166794 | K99: =I99*(100-AVERAGEIF(J105:J116,">0"))/100 -> 10.1411525 | L99: =100-(J99+K99+M99) -> 21.54807382 | M99: =IF((I101+M101)>100,M101*100/(I101+M101),M101) -> 12.59409428 | N99: =IF((N101+R101)>100,N101*100/(N101+R101),N101) -> 75.22342978 | O99: =N99*AVERAGEIF(O105:O116,">0")/100 -> 69.40842373 | P99: =N99*(100-AVERAGEIF(O105:O116,">0"))/100 -> 5.815006052 | Q99: =100-(O99+P99+R99) -> 19.09465456 | R99: =IF((N101+R101)>100,R101*100/(N101+R101),R101) -> 5.681915658 | S99: =IF((S101+W101)>100,S101*100/(S101+W101),S101) -> 91.48543775 | T99: =S99*AVERAGEIF(T105:T116,">0")/100 -> 90.6275349 | U99: =S99*(100-AVERAGEIF(T105:T116,">0"))/100 -> 0.8579028553 | V99: =100-(T99+U99+W99) -> 5.183875314 | W99: =IF((S101+W101)>100,W101*100/(S101+W101),W101) -> 3.330686936 | X99: =IF((X101+AB101)>100,X101*100/(X101+AB101),X101) -> 99.68880416 | Y99: =X99*AVERAGEIF(Y105:Y116,">0")/100 -> 99.58911536 | Z99: =X99*(100-AVERAGEIF(Y105:Y116,">0"))/100 -> 0.09968880416 | AA99: =100-(Y99+Z99+AB99) -> 0.2892212296 | AB99: =IF((X101+AB101)>100,AB101*100/(X101+AB101),AB101) -> 0.02197461109
C100: 2019 | D100: =IF((D102+H102)>100,D102*100/(D102+H102),D102) -> 69.19921147 | E100: =D100*AVERAGEIF(E105:E116,">0")/100 -> 57.49255706 | F100: =D100*(100-AVERAGEIF(E105:E116,">0"))/100 -> 11.70665441 | G100: =100-(E100+F100+H100) -> 15.87866399 | H100: =IF((D102+H102)>100,H102*100/(D102+H102),H102) -> 14.92212454 | I100: =IF((I102+M102)>100,I102*100/(I102+M102),I102) -> 79.66906922 | J100: =I100*AVERAGEIF(J105:J116,">0")/100 -> 67.40118616 | K100: =I100*(100-AVERAGEIF(J105:J116,">0"))/100 -> 12.26788306 | L100: =100-(J100+K100+M100) -> 10.95530322 | M100: =IF((I102+M102)>100,M102*100/(I102+M102),M102) -> 9.375627559 | N100: =IF((N102+R102)>100,N102*100/(N102+R102),N102) -> 92.786524 | O100: =N100*AVERAGEIF(O105:O116,">0")/100 -> 85.61383591 | P100: =N100*(100-AVERAGEIF(O105:O116,">0"))/100 -> 7.172688086 | Q100: =100-(O100+P100+R100) -> 4.231819881 | R100: =IF((N102+R102)>100,R102*100/(N102+R102),R102) -> 2.981656123 | S100: =IF((S102+W102)>100,S102*100/(S102+W102),S102) -> 99.70752242 | T100: =S100*AVERAGEIF(T105:T116,">0")/100 -> 98.77251713 | U100: =S100*(100-AVERAGEIF(T105:T116,">0"))/100 -> 0.9350052892 | V100: =100-(T100+U100+W100) -> 0.2924775787 | W100: =IF((S102+W102)>100,W102*100/(S102+W102),W102) -> 0 | X100: =IF((X102+AB102)>100,X102*100/(X102+AB102),X102) -> 99.55695243 | Y100: =X100*AVERAGEIF(Y105:Y116,">0")/100 -> 99.45739548 | Z100: =X100*(100-AVERAGEIF(Y105:Y116,">0"))/100 -> 0.09955695243 | AA100: =100-(Y100+Z100+AB100) -> 0.40542825 | AB100: =IF((X102+AB102)>100,AB102*100/(X102+AB102),AB102) -> 0.03761931762
A101: Regression period: | C101: =MinRegYear(C99,C105:C116) -> 2000 | D101: =IF(MAX(C105:C116)-MIN(C105:C116)<5,AVERAGEIF(C105:C116,">0",D105:D116), IF(FORECAST($C101,D$105:D$116,$C$105:$C$116)<0,0, IF(FORECAST($C101,D$105:D$116,$C$105:$C$116)>100,100, FORECAST($C101,D$105:D$116,$C$105:$C$116)))) -> 64.30777913 | H101: =IF(MAX(C105:C116)-MIN(C105:C116)<5,AVERAGEIF(C105:C116,">0",H105:H116), IF(FORECAST($C101,H$105:H$116,$C$105:$C$116)<0,0, IF(FORECAST($C101,H$105:H$116,$C$105:$C$116)>100,100, FORECAST($C101,H$105:H$116,$C$105:$C$116)))) -> 17.77296959 | I101: =IF(MAX(C105:C116)-MIN(C105:C116)<5,AVERAGEIF(C105:C116,">0",I105:I116), IF(FORECAST($C101,I$105:I$116,$C$105:$C$116)<0,0, IF(FORECAST($C101,I$105:I$116,$C$105:$C$116)>100,100, FORECAST($C101,I$105:I$116,$C$105:$C$116)))) -> 65.8578319 | M101: =IF(MAX(C105:C116)-MIN(C105:C116)<5,AVERAGEIF(C105:C116,">0",M105:M116), IF(FORECAST($C101,M$105:M$116,$C$105:$C$116)<0,0, IF(FORECAST($C101,M$105:M$116,$C$105:$C$116)>100,100, FORECAST($C101,M$105:M$116,$C$105:$C$116)))) -> 12.59409428 | N101: =IF(MAX(C105:C116)-MIN(C105:C116)<5,AVERAGEIF(C105:C116,">0",N105:N116), IF(FORECAST($C101,N$105:N$116,$C$105:$C$116)<0,0, IF(FORECAST($C101,N$105:N$116,$C$105:$C$116)>100,100, FORECAST($C101,N$105:N$116,$C$105:$C$116)))) -> 75.22342978 | R101: =IF(MAX(C105:C116)-MIN(C105:C116)<5,AVERAGEIF(C105:C116,">0",R105:R116), IF(FORECAST($C101,R$105:R$116,$C$105:$C$116)<0,0, IF(FORECAST($C101,R$105:R$116,$C$105:$C$116)>100,100, FORECAST($C101,R$105:R$116,$C$105:$C$116)))) -> 5.681915658 | S101: =IF(MAX(C105:C116)-MIN(C105:C116)<5,AVERAGEIF(C105:C116,">0",S105:S116), IF(FORECAST($C101,S$105:S$116,$C$105:$C$116)<0,0, IF(FORECAST($C101,S$105:S$116,$C$105:$C$116)>100,100, FORECAST($C101,S$105:S$116,$C$105:$C$116)))) -> 91.48543775 | W101: =IF(MAX(C105:C116)-MIN(C105:C116)<5,AVERAGEIF(C105:C116,">0",W105:W116), IF(FORECAST($C101,W$105:W$116,$C$105:$C$116)<0,0, IF(FORECAST($C101,W$105:W$116,$C$105:$C$116)>100,100, FORECAST($C101,W$105:W$116,$C$105:$C$116)))) -> 3.330686936 | X101: =IF(MAX(C105:C116)-MIN(C105:C116)<5,AVERAGEIF(C105:C116,">0",X105:X116), IF(FORECAST($C101,X$105:X$116,$C$105:$C$116)<0,0, IF(FORECAST($C101,X$105:X$116,$C$105:$C$116)>100,100, FORECAST($C101,X$105:X$116,$C$105:$C$116)))) -> 99.68880416 | AB101: =IF(MAX(C105:C116)-MIN(C105:C116)<5,AVERAGEIF(C105:C116,">0",AB105:AB116), IF(FORECAST($C101,AB$105:AB$116,$C$105:$C$116)<0,0, IF(FORECAST($C101,AB$105:AB$116,$C$105:$C$116)>100,100, FORECAST($C101,AB$105:AB$116,$C$105:$C$116)))) -> 0.02197461109
C102: =MaxRegYear(C100,C105:C116) -> 2015 | D102: =IF(MAX(C105:C116)-MIN(C105:C116)<5,AVERAGEIF(C105:C116,">0",D105:D116), IF(FORECAST($C102,D$105:D$116,$C$105:$C$116)<0,0, IF(FORECAST($C102,D$105:D$116,$C$105:$C$116)>100,100, FORECAST($C102,D$105:D$116,$C$105:$C$116)))) -> 69.19921147 | H102: =IF(MAX(C105:C116)-MIN(C105:C116)<5,AVERAGEIF(C105:C116,">0",H105:H116), IF(FORECAST($C102,H$105:H$116,$C$105:$C$116)<0,0, IF(FORECAST($C102,H$105:H$116,$C$105:$C$116)>100,100, FORECAST($C102,H$105:H$116,$C$105:$C$116)))) -> 14.92212454 | I102: =IF(MAX(C105:C116)-MIN(C105:C116)<5,AVERAGEIF(C105:C116,">0",I105:I116), IF(FORECAST($C102,I$105:I$116,$C$105:$C$116)<0,0, IF(FORECAST($C102,I$105:I$116,$C$105:$C$116)>100,100, FORECAST($C102,I$105:I$116,$C$105:$C$116)))) -> 79.66906922 | M102: =IF(MAX(C105:C116)-MIN(C105:C116)<5,AVERAGEIF(C105:C116,">0",M105:M116), IF(FORECAST($C102,M$105:M$116,$C$105:$C$116)<0,0, IF(FORECAST($C102,M$105:M$116,$C$105:$C$116)>100,100, FORECAST($C102,M$105:M$116,$C$105:$C$116)))) -> 9.375627559 | N102: =IF(MAX(C105:C116)-MIN(C105:C116)<5,AVERAGEIF(C105:C116,">0",N105:N116), IF(FORECAST($C102,N$105:N$116,$C$105:$C$116)<0,0, IF(FORECAST($C102,N$105:N$116,$C$105:$C$116)>100,100, FORECAST($C102,N$105:N$116,$C$105:$C$116)))) -> 92.786524 | R102: =IF(MAX(C105:C116)-MIN(C105:C116)<5,AVERAGEIF(C105:C116,">0",R105:R116), IF(FORECAST($C102,R$105:R$116,$C$105:$C$116)<0,0, IF(FORECAST($C102,R$105:R$116,$C$105:$C$116)>100,100, FORECAST($C102,R$105:R$116,$C$105:$C$116)))) -> 2.981656123 | S102: =IF(MAX(C105:C116)-MIN(C105:C116)<5,AVERAGEIF(C105:C116,">0",S105:S116), IF(FORECAST($C102,S$105:S$116,$C$105:$C$116)<0,0, IF(FORECAST($C102,S$105:S$116,$C$105:$C$116)>100,100, FORECAST($C102,S$105:S$116,$C$105:$C$116)))) -> 99.70752242 | W102: =IF(MAX(C105:C116)-MIN(C105:C116)<5,AVERAGEIF(C105:C116,">0",W105:W116), IF(FORECAST($C102,W$105:W$116,$C$105:$C$116)<0,0, IF(FORECAST($C102,W$105:W$116,$C$105:$C$116)>100,100, FORECAST($C102,W$105:W$116,$C$105:$C$116)))) -> 0 | X102: =IF(MAX(C105:C116)-MIN(C105:C116)<5,AVERAGEIF(C105:C116,">0",X105:X116), IF(FORECAST($C102,X$105:X$116,$C$105:$C$116)<0,0, IF(FORECAST($C102,X$105:X$116,$C$105:$C$116)>100,100, FORECAST($C102,X$105:X$116,$C$105:$C$116)))) -> 99.55695243 | AB102: =IF(MAX(C105:C116)-MIN(C105:C116)<5,AVERAGEIF(C105:C116,">0",AB105:AB116), IF(FORECAST($C102,AB$105:AB$116,$C$105:$C$116)<0,0, IF(FORECAST($C102,AB$105:AB$116,$C$105:$C$116)>100,100, FORECAST($C102,AB$105:AB$116,$C$105:$C$116)))) -> 0.03761931762
B104: Survey | C104: Year | D104: Improved | E104: % Improved < = 30min | H104: Surface water | I104: Improved | J104: % Improved < = 30min | M104: Surface water | N104: Improved | O104: % Improved < = 30min | R104: Surface water | S104: Improved | T104: % Improved < = 30min | W104: Surface water | X104: Improved | Y104: % Improved < = 30min | AB104: Surface water
B105: DHS00 | C105: 2000 | D105: =IF(ISERROR(INDIRECT(CONCATENATE($B105,"!C16"))),"",INDIRECT(CONCATENATE($B105,"!C16"))) -> 61.15425117 | E105: =IF(ISERROR(INDIRECT(CONCATENATE($B105,"!C23"))),"",INDIRECT(CONCATENATE($B105,"!C23"))) -> 88.24802973 | H105: =IF(ISERROR(INDIRECT(CONCATENATE($B105,"!C21"))),"",INDIRECT(CONCATENATE($B105,"!C21"))) -> 17.89422115 | I105: =IF(ISERROR(INDIRECT(CONCATENATE($B105,"!D16"))),"",INDIRECT(CONCATENATE($B105,"!D16"))) -> 62.81803941 | J105: =IF(ISERROR(INDIRECT(CONCATENATE($B105,"!D23"))),"",INDIRECT(CONCATENATE($B105,"!D23"))) -> 84.90434395 | M105: =IF(ISERROR(INDIRECT(CONCATENATE($B105,"!D21"))),"",INDIRECT(CONCATENATE($B105,"!D21"))) -> 11.35550546 | N105: =IF(ISERROR(INDIRECT(CONCATENATE($B105,"!E16"))),"",INDIRECT(CONCATENATE($B105,"!E16"))) -> 72.35785872 | O105: =IF(ISERROR(INDIRECT(CONCATENATE($B105,"!E23"))),"",INDIRECT(CONCATENATE($B105,"!E23"))) -> 91.40906307 | R105: =IF(ISERROR(INDIRECT(CONCATENATE($B105,"!E21"))),"",INDIRECT(CONCATENATE($B105,"!E21"))) -> 5.247404344 | S105: =IF(ISERROR(INDIRECT(CONCATENATE($B105,"!F16"))),"",INDIRECT(CONCATENATE($B105,"!F16"))) -> 90.88178266 | T105: =IF(ISERROR(INDIRECT(CONCATENATE($B105,"!F23"))),"",INDIRECT(CONCATENATE($B105,"!F23"))) -> 98.98675602 | W105: =IF(ISERROR(INDIRECT(CONCATENATE($B105,"!F21"))),"",INDIRECT(CONCATENATE($B105,"!F21"))) -> 3.687599096 | X105: =IF(ISERROR(INDIRECT(CONCATENATE($B105,"!G16"))),"",INDIRECT(CONCATENATE($B105,"!G16"))) -> 99.81613678 | Y105: =IF(ISERROR(INDIRECT(CONCATENATE($B105,"!G23"))),"",INDIRECT(CONCATENATE($B105,"!G23"))) -> 100 | AB105: =IF(ISERROR(INDIRECT(CONCATENATE($B105,"!G221"))),"",INDIRECT(CONCATENATE($B105,"!G21"))) -> 0
B106: DHS07 | C106: 2007 | D106: 73.42309146 | E106: 82.2 | H106: 16.17986351 | I106: 78.88929306 | J106: 83.2 | M106: 13.77575225 | N106: 89.62827771 | O106: 91.1 | R106: 5.363235723 | S106: 96.63032996 | T106: 99.2 | W106: 0.6947793828 | X106: 99.35138601 | Y106: 99.9 | AB106: 0.0768871315
B107: DHS13 | C107: 2013 | D107: 64.86790455 | E107: 78.8 | H107: 15.44369737 | I107: 74.28114633 | J107: 85.7 | M107: 8.359736166 | N107: 87.10161186 | O107: 94.3 | R107: 2.834760861 | S107: 97.9069802 | T107: 99 | W107: 0.2879741197 | X107: 99.72308739 | Y107: 99.8 | AB107: 0.009896310482
D111: =IF(ISERROR(INDIRECT(CONCATENATE($B111,"!C16"))),"",INDIRECT(CONCATENATE($B111,"!C16"))) ->  | E111: =IF(ISERROR(INDIRECT(CONCATENATE($B111,"!C23"))),"",INDIRECT(CONCATENATE($B111,"!C23"))) ->  | H111: =IF(ISERROR(INDIRECT(CONCATENATE($B111,"!C21"))),"",INDIRECT(CONCATENATE($B111,"!C21"))) ->  | I111: =IF(ISERROR(INDIRECT(CONCATENATE($B111,"!D16"))),"",INDIRECT(CONCATENATE($B111,"!D16"))) ->  | J111: =IF(ISERROR(INDIRECT(CONCATENATE($B111,"!D23"))),"",INDIRECT(CONCATENATE($B111,"!D23"))) ->  | M111: =IF(ISERROR(INDIRECT(CONCATENATE($B111,"!D21"))),"",INDIRECT(CONCATENATE($B111,"!D21"))) ->  | N111: =IF(ISERROR(INDIRECT(CONCATENATE($B111,"!E16"))),"",INDIRECT(CONCATENATE($B111,"!E16"))) ->  | O111: =IF(ISERROR(INDIRECT(CONCATENATE($B111,"!E23"))),"",INDIRECT(CONCATENATE($B111,"!E23"))) ->  | R111: =IF(ISERROR(INDIRECT(CONCATENATE($B111,"!E21"))),"",INDIRECT(CONCATENATE($B111,"!E21"))) ->  | S111: =IF(ISERROR(INDIRECT(CONCATENATE($B111,"!F16"))),"",INDIRECT(CONCATENATE($B111,"!F16"))) ->  | T111: =IF(ISERROR(INDIRECT(CONCATENATE($B111,"!F23"))),"",INDIRECT(CONCATENATE($B111,"!F23"))) ->  | W111: =IF(ISERROR(INDIRECT(CONCATENATE($B111,"!F21"))),"",INDIRECT(CONCATENATE($B111,"!F21"))) ->  | X111: =IF(ISERROR(INDIRECT(CONCATENATE($B111,"!G16"))),"",INDIRECT(CONCATENATE($B111,"!G16"))) ->  | Y111: =IF(ISERROR(INDIRECT(CONCATENATE($B111,"!G23"))),"",INDIRECT(CONCATENATE($B111,"!G23"))) ->  | AB111: =IF(ISERROR(INDIRECT(CONCATENATE($B111,"!G221"))),"",INDIRECT(CONCATENATE($B111,"!G21"))) -> 
D112: =IF(ISERROR(INDIRECT(CONCATENATE($B112,"!C16"))),"",INDIRECT(CONCATENATE($B112,"!C16"))) ->  | E112: =IF(ISERROR(INDIRECT(CONCATENATE($B112,"!C23"))),"",INDIRECT(CONCATENATE($B112,"!C23"))) ->  | H112: =IF(ISERROR(INDIRECT(CONCATENATE($B112,"!C21"))),"",INDIRECT(CONCATENATE($B112,"!C21"))) ->  | I112: =IF(ISERROR(INDIRECT(CONCATENATE($B112,"!D16"))),"",INDIRECT(CONCATENATE($B112,"!D16"))) ->  | J112: =IF(ISERROR(INDIRECT(CONCATENATE($B112,"!D23"))),"",INDIRECT(CONCATENATE($B112,"!D23"))) ->  | M112: =IF(ISERROR(INDIRECT(CONCATENATE($B112,"!D21"))),"",INDIRECT(CONCATENATE($B112,"!D21"))) ->  | N112: =IF(ISERROR(INDIRECT(CONCATENATE($B112,"!E16"))),"",INDIRECT(CONCATENATE($B112,"!E16"))) ->  | O112: =IF(ISERROR(INDIRECT(CONCATENATE($B112,"!E23"))),"",INDIRECT(CONCATENATE($B112,"!E23"))) ->  | R112: =IF(ISERROR(INDIRECT(CONCATENATE($B112,"!E21"))),"",INDIRECT(CONCATENATE($B112,"!E21"))) ->  | S112: =IF(ISERROR(INDIRECT(CONCATENATE($B112,"!F16"))),"",INDIRECT(CONCATENATE($B112,"!F16"))) ->  | T112: =IF(ISERROR(INDIRECT(CONCATENATE($B112,"!F23"))),"",INDIRECT(CONCATENATE($B112,"!F23"))) ->  | W112: =IF(ISERROR(INDIRECT(CONCATENATE($B112,"!F21"))),"",INDIRECT(CONCATENATE($B112,"!F21"))) ->  | X112: =IF(ISERROR(INDIRECT(CONCATENATE($B112,"!G16"))),"",INDIRECT(CONCATENATE($B112,"!G16"))) ->  | Y112: =IF(ISERROR(INDIRECT(CONCATENATE($B112,"!G23"))),"",INDIRECT(CONCATENATE($B112,"!G23"))) ->  | AB112: =IF(ISERROR(INDIRECT(CONCATENATE($B112,"!G221"))),"",INDIRECT(CONCATENATE($B112,"!G21"))) -> 
B118: =CONCATENATE("National use of drinking water sources, ",C99,"–",C100) -> National use of drinking water sources, 2000–2019 | S118: Data points used for regression
E153: =IF(ISERROR(INDIRECT(CONCATENATE($B153,"!M18"))),"",INDIRECT(CONCATENATE($B153,"!M18"))) ->  | F153: =IF(ISERROR(INDIRECT(CONCATENATE($B153,"!M19"))),"",INDIRECT(CONCATENATE($B153,"!M19"))) ->  | G153: =IF(ISERROR(INDIRECT(CONCATENATE($B153,"!M20"))),"",INDIRECT(CONCATENATE($B153,"!M20"))) ->  | H153: =IF(ISERROR(INDIRECT(CONCATENATE($B153,"!M21"))),"",INDIRECT(CONCATENATE($B153,"!M21"))) ->  | J153: =IF(ISERROR(INDIRECT(CONCATENATE($B153,"!N18"))),"",INDIRECT(CONCATENATE($B153,"!N18"))) ->  | K153: =IF(ISERROR(INDIRECT(CONCATENATE($B153,"!N19"))),"",INDIRECT(CONCATENATE($B153,"!N19"))) ->  | L153: =IF(ISERROR(INDIRECT(CONCATENATE($B153,"!N20"))),"",INDIRECT(CONCATENATE($B153,"!N20"))) ->  | M153: =IF(ISERROR(INDIRECT(CONCATENATE($B153,"!N21"))),"",INDIRECT(CONCATENATE($B153,"!N21"))) ->  | O153: =IF(ISERROR(INDIRECT(CONCATENATE($B153,"!O18"))),"",INDIRECT(CONCATENATE($B153,"!O18"))) ->  | P153: =IF(ISERROR(INDIRECT(CONCATENATE($B153,"!O19"))),"",INDIRECT(CONCATENATE($B153,"!O19"))) ->  | Q153: =IF(ISERROR(INDIRECT(CONCATENATE($B153,"!O20"))),"",INDIRECT(CONCATENATE($B153,"!O20"))) ->  | R153: =IF(ISERROR(INDIRECT(CONCATENATE($B153,"!O21"))),"",INDIRECT(CONCATENATE($B153,"!O21"))) ->  | T153: =IF(ISERROR(INDIRECT(CONCATENATE($B153,"!P18"))),"",INDIRECT(CONCATENATE($B153,"!P18"))) ->  | U153: =IF(ISERROR(INDIRECT(CONCATENATE($B153,"!P19"))),"",INDIRECT(CONCATENATE($B153,"!P19"))) ->  | V153: =IF(ISERROR(INDIRECT(CONCATENATE($B153,"!P20"))),"",INDIRECT(CONCATENATE($B153,"!P20"))) ->  | W153: =IF(ISERROR(INDIRECT(CONCATENATE($B153,"!P21"))),"",INDIRECT(CONCATENATE($B153,"!P21"))) ->  | Y153: =IF(ISERROR(INDIRECT(CONCATENATE($B153,"!Q18"))),"",INDIRECT(CONCATENATE($B153,"!Q18"))) ->  | Z153: =IF(ISERROR(INDIRECT(CONCATENATE($B153,"!Q19"))),"",INDIRECT(CONCATENATE($B153,"!Q19"))) ->  | AA153: =IF(ISERROR(INDIRECT(CONCATENATE($B153,"!Q20"))),"",INDIRECT(CONCATENATE($B153,"!Q20"))) ->  | AB153: =IF(ISERROR(INDIRECT(CONCATENATE($B153,"!Q21"))),"",INDIRECT(CONCATENATE($B153,"!Q1"))) -> 
A197: URBAN | D197: Poorest | I197: Poor | N197: Middle | S197: Rich | X197: Richest
D198: Improved | E198: Basic | F198: Limited | G198: Unimproved | H198: Surface water | I198: Improved | J198: Basic | K198: Limited | L198: Unimproved | M198: Surface water | N198: Improved | O198: Basic | P198: Limited | Q198: Unimproved | R198: Surface water | S198: Improved | T198: Basic | U198: Limited | V198: Unimproved | W198: Surface water | X198: Improved | Y198: Basic | Z198: Limited | AA198: Unimproved | AB198: Surface water
A199: Forecast period: | C199: 2000 | D199: =IF((D201+H201)>100,D201*100/(D201+H201),D201) -> 92.99408289 | E199: =D199*AVERAGEIF(E205:E216,">0")/100 -> 89.29109563 | F199: =D199*(100-AVERAGEIF(E205:E216,">0"))/100 -> 3.702987256 | G199: =100-(E199+F199+H199) -> 6.752025938 | H199: =IF((D201+H201)>100,H201*100/(D201+H201),H201) -> 0.2538911746 | I199: =IF((I201+M201)>100,I201*100/(I201+M201),I201) -> 97.78268371 | J199: =I199*AVERAGEIF(J205:J216,">0")/100 -> 96.87482343 | K199: =I199*(100-AVERAGEIF(J205:J216,">0"))/100 -> 0.907860279 | L199: =100-(J199+K199+M199) -> 2.217316287 | M199: =IF((I201+M201)>100,M201*100/(I201+M201),M201) -> 0 | N199: =IF((N201+R201)>100,N201*100/(N201+R201),N201) -> 99.19460954 | O199: =N199*AVERAGEIF(O205:O216,">0")/100 -> 99.16154467 | P199: =N199*(100-AVERAGEIF(O205:O216,">0"))/100 -> 0.03306486985 | Q199: =100-(O199+P199+R199) -> 0.8053904612 | R199: =IF((N201+R201)>100,R201*100/(N201+R201),R201) -> 0 | S199: =IF((S201+W201)>100,S201*100/(S201+W201),S201) -> 100 | T199: =S199*AVERAGEIF(T205:T216,">0")/100 -> 99.9 | U199: =S199*(100-AVERAGEIF(T205:T216,">0"))/100 -> 0.1 | V199: =100-(T199+U199+W199) -> 0 | W199: =IF((S201+W201)>100,W201*100/(S201+W201),W201) -> 0 | X199: =IF((X201+AB201)>100,X201*100/(X201+AB201),X201) -> 99.64986091 | Y199: =X199*AVERAGEIF(Y205:Y216,">0")/100 -> 99.64986091 | Z199: =X199*(100-AVERAGEIF(Y205:Y216,">0"))/100 -> 0 | AA199: =100-(Y199+Z199+AB199) -> 0.3501390915 | AB199: =IF((X201+AB201)>100,AB201*100/(X201+AB201),AB201) -> 0
C200: 2019 | D200: =IF((D202+H202)>100,D202*100/(D202+H202),D202) -> 94.68807896 | E200: =D200*AVERAGEIF(E205:E216,">0")/100 -> 90.91763746 | F200: =D200*(100-AVERAGEIF(E205:E216,">0"))/100 -> 3.770441504 | G200: =100-(E200+F200+H200) -> 4.284741121 | H200: =IF((D202+H202)>100,H202*100/(D202+H202),H202) -> 1.027179918 | I200: =IF((I202+M202)>100,I202*100/(I202+M202),I202) -> 96.65430766 | J200: =I200*AVERAGEIF(J205:J216,">0")/100 -> 95.75692375 | K200: =I200*(100-AVERAGEIF(J205:J216,">0"))/100 -> 0.8973839067 | L200: =100-(J200+K200+M200) -> 3.345692343 | M200: =IF((I202+M202)>100,M202*100/(I202+M202),M202) -> 0 | N200: =IF((N202+R202)>100,N202*100/(N202+R202),N202) -> 97.87422737 | O200: =N200*AVERAGEIF(O205:O216,">0")/100 -> 97.84160263 | P200: =N200*(100-AVERAGEIF(O205:O216,">0"))/100 -> 0.03262474246 | Q200: =100-(O200+P200+R200) -> 2.125772631 | R200: =IF((N202+R202)>100,R202*100/(N202+R202),R202) -> 0 | S200: =IF((S202+W202)>100,S202*100/(S202+W202),S202) -> 99.62310585 | T200: =S200*AVERAGEIF(T205:T216,">0")/100 -> 99.52348274 | U200: =S200*(100-AVERAGEIF(T205:T216,">0"))/100 -> 0.09962310585 | V200: =100-(T200+U200+W200) -> 0.376894154 | W200: =IF((S202+W202)>100,W202*100/(S202+W202),W202) -> 0 | X200: =IF((X202+AB202)>100,X202*100/(X202+AB202),X202) -> 99.37929282 | Y200: =X200*AVERAGEIF(Y205:Y216,">0")/100 -> 99.37929282 | Z200: =X200*(100-AVERAGEIF(Y205:Y216,">0"))/100 -> 0 | AA200: =100-(Y200+Z200+AB200) -> 0.6207071824 | AB200: =IF((X202+AB202)>100,AB202*100/(X202+AB202),AB202) -> 0
A201: Regression period: | C201: =MinRegYear(C199,C205:C216) -> 2000 | D201: =IF(MAX(C205:C216)-MIN(C205:C216)<5,AVERAGEIF(C205:C216,">0",D205:D216), IF(FORECAST($C201,D$205:D$216,$C$205:$C$216)<0,0, IF(FORECAST($C201,D$205:D$216,$C$205:$C$216)>100,100, FORECAST($C201,D$205:D$216,$C$205:$C$216)))) -> 92.99408289 | H201: =IF(MAX(C205:C216)-MIN(C205:C216)<5,AVERAGEIF(C205:C216,">0",H205:H216), IF(FORECAST($C201,H$205:H$216,$C$205:$C$216)<0,0, IF(FORECAST($C201,H$205:H$216,$C$205:$C$216)>100,100, FORECAST($C201,H$205:H$216,$C$205:$C$216)))) -> 0.2538911746 | I201: =IF(MAX(C205:C216)-MIN(C205:C216)<5,AVERAGEIF(C205:C216,">0",I205:I216), IF(FORECAST($C201,I$205:I$216,$C$205:$C$216)<0,0, IF(FORECAST($C201,I$205:I$216,$C$205:$C$216)>100,100, FORECAST($C201,I$205:I$216,$C$205:$C$216)))) -> 97.78268371 | M201: =IF(MAX(C205:C216)-MIN(C205:C216)<5,AVERAGEIF(C205:C216,">0",M205:M216), IF(FORECAST($C201,M$205:M$216,$C$205:$C$216)<0,0, IF(FORECAST($C201,M$205:M$216,$C$205:$C$216)>100,100, FORECAST($C201,M$205:M$216,$C$205:$C$216)))) -> 0 | N201: =IF(MAX(C205:C216)-MIN(C205:C216)<5,AVERAGEIF(C205:C216,">0",N205:N216), IF(FORECAST($C201,N$205:N$216,$C$205:$C$216)<0,0, IF(FORECAST($C201,N$205:N$216,$C$205:$C$216)>100,100, FORECAST($C201,N$205:N$216,$C$205:$C$216)))) -> 99.19460954 | R201: =IF(MAX(C205:C216)-MIN(C205:C216)<5,AVERAGEIF(C205:C216,">0",R205:R216), IF(FORECAST($C201,R$205:R$216,$C$205:$C$216)<0,0, IF(FORECAST($C201,R$205:R$216,$C$205:$C$216)>100,100, FORECAST($C201,R$205:R$216,$C$205:$C$216)))) -> 0 | S201: =IF(MAX(C205:C216)-MIN(C205:C216)<5,AVERAGEIF(C205:C216,">0",S205:S216), IF(FORECAST($C201,S$205:S$216,$C$205:$C$216)<0,0, IF(FORECAST($C201,S$205:S$216,$C$205:$C$216)>100,100, FORECAST($C201,S$205:S$216,$C$205:$C$216)))) -> 100 | W201: =IF(MAX(C205:C216)-MIN(C205:C216)<5,AVERAGEIF(C205:C216,">0",W205:W216), IF(FORECAST($C201,W$205:W$216,$C$205:$C$216)<0,0, IF(FORECAST($C201,W$205:W$216,$C$205:$C$216)>100,100, FORECAST($C201,W$205:W$216,$C$205:$C$216)))) -> 0 | X201: =IF(MAX(C205:C216)-MIN(C205:C216)<5,AVERAGEIF(C205:C216,">0",X205:X216), IF(FORECAST($C201,X$205:X$216,$C$205:$C$216)<0,0, IF(FORECAST($C201,X$205:X$216,$C$205:$C$216)>100,100, FORECAST($C201,X$205:X$216,$C$205:$C$216)))) -> 99.64986091 | AB201: =IF(MAX(C205:C216)-MIN(C205:C216)<5,AVERAGEIF(C205:C216,">0",AB205:AB216), IF(FORECAST($C201,AB$205:AB$216,$C$205:$C$216)<0,0, IF(FORECAST($C201,AB$205:AB$216,$C$205:$C$216)>100,100, FORECAST($C201,AB$205:AB$216,$C$205:$C$216)))) -> 0
C202: =MaxRegYear(C200,C205:C216) -> 2015 | D202: =IF(MAX(C205:C216)-MIN(C205:C216)<5,AVERAGEIF(C205:C216,">0",D205:D216), IF(FORECAST($C202,D$205:D$216,$C$205:$C$216)<0,0, IF(FORECAST($C202,D$205:D$216,$C$205:$C$216)>100,100, FORECAST($C202,D$205:D$216,$C$205:$C$216)))) -> 94.68807896 | H202: =IF(MAX(C205:C216)-MIN(C205:C216)<5,AVERAGEIF(C205:C216,">0",H205:H216), IF(FORECAST($C202,H$205:H$216,$C$205:$C$216)<0,0, IF(FORECAST($C202,H$205:H$216,$C$205:$C$216)>100,100, FORECAST($C202,H$205:H$216,$C$205:$C$216)))) -> 1.027179918 | I202: =IF(MAX(C205:C216)-MIN(C205:C216)<5,AVERAGEIF(C205:C216,">0",I205:I216), IF(FORECAST($C202,I$205:I$216,$C$205:$C$216)<0,0, IF(FORECAST($C202,I$205:I$216,$C$205:$C$216)>100,100, FORECAST($C202,I$205:I$216,$C$205:$C$216)))) -> 96.65430766 | M202: =IF(MAX(C205:C216)-MIN(C205:C216)<5,AVERAGEIF(C205:C216,">0",M205:M216), IF(FORECAST($C202,M$205:M$216,$C$205:$C$216)<0,0, IF(FORECAST($C202,M$205:M$216,$C$205:$C$216)>100,100, FORECAST($C202,M$205:M$216,$C$205:$C$216)))) -> 0 | N202: =IF(MAX(C205:C216)-MIN(C205:C216)<5,AVERAGEIF(C205:C216,">0",N205:N216), IF(FORECAST($C202,N$205:N$216,$C$205:$C$216)<0,0, IF(FORECAST($C202,N$205:N$216,$C$205:$C$216)>100,100, FORECAST($C202,N$205:N$216,$C$205:$C$216)))) -> 97.87422737 | R202: =IF(MAX(C205:C216)-MIN(C205:C216)<5,AVERAGEIF(C205:C216,">0",R205:R216), IF(FORECAST($C202,R$205:R$216,$C$205:$C$216)<0,0, IF(FORECAST($C202,R$205:R$216,$C$205:$C$216)>100,100, FORECAST($C202,R$205:R$216,$C$205:$C$216)))) -> 0 | S202: =IF(MAX(C205:C216)-MIN(C205:C216)<5,AVERAGEIF(C205:C216,">0",S205:S216), IF(FORECAST($C202,S$205:S$216,$C$205:$C$216)<0,0, IF(FORECAST($C202,S$205:S$216,$C$205:$C$216)>100,100, FORECAST($C202,S$205:S$216,$C$205:$C$216)))) -> 99.62310585 | W202: =IF(MAX(C205:C216)-MIN(C205:C216)<5,AVERAGEIF(C205:C216,">0",W205:W216), IF(FORECAST($C202,W$205:W$216,$C$205:$C$216)<0,0, IF(FORECAST($C202,W$205:W$216,$C$205:$C$216)>100,100, FORECAST($C202,W$205:W$216,$C$205:$C$216)))) -> 0 | X202: =IF(MAX(C205:C216)-MIN(C205:C216)<5,AVERAGEIF(C205:C216,">0",X205:X216), IF(FORECAST($C202,X$205:X$216,$C$205:$C$216)<0,0, IF(FORECAST($C202,X$205:X$216,$C$205:$C$216)>100,100, FORECAST($C202,X$205:X$216,$C$205:$C$216)))) -> 99.37929282 | AB202: =IF(MAX(C205:C216)-MIN(C205:C216)<5,AVERAGEIF(C205:C216,">0",AB205:AB216), IF(FORECAST($C202,AB$205:AB$216,$C$205:$C$216)<0,0, IF(FORECAST($C202,AB$205:AB$216,$C$205:$C$216)>100,100, FORECAST($C202,AB$205:AB$216,$C$205:$C$216)))) -> 0
B204: Survey | C204: Year | D204: Improved | E204: % Improved < = 30min | H204: Surface water | I204: Improved | J204: % Improved < = 30min | M204: Surface water | N204: Improved | O204: % Improved < = 30min | R204: Surface water | S204: Improved | T204: % Improved < = 30min | W204: Surface water | X204: Improved | Y204: % Improved < = 30min | AB204: Surface water
B205: DHS00 | C205: 2000 | D205: =IF(ISERROR(INDIRECT(CONCATENATE($B205,"!H16"))),"",INDIRECT(CONCATENATE($B205,"!H16"))) -> 93.00723429 | E205: =IF(ISERROR(INDIRECT(CONCATENATE($B205,"!H23"))),"",INDIRECT(CONCATENATE($B205,"!H23"))) -> 98.65411976 | H205: =IF(ISERROR(INDIRECT(CONCATENATE($B205,"!H21"))),"",INDIRECT(CONCATENATE($B205,"!H21"))) -> 0 | I205: =IF(ISERROR(INDIRECT(CONCATENATE($B205,"!I16"))),"",INDIRECT(CONCATENATE($B205,"!I16"))) -> 97.73346558 | J205: =IF(ISERROR(INDIRECT(CONCATENATE($B205,"!I23"))),"",INDIRECT(CONCATENATE($B205,"!I23"))) -> 99.51465935 | M205: =IF(ISERROR(INDIRECT(CONCATENATE($B205,"!I21"))),"",INDIRECT(CONCATENATE($B205,"!I21"))) -> 0 | N205: =IF(ISERROR(INDIRECT(CONCATENATE($B205,"!J16"))),"",INDIRECT(CONCATENATE($B205,"!J16"))) -> 99.79879706 | O205: =IF(ISERROR(INDIRECT(CONCATENATE($B205,"!J23"))),"",INDIRECT(CONCATENATE($B205,"!J23"))) -> 100 | R205: =IF(ISERROR(INDIRECT(CONCATENATE($B205,"!J21"))),"",INDIRECT(CONCATENATE($B205,"!J21"))) -> 0 | S205: =IF(ISERROR(INDIRECT(CONCATENATE($B205,"!K16"))),"",INDIRECT(CONCATENATE($B205,"!K16"))) -> 100 | T205: =IF(ISERROR(INDIRECT(CONCATENATE($B205,"!K23"))),"",INDIRECT(CONCATENATE($B205,"!K23"))) -> 100 | W205: =IF(ISERROR(INDIRECT(CONCATENATE($B205,"!K21"))),"",INDIRECT(CONCATENATE($B205,"!K21"))) -> 0 | X205: =IF(ISERROR(INDIRECT(CONCATENATE($B205,"!L16"))),"",INDIRECT(CONCATENATE($B205,"!L16"))) -> 100 | Y205: =IF(ISERROR(INDIRECT(CONCATENATE($B205,"!L23"))),"",INDIRECT(CONCATENATE($B205,"!L23"))) -> 100 | AB205: =IF(ISERROR(INDIRECT(CONCATENATE($B205,"!L221"))),"",INDIRECT(CONCATENATE($B205,"!L21"))) -> 0
B206: DHS07 | C206: 2007 | D206: 93.75611968 | E206: 97.8 | H206: 1.1648568 | I206: 97.3627475 | J206: 99.6 | M206: 0 | N206: 97.26935823 | O206: 99.9 | R206: 0 | S206: 100 | T206: 100 | W206: 0 | X206: 98.7649611 | Y206: 100 | AB206: 0
B207: DHS13 | C207: 2013 | D207: 94.47755612 | E207: 91.6 | H207: 0.6278683821 | I207: 96.74733665 | J207: 98.1 | M207: 0 | N207: 98.75516377 | O207: 100 | R207: 0 | S207: 99.60604479 | T207: 99.7 | W207: 0 | X207: 99.82386417 | Y207: 100 | AB207: 0
B218: =CONCATENATE("Urban use of drinking water sources, ",C199,"–",C200) -> Urban use of drinking water sources, 2000–2019 | S218: Data points used for regression
E253: =IF(ISERROR(INDIRECT(CONCATENATE($B253,"!M18"))),"",INDIRECT(CONCATENATE($B253,"!M18"))) ->  | F253: =IF(ISERROR(INDIRECT(CONCATENATE($B253,"!M19"))),"",INDIRECT(CONCATENATE($B253,"!M19"))) ->  | G253: =IF(ISERROR(INDIRECT(CONCATENATE($B253,"!M20"))),"",INDIRECT(CONCATENATE($B253,"!M20"))) ->  | H253: =IF(ISERROR(INDIRECT(CONCATENATE($B253,"!M21"))),"",INDIRECT(CONCATENATE($B253,"!M21"))) ->  | J253: =IF(ISERROR(INDIRECT(CONCATENATE($B253,"!N18"))),"",INDIRECT(CONCATENATE($B253,"!N18"))) ->  | K253: =IF(ISERROR(INDIRECT(CONCATENATE($B253,"!N19"))),"",INDIRECT(CONCATENATE($B253,"!N19"))) ->  | L253: =IF(ISERROR(INDIRECT(CONCATENATE($B253,"!N20"))),"",INDIRECT(CONCATENATE($B253,"!N20"))) ->  | M253: =IF(ISERROR(INDIRECT(CONCATENATE($B253,"!N21"))),"",INDIRECT(CONCATENATE($B253,"!N21"))) ->  | O253: =IF(ISERROR(INDIRECT(CONCATENATE($B253,"!O18"))),"",INDIRECT(CONCATENATE($B253,"!O18"))) ->  | P253: =IF(ISERROR(INDIRECT(CONCATENATE($B253,"!O19"))),"",INDIRECT(CONCATENATE($B253,"!O19"))) ->  | Q253: =IF(ISERROR(INDIRECT(CONCATENATE($B253,"!O20"))),"",INDIRECT(CONCATENATE($B253,"!O20"))) ->  | R253: =IF(ISERROR(INDIRECT(CONCATENATE($B253,"!O21"))),"",INDIRECT(CONCATENATE($B253,"!O21"))) ->  | T253: =IF(ISERROR(INDIRECT(CONCATENATE($B253,"!P18"))),"",INDIRECT(CONCATENATE($B253,"!P18"))) ->  | U253: =IF(ISERROR(INDIRECT(CONCATENATE($B253,"!P19"))),"",INDIRECT(CONCATENATE($B253,"!P19"))) ->  | V253: =IF(ISERROR(INDIRECT(CONCATENATE($B253,"!P20"))),"",INDIRECT(CONCATENATE($B253,"!P20"))) ->  | W253: =IF(ISERROR(INDIRECT(CONCATENATE($B253,"!P21"))),"",INDIRECT(CONCATENATE($B253,"!P21"))) ->  | Y253: =IF(ISERROR(INDIRECT(CONCATENATE($B253,"!Q18"))),"",INDIRECT(CONCATENATE($B253,"!Q18"))) ->  | Z253: =IF(ISERROR(INDIRECT(CONCATENATE($B253,"!Q19"))),"",INDIRECT(CONCATENATE($B253,"!Q19"))) ->  | AA253: =IF(ISERROR(INDIRECT(CONCATENATE($B253,"!Q20"))),"",INDIRECT(CONCATENATE($B253,"!Q20"))) ->  | AB253: =IF(ISERROR(INDIRECT(CONCATENATE($B253,"!Q21"))),"",INDIRECT(CONCATENATE($B253,"!Q1"))) -> 
E254: =IF(ISERROR(INDIRECT(CONCATENATE($B254,"!M18"))),"",INDIRECT(CONCATENATE($B254,"!M18"))) ->  | F254: =IF(ISERROR(INDIRECT(CONCATENATE($B254,"!M19"))),"",INDIRECT(CONCATENATE($B254,"!M19"))) ->  | G254: =IF(ISERROR(INDIRECT(CONCATENATE($B254,"!M20"))),"",INDIRECT(CONCATENATE($B254,"!M20"))) ->  | H254: =IF(ISERROR(INDIRECT(CONCATENATE($B254,"!M21"))),"",INDIRECT(CONCATENATE($B254,"!M21"))) ->  | J254: =IF(ISERROR(INDIRECT(CONCATENATE($B254,"!N18"))),"",INDIRECT(CONCATENATE($B254,"!N18"))) ->  | K254: =IF(ISERROR(INDIRECT(CONCATENATE($B254,"!N19"))),"",INDIRECT(CONCATENATE($B254,"!N19"))) ->  | L254: =IF(ISERROR(INDIRECT(CONCATENATE($B254,"!N20"))),"",INDIRECT(CONCATENATE($B254,"!N20"))) ->  | M254: =IF(ISERROR(INDIRECT(CONCATENATE($B254,"!N21"))),"",INDIRECT(CONCATENATE($B254,"!N21"))) ->  | O254: =IF(ISERROR(INDIRECT(CONCATENATE($B254,"!O18"))),"",INDIRECT(CONCATENATE($B254,"!O18"))) ->  | P254: =IF(ISERROR(INDIRECT(CONCATENATE($B254,"!O19"))),"",INDIRECT(CONCATENATE($B254,"!O19"))) ->  | Q254: =IF(ISERROR(INDIRECT(CONCATENATE($B254,"!O20"))),"",INDIRECT(CONCATENATE($B254,"!O20"))) ->  | R254: =IF(ISERROR(INDIRECT(CONCATENATE($B254,"!O21"))),"",INDIRECT(CONCATENATE($B254,"!O21"))) ->  | T254: =IF(ISERROR(INDIRECT(CONCATENATE($B254,"!P18"))),"",INDIRECT(CONCATENATE($B254,"!P18"))) ->  | U254: =IF(ISERROR(INDIRECT(CONCATENATE($B254,"!P19"))),"",INDIRECT(CONCATENATE($B254,"!P19"))) ->  | V254: =IF(ISERROR(INDIRECT(CONCATENATE($B254,"!P20"))),"",INDIRECT(CONCATENATE($B254,"!P20"))) ->  | W254: =IF(ISERROR(INDIRECT(CONCATENATE($B254,"!P21"))),"",INDIRECT(CONCATENATE($B254,"!P21"))) ->  | Y254: =IF(ISERROR(INDIRECT(CONCATENATE($B254,"!Q18"))),"",INDIRECT(CONCATENATE($B254,"!Q18"))) ->  | Z254: =IF(ISERROR(INDIRECT(CONCATENATE($B254,"!Q19"))),"",INDIRECT(CONCATENATE($B254,"!Q19"))) ->  | AA254: =IF(ISERROR(INDIRECT(CONCATENATE($B254,"!Q20"))),"",INDIRECT(CONCATENATE($B254,"!Q20"))) ->  | AB254: =IF(ISERROR(INDIRECT(CONCATENATE($B254,"!Q21"))),"",INDIRECT(CONCATENATE($B254,"!Q1"))) -> 
E255: =IF(ISERROR(INDIRECT(CONCATENATE($B255,"!M18"))),"",INDIRECT(CONCATENATE($B255,"!M18"))) ->  | F255: =IF(ISERROR(INDIRECT(CONCATENATE($B255,"!M19"))),"",INDIRECT(CONCATENATE($B255,"!M19"))) ->  | G255: =IF(ISERROR(INDIRECT(CONCATENATE($B255,"!M20"))),"",INDIRECT(CONCATENATE($B255,"!M20"))) ->  | H255: =IF(ISERROR(INDIRECT(CONCATENATE($B255,"!M21"))),"",INDIRECT(CONCATENATE($B255,"!M21"))) ->  | J255: =IF(ISERROR(INDIRECT(CONCATENATE($B255,"!N18"))),"",INDIRECT(CONCATENATE($B255,"!N18"))) ->  | K255: =IF(ISERROR(INDIRECT(CONCATENATE($B255,"!N19"))),"",INDIRECT(CONCATENATE($B255,"!N19"))) ->  | L255: =IF(ISERROR(INDIRECT(CONCATENATE($B255,"!N20"))),"",INDIRECT(CONCATENATE($B255,"!N20"))) ->  | M255: =IF(ISERROR(INDIRECT(CONCATENATE($B255,"!N21"))),"",INDIRECT(CONCATENATE($B255,"!N21"))) ->  | O255: =IF(ISERROR(INDIRECT(CONCATENATE($B255,"!O18"))),"",INDIRECT(CONCATENATE($B255,"!O18"))) ->  | P255: =IF(ISERROR(INDIRECT(CONCATENATE($B255,"!O19"))),"",INDIRECT(CONCATENATE($B255,"!O19"))) ->  | Q255: =IF(ISERROR(INDIRECT(CONCATENATE($B255,"!O20"))),"",INDIRECT(CONCATENATE($B255,"!O20"))) ->  | R255: =IF(ISERROR(INDIRECT(CONCATENATE($B255,"!O21"))),"",INDIRECT(CONCATENATE($B255,"!O21"))) ->  | T255: =IF(ISERROR(INDIRECT(CONCATENATE($B255,"!P18"))),"",INDIRECT(CONCATENATE($B255,"!P18"))) ->  | U255: =IF(ISERROR(INDIRECT(CONCATENATE($B255,"!P19"))),"",INDIRECT(CONCATENATE($B255,"!P19"))) ->  | V255: =IF(ISERROR(INDIRECT(CONCATENATE($B255,"!P20"))),"",INDIRECT(CONCATENATE($B255,"!P20"))) ->  | W255: =IF(ISERROR(INDIRECT(CONCATENATE($B255,"!P21"))),"",INDIRECT(CONCATENATE($B255,"!P21"))) ->  | Y255: =IF(ISERROR(INDIRECT(CONCATENATE($B255,"!Q18"))),"",INDIRECT(CONCATENATE($B255,"!Q18"))) ->  | Z255: =IF(ISERROR(INDIRECT(CONCATENATE($B255,"!Q19"))),"",INDIRECT(CONCATENATE($B255,"!Q19"))) ->  | AA255: =IF(ISERROR(INDIRECT(CONCATENATE($B255,"!Q20"))),"",INDIRECT(CONCATENATE($B255,"!Q20"))) ->  | AB255: =IF(ISERROR(INDIRECT(CONCATENATE($B255,"!Q21"))),"",INDIRECT(CONCATENATE($B255,"!Q1"))) -> 
E256: =IF(ISERROR(INDIRECT(CONCATENATE($B256,"!M18"))),"",INDIRECT(CONCATENATE($B256,"!M18"))) ->  | F256: =IF(ISERROR(INDIRECT(CONCATENATE($B256,"!M19"))),"",INDIRECT(CONCATENATE($B256,"!M19"))) ->  | G256: =IF(ISERROR(INDIRECT(CONCATENATE($B256,"!M20"))),"",INDIRECT(CONCATENATE($B256,"!M20"))) ->  | H256: =IF(ISERROR(INDIRECT(CONCATENATE($B256,"!M21"))),"",INDIRECT(CONCATENATE($B256,"!M21"))) ->  | J256: =IF(ISERROR(INDIRECT(CONCATENATE($B256,"!N18"))),"",INDIRECT(CONCATENATE($B256,"!N18"))) ->  | K256: =IF(ISERROR(INDIRECT(CONCATENATE($B256,"!N19"))),"",INDIRECT(CONCATENATE($B256,"!N19"))) ->  | L256: =IF(ISERROR(INDIRECT(CONCATENATE($B256,"!N20"))),"",INDIRECT(CONCATENATE($B256,"!N20"))) ->  | M256: =IF(ISERROR(INDIRECT(CONCATENATE($B256,"!N21"))),"",INDIRECT(CONCATENATE($B256,"!N21"))) ->  | O256: =IF(ISERROR(INDIRECT(CONCATENATE($B256,"!O18"))),"",INDIRECT(CONCATENATE($B256,"!O18"))) ->  | P256: =IF(ISERROR(INDIRECT(CONCATENATE($B256,"!O19"))),"",INDIRECT(CONCATENATE($B256,"!O19"))) ->  | Q256: =IF(ISERROR(INDIRECT(CONCATENATE($B256,"!O20"))),"",INDIRECT(CONCATENATE($B256,"!O20"))) ->  | R256: =IF(ISERROR(INDIRECT(CONCATENATE($B256,"!O21"))),"",INDIRECT(CONCATENATE($B256,"!O21"))) ->  | T256: =IF(ISERROR(INDIRECT(CONCATENATE($B256,"!P18"))),"",INDIRECT(CONCATENATE($B256,"!P18"))) ->  | U256: =IF(ISERROR(INDIRECT(CONCATENATE($B256,"!P19"))),"",INDIRECT(CONCATENATE($B256,"!P19"))) ->  | V256: =IF(ISERROR(INDIRECT(CONCATENATE($B256,"!P20"))),"",INDIRECT(CONCATENATE($B256,"!P20"))) ->  | W256: =IF(ISERROR(INDIRECT(CONCATENATE($B256,"!P21"))),"",INDIRECT(CONCATENATE($B256,"!P21"))) ->  | Y256: =IF(ISERROR(INDIRECT(CONCATENATE($B256,"!Q18"))),"",INDIRECT(CONCATENATE($B256,"!Q18"))) ->  | Z256: =IF(ISERROR(INDIRECT(CONCATENATE($B256,"!Q19"))),"",INDIRECT(CONCATENATE($B256,"!Q19"))) ->  | AA256: =IF(ISERROR(INDIRECT(CONCATENATE($B256,"!Q20"))),"",INDIRECT(CONCATENATE($B256,"!Q20"))) ->  | AB256: =IF(ISERROR(INDIRECT(CONCATENATE($B256,"!Q21"))),"",INDIRECT(CONCATENATE($B256,"!Q1"))) -> 
E257: =IF(ISERROR(INDIRECT(CONCATENATE($B257,"!M18"))),"",INDIRECT(CONCATENATE($B257,"!M18"))) ->  | F257: =IF(ISERROR(INDIRECT(CONCATENATE($B257,"!M19"))),"",INDIRECT(CONCATENATE($B257,"!M19"))) ->  | G257: =IF(ISERROR(INDIRECT(CONCATENATE($B257,"!M20"))),"",INDIRECT(CONCATENATE($B257,"!M20"))) ->  | H257: =IF(ISERROR(INDIRECT(CONCATENATE($B257,"!M21"))),"",INDIRECT(CONCATENATE($B257,"!M21"))) ->  | J257: =IF(ISERROR(INDIRECT(CONCATENATE($B257,"!N18"))),"",INDIRECT(CONCATENATE($B257,"!N18"))) ->  | K257: =IF(ISERROR(INDIRECT(CONCATENATE($B257,"!N19"))),"",INDIRECT(CONCATENATE($B257,"!N19"))) ->  | L257: =IF(ISERROR(INDIRECT(CONCATENATE($B257,"!N20"))),"",INDIRECT(CONCATENATE($B257,"!N20"))) ->  | M257: =IF(ISERROR(INDIRECT(CONCATENATE($B257,"!N21"))),"",INDIRECT(CONCATENATE($B257,"!N21"))) ->  | O257: =IF(ISERROR(INDIRECT(CONCATENATE($B257,"!O18"))),"",INDIRECT(CONCATENATE($B257,"!O18"))) ->  | P257: =IF(ISERROR(INDIRECT(CONCATENATE($B257,"!O19"))),"",INDIRECT(CONCATENATE($B257,"!O19"))) ->  | Q257: =IF(ISERROR(INDIRECT(CONCATENATE($B257,"!O20"))),"",INDIRECT(CONCATENATE($B257,"!O20"))) ->  | R257: =IF(ISERROR(INDIRECT(CONCATENATE($B257,"!O21"))),"",INDIRECT(CONCATENATE($B257,"!O21"))) ->  | T257: =IF(ISERROR(INDIRECT(CONCATENATE($B257,"!P18"))),"",INDIRECT(CONCATENATE($B257,"!P18"))) ->  | U257: =IF(ISERROR(INDIRECT(CONCATENATE($B257,"!P19"))),"",INDIRECT(CONCATENATE($B257,"!P19"))) ->  | V257: =IF(ISERROR(INDIRECT(CONCATENATE($B257,"!P20"))),"",INDIRECT(CONCATENATE($B257,"!P20"))) ->  | W257: =IF(ISERROR(INDIRECT(CONCATENATE($B257,"!P21"))),"",INDIRECT(CONCATENATE($B257,"!P21"))) ->  | Y257: =IF(ISERROR(INDIRECT(CONCATENATE($B257,"!Q18"))),"",INDIRECT(CONCATENATE($B257,"!Q18"))) ->  | Z257: =IF(ISERROR(INDIRECT(CONCATENATE($B257,"!Q19"))),"",INDIRECT(CONCATENATE($B257,"!Q19"))) ->  | AA257: =IF(ISERROR(INDIRECT(CONCATENATE($B257,"!Q20"))),"",INDIRECT(CONCATENATE($B257,"!Q20"))) ->  | AB257: =IF(ISERROR(INDIRECT(CONCATENATE($B257,"!Q21"))),"",INDIRECT(CONCATENATE($B257,"!Q1"))) -> 
A297: RURAL | D297: Poorest | I297: Poor | N297: Middle | S297: Rich | X297: Richest
D298: Improved | E298: Basic | F298: Limited | G298: Unimproved | H298: Surface water | I298: Improved | J298: Basic | K298: Limited | L298: Unimproved | M298: Surface water | N298: Improved | O298: Basic | P298: Limited | Q298: Unimproved | R298: Surface water | S298: Improved | T298: Basic | U298: Limited | V298: Unimproved | W298: Surface water | X298: Improved | Y298: Basic | Z298: Limited | AA298: Unimproved | AB298: Surface water
A299: Forecast period: | C299: 2000 | D299: =IF((D301+H301)>100,D301*100/(D301+H301),D301) -> 60.996377 | E299: =D299*AVERAGEIF(E305:E316,">0")/100 -> 49.72864518 | F299: =D299*(100-AVERAGEIF(E305:E316,">0"))/100 -> 11.26773182 | G299: =100-(E299+F299+H299) -> 20.30464037 | H299: =IF((D301+H301)>100,H301*100/(D301+H301),H301) -> 18.69898263 | I299: =IF((I301+M301)>100,I301*100/(I301+M301),I301) -> 65.96089065 | J299: =I299*AVERAGEIF(J305:J316,">0")/100 -> 54.12657565 | K299: =I299*(100-AVERAGEIF(J305:J316,">0"))/100 -> 11.834315 | L299: =100-(J299+K299+M299) -> 16.3077906 | M299: =IF((I301+M301)>100,M301*100/(I301+M301),M301) -> 17.73131875 | N299: =IF((N301+R301)>100,N301*100/(N301+R301),N301) -> 65.2279849 | O299: =N299*AVERAGEIF(O305:O316,">0")/100 -> 54.43759724 | P299: =N299*(100-AVERAGEIF(O305:O316,">0"))/100 -> 10.79038765 | Q299: =100-(O299+P299+R299) -> 25.14073634 | R299: =IF((N301+R301)>100,R301*100/(N301+R301),R301) -> 9.631278768 | S299: =IF((S301+W301)>100,S301*100/(S301+W301),S301) -> 72.00496764 | T299: =S299*AVERAGEIF(T305:T316,">0")/100 -> 64.17211637 | U299: =S299*(100-AVERAGEIF(T305:T316,">0"))/100 -> 7.832851275 | V299: =100-(T299+U299+W299) -> 20.56638802 | W299: =IF((S301+W301)>100,W301*100/(S301+W301),W301) -> 7.428644338 | X299: =IF((X301+AB301)>100,X301*100/(X301+AB301),X301) -> 87.13762924 | Y299: =X299*AVERAGEIF(Y305:Y316,">0")/100 -> 83.82077773 | Z299: =X299*(100-AVERAGEIF(Y305:Y316,">0"))/100 -> 3.316851513 | AA299: =100-(Y299+Z299+AB299) -> 6.530023939 | AB299: =IF((X301+AB301)>100,AB301*100/(X301+AB301),AB301) -> 6.332346822
C300: 2019 | D300: =IF((D302+H302)>100,D302*100/(D302+H302),D302) -> 67.12437516 | E300: =D300*AVERAGEIF(E305:E316,">0")/100 -> 54.7246312 | F300: =D300*(100-AVERAGEIF(E305:E316,">0"))/100 -> 12.39974397 | G300: =100-(E300+F300+H300) -> 13.790054 | H300: =IF((D302+H302)>100,H302*100/(D302+H302),H302) -> 19.08557084 | I300: =IF((I302+M302)>100,I302*100/(I302+M302),I302) -> 67.13281835 | J300: =I300*AVERAGEIF(J305:J316,">0")/100 -> 55.08824298 | K300: =I300*(100-AVERAGEIF(J305:J316,">0"))/100 -> 12.04457537 | L300: =100-(J300+K300+M300) -> 19.87789368 | M300: =IF((I302+M302)>100,M302*100/(I302+M302),M302) -> 12.98928797 | N300: =IF((N302+R302)>100,N302*100/(N302+R302),N302) -> 74.38229973 | O300: =N300*AVERAGEIF(O305:O316,">0")/100 -> 62.07755277 | P300: =N300*(100-AVERAGEIF(O305:O316,">0"))/100 -> 12.30474696 | Q300: =100-(O300+P300+R300) -> 13.56544774 | R300: =IF((N302+R302)>100,R302*100/(N302+R302),R302) -> 12.05225253 | S300: =IF((S302+W302)>100,S302*100/(S302+W302),S302) -> 84.53808906 | T300: =S300*AVERAGEIF(T305:T316,">0")/100 -> 75.34185857 | U300: =S300*(100-AVERAGEIF(T305:T316,">0"))/100 -> 9.196230487 | V300: =100-(T300+U300+W300) -> 8.57605681 | W300: =IF((S302+W302)>100,W302*100/(S302+W302),W302) -> 6.885854129 | X300: =IF((X302+AB302)>100,X302*100/(X302+AB302),X302) -> 96.42304409 | Y300: =X300*AVERAGEIF(Y305:Y316,">0")/100 -> 92.75274777 | Z300: =X300*(100-AVERAGEIF(Y305:Y316,">0"))/100 -> 3.670296317 | AA300: =100-(Y300+Z300+AB300) -> 3.092607466 | AB300: =IF((X302+AB302)>100,AB302*100/(X302+AB302),AB302) -> 0.4843484431
A301: Regression period: | C301: =MinRegYear(C299,C305:C316) -> 2000 | D301: =IF(MAX(C305:C316)-MIN(C305:C316)<5,AVERAGEIF(C305:C316,">0",D305:D316), IF(FORECAST($C301,D$305:D$316,$C$305:$C$316)<0,0, IF(FORECAST($C301,D$305:D$316,$C$305:$C$316)>100,100, FORECAST($C301,D$305:D$316,$C$305:$C$316)))) -> 60.996377 | H301: =IF(MAX(C305:C316)-MIN(C305:C316)<5,AVERAGEIF(C305:C316,">0",H305:H316), IF(FORECAST($C301,H$305:H$316,$C$305:$C$316)<0,0, IF(FORECAST($C301,H$305:H$316,$C$305:$C$316)>100,100, FORECAST($C301,H$305:H$316,$C$305:$C$316)))) -> 18.69898263 | I301: =IF(MAX(C305:C316)-MIN(C305:C316)<5,AVERAGEIF(C305:C316,">0",I305:I316), IF(FORECAST($C301,I$305:I$316,$C$305:$C$316)<0,0, IF(FORECAST($C301,I$305:I$316,$C$305:$C$316)>100,100, FORECAST($C301,I$305:I$316,$C$305:$C$316)))) -> 65.96089065 | M301: =IF(MAX(C305:C316)-MIN(C305:C316)<5,AVERAGEIF(C305:C316,">0",M305:M316), IF(FORECAST($C301,M$305:M$316,$C$305:$C$316)<0,0, IF(FORECAST($C301,M$305:M$316,$C$305:$C$316)>100,100, FORECAST($C301,M$305:M$316,$C$305:$C$316)))) -> 17.73131875 | N301: =IF(MAX(C305:C316)-MIN(C305:C316)<5,AVERAGEIF(C305:C316,">0",N305:N316), IF(FORECAST($C301,N$305:N$316,$C$305:$C$316)<0,0, IF(FORECAST($C301,N$305:N$316,$C$305:$C$316)>100,100, FORECAST($C301,N$305:N$316,$C$305:$C$316)))) -> 65.2279849 | R301: =IF(MAX(C305:C316)-MIN(C305:C316)<5,AVERAGEIF(C305:C316,">0",R305:R316), IF(FORECAST($C301,R$305:R$316,$C$305:$C$316)<0,0, IF(FORECAST($C301,R$305:R$316,$C$305:$C$316)>100,100, FORECAST($C301,R$305:R$316,$C$305:$C$316)))) -> 9.631278768 | S301: =IF(MAX(C305:C316)-MIN(C305:C316)<5,AVERAGEIF(C305:C316,">0",S305:S316), IF(FORECAST($C301,S$305:S$316,$C$305:$C$316)<0,0, IF(FORECAST($C301,S$305:S$316,$C$305:$C$316)>100,100, FORECAST($C301,S$305:S$316,$C$305:$C$316)))) -> 72.00496764 | W301: =IF(MAX(C305:C316)-MIN(C305:C316)<5,AVERAGEIF(C305:C316,">0",W305:W316), IF(FORECAST($C301,W$305:W$316,$C$305:$C$316)<0,0, IF(FORECAST($C301,W$305:W$316,$C$305:$C$316)>100,100, FORECAST($C301,W$305:W$316,$C$305:$C$316)))) -> 7.428644338 | X301: =IF(MAX(C305:C316)-MIN(C305:C316)<5,AVERAGEIF(C305:C316,">0",X305:X316), IF(FORECAST($C301,X$305:X$316,$C$305:$C$316)<0,0, IF(FORECAST($C301,X$305:X$316,$C$305:$C$316)>100,100, FORECAST($C301,X$305:X$316,$C$305:$C$316)))) -> 87.13762924 | AB301: =IF(MAX(C305:C316)-MIN(C305:C316)<5,AVERAGEIF(C305:C316,">0",AB305:AB316), IF(FORECAST($C301,AB$305:AB$316,$C$305:$C$316)<0,0, IF(FORECAST($C301,AB$305:AB$316,$C$305:$C$316)>100,100, FORECAST($C301,AB$305:AB$316,$C$305:$C$316)))) -> 6.332346822
C302: =MaxRegYear(C300,C305:C316) -> 2015 | D302: =IF(MAX(C305:C316)-MIN(C305:C316)<5,AVERAGEIF(C305:C316,">0",D305:D316), IF(FORECAST($C302,D$305:D$316,$C$305:$C$316)<0,0, IF(FORECAST($C302,D$305:D$316,$C$305:$C$316)>100,100, FORECAST($C302,D$305:D$316,$C$305:$C$316)))) -> 67.12437516 | H302: =IF(MAX(C305:C316)-MIN(C305:C316)<5,AVERAGEIF(C305:C316,">0",H305:H316), IF(FORECAST($C302,H$305:H$316,$C$305:$C$316)<0,0, IF(FORECAST($C302,H$305:H$316,$C$305:$C$316)>100,100, FORECAST($C302,H$305:H$316,$C$305:$C$316)))) -> 19.08557084 | I302: =IF(MAX(C305:C316)-MIN(C305:C316)<5,AVERAGEIF(C305:C316,">0",I305:I316), IF(FORECAST($C302,I$305:I$316,$C$305:$C$316)<0,0, IF(FORECAST($C302,I$305:I$316,$C$305:$C$316)>100,100, FORECAST($C302,I$305:I$316,$C$305:$C$316)))) -> 67.13281835 | M302: =IF(MAX(C305:C316)-MIN(C305:C316)<5,AVERAGEIF(C305:C316,">0",M305:M316), IF(FORECAST($C302,M$305:M$316,$C$305:$C$316)<0,0, IF(FORECAST($C302,M$305:M$316,$C$305:$C$316)>100,100, FORECAST($C302,M$305:M$316,$C$305:$C$316)))) -> 12.98928797 | N302: =IF(MAX(C305:C316)-MIN(C305:C316)<5,AVERAGEIF(C305:C316,">0",N305:N316), IF(FORECAST($C302,N$305:N$316,$C$305:$C$316)<0,0, IF(FORECAST($C302,N$305:N$316,$C$305:$C$316)>100,100, FORECAST($C302,N$305:N$316,$C$305:$C$316)))) -> 74.38229973 | R302: =IF(MAX(C305:C316)-MIN(C305:C316)<5,AVERAGEIF(C305:C316,">0",R305:R316), IF(FORECAST($C302,R$305:R$316,$C$305:$C$316)<0,0, IF(FORECAST($C302,R$305:R$316,$C$305:$C$316)>100,100, FORECAST($C302,R$305:R$316,$C$305:$C$316)))) -> 12.05225253 | S302: =IF(MAX(C305:C316)-MIN(C305:C316)<5,AVERAGEIF(C305:C316,">0",S305:S316), IF(FORECAST($C302,S$305:S$316,$C$305:$C$316)<0,0, IF(FORECAST($C302,S$305:S$316,$C$305:$C$316)>100,100, FORECAST($C302,S$305:S$316,$C$305:$C$316)))) -> 84.53808906 | W302: =IF(MAX(C305:C316)-MIN(C305:C316)<5,AVERAGEIF(C305:C316,">0",W305:W316), IF(FORECAST($C302,W$305:W$316,$C$305:$C$316)<0,0, IF(FORECAST($C302,W$305:W$316,$C$305:$C$316)>100,100, FORECAST($C302,W$305:W$316,$C$305:$C$316)))) -> 6.885854129 | X302: =IF(MAX(C305:C316)-MIN(C305:C316)<5,AVERAGEIF(C305:C316,">0",X305:X316), IF(FORECAST($C302,X$305:X$316,$C$305:$C$316)<0,0, IF(FORECAST($C302,X$305:X$316,$C$305:$C$316)>100,100, FORECAST($C302,X$305:X$316,$C$305:$C$316)))) -> 96.42304409 | AB302: =IF(MAX(C305:C316)-MIN(C305:C316)<5,AVERAGEIF(C305:C316,">0",AB305:AB316), IF(FORECAST($C302,AB$305:AB$316,$C$305:$C$316)<0,0, IF(FORECAST($C302,AB$305:AB$316,$C$305:$C$316)>100,100, FORECAST($C302,AB$305:AB$316,$C$305:$C$316)))) -> 0.4843484431
B304: Survey | C304: Year | D304: Improved | E304: % Improved < = 30min | H304: Surface water | I304: Improved | J304: % Improved < = 30min | M304: Surface water | N304: Improved | O304: % Improved < = 30min | R304: Surface water | S304: Improved | T304: % Improved < = 30min | W304: Surface water | X304: Improved | Y304: % Improved < = 30min | AB304: Surface water
B305: DHS00 | C305: 2000 | D305: =IF(ISERROR(INDIRECT(CONCATENATE($B305,"!M16"))),"",INDIRECT(CONCATENATE($B305,"!M16"))) -> 58.0029964 | E305: =IF(ISERROR(INDIRECT(CONCATENATE($B305,"!M23"))),"",INDIRECT(CONCATENATE($B305,"!M23"))) -> 87.08163401 | H305: =IF(ISERROR(INDIRECT(CONCATENATE($B305,"!M21"))),"",INDIRECT(CONCATENATE($B305,"!M21"))) -> 19.24749389 | I305: =IF(ISERROR(INDIRECT(CONCATENATE($B305,"!N16"))),"",INDIRECT(CONCATENATE($B305,"!N16"))) -> 60.85292202 | J305: =IF(ISERROR(INDIRECT(CONCATENATE($B305,"!N23"))),"",INDIRECT(CONCATENATE($B305,"!N23"))) -> 82.67576471 | M305: =IF(ISERROR(INDIRECT(CONCATENATE($B305,"!N21"))),"",INDIRECT(CONCATENATE($B305,"!N21"))) -> 17.83554539 | N305: =IF(ISERROR(INDIRECT(CONCATENATE($B305,"!O16"))),"",INDIRECT(CONCATENATE($B305,"!O16"))) -> 61.90562634 | O305: =IF(ISERROR(INDIRECT(CONCATENATE($B305,"!O23"))),"",INDIRECT(CONCATENATE($B305,"!O23"))) -> 86.07227807 | R305: =IF(ISERROR(INDIRECT(CONCATENATE($B305,"!O21"))),"",INDIRECT(CONCATENATE($B305,"!O21"))) -> 7.913891315 | S305: =IF(ISERROR(INDIRECT(CONCATENATE($B305,"!P16"))),"",INDIRECT(CONCATENATE($B305,"!P16"))) -> 69.18598448 | T305: =IF(ISERROR(INDIRECT(CONCATENATE($B305,"!P23"))),"",INDIRECT(CONCATENATE($B305,"!P23"))) -> 89.76537132 | W305: =IF(ISERROR(INDIRECT(CONCATENATE($B305,"!P21"))),"",INDIRECT(CONCATENATE($B305,"!P21"))) -> 6.210604194 | X305: =IF(ISERROR(INDIRECT(CONCATENATE($B305,"!Q16"))),"",INDIRECT(CONCATENATE($B305,"!Q16"))) -> 85.68012259 | Y305: =IF(ISERROR(INDIRECT(CONCATENATE($B305,"!Q23"))),"",INDIRECT(CONCATENATE($B305,"!Q23"))) -> 97.98064578 | AB305: =IF(ISERROR(INDIRECT(CONCATENATE($B305,"!Q221"))),"",INDIRECT(CONCATENATE($B305,"!Q21"))) -> 6.433723531
B306: DHS07 | C306: 2007 | D306: 70.34176743 | E306: 81 | H306: 17.69094942 | I306: 77.5750556 | J306: 82.8 | M306: 15.29254667 | N306: 76.69844202 | O306: 81.1 | R306: 14.48207267 | S306: 83.96155451 | T306: 85.1 | W306: 9.814429219 | X306: 94.62875391 | Y306: 95.3 | AB306: 3.383631377
B307: DHS13 | C307: 2013 | D307: 62.81503138 | E307: 76.5 | H307: 19.67395554 | I307: 61.01726459 | J307: 80.7 | M307: 13.74315648 | N307: 69.28563944 | O307: 83.2 | R307: 9.725837335 | S307: 79.57819251 | T307: 92.5 | W307: 5.537179323 | X307: 93.48456435 | Y307: 95.3 | AB307: 1.382354387
B318: =CONCATENATE("Rural use of drinking water sources, ",C299,"–",C300) -> Rural use of drinking water sources, 2000–2019 | S318: Data points used for regression

Sheet Sanitation
B4: Summary of trends in use of sanitation facilities by wealth quintile (%)
B5: =IF(ISERROR(INDIRECT(CONCATENATE($B105,"!A2"))),"",INDIRECT(CONCATENATE($B105,"!A2"))) -> Namibia
B7: =B118 -> National use of sanitation facilities, 2000–2019 | J7: =B218 -> Urban use of sanitation facilities, 2000–2019 | R7: =B318 -> Rural use of sanitation facilities, 2000–2019
B31: =IF(ISERROR(INDIRECT(CONCATENATE($B105,"!A2"))),"",INDIRECT(CONCATENATE($B105,"!A2"))) -> Namibia | F31: Poorest | J31: Poor | N31: Middle | R31: Rich | V31: Richest
F32: Basic | G32: Limited | H32: Unimproved | I32: Open defecation | J32: Basic | K32: Limited | L32: Unimproved | M32: Open defecation | N32: Basic | O32: Limited | P32: Unimproved | Q32: Open defecation | R32: Basic | S32: Limited | T32: Unimproved | U32: Open defecation | V32: Basic | W32: Limited | X32: Unimproved | Y32: Open defecation
B33: NATIONAL | D33: Estimate | E33: =C99 -> 2000 | F33: =E99 -> 1.131832186 | G33: =F99 -> 0.5985999177 | H33: 2.974533604 | I33: 95.29503429 | J33: =J99 -> 3.181350234 | K33: =K99 -> 1.191460638 | L33: 6.234766769 | M33: 89.39242236 | N33: =O99 -> 11.16323064 | O33: =P99 -> 6.875769822 | P33: 9.700346706 | Q33: 72.26065283 | R33: =T99 -> 42.98149483 | S33: =U99 -> 19.7052586 | T33: 11.5488634 | U33: 25.76438316 | V33: =Y99 -> 88.3721184 | W33: =Z99 -> 10.36482497 | X33: 0.8801741005 | Y33: 0.3828825272
E34: =C100 -> 2019 | F34: =E100 -> 3.783008094 | G34: 2.000745661 | H34: 1.955192063 | I34: 92.26105418 | J34: =J100 -> 10.64938579 | K34: 3.988345532 | L34: 3.25969982 | M34: 82.10256886 | N34: =O100 -> 22.15639015 | O34: 13.64678771 | P34: 7.044191802 | Q34: 57.15263034 | R34: =T100 -> 56.36060206 | S34: 25.83903242 | T34: 5.674520783 | U34: 12.12584474 | V34: =Y100 -> 87.40518139 | W34: 10.25141666 | X34: 2.180356997 | Y34: 0.163044954
B36: URBAN | D36: Estimate | E36: =C199 -> 2000 | F36: =E199 -> 14.48422373 | G36: =F199 -> 21.88938678 | H36: 19.66931252 | I36: 43.95707697 | J36: =J199 -> 41.10045752 | K36: =K199 -> 38.23610722 | L36: 9.02718599 | M36: 11.63624928 | N36: =O199 -> 68.74484872 | O36: =P199 -> 29.24510167 | P36: 1.968816511 | Q36: 0.04123309782 | R36: =T199 -> 85.87043149 | S36: =U199 -> 14.09777644 | T36: 0 | U36: 0.03179206682 | V36: =Y199 -> 94.05111454 | W36: =Z199 -> 5.842661347 | X36: 0.1062241112 | Y36: 0
E37: =C200 -> 2019 | F37: =E200 -> 10.82491851 | G37: 16.35923558 | H37: 6.949244688 | I37: 65.86660123 | J37: =J200 -> 29.85755041 | K37: 27.77673456 | L37: 9.553478033 | M37: 32.812237 | N37: =O200 -> 61.72996546 | O37: 26.2608639 | P37: 5.42329379 | Q37: 6.585876847 | R37: =T200 -> 82.89668717 | S37: 13.60956202 | T37: 3.299814411 | U37: 0.1939363917 | V37: =Y200 -> 92.66260688 | W37: 5.756404208 | X37: 1.468675953 | Y37: 0.1123129587
B39: RURAL | D39: Estimate | E39: =C299 -> 2000 | F39: =E299 -> 0.5788919041 | G39: =F299 -> 0.3317717969 | H39: 1.90879966 | I39: 97.18053664 | J39: =J299 -> 2.096426817 | K39: =K299 -> 0.3860650964 | L39: 2.891479678 | M39: 94.62602841 | N39: =O299 -> 4.793797035 | O39: =P299 -> 1.160139458 | P39: 6.350684191 | Q39: 87.69537932 | R39: =T299 -> 9.269588393 | S39: =U299 -> 1.854385051 | T39: 8.241645134 | U39: 80.63438142 | V39: =Y299 -> 41.97340924 | W39: =Z299 -> 6.937620112 | X39: 12.46101925 | Y39: 38.6279514
E40: =C300 -> 2019 | F40: =E300 -> 2.116816142 | G40: 1.21317968 | H40: 1.35495058 | I40: 95.3150536 | J40: =J300 -> 5.708190996 | K40: 1.051185421 | L40: 0.6652973322 | M40: 92.57532625 | N40: =O300 -> 8.322228199 | O40: 2.014049665 | P40: 1.921476993 | Q40: 87.74224514 | R40: =T300 -> 19.75638503 | S40: 3.952273123 | T40: 4.165455989 | U40: 72.12588586 | V40: =Y300 -> 51.45150071 | W40: 8.504216661 | X40: 6.217128795 | Y40: 33.82715383
A97: NATIONAL | D97: Poorest | I97: Poor | N97: Middle | S97: Rich | X97: Richest
D98: Improved | E98: Basic | F98: Limited | G98: Unimproved | H98: Open defecation | I98: Improved | J98: Basic | K98: Limited | L98: Unimproved | M98: Open defecation | N98: Improved | O98: Basic | P98: Limited | Q98: Unimproved | R98: Open defecation | S98: Improved | T98: Basic | U98: Limited | V98: Unimproved | W98: Open defecation | X98: Improved | Y98: Basic | Z98: Limited | AA98: Unimproved | AB98: Open defecation
A99: Forecast period: | C99: 2000 | D99: =IF((D101+H101)>100,D101*100/(D101+H101),D101) -> 1.730432103 | E99: =D99*AVERAGEIF(E105:E116,">0")/100 -> 1.131832186 | F99: =D99*(100-AVERAGEIF(E105:E116,">0"))/100 -> 0.5985999177 | G99: =100-(E99+F99+H99) -> 2.974533604 | H99: =IF((D101+H101)>100,H101*100/(D101+H101),H101) -> 95.29503429 | I99: =IF((I101+M101)>100,I101*100/(I101+M101),I101) -> 4.372810872 | J99: =I99*AVERAGEIF(J105:J116,">0")/100 -> 3.181350234 | K99: =I99*(100-AVERAGEIF(J105:J116,">0"))/100 -> 1.191460638 | L99: =100-(J99+K99+M99) -> 6.234766769 | M99: =IF((I101+M101)>100,M101*100/(I101+M101),M101) -> 89.39242236 | N99: =IF((N101+R101)>100,N101*100/(N101+R101),N101) -> 18.03900046 | O99: =N99*AVERAGEIF(O105:O116,">0")/100 -> 11.16323064 | P99: =N99*(100-AVERAGEIF(O105:O116,">0"))/100 -> 6.875769822 | Q99: =100-(O99+P99+R99) -> 9.700346706 | R99: =IF((N101+R101)>100,R101*100/(N101+R101),R101) -> 72.26065283 | S99: =IF((S101+W101)>100,S101*100/(S101+W101),S101) -> 62.68675343 | T99: =S99*AVERAGEIF(T105:T116,">0")/100 -> 42.98149483 | U99: =S99*(100-AVERAGEIF(T105:T116,">0"))/100 -> 19.7052586 | V99: =100-(T99+U99+W99) -> 11.5488634 | W99: =IF((S101+W101)>100,W101*100/(S101+W101),W101) -> 25.76438316 | X99: =IF((X101+AB101)>100,X101*100/(X101+AB101),X101) -> 98.73694337 | Y99: =X99*AVERAGEIF(Y105:Y116,">0")/100 -> 88.3721184 | Z99: =X99*(100-AVERAGEIF(Y105:Y116,">0"))/100 -> 10.36482497 | AA99: =100-(Y99+Z99+AB99) -> 0.8801741005 | AB99: =IF((X101+AB101)>100,AB101*100/(X101+AB101),AB101) -> 0.3828825272
C100: 2019 | D100: =IF((D102+H102)>100,D102*100/(D102+H102),D102) -> 5.783753755 | E100: =D100*AVERAGEIF(E105:E116,">0")/100 -> 3.783008094 | F100: =D100*(100-AVERAGEIF(E105:E116,">0"))/100 -> 2.000745661 | G100: =100-(E100+F100+H100) -> 1.955192063 | H100: =IF((D102+H102)>100,H102*100/(D102+H102),H102) -> 92.26105418 | I100: =IF((I102+M102)>100,I102*100/(I102+M102),I102) -> 14.63773132 | J100: =I100*AVERAGEIF(J105:J116,">0")/100 -> 10.64938579 | K100: =I100*(100-AVERAGEIF(J105:J116,">0"))/100 -> 3.988345532 | L100: =100-(J100+K100+M100) -> 3.25969982 | M100: =IF((I102+M102)>100,M102*100/(I102+M102),M102) -> 82.10256886 | N100: =IF((N102+R102)>100,N102*100/(N102+R102),N102) -> 35.80317786 | O100: =N100*AVERAGEIF(O105:O116,">0")/100 -> 22.15639015 | P100: =N100*(100-AVERAGEIF(O105:O116,">0"))/100 -> 13.64678771 | Q100: =100-(O100+P100+R100) -> 7.044191802 | R100: =IF((N102+R102)>100,R102*100/(N102+R102),R102) -> 57.15263034 | S100: =IF((S102+W102)>100,S102*100/(S102+W102),S102) -> 82.19963448 | T100: =S100*AVERAGEIF(T105:T116,">0")/100 -> 56.36060206 | U100: =S100*(100-AVERAGEIF(T105:T116,">0"))/100 -> 25.83903242 | V100: =100-(T100+U100+W100) -> 5.674520783 | W100: =IF((S102+W102)>100,W102*100/(S102+W102),W102) -> 12.12584474 | X100: =IF((X102+AB102)>100,X102*100/(X102+AB102),X102) -> 97.65659805 | Y100: =X100*AVERAGEIF(Y105:Y116,">0")/100 -> 87.40518139 | Z100: =X100*(100-AVERAGEIF(Y105:Y116,">0"))/100 -> 10.25141666 | AA100: =100-(Y100+Z100+AB100) -> 2.180356997 | AB100: =IF((X102+AB102)>100,AB102*100/(X102+AB102),AB102) -> 0.163044954
A101: Regression period: | C101: =MinRegYear(C99,C105:C116) -> 2000 | D101: =IF(MAX(C105:C116)-MIN(C105:C116)<5,AVERAGEIF(C105:C116,">0",D105:D116), IF(FORECAST($C101,D$105:D$116,$C$105:$C$116)<0,0, IF(FORECAST($C101,D$105:D$116,$C$105:$C$116)>100,100, FORECAST($C101,D$105:D$116,$C$105:$C$116)))) -> 1.730432103 | H101: =IF(MAX(C105:C116)-MIN(C105:C116)<5,AVERAGEIF(C105:C116,">0",H105:H116), IF(FORECAST($C101,H$105:H$116,$C$105:$C$116)<0,0, IF(FORECAST($C101,H$105:H$116,$C$105:$C$116)>100,100, FORECAST($C101,H$105:H$116,$C$105:$C$116)))) -> 95.29503429 | I101: =IF(MAX(C105:C116)-MIN(C105:C116)<5,AVERAGEIF(C105:C116,">0",I105:I116), IF(FORECAST($C101,I$105:I$116,$C$105:$C$116)<0,0, IF(FORECAST($C101,I$105:I$116,$C$105:$C$116)>100,100, FORECAST($C101,I$105:I$116,$C$105:$C$116)))) -> 4.372810872 | M101: =IF(MAX(C105:C116)-MIN(C105:C116)<5,AVERAGEIF(C105:C116,">0",M105:M116), IF(FORECAST($C101,M$105:M$116,$C$105:$C$116)<0,0, IF(FORECAST($C101,M$105:M$116,$C$105:$C$116)>100,100, FORECAST($C101,M$105:M$116,$C$105:$C$116)))) -> 89.39242236 | N101: =IF(MAX(C105:C116)-MIN(C105:C116)<5,AVERAGEIF(C105:C116,">0",N105:N116), IF(FORECAST($C101,N$105:N$116,$C$105:$C$116)<0,0, IF(FORECAST($C101,N$105:N$116,$C$105:$C$116)>100,100, FORECAST($C101,N$105:N$116,$C$105:$C$116)))) -> 18.03900046 | R101: =IF(MAX(C105:C116)-MIN(C105:C116)<5,AVERAGEIF(C105:C116,">0",R105:R116), IF(FORECAST($C101,R$105:R$116,$C$105:$C$116)<0,0, IF(FORECAST($C101,R$105:R$116,$C$105:$C$116)>100,100, FORECAST($C101,R$105:R$116,$C$105:$C$116)))) -> 72.26065283 | S101: =IF(MAX(C105:C116)-MIN(C105:C116)<5,AVERAGEIF(C105:C116,">0",S105:S116), IF(FORECAST($C101,S$105:S$116,$C$105:$C$116)<0,0, IF(FORECAST($C101,S$105:S$116,$C$105:$C$116)>100,100, FORECAST($C101,S$105:S$116,$C$105:$C$116)))) -> 62.68675343 | W101: =IF(MAX(C105:C116)-MIN(C105:C116)<5,AVERAGEIF(C105:C116,">0",W105:W116), IF(FORECAST($C101,W$105:W$116,$C$105:$C$116)<0,0, IF(FORECAST($C101,W$105:W$116,$C$105:$C$116)>100,100, FORECAST($C101,W$105:W$116,$C$105:$C$116)))) -> 25.76438316 | X101: =IF(MAX(C105:C116)-MIN(C105:C116)<5,AVERAGEIF(C105:C116,">0",X105:X116), IF(FORECAST($C101,X$105:X$116,$C$105:$C$116)<0,0, IF(FORECAST($C101,X$105:X$116,$C$105:$C$116)>100,100, FORECAST($C101,X$105:X$116,$C$105:$C$116)))) -> 98.73694337 | AB101: =IF(MAX(C105:C116)-MIN(C105:C116)<5,AVERAGEIF(C105:C116,">0",AB105:AB116), IF(FORECAST($C101,AB$105:AB$116,$C$105:$C$116)<0,0, IF(FORECAST($C101,AB$105:AB$116,$C$105:$C$116)>100,100, FORECAST($C101,AB$105:AB$116,$C$105:$C$116)))) -> 0.3828825272
C102: =MaxRegYear(C100,C105:C116) -> 2015 | D102: =IF(MAX(C105:C116)-MIN(C105:C116)<5,AVERAGEIF(C105:C116,">0",D105:D116), IF(FORECAST($C102,D$105:D$116,$C$105:$C$116)<0,0, IF(FORECAST($C102,D$105:D$116,$C$105:$C$116)>100,100, FORECAST($C102,D$105:D$116,$C$105:$C$116)))) -> 5.783753755 | H102: =IF(MAX(C105:C116)-MIN(C105:C116)<5,AVERAGEIF(C105:C116,">0",H105:H116), IF(FORECAST($C102,H$105:H$116,$C$105:$C$116)<0,0, IF(FORECAST($C102,H$105:H$116,$C$105:$C$116)>100,100, FORECAST($C102,H$105:H$116,$C$105:$C$116)))) -> 92.26105418 | I102: =IF(MAX(C105:C116)-MIN(C105:C116)<5,AVERAGEIF(C105:C116,">0",I105:I116), IF(FORECAST($C102,I$105:I$116,$C$105:$C$116)<0,0, IF(FORECAST($C102,I$105:I$116,$C$105:$C$116)>100,100, FORECAST($C102,I$105:I$116,$C$105:$C$116)))) -> 14.63773132 | M102: =IF(MAX(C105:C116)-MIN(C105:C116)<5,AVERAGEIF(C105:C116,">0",M105:M116), IF(FORECAST($C102,M$105:M$116,$C$105:$C$116)<0,0, IF(FORECAST($C102,M$105:M$116,$C$105:$C$116)>100,100, FORECAST($C102,M$105:M$116,$C$105:$C$116)))) -> 82.10256886 | N102: =IF(MAX(C105:C116)-MIN(C105:C116)<5,AVERAGEIF(C105:C116,">0",N105:N116), IF(FORECAST($C102,N$105:N$116,$C$105:$C$116)<0,0, IF(FORECAST($C102,N$105:N$116,$C$105:$C$116)>100,100, FORECAST($C102,N$105:N$116,$C$105:$C$116)))) -> 35.80317786 | R102: =IF(MAX(C105:C116)-MIN(C105:C116)<5,AVERAGEIF(C105:C116,">0",R105:R116), IF(FORECAST($C102,R$105:R$116,$C$105:$C$116)<0,0, IF(FORECAST($C102,R$105:R$116,$C$105:$C$116)>100,100, FORECAST($C102,R$105:R$116,$C$105:$C$116)))) -> 57.15263034 | S102: =IF(MAX(C105:C116)-MIN(C105:C116)<5,AVERAGEIF(C105:C116,">0",S105:S116), IF(FORECAST($C102,S$105:S$116,$C$105:$C$116)<0,0, IF(FORECAST($C102,S$105:S$116,$C$105:$C$116)>100,100, FORECAST($C102,S$105:S$116,$C$105:$C$116)))) -> 82.19963448 | W102: =IF(MAX(C105:C116)-MIN(C105:C116)<5,AVERAGEIF(C105:C116,">0",W105:W116), IF(FORECAST($C102,W$105:W$116,$C$105:$C$116)<0,0, IF(FORECAST($C102,W$105:W$116,$C$105:$C$116)>100,100, FORECAST($C102,W$105:W$116,$C$105:$C$116)))) -> 12.12584474 | X102: =IF(MAX(C105:C116)-MIN(C105:C116)<5,AVERAGEIF(C105:C116,">0",X105:X116), IF(FORECAST($C102,X$105:X$116,$C$105:$C$116)<0,0, IF(FORECAST($C102,X$105:X$116,$C$105:$C$116)>100,100, FORECAST($C102,X$105:X$116,$C$105:$C$116)))) -> 97.65659805 | AB102: =IF(MAX(C105:C116)-MIN(C105:C116)<5,AVERAGEIF(C105:C116,">0",AB105:AB116), IF(FORECAST($C102,AB$105:AB$116,$C$105:$C$116)<0,0, IF(FORECAST($C102,AB$105:AB$116,$C$105:$C$116)>100,100, FORECAST($C102,AB$105:AB$116,$C$105:$C$116)))) -> 0.163044954
B104: Survey | C104: Year | D104: Improved | E104: Not shared | H104: Open defecation | I104: Improved | J104: Not shared | M104: Open defecation | N104: Improved | O104: Not shared | R104: Open defecation | S104: Improved | T104: Not shared | W104: Open defecation | X104: Improved | Y104: Not shared | AB104: Open defecation
B105: DHS00 | C105: 2000 | D105: =IF(ISERROR(INDIRECT(CONCATENATE($B105,"!C122"))),"",INDIRECT(CONCATENATE($B105,"!C122"))) -> 1.931636784 | E105: =IF(ISERROR(INDIRECT(CONCATENATE($B105,"!C129"))),"",INDIRECT(CONCATENATE($B105,"!C129"))) -> N/A | H105: =IF(ISERROR(INDIRECT(CONCATENATE($B105,"!C127"))),"",INDIRECT(CONCATENATE($B105,"!C127"))) -> 94.99301729 | I105: =IF(ISERROR(INDIRECT(CONCATENATE($B105,"!D122"))),"",INDIRECT(CONCATENATE($B105,"!D122"))) -> 5.042659589 | J105: =IF(ISERROR(INDIRECT(CONCATENATE($B105,"!D129"))),"",INDIRECT(CONCATENATE($B105,"!D129"))) -> N/A | M105: =IF(ISERROR(INDIRECT(CONCATENATE($B105,"!D127"))),"",INDIRECT(CONCATENATE($B105,"!D127"))) -> 88.52591775 | N105: =IF(ISERROR(INDIRECT(CONCATENATE($B105,"!E122"))),"",INDIRECT(CONCATENATE($B105,"!E122"))) -> 18.66790097 | O105: =IF(ISERROR(INDIRECT(CONCATENATE($B105,"!E129"))),"",INDIRECT(CONCATENATE($B105,"!E129"))) -> N/A | R105: =IF(ISERROR(INDIRECT(CONCATENATE($B105,"!E127"))),"",INDIRECT(CONCATENATE($B105,"!E127"))) -> 71.17068919 | S105: =IF(ISERROR(INDIRECT(CONCATENATE($B105,"!F122"))),"",INDIRECT(CONCATENATE($B105,"!F122"))) -> 59.64598959 | T105: =IF(ISERROR(INDIRECT(CONCATENATE($B105,"!F129"))),"",INDIRECT(CONCATENATE($B105,"!F129"))) -> N/A | W105: =IF(ISERROR(INDIRECT(CONCATENATE($B105,"!F127"))),"",INDIRECT(CONCATENATE($B105,"!F127"))) -> 28.03388023 | X105: =IF(ISERROR(INDIRECT(CONCATENATE($B105,"!G122"))),"",INDIRECT(CONCATENATE($B105,"!G122"))) -> 98.52975497 | Y105: =IF(ISERROR(INDIRECT(CONCATENATE($B105,"!G129"))),"",INDIRECT(CONCATENATE($B105,"!G129"))) -> N/A | AB105: =IF(ISERROR(INDIRECT(CONCATENATE($B105,"!G2127"))),"",INDIRECT(CONCATENATE($B105,"!G127"))) -> 0.4051990321
B106: DHS07 | C106: 2007 | D106: 3.186038733 | E106: 65.97011915 | H106: 94.53354709 | I106: 7.711768197 | J106: 83.0717505 | M106: 87.86791737 | N106: 24.96633215 | O106: 62.91525698 | R106: 67.57183021 | S106: 78.38108625 | T106: 70.74615609 | W106: 14.48248826 | X106: 98.68169042 | Y106: 89.57110548 | AB106: 0.2319392325
B107: DHS13 | C107: 2013 | D107: 5.478049662 | E107: 64.84485861 | H107: 92.31323169 | I107: 14.05056543 | J107: 62.43421017 | M107: 82.06362728 | N107: 34.16833813 | O107: 60.85247244 | R107: 57.89540909 | S107: 76.05035918 | T107: 66.38487232 | W107: 16.5920631 | X107: 97.55892429 | Y107: 89.43406803 | AB107: 0.2183925528
B118: =CONCATENATE("National use of sanitation facilities, ",C99,"–",C100) -> National use of sanitation facilities, 2000–2019 | S118: Data points used for regression
A197: URBAN | D197: Poorest | I197: Poor | N197: Middle | S197: Rich | X197: Richest
D198: Improved | E198: Basic | F198: Limited | G198: Unimproved | H198: Open defecation | I198: Improved | J198: Basic | K198: Limited | L198: Unimproved | M198: Open defecation | N198: Improved | O198: Basic | P198: Limited | Q198: Unimproved | R198: Open defecation | S198: Improved | T198: Basic | U198: Limited | V198: Unimproved | W198: Open defecation | X198: Improved | Y198: Basic | Z198: Limited | AA198: Unimproved | AB198: Open defecation
A199: Forecast period: | C199: 2000 | D199: =IF((D201+H201)>100,D201*100/(D201+H201),D201) -> 36.37361051 | E199: =D199*AVERAGEIF(E205:E216,">0")/100 -> 14.48422373 | F199: =D199*(100-AVERAGEIF(E205:E216,">0"))/100 -> 21.88938678 | G199: =100-(E199+F199+H199) -> 19.66931252 | H199: =IF((D201+H201)>100,H201*100/(D201+H201),H201) -> 43.95707697 | I199: =IF((I201+M201)>100,I201*100/(I201+M201),I201) -> 79.33656473 | J199: =I199*AVERAGEIF(J205:J216,">0")/100 -> 41.10045752 | K199: =I199*(100-AVERAGEIF(J205:J216,">0"))/100 -> 38.23610722 | L199: =100-(J199+K199+M199) -> 9.02718599 | M199: =IF((I201+M201)>100,M201*100/(I201+M201),M201) -> 11.63624928 | N199: =IF((N201+R201)>100,N201*100/(N201+R201),N201) -> 97.98995039 | O199: =N199*AVERAGEIF(O205:O216,">0")/100 -> 68.74484872 | P199: =N199*(100-AVERAGEIF(O205:O216,">0"))/100 -> 29.24510167 | Q199: =100-(O199+P199+R199) -> 1.968816511 | R199: =IF((N201+R201)>100,R201*100/(N201+R201),R201) -> 0.04123309782 | S199: =IF((S201+W201)>100,S201*100/(S201+W201),S201) -> 99.96820793 | T199: =S199*AVERAGEIF(T205:T216,">0")/100 -> 85.87043149 | U199: =S199*(100-AVERAGEIF(T205:T216,">0"))/100 -> 14.09777644 | V199: =100-(T199+U199+W199) -> 0 | W199: =IF((S201+W201)>100,W201*100/(S201+W201),W201) -> 0.03179206682 | X199: =IF((X201+AB201)>100,X201*100/(X201+AB201),X201) -> 99.89377589 | Y199: =X199*AVERAGEIF(Y205:Y216,">0")/100 -> 94.05111454 | Z199: =X199*(100-AVERAGEIF(Y205:Y216,">0"))/100 -> 5.842661347 | AA199: =100-(Y199+Z199+AB199) -> 0.1062241112 | AB199: =IF((X201+AB201)>100,AB201*100/(X201+AB201),AB201) -> 0
C200: 2019 | D200: =IF((D202+H202)>100,D202*100/(D202+H202),D202) -> 27.18415408 | E200: =D200*AVERAGEIF(E205:E216,">0")/100 -> 10.82491851 | F200: =D200*(100-AVERAGEIF(E205:E216,">0"))/100 -> 16.35923558 | G200: =100-(E200+F200+H200) -> 6.949244688 | H200: =IF((D202+H202)>100,H202*100/(D202+H202),H202) -> 65.86660123 | I200: =IF((I202+M202)>100,I202*100/(I202+M202),I202) -> 57.63428497 | J200: =I200*AVERAGEIF(J205:J216,">0")/100 -> 29.85755041 | K200: =I200*(100-AVERAGEIF(J205:J216,">0"))/100 -> 27.77673456 | L200: =100-(J200+K200+M200) -> 9.553478033 | M200: =IF((I202+M202)>100,M202*100/(I202+M202),M202) -> 32.812237 | N200: =IF((N202+R202)>100,N202*100/(N202+R202),N202) -> 87.99082936 | O200: =N200*AVERAGEIF(O205:O216,">0")/100 -> 61.72996546 | P200: =N200*(100-AVERAGEIF(O205:O216,">0"))/100 -> 26.2608639 | Q200: =100-(O200+P200+R200) -> 5.42329379 | R200: =IF((N202+R202)>100,R202*100/(N202+R202),R202) -> 6.585876847 | S200: =IF((S202+W202)>100,S202*100/(S202+W202),S202) -> 96.5062492 | T200: =S200*AVERAGEIF(T205:T216,">0")/100 -> 82.89668717 | U200: =S200*(100-AVERAGEIF(T205:T216,">0"))/100 -> 13.60956202 | V200: =100-(T200+U200+W200) -> 3.299814411 | W200: =IF((S202+W202)>100,W202*100/(S202+W202),W202) -> 0.1939363917 | X200: =IF((X202+AB202)>100,X202*100/(X202+AB202),X202) -> 98.41901109 | Y200: =X200*AVERAGEIF(Y205:Y216,">0")/100 -> 92.66260688 | Z200: =X200*(100-AVERAGEIF(Y205:Y216,">0"))/100 -> 5.756404208 | AA200: =100-(Y200+Z200+AB200) -> 1.468675953 | AB200: =IF((X202+AB202)>100,AB202*100/(X202+AB202),AB202) -> 0.1123129587
A201: Regression period: | C201: =MinRegYear(C199,C205:C216) -> 2000 | D201: =IF(MAX(C205:C216)-MIN(C205:C216)<5,AVERAGEIF(C205:C216,">0",D205:D216), IF(FORECAST($C201,D$205:D$216,$C$205:$C$216)<0,0, IF(FORECAST($C201,D$205:D$216,$C$205:$C$216)>100,100, FORECAST($C201,D$205:D$216,$C$205:$C$216)))) -> 36.37361051 | H201: =IF(MAX(C205:C216)-MIN(C205:C216)<5,AVERAGEIF(C205:C216,">0",H205:H216), IF(FORECAST($C201,H$205:H$216,$C$205:$C$216)<0,0, IF(FORECAST($C201,H$205:H$216,$C$205:$C$216)>100,100, FORECAST($C201,H$205:H$216,$C$205:$C$216)))) -> 43.95707697 | I201: =IF(MAX(C205:C216)-MIN(C205:C216)<5,AVERAGEIF(C205:C216,">0",I205:I216), IF(FORECAST($C201,I$205:I$216,$C$205:$C$216)<0,0, IF(FORECAST($C201,I$205:I$216,$C$205:$C$216)>100,100, FORECAST($C201,I$205:I$216,$C$205:$C$216)))) -> 79.33656473 | M201: =IF(MAX(C205:C216)-MIN(C205:C216)<5,AVERAGEIF(C205:C216,">0",M205:M216), IF(FORECAST($C201,M$205:M$216,$C$205:$C$216)<0,0, IF(FORECAST($C201,M$205:M$216,$C$205:$C$216)>100,100, FORECAST($C201,M$205:M$216,$C$205:$C$216)))) -> 11.63624928 | N201: =IF(MAX(C205:C216)-MIN(C205:C216)<5,AVERAGEIF(C205:C216,">0",N205:N216), IF(FORECAST($C201,N$205:N$216,$C$205:$C$216)<0,0, IF(FORECAST($C201,N$205:N$216,$C$205:$C$216)>100,100, FORECAST($C201,N$205:N$216,$C$205:$C$216)))) -> 97.98995039 | R201: =IF(MAX(C205:C216)-MIN(C205:C216)<5,AVERAGEIF(C205:C216,">0",R205:R216), IF(FORECAST($C201,R$205:R$216,$C$205:$C$216)<0,0, IF(FORECAST($C201,R$205:R$216,$C$205:$C$216)>100,100, FORECAST($C201,R$205:R$216,$C$205:$C$216)))) -> 0.04123309782 | S201: =IF(MAX(C205:C216)-MIN(C205:C216)<5,AVERAGEIF(C205:C216,">0",S205:S216), IF(FORECAST($C201,S$205:S$216,$C$205:$C$216)<0,0, IF(FORECAST($C201,S$205:S$216,$C$205:$C$216)>100,100, FORECAST($C201,S$205:S$216,$C$205:$C$216)))) -> 100 | W201: =IF(MAX(C205:C216)-MIN(C205:C216)<5,AVERAGEIF(C205:C216,">0",W205:W216), IF(FORECAST($C201,W$205:W$216,$C$205:$C$216)<0,0, IF(FORECAST($C201,W$205:W$216,$C$205:$C$216)>100,100, FORECAST($C201,W$205:W$216,$C$205:$C$216)))) -> 0.03180217739 | X201: =IF(MAX(C205:C216)-MIN(C205:C216)<5,AVERAGEIF(C205:C216,">0",X205:X216), IF(FORECAST($C201,X$205:X$216,$C$205:$C$216)<0,0, IF(FORECAST($C201,X$205:X$216,$C$205:$C$216)>100,100, FORECAST($C201,X$205:X$216,$C$205:$C$216)))) -> 99.89377589 | AB201: =IF(MAX(C205:C216)-MIN(C205:C216)<5,AVERAGEIF(C205:C216,">0",AB205:AB216), IF(FORECAST($C201,AB$205:AB$216,$C$205:$C$216)<0,0, IF(FORECAST($C201,AB$205:AB$216,$C$205:$C$216)>100,100, FORECAST($C201,AB$205:AB$216,$C$205:$C$216)))) -> 0
C202: =MaxRegYear(C200,C205:C216) -> 2015 | D202: =IF(MAX(C205:C216)-MIN(C205:C216)<5,AVERAGEIF(C205:C216,">0",D205:D216), IF(FORECAST($C202,D$205:D$216,$C$205:$C$216)<0,0, IF(FORECAST($C202,D$205:D$216,$C$205:$C$216)>100,100, FORECAST($C202,D$205:D$216,$C$205:$C$216)))) -> 27.18415408 | H202: =IF(MAX(C205:C216)-MIN(C205:C216)<5,AVERAGEIF(C205:C216,">0",H205:H216), IF(FORECAST($C202,H$205:H$216,$C$205:$C$216)<0,0, IF(FORECAST($C202,H$205:H$216,$C$205:$C$216)>100,100, FORECAST($C202,H$205:H$216,$C$205:$C$216)))) -> 65.86660123 | I202: =IF(MAX(C205:C216)-MIN(C205:C216)<5,AVERAGEIF(C205:C216,">0",I205:I216), IF(FORECAST($C202,I$205:I$216,$C$205:$C$216)<0,0, IF(FORECAST($C202,I$205:I$216,$C$205:$C$216)>100,100, FORECAST($C202,I$205:I$216,$C$205:$C$216)))) -> 57.63428497 | M202: =IF(MAX(C205:C216)-MIN(C205:C216)<5,AVERAGEIF(C205:C216,">0",M205:M216), IF(FORECAST($C202,M$205:M$216,$C$205:$C$216)<0,0, IF(FORECAST($C202,M$205:M$216,$C$205:$C$216)>100,100, FORECAST($C202,M$205:M$216,$C$205:$C$216)))) -> 32.812237 | N202: =IF(MAX(C205:C216)-MIN(C205:C216)<5,AVERAGEIF(C205:C216,">0",N205:N216), IF(FORECAST($C202,N$205:N$216,$C$205:$C$216)<0,0, IF(FORECAST($C202,N$205:N$216,$C$205:$C$216)>100,100, FORECAST($C202,N$205:N$216,$C$205:$C$216)))) -> 87.99082936 | R202: =IF(MAX(C205:C216)-MIN(C205:C216)<5,AVERAGEIF(C205:C216,">0",R205:R216), IF(FORECAST($C202,R$205:R$216,$C$205:$C$216)<0,0, IF(FORECAST($C202,R$205:R$216,$C$205:$C$216)>100,100, FORECAST($C202,R$205:R$216,$C$205:$C$216)))) -> 6.585876847 | S202: =IF(MAX(C205:C216)-MIN(C205:C216)<5,AVERAGEIF(C205:C216,">0",S205:S216), IF(FORECAST($C202,S$205:S$216,$C$205:$C$216)<0,0, IF(FORECAST($C202,S$205:S$216,$C$205:$C$216)>100,100, FORECAST($C202,S$205:S$216,$C$205:$C$216)))) -> 96.5062492 | W202: =IF(MAX(C205:C216)-MIN(C205:C216)<5,AVERAGEIF(C205:C216,">0",W205:W216), IF(FORECAST($C202,W$205:W$216,$C$205:$C$216)<0,0, IF(FORECAST($C202,W$205:W$216,$C$205:$C$216)>100,100, FORECAST($C202,W$205:W$216,$C$205:$C$216)))) -> 0.1939363917 | X202: =IF(MAX(C205:C216)-MIN(C205:C216)<5,AVERAGEIF(C205:C216,">0",X205:X216), IF(FORECAST($C202,X$205:X$216,$C$205:$C$216)<0,0, IF(FORECAST($C202,X$205:X$216,$C$205:$C$216)>100,100, FORECAST($C202,X$205:X$216,$C$205:$C$216)))) -> 98.41901109 | AB202: =IF(MAX(C205:C216)-MIN(C205:C216)<5,AVERAGEIF(C205:C216,">0",AB205:AB216), IF(FORECAST($C202,AB$205:AB$216,$C$205:$C$216)<0,0, IF(FORECAST($C202,AB$205:AB$216,$C$205:$C$216)>100,100, FORECAST($C202,AB$205:AB$216,$C$205:$C$216)))) -> 0.1123129587
B204: Survey | C204: Year | D204: Improved | E204: Not shared | H204: Open defecation | I204: Improved | J204: Not shared | M204: Open defecation | N204: Improved | O204: Not shared | R204: Open defecation | S204: Improved | T204: Not shared | W204: Open defecation | X204: Improved | Y204: Not shared | AB204: Open defecation
B205: DHS00 | C205: 2000 | D205: =IF(ISERROR(INDIRECT(CONCATENATE($B205,"!H122"))),"",INDIRECT(CONCATENATE($B205,"!H122"))) -> 37.08907305 | E205: =IF(ISERROR(INDIRECT(CONCATENATE($B205,"!H129"))),"",INDIRECT(CONCATENATE($B205,"!H129"))) -> N/A | H205: =IF(ISERROR(INDIRECT(CONCATENATE($B205,"!H127"))),"",INDIRECT(CONCATENATE($B205,"!H127"))) -> 40.74163855 | I205: =IF(ISERROR(INDIRECT(CONCATENATE($B205,"!I122"))),"",INDIRECT(CONCATENATE($B205,"!I122"))) -> 74.8185597 | J205: =IF(ISERROR(INDIRECT(CONCATENATE($B205,"!I129"))),"",INDIRECT(CONCATENATE($B205,"!I129"))) -> N/A | M205: =IF(ISERROR(INDIRECT(CONCATENATE($B205,"!I127"))),"",INDIRECT(CONCATENATE($B205,"!I127"))) -> 14.70023459 | N205: =IF(ISERROR(INDIRECT(CONCATENATE($B205,"!J122"))),"",INDIRECT(CONCATENATE($B205,"!J122"))) -> 97.95852771 | O205: =IF(ISERROR(INDIRECT(CONCATENATE($B205,"!J129"))),"",INDIRECT(CONCATENATE($B205,"!J129"))) -> N/A | R205: =IF(ISERROR(INDIRECT(CONCATENATE($B205,"!J127"))),"",INDIRECT(CONCATENATE($B205,"!J127"))) -> 0.7752369001 | S205: =IF(ISERROR(INDIRECT(CONCATENATE($B205,"!K122"))),"",INDIRECT(CONCATENATE($B205,"!K122"))) -> 99.67969838 | T205: =IF(ISERROR(INDIRECT(CONCATENATE($B205,"!K129"))),"",INDIRECT(CONCATENATE($B205,"!K129"))) -> N/A | W205: =IF(ISERROR(INDIRECT(CONCATENATE($B205,"!K127"))),"",INDIRECT(CONCATENATE($B205,"!K127"))) -> 0 | X205: =IF(ISERROR(INDIRECT(CONCATENATE($B205,"!L122"))),"",INDIRECT(CONCATENATE($B205,"!L122"))) -> 100 | Y205: =IF(ISERROR(INDIRECT(CONCATENATE($B205,"!L129"))),"",INDIRECT(CONCATENATE($B205,"!L129"))) -> N/A | AB205: =IF(ISERROR(INDIRECT(CONCATENATE($B205,"!L2127"))),"",INDIRECT(CONCATENATE($B205,"!L127"))) -> 0
B206: DHS07 | C206: 2007 | D206: 30.53502868 | E206: 44.81092143 | H206: 61.14830485 | I206: 78.99784508 | J206: 57.17603283 | M206: 14.87974203 | N206: 93.39177639 | O206: 76.27069226 | R206: 1.505058609 | S206: 99.21615733 | T206: 86.70864725 | W206: 0.1763695284 | X206: 98.97540007 | Y206: 94.62799022 | AB206: 0
B207: DHS13 | C207: 2013 | D207: 29.24412124 | E207: 34.83046431 | H207: 59.19398651 | I207: 55.2569164 | J207: 46.43434569 | M207: 33.5634215 | N207: 89.2873857 | O207: 64.03930574 | R207: 6.56959545 | S207: 96.53999972 | T207: 85.08683307 | W207: 0.1352159561 | X207: 98.73957453 | Y207: 93.67426125 | AB207: 0.1173970844
B218: =CONCATENATE("Urban use of sanitation facilities, ",C199,"–",C200) -> Urban use of sanitation facilities, 2000–2019 | S218: Data points used for regression
A297: RURAL | D297: Poorest | I297: Poor | N297: Middle | S297: Rich | X297: Richest
D298: Improved | E298: Basic | F298: Limited | G298: Unimproved | H298: Open defecation | I298: Improved | J298: Basic | K298: Limited | L298: Unimproved | M298: Open defecation | N298: Improved | O298: Basic | P298: Limited | Q298: Unimproved | R298: Open defecation | S298: Improved | T298: Basic | U298: Limited | V298: Unimproved | W298: Open defecation | X298: Improved | Y298: Basic | Z298: Limited | AA298: Unimproved | AB298: Open defecation
A299: Forecast period: | C299: 2000 | D299: =IF((D301+H301)>100,D301*100/(D301+H301),D301) -> 0.910663701 | E299: =D299*AVERAGEIF(E305:E316,">0")/100 -> 0.5788919041 | F299: =D299*(100-AVERAGEIF(E305:E316,">0"))/100 -> 0.3317717969 | G299: =100-(E299+F299+H299) -> 1.90879966 | H299: =IF((D301+H301)>100,H301*100/(D301+H301),H301) -> 97.18053664 | I299: =IF((I301+M301)>100,I301*100/(I301+M301),I301) -> 2.482491913 | J299: =I299*AVERAGEIF(J305:J316,">0")/100 -> 2.096426817 | K299: =I299*(100-AVERAGEIF(J305:J316,">0"))/100 -> 0.3860650964 | L299: =100-(J299+K299+M299) -> 2.891479678 | M299: =IF((I301+M301)>100,M301*100/(I301+M301),M301) -> 94.62602841 | N299: =IF((N301+R301)>100,N301*100/(N301+R301),N301) -> 5.953936492 | O299: =N299*AVERAGEIF(O305:O316,">0")/100 -> 4.793797035 | P299: =N299*(100-AVERAGEIF(O305:O316,">0"))/100 -> 1.160139458 | Q299: =100-(O299+P299+R299) -> 6.350684191 | R299: =IF((N301+R301)>100,R301*100/(N301+R301),R301) -> 87.69537932 | S299: =IF((S301+W301)>100,S301*100/(S301+W301),S301) -> 11.12397344 | T299: =S299*AVERAGEIF(T305:T316,">0")/100 -> 9.269588393 | U299: =S299*(100-AVERAGEIF(T305:T316,">0"))/100 -> 1.854385051 | V299: =100-(T299+U299+W299) -> 8.241645134 | W299: =IF((S301+W301)>100,W301*100/(S301+W301),W301) -> 80.63438142 | X299: =IF((X301+AB301)>100,X301*100/(X301+AB301),X301) -> 48.91102935 | Y299: =X299*AVERAGEIF(Y305:Y316,">0")/100 -> 41.97340924 | Z299: =X299*(100-AVERAGEIF(Y305:Y316,">0"))/100 -> 6.937620112 | AA299: =100-(Y299+Z299+AB299) -> 12.46101925 | AB299: =IF((X301+AB301)>100,AB301*100/(X301+AB301),AB301) -> 38.6279514
C300: 2019 | D300: =IF((D302+H302)>100,D302*100/(D302+H302),D302) -> 3.329995822 | E300: =D300*AVERAGEIF(E305:E316,">0")/100 -> 2.116816142 | F300: =D300*(100-AVERAGEIF(E305:E316,">0"))/100 -> 1.21317968 | G300: =100-(E300+F300+H300) -> 1.35495058 | H300: =IF((D302+H302)>100,H302*100/(D302+H302),H302) -> 95.3150536 | I300: =IF((I302+M302)>100,I302*100/(I302+M302),I302) -> 6.759376417 | J300: =I300*AVERAGEIF(J305:J316,">0")/100 -> 5.708190996 | K300: =I300*(100-AVERAGEIF(J305:J316,">0"))/100 -> 1.051185421 | L300: =100-(J300+K300+M300) -> 0.6652973322 | M300: =IF((I302+M302)>100,M302*100/(I302+M302),M302) -> 92.57532625 | N300: =IF((N302+R302)>100,N302*100/(N302+R302),N302) -> 10.33627786 | O300: =N300*AVERAGEIF(O305:O316,">0")/100 -> 8.322228199 | P300: =N300*(100-AVERAGEIF(O305:O316,">0"))/100 -> 2.014049665 | Q300: =100-(O300+P300+R300) -> 1.921476993 | R300: =IF((N302+R302)>100,R302*100/(N302+R302),R302) -> 87.74224514 | S300: =IF((S302+W302)>100,S302*100/(S302+W302),S302) -> 23.70865815 | T300: =S300*AVERAGEIF(T305:T316,">0")/100 -> 19.75638503 | U300: =S300*(100-AVERAGEIF(T305:T316,">0"))/100 -> 3.952273123 | V300: =100-(T300+U300+W300) -> 4.165455989 | W300: =IF((S302+W302)>100,W302*100/(S302+W302),W302) -> 72.12588586 | X300: =IF((X302+AB302)>100,X302*100/(X302+AB302),X302) -> 59.95571738 | Y300: =X300*AVERAGEIF(Y305:Y316,">0")/100 -> 51.45150071 | Z300: =X300*(100-AVERAGEIF(Y305:Y316,">0"))/100 -> 8.504216661 | AA300: =100-(Y300+Z300+AB300) -> 6.217128795 | AB300: =IF((X302+AB302)>100,AB302*100/(X302+AB302),AB302) -> 33.82715383
A301: Regression period: | C301: =MinRegYear(C299,C305:C316) -> 2000 | D301: =IF(MAX(C305:C316)-MIN(C305:C316)<5,AVERAGEIF(C305:C316,">0",D305:D316), IF(FORECAST($C301,D$305:D$316,$C$305:$C$316)<0,0, IF(FORECAST($C301,D$305:D$316,$C$305:$C$316)>100,100, FORECAST($C301,D$305:D$316,$C$305:$C$316)))) -> 0.910663701 | H301: =IF(MAX(C305:C316)-MIN(C305:C316)<5,AVERAGEIF(C305:C316,">0",H305:H316), IF(FORECAST($C301,H$305:H$316,$C$305:$C$316)<0,0, IF(FORECAST($C301,H$305:H$316,$C$305:$C$316)>100,100, FORECAST($C301,H$305:H$316,$C$305:$C$316)))) -> 97.18053664 | I301: =IF(MAX(C305:C316)-MIN(C305:C316)<5,AVERAGEIF(C305:C316,">0",I305:I316), IF(FORECAST($C301,I$305:I$316,$C$305:$C$316)<0,0, IF(FORECAST($C301,I$305:I$316,$C$305:$C$316)>100,100, FORECAST($C301,I$305:I$316,$C$305:$C$316)))) -> 2.482491913 | M301: =IF(MAX(C305:C316)-MIN(C305:C316)<5,AVERAGEIF(C305:C316,">0",M305:M316), IF(FORECAST($C301,M$305:M$316,$C$305:$C$316)<0,0, IF(FORECAST($C301,M$305:M$316,$C$305:$C$316)>100,100, FORECAST($C301,M$305:M$316,$C$305:$C$316)))) -> 94.62602841 | N301: =IF(MAX(C305:C316)-MIN(C305:C316)<5,AVERAGEIF(C305:C316,">0",N305:N316), IF(FORECAST($C301,N$305:N$316,$C$305:$C$316)<0,0, IF(FORECAST($C301,N$305:N$316,$C$305:$C$316)>100,100, FORECAST($C301,N$305:N$316,$C$305:$C$316)))) -> 5.953936492 | R301: =IF(MAX(C305:C316)-MIN(C305:C316)<5,AVERAGEIF(C305:C316,">0",R305:R316), IF(FORECAST($C301,R$305:R$316,$C$305:$C$316)<0,0, IF(FORECAST($C301,R$305:R$316,$C$305:$C$316)>100,100, FORECAST($C301,R$305:R$316,$C$305:$C$316)))) -> 87.69537932 | S301: =IF(MAX(C305:C316)-MIN(C305:C316)<5,AVERAGEIF(C305:C316,">0",S305:S316), IF(FORECAST($C301,S$305:S$316,$C$305:$C$316)<0,0, IF(FORECAST($C301,S$305:S$316,$C$305:$C$316)>100,100, FORECAST($C301,S$305:S$316,$C$305:$C$316)))) -> 11.12397344 | W301: =IF(MAX(C305:C316)-MIN(C305:C316)<5,AVERAGEIF(C305:C316,">0",W305:W316), IF(FORECAST($C301,W$305:W$316,$C$305:$C$316)<0,0, IF(FORECAST($C301,W$305:W$316,$C$305:$C$316)>100,100, FORECAST($C301,W$305:W$316,$C$305:$C$316)))) -> 80.63438142 | X301: =IF(MAX(C305:C316)-MIN(C305:C316)<5,AVERAGEIF(C305:C316,">0",X305:X316), IF(FORECAST($C301,X$305:X$316,$C$305:$C$316)<0,0, IF(FORECAST($C301,X$305:X$316,$C$305:$C$316)>100,100, FORECAST($C301,X$305:X$316,$C$305:$C$316)))) -> 48.91102935 | AB301: =IF(MAX(C305:C316)-MIN(C305:C316)<5,AVERAGEIF(C305:C316,">0",AB305:AB316), IF(FORECAST($C301,AB$305:AB$316,$C$305:$C$316)<0,0, IF(FORECAST($C301,AB$305:AB$316,$C$305:$C$316)>100,100, FORECAST($C301,AB$305:AB$316,$C$305:$C$316)))) -> 38.6279514
C302: =MaxRegYear(C300,C305:C316) -> 2015 | D302: =IF(MAX(C305:C316)-MIN(C305:C316)<5,AVERAGEIF(C305:C316,">0",D305:D316), IF(FORECAST($C302,D$305:D$316,$C$305:$C$316)<0,0, IF(FORECAST($C302,D$305:D$316,$C$305:$C$316)>100,100, FORECAST($C302,D$305:D$316,$C$305:$C$316)))) -> 3.329995822 | H302: =IF(MAX(C305:C316)-MIN(C305:C316)<5,AVERAGEIF(C305:C316,">0",H305:H316), IF(FORECAST($C302,H$305:H$316,$C$305:$C$316)<0,0, IF(FORECAST($C302,H$305:H$316,$C$305:$C$316)>100,100, FORECAST($C302,H$305:H$316,$C$305:$C$316)))) -> 95.3150536 | I302: =IF(MAX(C305:C316)-MIN(C305:C316)<5,AVERAGEIF(C305:C316,">0",I305:I316), IF(FORECAST($C302,I$305:I$316,$C$305:$C$316)<0,0, IF(FORECAST($C302,I$305:I$316,$C$305:$C$316)>100,100, FORECAST($C302,I$305:I$316,$C$305:$C$316)))) -> 6.759376417 | M302: =IF(MAX(C305:C316)-MIN(C305:C316)<5,AVERAGEIF(C305:C316,">0",M305:M316), IF(FORECAST($C302,M$305:M$316,$C$305:$C$316)<0,0, IF(FORECAST($C302,M$305:M$316,$C$305:$C$316)>100,100, FORECAST($C302,M$305:M$316,$C$305:$C$316)))) -> 92.57532625 | N302: =IF(MAX(C305:C316)-MIN(C305:C316)<5,AVERAGEIF(C305:C316,">0",N305:N316), IF(FORECAST($C302,N$305:N$316,$C$305:$C$316)<0,0, IF(FORECAST($C302,N$305:N$316,$C$305:$C$316)>100,100, FORECAST($C302,N$305:N$316,$C$305:$C$316)))) -> 10.33627786 | R302: =IF(MAX(C305:C316)-MIN(C305:C316)<5,AVERAGEIF(C305:C316,">0",R305:R316), IF(FORECAST($C302,R$305:R$316,$C$305:$C$316)<0,0, IF(FORECAST($C302,R$305:R$316,$C$305:$C$316)>100,100, FORECAST($C302,R$305:R$316,$C$305:$C$316)))) -> 87.74224514 | S302: =IF(MAX(C305:C316)-MIN(C305:C316)<5,AVERAGEIF(C305:C316,">0",S305:S316), IF(FORECAST($C302,S$305:S$316,$C$305:$C$316)<0,0, IF(FORECAST($C302,S$305:S$316,$C$305:$C$316)>100,100, FORECAST($C302,S$305:S$316,$C$305:$C$316)))) -> 23.70865815 | W302: =IF(MAX(C305:C316)-MIN(C305:C316)<5,AVERAGEIF(C305:C316,">0",W305:W316), IF(FORECAST($C302,W$305:W$316,$C$305:$C$316)<0,0, IF(FORECAST($C302,W$305:W$316,$C$305:$C$316)>100,100, FORECAST($C302,W$305:W$316,$C$305:$C$316)))) -> 72.12588586 | X302: =IF(MAX(C305:C316)-MIN(C305:C316)<5,AVERAGEIF(C305:C316,">0",X305:X316), IF(FORECAST($C302,X$305:X$316,$C$305:$C$316)<0,0, IF(FORECAST($C302,X$305:X$316,$C$305:$C$316)>100,100, FORECAST($C302,X$305:X$316,$C$305:$C$316)))) -> 59.95571738 | AB302: =IF(MAX(C305:C316)-MIN(C305:C316)<5,AVERAGEIF(C305:C316,">0",AB305:AB316), IF(FORECAST($C302,AB$305:AB$316,$C$305:$C$316)<0,0, IF(FORECAST($C302,AB$305:AB$316,$C$305:$C$316)>100,100, FORECAST($C302,AB$305:AB$316,$C$305:$C$316)))) -> 33.82715383
B304: Survey | C304: Year | D304: Improved | E304: Not shared | H304: Open defecation | I304: Improved | J304: Not shared | M304: Open defecation | N304: Improved | O304: Not shared | R304: Open defecation | S304: Improved | T304: Not shared | W304: Open defecation | X304: Improved | Y304: Not shared | AB304: Open defecation
B305: DHS00 | C305: 2000 | D305: =IF(ISERROR(INDIRECT(CONCATENATE($B305,"!M122"))),"",INDIRECT(CONCATENATE($B305,"!M122"))) -> 0.8685157667 | E305: =IF(ISERROR(INDIRECT(CONCATENATE($B305,"!M129"))),"",INDIRECT(CONCATENATE($B305,"!M129"))) -> N/A | H305: =IF(ISERROR(INDIRECT(CONCATENATE($B305,"!M127"))),"",INDIRECT(CONCATENATE($B305,"!M127"))) -> 97.48839958 | I305: =IF(ISERROR(INDIRECT(CONCATENATE($B305,"!N122"))),"",INDIRECT(CONCATENATE($B305,"!N122"))) -> 2.777208324 | J305: =IF(ISERROR(INDIRECT(CONCATENATE($B305,"!N129"))),"",INDIRECT(CONCATENATE($B305,"!N129"))) -> N/A | M305: =IF(ISERROR(INDIRECT(CONCATENATE($B305,"!N127"))),"",INDIRECT(CONCATENATE($B305,"!N127"))) -> 94.16133585 | N305: =IF(ISERROR(INDIRECT(CONCATENATE($B305,"!O122"))),"",INDIRECT(CONCATENATE($B305,"!O122"))) -> 6.110009599 | O305: =IF(ISERROR(INDIRECT(CONCATENATE($B305,"!O129"))),"",INDIRECT(CONCATENATE($B305,"!O129"))) -> N/A | R305: =IF(ISERROR(INDIRECT(CONCATENATE($B305,"!O127"))),"",INDIRECT(CONCATENATE($B305,"!O127"))) -> 87.49321928 | S305: =IF(ISERROR(INDIRECT(CONCATENATE($B305,"!P122"))),"",INDIRECT(CONCATENATE($B305,"!P122"))) -> 12.57927516 | T305: =IF(ISERROR(INDIRECT(CONCATENATE($B305,"!P129"))),"",INDIRECT(CONCATENATE($B305,"!P129"))) -> N/A | W305: =IF(ISERROR(INDIRECT(CONCATENATE($B305,"!P127"))),"",INDIRECT(CONCATENATE($B305,"!P127"))) -> 78.95237038 | X305: =IF(ISERROR(INDIRECT(CONCATENATE($B305,"!Q122"))),"",INDIRECT(CONCATENATE($B305,"!Q122"))) -> 49.60292241 | Y305: =IF(ISERROR(INDIRECT(CONCATENATE($B305,"!Q129"))),"",INDIRECT(CONCATENATE($B305,"!Q129"))) -> N/A | AB305: =IF(ISERROR(INDIRECT(CONCATENATE($B305,"!Q2127"))),"",INDIRECT(CONCATENATE($B305,"!Q127"))) -> 37.9426362
B306: DHS07 | C306: 2007 | D306: 2.131005882 | E306: 69.53434962 | H306: 95.64294152 | I306: 3.839819126 | J306: 79.50395479 | M306: 94.67586794 | N306: 7.660870735 | O306: 87.15829199 | R306: 88.15526344 | S306: 13.84367259 | T306: 81.39818287 | W306: 80.30810741 | X306: 52.56611545 | Y306: 86.66087531 | AB306: 37.87242879
B307: DHS13 | C307: 2013 | D307: 2.958245616 | E307: 57.60191451 | H307: 95.9229581 | I307: 6.532960962 | J307: 89.39301569 | M307: 92.30661189 | N307: 9.934050972 | O307: 73.87120642 | R307: 87.50014299 | S307: 23.72855219 | T307: 85.26148131 | W307: 71.29800572 | X307: 59.29030088 | Y307: 84.97079875 | AB307: 33.66772578
B318: =CONCATENATE("Rural use of sanitation facilities, ",C299,"–",C300) -> Rural use of sanitation facilities, 2000–2019 | S318: Data points used for regression

Sheet Hygiene
B4: Access to hygiene facilities by wealth quintile (%)
B5: =IF(ISERROR(INDIRECT(CONCATENATE($E$32,"!A2"))),"",INDIRECT(CONCATENATE($E$32,"!A2"))) -> Namibia
B7: =CONCATENATE("National ",IF(ISERROR(INDIRECT(CONCATENATE($E$32,"!A2"))),"",INDIRECT(CONCATENATE($E$32,"!A210")))) -> National Access to hygiene facilities | K7: =CONCATENATE("Urban ",IF(ISERROR(INDIRECT(CONCATENATE($E$32,"!A2"))),"",INDIRECT(CONCATENATE($E$32,"!A210")))) -> Urban Access to hygiene facilities | S7: =CONCATENATE("Rural ",IF(ISERROR(INDIRECT(CONCATENATE($E$32,"!A2"))),"",INDIRECT(CONCATENATE($E$32,"!A210")))) -> Rural Access to hygiene facilities
E32: =INDEX(B88:B100,A88) -> DHS13 | G32: =IF(ISERROR(INDIRECT(CONCATENATE($E$32,"!A2"))),"",INDIRECT(CONCATENATE($E$32,"!A2"))) -> Namibia | K32: Poorest | N32: Poor | Q32: Middle | T32: Rich | W32: Richest
K33: Basic | L33: Limited | M33: No facility | N33: Basic | O33: Limited | P33: No facility | Q33: Basic | R33: Limited | S33: No facility | T33: Basic | U33: Limited | V33: No facility | W33: Basic | X33: Limited | Y33: No facility
B34: >>> Select Survey : | G34: NATIONAL | J34: =IF(ISERROR(INDIRECT(CONCATENATE(#REF!,"!A2"))),"",INDIRECT(CONCATENATE(#REF!,"!A210"))) ->  | K34: =IF(ISERROR(INDIRECT(CONCATENATE($E$32,"!C222"))),"",INDIRECT(CONCATENATE($E$32,"!C222"))) -> 17.28109896 | L34: =IF(ISERROR(INDIRECT(CONCATENATE($E$32,"!C223"))),"",INDIRECT(CONCATENATE($E$32,"!C223"))) -> 59.9031716 | M34: =IF(ISERROR(INDIRECT(CONCATENATE($E$32,"!C224"))),"",INDIRECT(CONCATENATE($E$32,"!C224"))) -> 22.81572944 | N34: =IF(ISERROR(INDIRECT(CONCATENATE($E$32,"!D222"))),"",INDIRECT(CONCATENATE($E$32,"!D222"))) -> 27.09379488 | O34: =IF(ISERROR(INDIRECT(CONCATENATE($E$32,"!D223"))),"",INDIRECT(CONCATENATE($E$32,"!D223"))) -> 59.40158786 | P34: =IF(ISERROR(INDIRECT(CONCATENATE($E$32,"!D224"))),"",INDIRECT(CONCATENATE($E$32,"!D224"))) -> 13.50461726 | Q34: =IF(ISERROR(INDIRECT(CONCATENATE($E$32,"!E222"))),"",INDIRECT(CONCATENATE($E$32,"!E222"))) -> 39.76895529 | R34: =IF(ISERROR(INDIRECT(CONCATENATE($E$32,"!E223"))),"",INDIRECT(CONCATENATE($E$32,"!E223"))) -> 51.14612143 | S34: =IF(ISERROR(INDIRECT(CONCATENATE($E$32,"!E224"))),"",INDIRECT(CONCATENATE($E$32,"!E224"))) -> 9.084923274 | T34: =IF(ISERROR(INDIRECT(CONCATENATE($E$32,"!F222"))),"",INDIRECT(CONCATENATE($E$32,"!F222"))) -> 56.729257 | U34: =IF(ISERROR(INDIRECT(CONCATENATE($E$32,"!F223"))),"",INDIRECT(CONCATENATE($E$32,"!F223"))) -> 33.85507431 | V34: =IF(ISERROR(INDIRECT(CONCATENATE($E$32,"!F224"))),"",INDIRECT(CONCATENATE($E$32,"!F224"))) -> 9.415668689 | W34: =IF(ISERROR(INDIRECT(CONCATENATE($E$32,"!G222"))),"",INDIRECT(CONCATENATE($E$32,"!G222"))) -> 78.53489895 | X34: =IF(ISERROR(INDIRECT(CONCATENATE($E$32,"!G223"))),"",INDIRECT(CONCATENATE($E$32,"!G223"))) -> 16.17487181 | Y34: =IF(ISERROR(INDIRECT(CONCATENATE($E$32,"!G224"))),"",INDIRECT(CONCATENATE($E$32,"!G224"))) -> 5.290229233
G37: URBAN | J37: =IF(ISERROR(INDIRECT(CONCATENATE(#REF!,"!A2"))),"",INDIRECT(CONCATENATE(#REF!,"!A210"))) ->  | K37: =IF(ISERROR(INDIRECT(CONCATENATE($E$32,"!H222"))),"",INDIRECT(CONCATENATE($E$32,"!H222"))) -> 40.58943827 | L37: =IF(ISERROR(INDIRECT(CONCATENATE($E$32,"!H223"))),"",INDIRECT(CONCATENATE($E$32,"!H223"))) -> 43.54138485 | M37: =IF(ISERROR(INDIRECT(CONCATENATE($E$32,"!H224"))),"",INDIRECT(CONCATENATE($E$32,"!H224"))) -> 15.86917688 | N37: =IF(ISERROR(INDIRECT(CONCATENATE($E$32,"!I222"))),"",INDIRECT(CONCATENATE($E$32,"!I222"))) -> 50.14000229 | O37: =IF(ISERROR(INDIRECT(CONCATENATE($E$32,"!I223"))),"",INDIRECT(CONCATENATE($E$32,"!I223"))) -> 38.86547968 | P37: =IF(ISERROR(INDIRECT(CONCATENATE($E$32,"!I224"))),"",INDIRECT(CONCATENATE($E$32,"!I224"))) -> 10.99451803 | Q37: =IF(ISERROR(INDIRECT(CONCATENATE($E$32,"!J222"))),"",INDIRECT(CONCATENATE($E$32,"!J222"))) -> 64.73823589 | R37: =IF(ISERROR(INDIRECT(CONCATENATE($E$32,"!J223"))),"",INDIRECT(CONCATENATE($E$32,"!J223"))) -> 27.4825069 | S37: =IF(ISERROR(INDIRECT(CONCATENATE($E$32,"!J224"))),"",INDIRECT(CONCATENATE($E$32,"!J224"))) -> 7.779257211 | T37: =IF(ISERROR(INDIRECT(CONCATENATE($E$32,"!K222"))),"",INDIRECT(CONCATENATE($E$32,"!K222"))) -> 76.14897557 | U37: =IF(ISERROR(INDIRECT(CONCATENATE($E$32,"!K223"))),"",INDIRECT(CONCATENATE($E$32,"!K223"))) -> 19.84527711 | V37: =IF(ISERROR(INDIRECT(CONCATENATE($E$32,"!K224"))),"",INDIRECT(CONCATENATE($E$32,"!K224"))) -> 4.005747324 | W37: =IF(ISERROR(INDIRECT(CONCATENATE($E$32,"!L222"))),"",INDIRECT(CONCATENATE($E$32,"!L222"))) -> 80.5541786 | X37: =IF(ISERROR(INDIRECT(CONCATENATE($E$32,"!L223"))),"",INDIRECT(CONCATENATE($E$32,"!L223"))) -> 12.75627249 | Y37: =IF(ISERROR(INDIRECT(CONCATENATE($E$32,"!L224"))),"",INDIRECT(CONCATENATE($E$32,"!L224"))) -> 6.689548907
G40: RURAL | J40: =IF(ISERROR(INDIRECT(CONCATENATE(#REF!,"!A2"))),"",INDIRECT(CONCATENATE(#REF!,"!A210"))) ->  | K40: =IF(ISERROR(INDIRECT(CONCATENATE($E$32,"!M222"))),"",INDIRECT(CONCATENATE($E$32,"!M222"))) -> 11.82085917 | L40: =IF(ISERROR(INDIRECT(CONCATENATE($E$32,"!M223"))),"",INDIRECT(CONCATENATE($E$32,"!M223"))) -> 59.08644878 | M40: =IF(ISERROR(INDIRECT(CONCATENATE($E$32,"!M224"))),"",INDIRECT(CONCATENATE($E$32,"!M224"))) -> 29.09269205 | N40: =IF(ISERROR(INDIRECT(CONCATENATE($E$32,"!N222"))),"",INDIRECT(CONCATENATE($E$32,"!N222"))) -> 21.85469833 | O40: =IF(ISERROR(INDIRECT(CONCATENATE($E$32,"!N223"))),"",INDIRECT(CONCATENATE($E$32,"!N223"))) -> 64.03130208 | P40: =IF(ISERROR(INDIRECT(CONCATENATE($E$32,"!N224"))),"",INDIRECT(CONCATENATE($E$32,"!N224"))) -> 14.11399959 | Q40: =IF(ISERROR(INDIRECT(CONCATENATE($E$32,"!O222"))),"",INDIRECT(CONCATENATE($E$32,"!O222"))) -> 23.83597965 | R40: =IF(ISERROR(INDIRECT(CONCATENATE($E$32,"!O223"))),"",INDIRECT(CONCATENATE($E$32,"!O223"))) -> 64.35066231 | S40: =IF(ISERROR(INDIRECT(CONCATENATE($E$32,"!O224"))),"",INDIRECT(CONCATENATE($E$32,"!O224"))) -> 11.81335804 | T40: =IF(ISERROR(INDIRECT(CONCATENATE($E$32,"!P222"))),"",INDIRECT(CONCATENATE($E$32,"!P222"))) -> 29.85768118 | U40: =IF(ISERROR(INDIRECT(CONCATENATE($E$32,"!P223"))),"",INDIRECT(CONCATENATE($E$32,"!P223"))) -> 59.82081068 | V40: =IF(ISERROR(INDIRECT(CONCATENATE($E$32,"!P224"))),"",INDIRECT(CONCATENATE($E$32,"!P224"))) -> 10.32150815 | W40: =IF(ISERROR(INDIRECT(CONCATENATE($E$32,"!Q222"))),"",INDIRECT(CONCATENATE($E$32,"!Q222"))) -> 50.37471074 | X40: =IF(ISERROR(INDIRECT(CONCATENATE($E$32,"!Q223"))),"",INDIRECT(CONCATENATE($E$32,"!Q223"))) -> 41.77157322 | Y40: =IF(ISERROR(INDIRECT(CONCATENATE($E$32,"!Q224"))),"",INDIRECT(CONCATENATE($E$32,"!Q224"))) -> 7.853716036
A88: 3 | B88: DHS00
B89: DHS07
B90: DHS13
B91: Template

Sheet DHS00
A2: =A1026 -> Namibia
A3: =A1034 -> 2000
A4: Use of drinking water sources
A5: by wealth quintile and sub-national region
A6: Notes:
A7: WHO/UNICEF JMP customised wealth index excludes water,
A8: sanitation and hygiene assets.
A9: Survey used for analysis: | B9: =A1025 -> DHS00
A10: =B1028 -> 
A11: =B1027 -> 
A14: Use of drinking water sources | C14: NATIONAL wealth index quintile | H14: URBAN wealth index quintile | M14: RURAL wealth index quintile | R14: SUB-REGIONS: | BA14: Raw numbers of respondents: | BB14: Use of drinking water sources | BC14: NATIONAL wealth index quintile | BH14: URBAN wealth index quintile | BM14: RURAL wealth index quintile | BR14: SUB-REGIONS:
A15: Weighted percentage (used in graphs) | C15: Poorest | D15: Poor | E15: Middle | F15: Rich | G15: Richest | H15: Poorest | I15: Poor | J15: Middle | K15: Rich | L15: Richest | M15: Poorest | N15: Poor | O15: Middle | P15: Rich | Q15: Richest | R15: Caprivi | S15: Erongo | T15: Hardap | U15: Karas | V15: Kavango | W15: Khomas | X15: Kunene | Y15: Ohangwena | Z15: Omaheke | AA15: Omusati | AB15: Oshana | AC15: Oshikoto | AD15: Otjozondjupa | BA15: Water data, raw numbers (weighted) | BC15: Poorest | BD15: Poor | BE15: Middle | BF15: Rich | BG15: Richest | BH15: Poorest | BI15: Poor | BJ15: Middle | BK15: Rich | BL15: Richest | BM15: Poorest | BN15: Poor | BO15: Middle | BP15: Rich | BQ15: Richest | BR15: Caprivi | BS15: Erongo | BT15: Hardap | BU15: Karas | BV15: Kavango | BW15: Khomas | BX15: Kunene | BY15: Ohangwena | BZ15: Omaheke | CA15: Omusati | CB15: Oshana | CC15: Oshikoto | CD15: Otjozondjupa
A16: Water | B16: Improved | C16: 61.15425117 | D16: 62.81803941 | E16: 72.35785872 | F16: 90.88178266 | G16: 99.81613678 | H16: 93.00723429 | I16: 97.73346558 | J16: 99.79879706 | K16: 100 | L16: 100 | M16: 58.0029964 | N16: 60.85292202 | O16: 61.90562634 | P16: 69.18598448 | Q16: 85.68012259 | R16: 78.16671491 | S16: 100 | T16: 95.77449686 | U16: 99.79065378 | V16: 52.29422048 | W16: 92.56283979 | X16: 79.06026842 | Y16: 64.51989796 | Z16: 87.57128907 | AA16: 56.87802389 | AB16: 79.50612337 | AC16: 68.16288528 | AD16: 95.38255643 | BA16: Water | BB16: Improved | BC16: N/A | BD16: N/A | BE16: N/A | BF16: N/A | BG16: N/A | BH16: N/A | BI16: N/A | BJ16: N/A | BK16: N/A | BL16: N/A | BM16: N/A | BN16: N/A | BO16: N/A | BP16: N/A | BQ16: N/A | BR16: N/A | BS16: N/A | BT16: N/A | BU16: N/A | BV16: N/A | BW16: N/A | BX16: N/A | BY16: N/A | BZ16: N/A | CA16: N/A | CB16: N/A | CC16: N/A | CD16: N/A
B17: Not Improved | C17: 38.84574883 | D17: 37.18196059 | E17: 27.64214128 | F17: 9.118217338 | G17: 0.1838632185 | H17: 6.992765711 | I17: 2.266534415 | J17: 0.2012029398 | K17: 0 | L17: 0 | M17: 41.9970036 | N17: 39.14707798 | O17: 38.09437366 | P17: 30.81401552 | Q17: 14.31987741 | R17: 21.83328509 | S17: 0 | T17: 4.22550314 | U17: 0.2093462155 | V17: 47.70577952 | W17: 7.437160209 | X17: 20.93973158 | Y17: 35.48010204 | Z17: 12.42871093 | AA17: 43.12197611 | AB17: 20.49387663 | AC17: 31.83711472 | AD17: 4.617443566 | BB17: Not Improved | BC17: N/A | BD17: N/A | BE17: N/A | BF17: N/A | BG17: N/A | BH17: N/A | BI17: N/A | BJ17: N/A | BK17: N/A | BL17: N/A | BM17: N/A | BN17: N/A | BO17: N/A | BP17: N/A | BQ17: N/A | BR17: N/A | BS17: N/A | BT17: N/A | BU17: N/A | BV17: N/A | BW17: N/A | BX17: N/A | BY17: N/A | BZ17: N/A | CA17: N/A | CB17: N/A | CC17: N/A | CD17: N/A
A18: Water ladder | B18: Basic | C18: =C16*C23/100 -> 53.96742175 | D18: =D16*D23/100 -> 53.33524424 | E18: =E16*E23/100 -> 66.14164071 | F18: 89.96092847 | G18: 99.81613678 | H18: 91.7554683 | I18: 97.25912535 | J18: 99.79879706 | K18: 100 | L18: 100 | M18: 50.50995704 | N18: 50.31061863 | O18: 53.28358284 | P18: 62.10505586 | Q18: 83.94993742 | R18: 72.28602523 | S18: 100 | T18: 95.4695004 | U18: 99.25267572 | V18: 46.64579285 | W18: 92.42998871 | X18: 68.1274391 | Y18: 56.36280258 | Z18: 84.51214654 | AA18: 48.2282433 | AB18: 73.30823659 | AC18: 59.30246767 | AD18: 94.97139703 | BA18: Water ladder | BB18: Basic | BC18: N/A | BD18: N/A | BE18: N/A | BF18: N/A | BG18: N/A | BH18: N/A | BI18: N/A | BJ18: N/A | BK18: N/A | BL18: N/A | BM18: N/A | BN18: N/A | BO18: N/A | BP18: N/A | BQ18: N/A | BR18: N/A | BS18: N/A | BT18: N/A | BU18: N/A | BV18: N/A | BW18: N/A | BX18: N/A | BY18: N/A | BZ18: N/A | CA18: N/A | CB18: N/A | CC18: N/A | CD18: N/A
B19: Limited | C19: =C16*C22/100 -> 7.186829419 | D19: =D16*D22/100 -> 9.482795165 | E19: =E16*E22/100 -> 6.216218005 | F19: 0.9208541877 | G19: 0 | H19: 1.251765985 | I19: 0.474340236 | J19: 0 | K19: 0 | L19: 0 | M19: 7.49303936 | N19: 10.54230339 | O19: 8.622043496 | P19: 7.080928612 | Q19: 1.730185168 | R19: 5.880689676 | S19: 0 | T19: 0.3049964561 | U19: 0.5379780635 | V19: 5.648427625 | W19: 0.1328510859 | X19: 10.93282932 | Y19: 8.15709538 | Z19: 3.059142532 | AA19: 8.649780592 | AB19: 6.197886785 | AC19: 8.860417613 | AD19: 0.4111594008 | BB19: Limited | BC19: N/A | BD19: N/A | BE19: N/A | BF19: N/A | BG19: N/A | BH19: N/A | BI19: N/A | BJ19: N/A | BK19: N/A | BL19: N/A | BM19: N/A | BN19: N/A | BO19: N/A | BP19: N/A | BQ19: N/A | BR19: N/A | BS19: N/A | BT19: N/A | BU19: N/A | BV19: N/A | BW19: N/A | BX19: N/A | BY19: N/A | BZ19: N/A | CA19: N/A | CB19: N/A | CC19: N/A | CD19: N/A
B20: Unimproved | C20: =100-C18-C19-C21 -> 20.95152768 | D20: =100-D18-D19-D21 -> 25.82645513 | E20: =100-E18-E19-E21 -> 22.39473694 | F20: 5.430618242 | G20: 0.1838632185 | H20: 6.992765711 | I20: 2.266534415 | J20: 0.2012029398 | K20: 0 | L20: 0 | M20: 22.74950971 | N20: 21.31153259 | O20: 30.18048234 | P20: 24.60341133 | Q20: 7.88615388 | R20: 5.159219232 | S20: 0 | T20: 3.829603916 | U20: 0.05168911453 | V20: 6.287366271 | W20: 3.328983144 | X20: 12.03662602 | Y20: 33.66924688 | Z20: 11.4376441 | AA20: 31.88375738 | AB20: 20.05781329 | AC20: 31.09259921 | AD20: 3.983688625 | BB20: Unimproved | BC20: N/A | BD20: N/A | BE20: N/A | BF20: N/A | BG20: N/A | BH20: N/A | BI20: N/A | BJ20: N/A | BK20: N/A | BL20: N/A | BM20: N/A | BN20: N/A | BO20: N/A | BP20: N/A | BQ20: N/A | BR20: N/A | BS20: N/A | BT20: N/A | BU20: N/A | BV20: N/A | BW20: N/A | BX20: N/A | BY20: N/A | BZ20: N/A | CA20: N/A | CB20: N/A | CC20: N/A | CD20: N/A
B21: Surface water | C21: 17.89422115 | D21: 11.35550546 | E21: 5.247404344 | F21: 3.687599096 | G21: 0 | H21: 0 | I21: 0 | J21: 0 | K21: 0 | L21: 0 | M21: 19.24749389 | N21: 17.83554539 | O21: 7.913891315 | P21: 6.210604194 | Q21: 6.433723531 | R21: 16.67406586 | S21: 0 | T21: 0.3958992242 | U21: 0.1576571009 | V21: 41.41841325 | W21: 4.108177064 | X21: 8.903105555 | Y21: 1.810855164 | Z21: 0.9910668254 | AA21: 11.23821874 | AB21: 0.4360633371 | AC21: 0.7445155031 | AD21: 0.6337549408 | BB21: Surface water | BC21: N/A | BD21: N/A | BE21: N/A | BF21: N/A | BG21: N/A | BH21: N/A | BI21: N/A | BJ21: N/A | BK21: N/A | BL21: N/A | BM21: N/A | BN21: N/A | BO21: N/A | BP21: N/A | BQ21: N/A | BR21: N/A | BS21: N/A | BT21: N/A | BU21: N/A | BV21: N/A | BW21: N/A | BX21: N/A | BY21: N/A | BZ21: N/A | CA21: N/A | CB21: N/A | CC21: N/A | CD21: N/A
A22: Improved water point at more than 30 minutes | B22: Yes | C22: 11.75197027 | D22: 15.09565605 | E22: 8.590936928 | F22: 1.013243975 | G22: 0 | H22: 1.345880237 | I22: 0.4853406488 | J22: 0 | K22: 0 | L22: 0 | M22: 12.91836599 | N22: 17.32423529 | O22: 13.92772193 | P22: 10.23462868 | Q22: 2.019354217 | R22: 7.523265732 | S22: 0 | T22: 0.3184526842 | U22: 0.5391066629 | V22: 10.80124643 | W22: 0.1435252918 | X22: 13.82847483 | Y22: 12.64275927 | Z22: 3.493316775 | AA22: 15.20759689 | AB22: 7.795483571 | AC22: 12.99888873 | AD22: 0.4310635153 | BA22: Improved water point at more than 30 minutes | BB22: Yes | BC22: N/A | BD22: N/A | BE22: N/A | BF22: N/A | BG22: N/A | BH22: N/A | BI22: N/A | BJ22: N/A | BK22: N/A | BL22: N/A | BM22: N/A | BN22: N/A | BO22: N/A | BP22: N/A | BQ22: N/A | BR22: N/A | BS22: N/A | BT22: N/A | BU22: N/A | BV22: N/A | BW22: N/A | BX22: N/A | BY22: N/A | BZ22: N/A | CA22: N/A | CB22: N/A | CC22: N/A | CD22: N/A
B23: No | C23: 88.24802973 | D23: 84.90434395 | E23: 91.40906307 | F23: 98.98675602 | G23: 100 | H23: 98.65411976 | I23: 99.51465935 | J23: 100 | K23: 100 | L23: 100 | M23: 87.08163401 | N23: 82.67576471 | O23: 86.07227807 | P23: 89.76537132 | Q23: 97.98064578 | R23: 92.47673427 | S23: 100 | T23: 99.68154732 | U23: 99.46089334 | V23: 89.19875357 | W23: 99.85647471 | X23: 86.17152517 | Y23: 87.35724073 | Z23: 96.50668322 | AA23: 84.79240311 | AB23: 92.20451643 | AC23: 87.00111127 | AD23: 99.56893648 | BB23: No | BC23: N/A | BD23: N/A | BE23: N/A | BF23: N/A | BG23: N/A | BH23: N/A | BI23: N/A | BJ23: N/A | BK23: N/A | BL23: N/A | BM23: N/A | BN23: N/A | BO23: N/A | BP23: N/A | BQ23: N/A | BR23: N/A | BS23: N/A | BT23: N/A | BU23: N/A | BV23: N/A | BW23: N/A | BX23: N/A | BY23: N/A | BZ23: N/A | CA23: N/A | CB23: N/A | CC23: N/A | CD23: N/A
A24: Manually calculated ratios | B24: Improved wells
B25: Improved springs
B26: Other
C27: NATIONAL wealth index quintile | H27: URBAN wealth index quintile | M27: RURAL wealth index quintile | R27: SUB-REGIONS: | BA27: Raw numbers of respondents: | BB27: Use of drinking water sources | BC27: NATIONAL wealth index quintile | BH27: URBAN wealth index quintile | BM27: RURAL wealth index quintile | BR27: SUB-REGIONS:
A28: Percentage based on weighted population | C28: Poorest | D28: Poor | E28: Middle | F28: Rich | G28: Richest | H28: Poorest | I28: Poor | J28: Middle | K28: Rich | L28: Richest | M28: Poorest | N28: Poor | O28: Middle | P28: Rich | Q28: Richest | R28: Caprivi | S28: Erongo | T28: Hardap | U28: Karas | V28: Kavango | W28: Khomas | X28: Kunene | Y28: Ohangwena | Z28: Omaheke | AA28: Omusati | AB28: Oshana | AC28: Oshikoto | AD28: Otjozondjupa | BA28: Water data, raw numbers (weighted) | BC28: Poorest | BD28: Poor | BE28: Middle | BF28: Rich | BG28: Richest | BH28: Poorest | BI28: Poor | BJ28: Middle | BK28: Rich | BL28: Richest | BM28: Poorest | BN28: Poor | BO28: Middle | BP28: Rich | BQ28: Richest | BR28: Caprivi | BS28: Erongo | BT28: Hardap | BU28: Karas | BV28: Kavango | BW28: Khomas | BX28: Kunene | BY28: Ohangwena | BZ28: Omaheke | CA28: Omusati | CB28: Oshana | CC28: Oshikoto | CD28: Otjozondjupa
A29: Piped water | B29: Yes | C29: 27.79665234 | D29: 32.22672468 | E29: 49.33461119 | F29: 83.90112563 | G29: 99.31994486 | H29: 92.29303777 | I29: 97.5852327 | J29: 99.79879706 | K29: 100 | L29: 100 | M29: 21.5649395 | N29: 32.40736529 | O29: 29.05965046 | P29: 39.69328533 | Q29: 71.96310013 | R29: 24.13660468 | S29: 100 | T29: 90.57656526 | U29: 94.50678936 | V29: 44.07082305 | W29: 92.01311907 | X29: 55.97484187 | Y29: 21.04532599 | Z29: 65.38780717 | AA29: 19.7020556 | AB29: 55.43860294 | AC29: 64.06850293 | AD29: 88.76662326 | BA29: Piped water | BB29: Yes | BC29: N/A | BD29: N/A | BE29: N/A | BF29: N/A | BG29: N/A | BH29: N/A | BI29: N/A | BJ29: N/A | BK29: N/A | BL29: N/A | BM29: N/A | BN29: N/A | BO29: N/A | BP29: N/A | BQ29: N/A | BR29: N/A | BS29: N/A | BT29: N/A | BU29: N/A | BV29: N/A | BW29: N/A | BX29: N/A | BY29: N/A | BZ29: N/A | CA29: N/A | CB29: N/A | CC29: N/A | CD29: N/A
B30: No | C30: 72.20334766 | D30: 67.77327532 | E30: 50.66538881 | F30: 16.09887437 | G30: 0.6800551357 | H30: 7.706962232 | I30: 2.414767299 | J30: 0.2012029398 | K30: 0 | L30: 0 | M30: 78.4350605 | N30: 67.59263471 | O30: 70.94034954 | P30: 60.30671467 | Q30: 28.03689987 | R30: 75.86339532 | S30: 0 | T30: 9.423434735 | U30: 5.493210637 | V30: 55.92917695 | W30: 7.986880931 | X30: 44.02515813 | Y30: 78.95467401 | Z30: 34.61219283 | AA30: 80.2979444 | AB30: 44.56139706 | AC30: 35.93149707 | AD30: 11.23337674 | BB30: No | BC30: N/A | BD30: N/A | BE30: N/A | BF30: N/A | BG30: N/A | BH30: N/A | BI30: N/A | BJ30: N/A | BK30: N/A | BL30: N/A | BM30: N/A | BN30: N/A | BO30: N/A | BP30: N/A | BQ30: N/A | BR30: N/A | BS30: N/A | BT30: N/A | BU30: N/A | BV30: N/A | BW30: N/A | BX30: N/A | BY30: N/A | BZ30: N/A | CA30: N/A | CB30: N/A | CC30: N/A | CD30: N/A
A31: Piped water on premises | B31: Yes | C31: 5.714389675 | D31: 5.247794137 | E31: 18.32357113 | F31: 60.7881331 | G31: 98.38724266 | H31: 31.54170169 | I31: 69.48363474 | J31: 96.44703078 | K31: 99.82055644 | L31: 99.57065743 | M31: 3.9588588 | N31: 4.403114685 | O31: 5.289647725 | P31: 15.42913783 | Q31: 55.95548693 | R31: 5.68756951 | S31: 100 | T31: 74.89928306 | U31: 89.92273447 | V31: 21.26969661 | W31: 71.09109443 | X31: 43.30113778 | Y31: 1.723152796 | Z31: 48.94598992 | AA31: 3.606110214 | AB31: 20.21160374 | AC31: 27.72090002 | AD31: 67.27343752 | BA31: Piped water on premises | BB31: Yes | BC31: N/A | BD31: N/A | BE31: N/A | BF31: N/A | BG31: N/A | BH31: N/A | BI31: N/A | BJ31: N/A | BK31: N/A | BL31: N/A | BM31: N/A | BN31: N/A | BO31: N/A | BP31: N/A | BQ31: N/A | BR31: N/A | BS31: N/A | BT31: N/A | BU31: N/A | BV31: N/A | BW31: N/A | BX31: N/A | BY31: N/A | BZ31: N/A | CA31: N/A | CB31: N/A | CC31: N/A | CD31: N/A
B32: No | C32: 94.28561033 | D32: 94.75220586 | E32: 81.67642887 | F32: 39.2118669 | G32: 1.612757344 | H32: 68.45829831 | I32: 30.51636526 | J32: 3.552969223 | K32: 0.1794435614 | L32: 0.4293425666 | M32: 96.0411412 | N32: 95.59688532 | O32: 94.71035227 | P32: 84.57086217 | Q32: 44.04451307 | R32: 94.31243049 | S32: 0 | T32: 25.10071694 | U32: 10.07726553 | V32: 78.73030339 | W32: 28.90890557 | X32: 56.69886222 | Y32: 98.2768472 | Z32: 51.05401008 | AA32: 96.39388979 | AB32: 79.78839626 | AC32: 72.27909998 | AD32: 32.72656248 | BB32: No | BC32: N/A | BD32: N/A | BE32: N/A | BF32: N/A | BG32: N/A | BH32: N/A | BI32: N/A | BJ32: N/A | BK32: N/A | BL32: N/A | BM32: N/A | BN32: N/A | BO32: N/A | BP32: N/A | BQ32: N/A | BR32: N/A | BS32: N/A | BT32: N/A | BU32: N/A | BV32: N/A | BW32: N/A | BX32: N/A | BY32: N/A | BZ32: N/A | CA32: N/A | CB32: N/A | CC32: N/A | CD32: N/A
A33: Piped water into dwelling | B33: Yes | C33: N/A | D33: N/A | E33: N/A | F33: N/A | G33: N/A | H33: N/A | I33: N/A | J33: N/A | K33: N/A | L33: N/A | M33: N/A | N33: N/A | O33: N/A | P33: N/A | Q33: N/A | R33: N/A | S33: N/A | T33: N/A | U33: N/A | V33: N/A | W33: N/A | X33: N/A | Y33: N/A | Z33: N/A | AA33: N/A | AB33: N/A | AC33: N/A | AD33: N/A | BA33: Piped water into dwelling | BB33: Yes | BC33: N/A | BD33: N/A | BE33: N/A | BF33: N/A | BG33: N/A | BH33: N/A | BI33: N/A | BJ33: N/A | BK33: N/A | BL33: N/A | BM33: N/A | BN33: N/A | BO33: N/A | BP33: N/A | BQ33: N/A | BR33: N/A | BS33: N/A | BT33: N/A | BU33: N/A | BV33: N/A | BW33: N/A | BX33: N/A | BY33: N/A | BZ33: N/A | CA33: N/A | CB33: N/A | CC33: N/A | CD33: N/A
B34: No | C34: N/A | D34: N/A | E34: N/A | F34: N/A | G34: N/A | H34: N/A | I34: N/A | J34: N/A | K34: N/A | L34: N/A | M34: N/A | N34: N/A | O34: N/A | P34: N/A | Q34: N/A | R34: N/A | S34: N/A | T34: N/A | U34: N/A | V34: N/A | W34: N/A | X34: N/A | Y34: N/A | Z34: N/A | AA34: N/A | AB34: N/A | AC34: N/A | AD34: N/A | BB34: No | BC34: N/A | BD34: N/A | BE34: N/A | BF34: N/A | BG34: N/A | BH34: N/A | BI34: N/A | BJ34: N/A | BK34: N/A | BL34: N/A | BM34: N/A | BN34: N/A | BO34: N/A | BP34: N/A | BQ34: N/A | BR34: N/A | BS34: N/A | BT34: N/A | BU34: N/A | BV34: N/A | BW34: N/A | BX34: N/A | BY34: N/A | BZ34: N/A | CA34: N/A | CB34: N/A | CC34: N/A | CD34: N/A
A35: Water source on premises | B35: Yes | C35: 6.297370998 | D35: 5.608364289 | E35: 19.79512185 | F35: 61.91542583 | G35: 98.46139822 | H35: 34.34669804 | I35: 70.77910207 | J35: 96.44703078 | K35: 99.82055644 | L35: 99.57065743 | M35: 4.459806496 | N35: 4.617598896 | O35: 5.631173307 | P35: 16.84760291 | Q35: 56.86518236 | R35: 5.992421572 | S35: 100 | T35: 75.36375505 | U35: 90.46064568 | V35: 21.68282413 | W35: 72.36087943 | X35: 45.43022599 | Y35: 1.723152796 | Z35: 51.35924065 | AA35: 4.05178722 | AB35: 21.40685844 | AC35: 28.36616982 | AD35: 68.11534483 | BA35: Water source on premises | BB35: Yes | BC35: N/A | BD35: N/A | BE35: N/A | BF35: N/A | BG35: N/A | BH35: N/A | BI35: N/A | BJ35: N/A | BK35: N/A | BL35: N/A | BM35: N/A | BN35: N/A | BO35: N/A | BP35: N/A | BQ35: N/A | BR35: N/A | BS35: N/A | BT35: N/A | BU35: N/A | BV35: N/A | BW35: N/A | BX35: N/A | BY35: N/A | BZ35: N/A | CA35: N/A | CB35: N/A | CC35: N/A | CD35: N/A
B36: No | C36: 93.702629 | D36: 94.39163571 | E36: 80.20487815 | F36: 38.08457417 | G36: 1.538601779 | H36: 65.65330196 | I36: 29.22089793 | J36: 3.552969223 | K36: 0.1794435614 | L36: 0.4293425666 | M36: 95.5401935 | N36: 95.3824011 | O36: 94.36882669 | P36: 83.15239709 | Q36: 43.13481764 | R36: 94.00757843 | S36: 0 | T36: 24.63624495 | U36: 9.539354319 | V36: 78.31717587 | W36: 27.63912057 | X36: 54.56977401 | Y36: 98.2768472 | Z36: 48.64075935 | AA36: 95.94821278 | AB36: 78.59314156 | AC36: 71.63383018 | AD36: 31.88465517 | BB36: No | BC36: N/A | BD36: N/A | BE36: N/A | BF36: N/A | BG36: N/A | BH36: N/A | BI36: N/A | BJ36: N/A | BK36: N/A | BL36: N/A | BM36: N/A | BN36: N/A | BO36: N/A | BP36: N/A | BQ36: N/A | BR36: N/A | BS36: N/A | BT36: N/A | BU36: N/A | BV36: N/A | BW36: N/A | BX36: N/A | BY36: N/A | BZ36: N/A | CA36: N/A | CB36: N/A | CC36: N/A | CD36: N/A
A37: Improved Water source on premises | B37: Yes | C37: 6.287989425 | D37: 5.465635165 | E37: 19.04246932 | F37: 61.8846355 | G37: 98.46139822 | H37: 34.22763622 | I37: 70.77910207 | J37: 96.44703078 | K37: 99.82055644 | L37: 99.57065743 | M37: 4.445559706 | N37: 4.546275537 | O37: 5.372952406 | P37: 16.11905427 | Q37: 56.59492788 | R37: 5.992421572 | S37: 100 | T37: 75.33630116 | U37: 90.46064568 | V37: 21.68282413 | W37: 72.36087943 | X37: 44.91249499 | Y37: 1.723152796 | Z37: 51.35924065 | AA37: 3.770675368 | AB37: 20.36719909 | AC37: 28.0551647 | AD37: 68.11534483 | BA37: Improved water source on premises | BB37: Yes | BC37: N/A | BD37: N/A | BE37: N/A | BF37: N/A | BG37: N/A | BH37: N/A | BI37: N/A | BJ37: N/A | BK37: N/A | BL37: N/A | BM37: N/A | BN37: N/A | BO37: N/A | BP37: N/A | BQ37: N/A | BR37: N/A | BS37: N/A | BT37: N/A | BU37: N/A | BV37: N/A | BW37: N/A | BX37: N/A | BY37: N/A | BZ37: N/A | CA37: N/A | CB37: N/A | CC37: N/A | CD37: N/A
B38: No | C38: 93.71201057 | D38: 94.53436484 | E38: 80.95753068 | F38: 38.1153645 | G38: 1.538601779 | H38: 65.77236378 | I38: 29.22089793 | J38: 3.552969223 | K38: 0.1794435614 | L38: 0.4293425666 | M38: 95.55444029 | N38: 95.45372446 | O38: 94.62704759 | P38: 83.88094573 | Q38: 43.40507212 | R38: 94.00757843 | S38: 0 | T38: 24.66369884 | U38: 9.539354319 | V38: 78.31717587 | W38: 27.63912057 | X38: 55.08750501 | Y38: 98.2768472 | Z38: 48.64075935 | AA38: 96.22932463 | AB38: 79.63280091 | AC38: 71.9448353 | AD38: 31.88465517 | BB38: No | BC38: N/A | BD38: N/A | BE38: N/A | BF38: N/A | BG38: N/A | BH38: N/A | BI38: N/A | BJ38: N/A | BK38: N/A | BL38: N/A | BM38: N/A | BN38: N/A | BO38: N/A | BP38: N/A | BQ38: N/A | BR38: N/A | BS38: N/A | BT38: N/A | BU38: N/A | BV38: N/A | BW38: N/A | BX38: N/A | BY38: N/A | BZ38: N/A | CA38: N/A | CB38: N/A | CC38: N/A | CD38: N/A
A39: Piped water on premises available when needed | B39: Yes | C39: N/A | D39: N/A | E39: N/A | F39: N/A | G39: N/A | H39: N/A | I39: N/A | J39: N/A | K39: N/A | L39: N/A | M39: N/A | N39: N/A | O39: N/A | P39: N/A | Q39: N/A | R39: N/A | S39: N/A | T39: N/A | U39: N/A | V39: N/A | W39: N/A | X39: N/A | Y39: N/A | Z39: N/A | AA39: N/A | AB39: N/A | AC39: N/A | AD39: N/A | BA39: Piped water on premises available when needed | BB39: Yes | BC39: N/A | BD39: N/A | BE39: N/A | BF39: N/A | BG39: N/A | BH39: N/A | BI39: N/A | BJ39: N/A | BK39: N/A | BL39: N/A | BM39: N/A | BN39: N/A | BO39: N/A | BP39: N/A | BQ39: N/A | BR39: N/A | BS39: N/A | BT39: N/A | BU39: N/A | BV39: N/A | BW39: N/A | BX39: N/A | BY39: N/A | BZ39: N/A | CA39: N/A | CB39: N/A | CC39: N/A | CD39: N/A
B40: No | C40: N/A | D40: N/A | E40: N/A | F40: N/A | G40: N/A | H40: N/A | I40: N/A | J40: N/A | K40: N/A | L40: N/A | M40: N/A | N40: N/A | O40: N/A | P40: N/A | Q40: N/A | R40: N/A | S40: N/A | T40: N/A | U40: N/A | V40: N/A | W40: N/A | X40: N/A | Y40: N/A | Z40: N/A | AA40: N/A | AB40: N/A | AC40: N/A | AD40: N/A | BB40: No | BC40: N/A | BD40: N/A | BE40: N/A | BF40: N/A | BG40: N/A | BH40: N/A | BI40: N/A | BJ40: N/A | BK40: N/A | BL40: N/A | BM40: N/A | BN40: N/A | BO40: N/A | BP40: N/A | BQ40: N/A | BR40: N/A | BS40: N/A | BT40: N/A | BU40: N/A | BV40: N/A | BW40: N/A | BX40: N/A | BY40: N/A | BZ40: N/A | CA40: N/A | CB40: N/A | CC40: N/A | CD40: N/A
A41: Water point at more than 30 minutes | B41: Yes | C41: 16.22381649 | D41: 12.73326459 | E41: 8.085628997 | F41: 2.829169259 | G41: 0 | H41: 1.899155285 | I41: 0.4742153394 | J41: 0 | K41: 0 | L41: 0 | M41: 18.6591529 | N41: 14.97851868 | O41: 12.18800044 | P41: 8.205697084 | Q41: 4.983614677 | R41: 15.38477367 | S41: 0 | T41: 0.5836280793 | U41: 0.6430692592 | V41: 16.96029185 | W41: 1.834645122 | X41: 15.39072239 | Y41: 11.65159834 | Z41: 4.831030538 | AA41: 10.11201482 | AB41: 7.917715312 | AC41: 11.90048724 | AD41: 0.4112538628 | BA41: Water point at more than 30 minutes | BB41: Yes | BC41: N/A | BD41: N/A | BE41: N/A | BF41: N/A | BG41: N/A | BH41: N/A | BI41: N/A | BJ41: N/A | BK41: N/A | BL41: N/A | BM41: N/A | BN41: N/A | BO41: N/A | BP41: N/A | BQ41: N/A | BR41: N/A | BS41: N/A | BT41: N/A | BU41: N/A | BV41: N/A | BW41: N/A | BX41: N/A | BY41: N/A | BZ41: N/A | CA41: N/A | CB41: N/A | CC41: N/A | CD41: N/A
B42: No | C42: 83.77618351 | D42: 87.26673541 | E42: 91.914371 | F42: 97.17083074 | G42: 100 | H42: 98.10084472 | I42: 99.52578466 | J42: 100 | K42: 100 | L42: 100 | M42: 81.3408471 | N42: 85.02148132 | O42: 87.81199956 | P42: 91.79430292 | Q42: 95.01638532 | R42: 84.61522633 | S42: 100 | T42: 99.41637192 | U42: 99.35693074 | V42: 83.03970815 | W42: 98.16535488 | X42: 84.60927761 | Y42: 88.34840166 | Z42: 95.16896946 | AA42: 89.88798518 | AB42: 92.08228469 | AC42: 88.09951276 | AD42: 99.58874614 | BB42: No | BC42: N/A | BD42: N/A | BE42: N/A | BF42: N/A | BG42: N/A | BH42: N/A | BI42: N/A | BJ42: N/A | BK42: N/A | BL42: N/A | BM42: N/A | BN42: N/A | BO42: N/A | BP42: N/A | BQ42: N/A | BR42: N/A | BS42: N/A | BT42: N/A | BU42: N/A | BV42: N/A | BW42: N/A | BX42: N/A | BY42: N/A | BZ42: N/A | CA42: N/A | CB42: N/A | CC42: N/A | CD42: N/A
A43: Water source available when needed | B43: Yes | C43: N/A | D43: N/A | E43: N/A | F43: N/A | G43: N/A | H43: N/A | I43: N/A | J43: N/A | K43: N/A | L43: N/A | M43: N/A | N43: N/A | O43: N/A | P43: N/A | Q43: N/A | R43: N/A | S43: N/A | T43: N/A | U43: N/A | V43: N/A | W43: N/A | X43: N/A | Y43: N/A | Z43: N/A | AA43: N/A | AB43: N/A | AC43: N/A | AD43: N/A | BA43: Water source available when needed | BB43: Yes | BC43: N/A | BD43: N/A | BE43: N/A | BF43: N/A | BG43: N/A | BH43: N/A | BI43: N/A | BJ43: N/A | BK43: N/A | BL43: N/A | BM43: N/A | BN43: N/A | BO43: N/A | BP43: N/A | BQ43: N/A | BR43: N/A | BS43: N/A | BT43: N/A | BU43: N/A | BV43: N/A | BW43: N/A | BX43: N/A | BY43: N/A | BZ43: N/A | CA43: N/A | CB43: N/A | CC43: N/A | CD43: N/A
B44: No | C44: N/A | D44: N/A | E44: N/A | F44: N/A | G44: N/A | H44: N/A | I44: N/A | J44: N/A | K44: N/A | L44: N/A | M44: N/A | N44: N/A | O44: N/A | P44: N/A | Q44: N/A | R44: N/A | S44: N/A | T44: N/A | U44: N/A | V44: N/A | W44: N/A | X44: N/A | Y44: N/A | Z44: N/A | AA44: N/A | AB44: N/A | AC44: N/A | AD44: N/A | BB44: No | BC44: N/A | BD44: N/A | BE44: N/A | BF44: N/A | BG44: N/A | BH44: N/A | BI44: N/A | BJ44: N/A | BK44: N/A | BL44: N/A | BM44: N/A | BN44: N/A | BO44: N/A | BP44: N/A | BQ44: N/A | BR44: N/A | BS44: N/A | BT44: N/A | BU44: N/A | BV44: N/A | BW44: N/A | BX44: N/A | BY44: N/A | BZ44: N/A | CA44: N/A | CB44: N/A | CC44: N/A | CD44: N/A
A45: Improved water source available when needed | B45: Yes | C45: N/A | D45: N/A | E45: N/A | F45: N/A | G45: N/A | H45: N/A | I45: N/A | J45: N/A | K45: N/A | L45: N/A | M45: N/A | N45: N/A | O45: N/A | P45: N/A | Q45: N/A | R45: N/A | S45: N/A | T45: N/A | U45: N/A | V45: N/A | W45: N/A | X45: N/A | Y45: N/A | Z45: N/A | AA45: N/A | AB45: N/A | AC45: N/A | AD45: N/A | BA45: Improved water source available when needed | BB45: Yes | BC45: N/A | BD45: N/A | BE45: N/A | BF45: N/A | BG45: N/A | BH45: N/A | BI45: N/A | BJ45: N/A | BK45: N/A | BL45: N/A | BM45: N/A | BN45: N/A | BO45: N/A | BP45: N/A | BQ45: N/A | BR45: N/A | BS45: N/A | BT45: N/A | BU45: N/A | BV45: N/A | BW45: N/A | BX45: N/A | BY45: N/A | BZ45: N/A | CA45: N/A | CB45: N/A | CC45: N/A | CD45: N/A
B46: No | C46: N/A | D46: N/A | E46: N/A | F46: N/A | G46: N/A | H46: N/A | I46: N/A | J46: N/A | K46: N/A | L46: N/A | M46: N/A | N46: N/A | O46: N/A | P46: N/A | Q46: N/A | R46: N/A | S46: N/A | T46: N/A | U46: N/A | V46: N/A | W46: N/A | X46: N/A | Y46: N/A | Z46: N/A | AA46: N/A | AB46: N/A | AC46: N/A | AD46: N/A | BB46: No | BC46: N/A | BD46: N/A | BE46: N/A | BF46: N/A | BG46: N/A | BH46: N/A | BI46: N/A | BJ46: N/A | BK46: N/A | BL46: N/A | BM46: N/A | BN46: N/A | BO46: N/A | BP46: N/A | BQ46: N/A | BR46: N/A | BS46: N/A | BT46: N/A | BU46: N/A | BV46: N/A | BW46: N/A | BX46: N/A | BY46: N/A | BZ46: N/A | CA46: N/A | CB46: N/A | CC46: N/A | CD46: N/A
A47: Microbiological quality at point of collection | B47: Not contaminated (No E. coli in 100 mL) | C47: N/A | D47: N/A | E47: N/A | F47: N/A | G47: N/A | H47: N/A | I47: N/A | J47: N/A | K47: N/A | L47: N/A | M47: N/A | N47: N/A | O47: N/A | P47: N/A | Q47: N/A | R47: N/A | S47: N/A | T47: N/A | U47: N/A | V47: N/A | W47: N/A | X47: N/A | Y47: N/A | Z47: N/A | AA47: N/A | AB47: N/A | AC47: N/A | AD47: N/A | BA47: Microbiological quality at point of collection | BB47: Not contaminated (No E. coli in 100 mL) | BC47: N/A | BD47: N/A | BE47: N/A | BF47: N/A | BG47: N/A | BH47: N/A | BI47: N/A | BJ47: N/A | BK47: N/A | BL47: N/A | BM47: N/A | BN47: N/A | BO47: N/A | BP47: N/A | BQ47: N/A | BR47: N/A | BS47: N/A | BT47: N/A | BU47: N/A | BV47: N/A | BW47: N/A | BX47: N/A | BY47: N/A | BZ47: N/A | CA47: N/A | CB47: N/A | CC47: N/A | CD47: N/A
B48: Contaminated (E. coli detected in 100 mL) | C48: N/A | D48: N/A | E48: N/A | F48: N/A | G48: N/A | H48: N/A | I48: N/A | J48: N/A | K48: N/A | L48: N/A | M48: N/A | N48: N/A | O48: N/A | P48: N/A | Q48: N/A | R48: N/A | S48: N/A | T48: N/A | U48: N/A | V48: N/A | W48: N/A | X48: N/A | Y48: N/A | Z48: N/A | AA48: N/A | AB48: N/A | AC48: N/A | AD48: N/A | BB48: Contaminated (E. coli detected in 100 mL) | BC48: N/A | BD48: N/A | BE48: N/A | BF48: N/A | BG48: N/A | BH48: N/A | BI48: N/A | BJ48: N/A | BK48: N/A | BL48: N/A | BM48: N/A | BN48: N/A | BO48: N/A | BP48: N/A | BQ48: N/A | BR48: N/A | BS48: N/A | BT48: N/A | BU48: N/A | BV48: N/A | BW48: N/A | BX48: N/A | BY48: N/A | BZ48: N/A | CA48: N/A | CB48: N/A | CC48: N/A | CD48: N/A
B49: Highly contaminated (>100 CFU/100 mL) | C49: N/A | D49: N/A | E49: N/A | F49: N/A | G49: N/A | H49: N/A | I49: N/A | J49: N/A | K49: N/A | L49: N/A | M49: N/A | N49: N/A | O49: N/A | P49: N/A | Q49: N/A | R49: N/A | S49: N/A | T49: N/A | U49: N/A | V49: N/A | W49: N/A | X49: N/A | Y49: N/A | Z49: N/A | AA49: N/A | AB49: N/A | AC49: N/A | AD49: N/A | BB49: Highly contaminated (>100 CFU/100 mL) | BC49: N/A | BD49: N/A | BE49: N/A | BF49: N/A | BG49: N/A | BH49: N/A | BI49: N/A | BJ49: N/A | BK49: N/A | BL49: N/A | BM49: N/A | BN49: N/A | BO49: N/A | BP49: N/A | BQ49: N/A | BR49: N/A | BS49: N/A | BT49: N/A | BU49: N/A | BV49: N/A | BW49: N/A | BX49: N/A | BY49: N/A | BZ49: N/A | CA49: N/A | CB49: N/A | CC49: N/A | CD49: N/A
A50: Microbiological quality of improved water sources at point of collection | B50: Not contaminated (No E. coli in 100 mL) | C50: N/A | D50: N/A | E50: N/A | F50: N/A | G50: N/A | H50: N/A | I50: N/A | J50: N/A | K50: N/A | L50: N/A | M50: N/A | N50: N/A | O50: N/A | P50: N/A | Q50: N/A | R50: N/A | S50: N/A | T50: N/A | U50: N/A | V50: N/A | W50: N/A | X50: N/A | Y50: N/A | Z50: N/A | AA50: N/A | AB50: N/A | AC50: N/A | AD50: N/A | BA50: Microbiological quality of improved water sources at point of collection | BB50: Not contaminated (No E. coli in 100 mL) | BC50: N/A | BD50: N/A | BE50: N/A | BF50: N/A | BG50: N/A | BH50: N/A | BI50: N/A | BJ50: N/A | BK50: N/A | BL50: N/A | BM50: N/A | BN50: N/A | BO50: N/A | BP50: N/A | BQ50: N/A | BR50: N/A | BS50: N/A | BT50: N/A | BU50: N/A | BV50: N/A | BW50: N/A | BX50: N/A | BY50: N/A | BZ50: N/A | CA50: N/A | CB50: N/A | CC50: N/A | CD50: N/A
B51: Contaminated (E. coli detected in 100 mL) | C51: N/A | D51: N/A | E51: N/A | F51: N/A | G51: N/A | H51: N/A | I51: N/A | J51: N/A | K51: N/A | L51: N/A | M51: N/A | N51: N/A | O51: N/A | P51: N/A | Q51: N/A | R51: N/A | S51: N/A | T51: N/A | U51: N/A | V51: N/A | W51: N/A | X51: N/A | Y51: N/A | Z51: N/A | AA51: N/A | AB51: N/A | AC51: N/A | AD51: N/A | BB51: Contaminated (E. coli detected in 100 mL) | BC51: N/A | BD51: N/A | BE51: N/A | BF51: N/A | BG51: N/A | BH51: N/A | BI51: N/A | BJ51: N/A | BK51: N/A | BL51: N/A | BM51: N/A | BN51: N/A | BO51: N/A | BP51: N/A | BQ51: N/A | BR51: N/A | BS51: N/A | BT51: N/A | BU51: N/A | BV51: N/A | BW51: N/A | BX51: N/A | BY51: N/A | BZ51: N/A | CA51: N/A | CB51: N/A | CC51: N/A | CD51: N/A
B52: Highly contaminated (>100 CFU/100 mL) | C52: N/A | D52: N/A | E52: N/A | F52: N/A | G52: N/A | H52: N/A | I52: N/A | J52: N/A | K52: N/A | L52: N/A | M52: N/A | N52: N/A | O52: N/A | P52: N/A | Q52: N/A | R52: N/A | S52: N/A | T52: N/A | U52: N/A | V52: N/A | W52: N/A | X52: N/A | Y52: N/A | Z52: N/A | AA52: N/A | AB52: N/A | AC52: N/A | AD52: N/A | BB52: Highly contaminated (>100 CFU/100 mL) | BC52: N/A | BD52: N/A | BE52: N/A | BF52: N/A | BG52: N/A | BH52: N/A | BI52: N/A | BJ52: N/A | BK52: N/A | BL52: N/A | BM52: N/A | BN52: N/A | BO52: N/A | BP52: N/A | BQ52: N/A | BR52: N/A | BS52: N/A | BT52: N/A | BU52: N/A | BV52: N/A | BW52: N/A | BX52: N/A | BY52: N/A | BZ52: N/A | CA52: N/A | CB52: N/A | CC52: N/A | CD52: N/A
A53: Microbiological quality of piped on premises at point of collection | B53: Not contaminated (No E. coli in 100 mL) | C53: N/A | D53: N/A | E53: N/A | F53: N/A | G53: N/A | H53: N/A | I53: N/A | J53: N/A | K53: N/A | L53: N/A | M53: N/A | N53: N/A | O53: N/A | P53: N/A | Q53: N/A | R53: N/A | S53: N/A | T53: N/A | U53: N/A | V53: N/A | W53: N/A | X53: N/A | Y53: N/A | Z53: N/A | AA53: N/A | AB53: N/A | AC53: N/A | AD53: N/A | BA53: Microbiological quality of piped on premises at point of collection | BB53: Not contaminated (No E. coli in 100 mL) | BC53: N/A | BD53: N/A | BE53: N/A | BF53: N/A | BG53: N/A | BH53: N/A | BI53: N/A | BJ53: N/A | BK53: N/A | BL53: N/A | BM53: N/A | BN53: N/A | BO53: N/A | BP53: N/A | BQ53: N/A | BR53: N/A | BS53: N/A | BT53: N/A | BU53: N/A | BV53: N/A | BW53: N/A | BX53: N/A | BY53: N/A | BZ53: N/A | CA53: N/A | CB53: N/A | CC53: N/A | CD53: N/A
B54: Contaminated (E. coli detected in 100 mL) | C54: N/A | D54: N/A | E54: N/A | F54: N/A | G54: N/A | H54: N/A | I54: N/A | J54: N/A | K54: N/A | L54: N/A | M54: N/A | N54: N/A | O54: N/A | P54: N/A | Q54: N/A | R54: N/A | S54: N/A | T54: N/A | U54: N/A | V54: N/A | W54: N/A | X54: N/A | Y54: N/A | Z54: N/A | AA54: N/A | AB54: N/A | AC54: N/A | AD54: N/A | BB54: Contaminated (E. coli detected in 100 mL) | BC54: N/A | BD54: N/A | BE54: N/A | BF54: N/A | BG54: N/A | BH54: N/A | BI54: N/A | BJ54: N/A | BK54: N/A | BL54: N/A | BM54: N/A | BN54: N/A | BO54: N/A | BP54: N/A | BQ54: N/A | BR54: N/A | BS54: N/A | BT54: N/A | BU54: N/A | BV54: N/A | BW54: N/A | BX54: N/A | BY54: N/A | BZ54: N/A | CA54: N/A | CB54: N/A | CC54: N/A | CD54: N/A
B55: Highly contaminated (>100 CFU/100 mL) | C55: N/A | D55: N/A | E55: N/A | F55: N/A | G55: N/A | H55: N/A | I55: N/A | J55: N/A | K55: N/A | L55: N/A | M55: N/A | N55: N/A | O55: N/A | P55: N/A | Q55: N/A | R55: N/A | S55: N/A | T55: N/A | U55: N/A | V55: N/A | W55: N/A | X55: N/A | Y55: N/A | Z55: N/A | AA55: N/A | AB55: N/A | AC55: N/A | AD55: N/A | BB55: Highly contaminated (>100 CFU/100 mL) | BC55: N/A | BD55: N/A | BE55: N/A | BF55: N/A | BG55: N/A | BH55: N/A | BI55: N/A | BJ55: N/A | BK55: N/A | BL55: N/A | BM55: N/A | BN55: N/A | BO55: N/A | BP55: N/A | BQ55: N/A | BR55: N/A | BS55: N/A | BT55: N/A | BU55: N/A | BV55: N/A | BW55: N/A | BX55: N/A | BY55: N/A | BZ55: N/A | CA55: N/A | CB55: N/A | CC55: N/A | CD55: N/A
C56: NATIONAL wealth index quintile | H56: URBAN wealth index quintile | M56: RURAL wealth index quintile | R56: SUB-REGIONS: | BA56: Raw numbers of respondents: | BB56: Use of drinking water sources | BC56: NATIONAL wealth index quintile | BH56: URBAN wealth index quintile | BM56: RURAL wealth index quintile | BR56: SUB-REGIONS:
A57: Percentage based on weighted population | C57: Poorest | D57: Poor | E57: Middle | F57: Rich | G57: Richest | H57: Poorest | I57: Poor | J57: Middle | K57: Rich | L57: Richest | M57: Poorest | N57: Poor | O57: Middle | P57: Rich | Q57: Richest | R57: Caprivi | S57: Erongo | T57: Hardap | U57: Karas | V57: Kavango | W57: Khomas | X57: Kunene | Y57: Ohangwena | Z57: Omaheke | AA57: Omusati | AB57: Oshana | AC57: Oshikoto | AD57: Otjozondjupa | BA57: Water data, raw numbers (weighted) | BC57: Poorest | BD57: Poor | BE57: Middle | BF57: Rich | BG57: Richest | BH57: Poorest | BI57: Poor | BJ57: Middle | BK57: Rich | BL57: Richest | BM57: Poorest | BN57: Poor | BO57: Middle | BP57: Rich | BQ57: Richest | BR57: Caprivi | BS57: Erongo | BT57: Hardap | BU57: Karas | BV57: Kavango | BW57: Khomas | BX57: Kunene | BY57: Ohangwena | BZ57: Omaheke | CA57: Omusati | CB57: Oshana | CC57: Oshikoto | CD57: Otjozondjupa
A58: Source of drinking water | B58: Piped into dwelling | C58: 1.029219567 | D58: 1.328959986 | E58: 4.409228949 | F58: 31.29817629 | G58: 81.5004543 | H58: 12.07298685 | I58: 38.95054625 | J58: 67.11039476 | K58: 82.27231664 | L58: 90.01189058 | M58: 0.1228295524 | N58: 0.8977966683 | O58: 1.568211647 | P58: 2.90762301 | Q58: 29.11748478 | R58: 4.239720873 | S58: 85.83128026 | T58: 46.28627868 | U58: 62.76689663 | V58: 8.074322283 | W58: 51.65946401 | X58: 28.34088307 | Y58: 0.2774690296 | Z58: 10.16143293 | AA58: 1.027051424 | AB58: 11.46710894 | AC58: 20.2344171 | AD58: 32.50184327
B59: Piped into yard/plot | C59: 4.698110505 | D59: 3.918834151 | E59: 13.91655401 | F59: 29.48995682 | G59: 16.88678835 | H59: 19.46871485 | I59: 30.53308849 | J59: 29.33663601 | K59: 17.5482398 | L59: 9.558766853 | M59: 3.849659362 | N59: 3.505318016 | O59: 3.721436078 | P59: 12.52431272 | Q59: 26.83800215 | R59: 1.447848638 | S59: 14.16871974 | T59: 28.65439413 | U59: 27.15583784 | V59: 13.28310248 | W59: 19.43163042 | X59: 14.9602547 | Y59: 1.445683766 | Z59: 38.78455699 | AA59: 2.579058791 | AB59: 8.744494793 | AC59: 7.486482921 | AD59: 34.85843879
B60: Public tap | C60: 22.13226858 | D60: 26.97893054 | E60: 31.01478338 | F60: 23.11299252 | G60: 0.9327022079 | H60: 60.75133608 | I60: 28.10159796 | J60: 3.351766283 | K60: 0.1794435614 | L60: 0.4293425666 | M60: 17.66669738 | N60: 28.00425061 | O60: 23.77000273 | P60: 24.26854754 | Q60: 16.0076132 | R60: 18.44903517 | S60: 0 | T60: 15.68594556 | U60: 4.584054889 | V60: 22.89517107 | W60: 20.92202464 | X60: 12.6737041 | Y60: 19.3221732 | Z60: 16.44181725 | AA60: 16.09594538 | AB60: 35.2269992 | AC60: 36.34760291 | AD60: 21.52093169
B61: Open dug well | C61: 18.3574241 | D61: 23.63306613 | E61: 19.39278675 | F61: 2.914798438 | G61: 0 | H61: 0.1637100077 | I61: 0 | J61: 0 | K61: 0 | L61: 0 | M61: 20.47226093 | N61: 19.78267931 | O61: 27.34895059 | P61: 22.71518065 | Q61: 5.691929953 | R61: 3.26088023 | S61: 0 | T61: 0 | U61: 0 | V61: 2.44236365 | W61: 0.9825095722 | X61: 6.760531821 | Y61: 30.46262051 | Z61: 1.544124029 | AA61: 30.57872313 | AB61: 19.06395287 | AC61: 27.51853468 | AD61: 0
B62: Open spring | C62: 2.236824174 | D62: 3.205394086 | E62: 1.375582024 | F62: 0.7183213266 | G62: 0.1188278383 | H62: 0 | I62: 0 | J62: 0 | K62: 0 | L62: 0 | M62: 2.662713087 | N62: 2.373989715 | O62: 3.44210153 | P62: 1.630095263 | Q62: 1.312914456 | R62: 0.7765877918 | S62: 0 | T62: 0 | U62: 0.05355789304 | V62: 0 | W62: 1.213688295 | X62: 0.7769516725 | Y62: 3.199654552 | Z62: 0.2224658188 | AA62: 4.482462491 | AB62: 0 | AC62: 3.531780145 | AD62: 0.04432960674
B63: Borehole with pump | C63: 16.37373671 | D63: 6.715945354 | E63: 4.359517586 | F63: 2.73337594 | G63: 0.187152531 | H63: 0.2034682725 | I63: 0 | J63: 0 | K63: 0 | L63: 0 | M63: 17.85030769 | N63: 10.45681391 | O63: 6.579331863 | P63: 5.879770909 | Q63: 4.80693284 | R63: 50.33071725 | S63: 0 | T63: 3.826121699 | U63: 4.789814927 | V63: 8.125080019 | W63: 0.0295685962 | X63: 18.86359746 | Y63: 3.928475146 | Z63: 19.78397628 | AA63: 0.9492377282 | AB63: 0 | AC63: 1.719432197 | AD63: 5.103970138
B64: Protected dug well | C64: 2.405100649 | D64: 0.7487151605 | E64: 0.7664547361 | F64: 0.1223251368 | G64: 0.02574711463 | H64: 0 | I64: 0 | J64: 0 | K64: 0 | L64: 0 | M64: 3.336092091 | N64: 0.9392707007 | O64: 0.5732310914 | P64: 0.9047257166 | Q64: 0.3757743446 | R64: 1.734017409 | S64: 0 | T64: 0.267820882 | U64: 0 | V64: 0.1322353073 | W64: 0 | X64: 2.033972367 | Y64: 3.003439295 | Z64: 0.3416661696 | AA64: 1.451306163 | AB64: 0 | AC64: 0.6845664603 | AD64: 0.1123027643
B65: Spring | C65: 0.4745069967 | D65: 0.2192451909 | E65: 0.1808730684 | F65: 0.3181248327 | G65: 0 | H65: 0 | I65: 0 | J65: 0 | K65: 0 | L65: 0 | M65: 0.3226900103 | N65: 0.5298106496 | O65: 0.1913644555 | P65: 0.2717213492 | Q65: 0.4753527825 | R65: 0.357888093 | S65: 0 | T65: 0 | U65: 0 | V65: 0 | W65: 0.5201521265 | X65: 0.259821904 | Y65: 0.8243932914 | Z65: 0 | AA65: 0.2056667415 | AB65: 0 | AC65: 0 | AD65: 0.1329888202
B66: River, stream, pond, lake | C66: 15.46277283 | D66: 8.731835021 | E66: 4.270180922 | F66: 3.524120737 | G66: 0 | H66: 0 | I66: 0 | J66: 0 | K66: 0 | L66: 0 | M66: 16.53569327 | N66: 14.89339145 | O66: 5.879444422 | P66: 4.799610631 | Q66: 5.910296504 | R66: 16.62086053 | S66: 0 | T66: 0.392411183 | U66: 0.1557883224 | V66: 41.53627797 | W66: 4.04562765 | X66: 8.735081598 | Y66: 1.160767394 | Z66: 0.9775160253 | AA66: 7.367902204 | AB66: 0.3306189231 | AC66: 0.7286121312 | AD66: 0.6206144944
B67: Rainwater | C67: 13.66648228 | D67: 22.82424721 | E67: 17.39456402 | F67: 3.651207884 | G67: 0.2832922716 | H67: 0.3663554901 | I67: 0 | J67: 0 | K67: 0 | L67: 0 | M67: 14.43340418 | N67: 16.26501482 | O67: 25.50204848 | P67: 22.07528573 | Q67: 7.823433001 | R67: 0.3190903404 | S67: 0 | T67: 0.7315633259 | U67: 0 | V67: 0 | W67: 0 | X67: 1.181828367 | Y67: 35.71826423 | Z67: 0 | AA67: 34.43887882 | AB67: 23.97027334 | AC67: 1.690383697 | AD67: 1.275212089
B68: Tanker truck | C68: 0.499059825 | D68: 0.07945950022 | E68: 0.1374551882 | F68: 0.09848719027 | G68: 0 | H68: 0 | I68: 0.1482328833 | J68: 0 | K68: 0 | L68: 0 | M68: 0.6210169859 | N68: 0.2546466569 | O68: 0 | P68: 0.1298421315 | Q68: 0.1501548845 | R68: 1.288397135 | S68: 0 | T68: 0.3752980933 | U68: 0.09671528728 | V68: 0 | W68: 0 | X68: 0.5517659667 | Y68: 0 | Z68: 1.056181034 | AA68: 0.1308788355 | AB68: 0.09724709743 | AC68: 0 | AD68: 0
B69: Bottled water | C69: 0.01425160231 | D69: 0.00370231445 | E69: 0.1871620573 | F69: 0.05713605275 | G69: 0 | H69: 0.1443727575 | I69: 0 | J69: 0 | K69: 0 | L69: 0 | M69: 0 | N69: 0 | O69: 0 | P69: 0.2367014807 | Q69: 0.08537460412 | R69: 0 | S69: 0 | T69: 0 | U69: 0.397334208 | V69: 0 | W69: 0 | X69: 0.194440489 | Y69: 0 | Z69: 1.00165842 | AA69: 0 | AB69: 0 | AC69: 0 | AD69: 0
B70: Other | C70: 2.650242183 | D70: 1.611665358 | E70: 2.594857307 | F70: 1.960976836 | G70: 0.06503538018 | H70: 6.829055704 | I70: 2.266534415 | J70: 0.2012029398 | K70: 0 | L70: 0 | M70: 2.126635463 | N70: 2.097017495 | O70: 1.423877119 | P70: 1.656582865 | Q70: 1.404736497 | R70: 1.174956544 | S70: 0 | T70: 3.780166443 | U70: 0 | V70: 3.51144722 | W70: 1.195334691 | X70: 4.667166484 | Y70: 0.6570595838 | Z70: 9.684605056 | AA70: 0.692888283 | AB70: 1.099304839 | AC70: 0.05818775472 | AD70: 3.829368333
A108: =A1026 -> Namibia
A109: =A1034 -> 2000
A110: Use of sanitation facilities
A111: by wealth quintile and sub-national region
A112: Notes:
A113: WHO/UNICEF JMP customised wealth index excludes water,
A114: sanitation and hygiene assets.
A115: Survey used for analysis: | B115: =A1025 -> DHS00
A116: =B1030 -> Ratio of Improved latrines based on: | B116: DHS07
A117: =B1029 -> Ratio of Shared improved based on: | B117: DHS07
A120: Use of sanitation facilities | C120: NATIONAL wealth index quintile | H120: URBAN wealth index quintile | M120: RURAL wealth index quintile | R120: SUB-REGIONS: | BA120: Raw numbers of respondents: | BB120: Use of sanitation facilities | BC120: NATIONAL wealth index quintile | BH120: URBAN wealth index quintile | BM120: RURAL wealth index quintile | BR120: SUB-REGIONS:
A121: Weighted percentage (used in graphs) | C121: Poorest | D121: Poor | E121: Middle | F121: Rich | G121: Richest | H121: Poorest | I121: Poor | J121: Middle | K121: Rich | L121: Richest | M121: Poorest | N121: Poor | O121: Middle | P121: Rich | Q121: Richest | R121: Caprivi | S121: Erongo | T121: Hardap | U121: Karas | V121: Kavango | W121: Khomas | X121: Kunene | Y121: Ohangwena | Z121: Omaheke | AA121: Omusati | AB121: Oshana | AC121: Oshikoto | AD121: Otjozondjupa | BA121: Sanitation data, raw numbers (weighted) | BC121: Poorest | BD121: Poor | BE121: Middle | BF121: Rich | BG121: Richest | BH121: Poorest | BI121: Poor | BJ121: Middle | BK121: Rich | BL121: Richest | BM121: Poorest | BN121: Poor | BO121: Middle | BP121: Rich | BQ121: Richest | BR121: Caprivi | BS121: Erongo | BT121: Hardap | BU121: Karas | BV121: Kavango | BW121: Khomas | BX121: Kunene | BY121: Ohangwena | BZ121: Omaheke | CA121: Omusati | CB121: Oshana | CC121: Oshikoto | CD121: Otjozondjupa
A122: Sanitation | B122: Improved | C122: =C153+C154+C156+C155*'DHS07'!C130/100 -> 1.931636784 | D122: =D153+D154+D156+D155*'DHS07'!D130/100 -> 5.042659589 | E122: =E153+E154+E156+E155*'DHS07'!E130/100 -> 18.66790097 | F122: =F153+F154+F156+F155*'DHS07'!F130/100 -> 59.64598959 | G122: =G153+G154+G156+G155*'DHS07'!G130/100 -> 98.52975497 | H122: =H153+H154+H156+H155*'DHS07'!H130/100 -> 37.08907305 | I122: =I153+I154+I156+I155*'DHS07'!I130/100 -> 74.8185597 | J122: =J153+J154+J156+J155*'DHS07'!J130/100 -> 97.95852771 | K122: =K153+K154+K156+K155*'DHS07'!K130/100 -> 99.67969838 | L122: =L153+L154+L156+L155*'DHS07'!L130/100 -> 100 | M122: =M153+M154+M156+M155*'DHS07'!M130/100 -> 0.8685157667 | N122: =N153+N154+N156+N155*'DHS07'!N130/100 -> 2.777208324 | O122: =O153+O154+O156+O155*'DHS07'!O130/100 -> 6.110009599 | P122: =P153+P154+P156+P155*'DHS07'!P130/100 -> 12.57927516 | Q122: =Q153+Q154+Q156+Q155*'DHS07'!Q130/100 -> 49.60292241 | R122: =R153+R154+R156+R155*'DHS07'!R130/100 -> 4.849499226 | S122: =S153+S154+S156+S155*'DHS07'!S130/100 -> 99.57230017 | T122: =T153+T154+T156+T155*'DHS07'!T130/100 -> 62.43767748 | U122: =U153+U154+U156+U155*'DHS07'!U130/100 -> 81.54623273 | V122: =V153+V154+V156+V155*'DHS07'!V130/100 -> 16.2426442 | W122: =W153+W154+W156+W155*'DHS07'!W130/100 -> 77.05291884 | X122: =X153+X154+X156+X155*'DHS07'!X130/100 -> 34.33659473 | Y122: =Y153+Y154+Y156+Y155*'DHS07'!Y130/100 -> 0.6791467151 | Z122: =Z153+Z154+Z156+Z155*'DHS07'!Z130/100 -> 18.57788687 | AA122: =AA153+AA154+AA156+AA155*'DHS07'!AA130/100 -> 11.13979308 | AB122: =AB153+AB154+AB156+AB155*'DHS07'!AB130/100 -> 30.24128216 | AC122: =AC153+AC154+AC156+AC155*'DHS07'!AC130/100 -> 32.45205572 | AD122: =AD153+AD154+AD156+AD155*'DHS07'!AD130/100 -> 50.47486499 | BA122: Sanitation | BB122: Improved | BC122: N/A | BD122: N/A | BE122: N/A | BF122: N/A | BG122: N/A | BH122: N/A | BI122: N/A | BJ122: N/A | BK122: N/A | BL122: N/A | BM122: N/A | BN122: N/A | BO122: N/A | BP122: N/A | BQ122: N/A | BR122: N/A | BS122: N/A | BT122: N/A | BU122: N/A | BV122: N/A | BW122: N/A | BX122: N/A | BY122: N/A | BZ122: N/A | CA122: N/A | CB122: N/A | CC122: N/A | CD122: N/A
B123: Not Improved | C123: =100-C122 -> 98.06836322 | D123: =100-D122 -> 94.95734041 | E123: 81.33209903 | F123: 40.35401041 | G123: 1.470245027 | H123: 62.91092695 | I123: 25.1814403 | J123: 2.041472291 | K123: 0.320301623 | L123: 0 | M123: 99.13148423 | N123: 97.22279168 | O123: 93.8899904 | P123: 87.42072484 | Q123: 50.39707759 | R123: 95.15050077 | S123: 0.4276998297 | T123: 37.56232252 | U123: 18.45376727 | V123: 83.7573558 | W123: 22.94708116 | X123: 65.66340527 | Y123: 99.32085328 | Z123: 81.42211313 | AA123: 88.86020692 | AB123: 69.75871784 | AC123: 67.54794428 | AD123: 49.52513501 | BB123: Not Improved | BC123: N/A | BD123: N/A | BE123: N/A | BF123: N/A | BG123: N/A | BH123: N/A | BI123: N/A | BJ123: N/A | BK123: N/A | BL123: N/A | BM123: N/A | BN123: N/A | BO123: N/A | BP123: N/A | BQ123: N/A | BR123: N/A | BS123: N/A | BT123: N/A | BU123: N/A | BV123: N/A | BW123: N/A | BX123: N/A | BY123: N/A | BZ123: N/A | CA123: N/A | CB123: N/A | CC123: N/A | CD123: N/A
A124: Sanitation ladder | B124: Basic | C124: =C122*'DHS07'!C129/100 -> 1.274303088 | D124: =D122*'DHS07'!D129/100 -> 4.189025592 | E124: =E122*'DHS07'!E129/100 -> 11.74495787 | F124: =F122*'DHS07'!F129/100 -> 42.1972449 | G124: =G122*'DHS07'!G129/100 -> 88.25419075 | H124: =H122*'DHS07'!H129/100 -> 16.61995538 | I124: =I122*'DHS07'!I129/100 -> 42.77828426 | J124: =J122*'DHS07'!J129/100 -> 74.71364721 | K124: =K122*'DHS07'!K129/100 -> 86.43091804 | L124: =L122*'DHS07'!L129/100 -> 94.62799022 | M124: =M122*'DHS07'!M129/100 -> 0.6039167897 | N124: =N122*'DHS07'!N129/100 -> 2.20799045 | O124: =O122*'DHS07'!O129/100 -> 5.325380006 | P124: =P122*'DHS07'!P129/100 -> 10.2393014 | Q124: =Q122*'DHS07'!Q129/100 -> 42.98632674 | R124: =R122*'DHS07'!R129/100 -> 3.798204681 | S124: =S122*'DHS07'!S129/100 -> 66.46253486 | T124: =T122*'DHS07'!T129/100 -> 58.02140581 | U124: =U122*'DHS07'!U129/100 -> 64.80032522 | V124: =V122*'DHS07'!V129/100 -> 14.08234675 | W124: =W122*'DHS07'!W129/100 -> 59.45512715 | X124: =X122*'DHS07'!X129/100 -> 27.67461294 | Y124: =Y122*'DHS07'!Y129/100 -> 0.6195889415 | Z124: =Z122*'DHS07'!Z129/100 -> 16.71012729 | AA124: =AA122*'DHS07'!AA129/100 -> 9.780869912 | AB124: =AB122*'DHS07'!AB129/100 -> 23.34230471 | AC124: =AC122*'DHS07'!AC129/100 -> 27.15487122 | AD124: =AD122*'DHS07'!AD129/100 -> 42.16890281 | BA124: Sanitation ladder | BB124: Basic | BC124: N/A | BD124: N/A | BE124: N/A | BF124: N/A | BG124: N/A | BH124: N/A | BI124: N/A | BJ124: N/A | BK124: N/A | BL124: N/A | BM124: N/A | BN124: N/A | BO124: N/A | BP124: N/A | BQ124: N/A | BR124: N/A | BS124: N/A | BT124: N/A | BU124: N/A | BV124: N/A | BW124: N/A | BX124: N/A | BY124: N/A | BZ124: N/A | CA124: N/A | CB124: N/A | CC124: N/A | CD124: N/A
B125: Limited | C125: =C122*'DHS07'!C128/100 -> 0.657333696 | D125: =D122*'DHS07'!D128/100 -> 0.8536339966 | E125: =E122*'DHS07'!E128/100 -> 6.922943103 | F125: =F122*'DHS07'!F128/100 -> 17.44874469 | G125: =G122*'DHS07'!G128/100 -> 10.27556422 | H125: =H122*'DHS07'!H128/100 -> 20.46911767 | I125: =I122*'DHS07'!I128/100 -> 32.04027544 | J125: =J122*'DHS07'!J128/100 -> 23.2448805 | K125: =K122*'DHS07'!K128/100 -> 13.24878033 | L125: =L122*'DHS07'!L128/100 -> 5.372009775 | M125: =M122*'DHS07'!M128/100 -> 0.264598977 | N125: =N122*'DHS07'!N128/100 -> 0.5692178737 | O125: =O122*'DHS07'!O128/100 -> 0.7846295921 | P125: =P122*'DHS07'!P128/100 -> 2.339973761 | Q125: =Q122*'DHS07'!Q128/100 -> 6.616595671 | R125: =R122*'DHS07'!R128/100 -> 1.051294545 | S125: =S122*'DHS07'!S128/100 -> 33.10976531 | T125: =T122*'DHS07'!T128/100 -> 4.416271668 | U125: =U122*'DHS07'!U128/100 -> 16.7459075 | V125: =V122*'DHS07'!V128/100 -> 2.160297453 | W125: =W122*'DHS07'!W128/100 -> 17.59779169 | X125: =X122*'DHS07'!X128/100 -> 6.661981796 | Y125: =Y122*'DHS07'!Y128/100 -> 0.05955777355 | Z125: =Z122*'DHS07'!Z128/100 -> 1.867759579 | AA125: =AA122*'DHS07'!AA128/100 -> 1.358923168 | AB125: =AB122*'DHS07'!AB128/100 -> 6.898977442 | AC125: =AC122*'DHS07'!AC128/100 -> 5.2971845 | AD125: =AD122*'DHS07'!AD128/100 -> 8.305962185 | BB125: Limited | BC125: N/A | BD125: N/A | BE125: N/A | BF125: N/A | BG125: N/A | BH125: N/A | BI125: N/A | BJ125: N/A | BK125: N/A | BL125: N/A | BM125: N/A | BN125: N/A | BO125: N/A | BP125: N/A | BQ125: N/A | BR125: N/A | BS125: N/A | BT125: N/A | BU125: N/A | BV125: N/A | BW125: N/A | BX125: N/A | BY125: N/A | BZ125: N/A | CA125: N/A | CB125: N/A | CC125: N/A | CD125: N/A
B126: Unimproved | C126: =100-(C124+C125+C127) -> 3.07534593 | D126: =100-(D124+D125+D127) -> 6.431422657 | E126: 10.16140983 | F126: 12.32013019 | G126: 1.065045995 | H126: 22.1692884 | I126: 10.48120571 | J126: 1.26623539 | K126: 0.320301623 | L126: 0 | M126: 1.643084657 | N126: 3.061455824 | O126: 6.396771117 | P126: 8.468354456 | Q126: 12.45444138 | R126: 0 | S126: 0 | T126: 13.96637901 | U126: 9.796737716 | V126: 10.94128117 | W126: 7.890088097 | X126: 3.15755314 | Y126: 6.621449656 | Z126: 1.117821284 | AA126: 4.766310115 | AB126: 15.35867195 | AC126: 4.374025213 | AD126: 1.817458926 | BB126: Unimproved | BC126: N/A | BD126: N/A | BE126: N/A | BF126: N/A | BG126: N/A | BH126: N/A | BI126: N/A | BJ126: N/A | BK126: N/A | BL126: N/A | BM126: N/A | BN126: N/A | BO126: N/A | BP126: N/A | BQ126: N/A | BR126: N/A | BS126: N/A | BT126: N/A | BU126: N/A | BV126: N/A | BW126: N/A | BX126: N/A | BY126: N/A | BZ126: N/A | CA126: N/A | CB126: N/A | CC126: N/A | CD126: N/A
B127: Open defecation | C127: =C158 -> 94.99301729 | D127: =D158 -> 88.52591775 | E127: 71.17068919 | F127: 28.03388023 | G127: 0.4051990321 | H127: 40.74163855 | I127: 14.70023459 | J127: 0.7752369001 | K127: 0 | L127: 0 | M127: 97.48839958 | N127: 94.16133585 | O127: 87.49321928 | P127: 78.95237038 | Q127: 37.9426362 | R127: 95.15050077 | S127: 0.4276998297 | T127: 23.59594351 | U127: 8.657029558 | V127: 72.81607463 | W127: 15.05699306 | X127: 62.50585213 | Y127: 92.69940363 | Z127: 80.30429185 | AA127: 84.09389681 | AB127: 54.40004589 | AC127: 63.17391907 | AD127: 47.70767608 | BB127: Open defecation | BC127: N/A | BD127: N/A | BE127: N/A | BF127: N/A | BG127: N/A | BH127: N/A | BI127: N/A | BJ127: N/A | BK127: N/A | BL127: N/A | BM127: N/A | BN127: N/A | BO127: N/A | BP127: N/A | BQ127: N/A | BR127: N/A | BS127: N/A | BT127: N/A | BU127: N/A | BV127: N/A | BW127: N/A | BX127: N/A | BY127: N/A | BZ127: N/A | CA127: N/A | CB127: N/A | CC127: N/A | CD127: N/A
A128: Shared among Improved Sanitation | B128: Yes | C128: N/A | D128: N/A | E128: N/A | F128: N/A | G128: N/A | H128: N/A | I128: N/A | J128: N/A | K128: N/A | L128: N/A | M128: N/A | N128: N/A | O128: N/A | P128: N/A | Q128: N/A | R128: N/A | S128: N/A | T128: N/A | U128: N/A | V128: N/A | W128: N/A | X128: N/A | Y128: N/A | Z128: N/A | AA128: N/A | AB128: N/A | AC128: N/A | AD128: N/A | BA128: Shared among improved sanitation facilities | BB128: Yes | BC128: N/A | BD128: N/A | BE128: N/A | BF128: N/A | BG128: N/A | BH128: N/A | BI128: N/A | BJ128: N/A | BK128: N/A | BL128: N/A | BM128: N/A | BN128: N/A | BO128: N/A | BP128: N/A | BQ128: N/A | BR128: N/A | BS128: N/A | BT128: N/A | BU128: N/A | BV128: N/A | BW128: N/A | BX128: N/A | BY128: N/A | BZ128: N/A | CA128: N/A | CB128: N/A | CC128: N/A | CD128: N/A
B129: No | C129: N/A | D129: N/A | E129: N/A | F129: N/A | G129: N/A | H129: N/A | I129: N/A | J129: N/A | K129: N/A | L129: N/A | M129: N/A | N129: N/A | O129: N/A | P129: N/A | Q129: N/A | R129: N/A | S129: N/A | T129: N/A | U129: N/A | V129: N/A | W129: N/A | X129: N/A | Y129: N/A | Z129: N/A | AA129: N/A | AB129: N/A | AC129: N/A | AD129: N/A | BB129: No | BC129: N/A | BD129: N/A | BE129: N/A | BF129: N/A | BG129: N/A | BH129: N/A | BI129: N/A | BJ129: N/A | BK129: N/A | BL129: N/A | BM129: N/A | BN129: N/A | BO129: N/A | BP129: N/A | BQ129: N/A | BR129: N/A | BS129: N/A | BT129: N/A | BU129: N/A | BV129: N/A | BW129: N/A | BX129: N/A | BY129: N/A | BZ129: N/A | CA129: N/A | CB129: N/A | CC129: N/A | CD129: N/A
A130: Manually calculated ratios | B130: Improved latrines
B131: Other
B132: Other
C133: NATIONAL wealth index quintile | H133: URBAN wealth index quintile | M133: RURAL wealth index quintile | R133: SUB-REGIONS: | BA133: Raw numbers of respondents: | BB133: Use of sanitation facilities | BC133: NATIONAL wealth index quintile | BH133: URBAN wealth index quintile | BM133: RURAL wealth index quintile | BR133: SUB-REGIONS:
A134: Percentage based on weighted population | C134: Poorest | D134: Poor | E134: Middle | F134: Rich | G134: Richest | H134: Poorest | I134: Poor | J134: Middle | K134: Rich | L134: Richest | M134: Poorest | N134: Poor | O134: Middle | P134: Rich | Q134: Richest | R134: Caprivi | S134: Erongo | T134: Hardap | U134: Karas | V134: Kavango | W134: Khomas | X134: Kunene | Y134: Ohangwena | Z134: Omaheke | AA134: Omusati | AB134: Oshana | AC134: Oshikoto | AD134: Otjozondjupa | BA134: Sanitation data, raw numbers (weighted) | BC134: Poorest | BD134: Poor | BE134: Middle | BF134: Rich | BG134: Richest | BH134: Poorest | BI134: Poor | BJ134: Middle | BK134: Rich | BL134: Richest | BM134: Poorest | BN134: Poor | BO134: Middle | BP134: Rich | BQ134: Richest | BR134: Caprivi | BS134: Erongo | BT134: Hardap | BU134: Karas | BV134: Kavango | BW134: Khomas | BX134: Kunene | BY134: Ohangwena | BZ134: Omaheke | CA134: Omusati | CB134: Oshana | CC134: Oshikoto | CD134: Otjozondjupa
A135: Sanitation type | B135: Sewer connection | C135: N/A | D135: N/A | E135: N/A | F135: N/A | G135: N/A | H135: N/A | I135: N/A | J135: N/A | K135: N/A | L135: N/A | M135: N/A | N135: N/A | O135: N/A | P135: N/A | Q135: N/A | R135: N/A | S135: N/A | T135: N/A | U135: N/A | V135: N/A | W135: N/A | X135: N/A | Y135: N/A | Z135: N/A | AA135: N/A | AB135: N/A | AC135: N/A | AD135: N/A | BA135: Sanitation type | BB135: Sewer connection | BC135: N/A | BD135: N/A | BE135: N/A | BF135: N/A | BG135: N/A | BH135: N/A | BI135: N/A | BJ135: N/A | BK135: N/A | BL135: N/A | BM135: N/A | BN135: N/A | BO135: N/A | BP135: N/A | BQ135: N/A | BR135: N/A | BS135: N/A | BT135: N/A | BU135: N/A | BV135: N/A | BW135: N/A | BX135: N/A | BY135: N/A | BZ135: N/A | CA135: N/A | CB135: N/A | CC135: N/A | CD135: N/A
B136: Septic tank connection | C136: N/A | D136: N/A | E136: N/A | F136: N/A | G136: N/A | H136: N/A | I136: N/A | J136: N/A | K136: N/A | L136: N/A | M136: N/A | N136: N/A | O136: N/A | P136: N/A | Q136: N/A | R136: N/A | S136: N/A | T136: N/A | U136: N/A | V136: N/A | W136: N/A | X136: N/A | Y136: N/A | Z136: N/A | AA136: N/A | AB136: N/A | AC136: N/A | AD136: N/A | BB136: Septic tank connection | BC136: N/A | BD136: N/A | BE136: N/A | BF136: N/A | BG136: N/A | BH136: N/A | BI136: N/A | BJ136: N/A | BK136: N/A | BL136: N/A | BM136: N/A | BN136: N/A | BO136: N/A | BP136: N/A | BQ136: N/A | BR136: N/A | BS136: N/A | BT136: N/A | BU136: N/A | BV136: N/A | BW136: N/A | BX136: N/A | BY136: N/A | BZ136: N/A | CA136: N/A | CB136: N/A | CC136: N/A | CD136: N/A
B137: Improved latrines | C137: N/A | D137: N/A | E137: N/A | F137: N/A | G137: N/A | H137: N/A | I137: N/A | J137: N/A | K137: N/A | L137: N/A | M137: N/A | N137: N/A | O137: N/A | P137: N/A | Q137: N/A | R137: N/A | S137: N/A | T137: N/A | U137: N/A | V137: N/A | W137: N/A | X137: N/A | Y137: N/A | Z137: N/A | AA137: N/A | AB137: N/A | AC137: N/A | AD137: N/A | BB137: Improved latrines | BC137: N/A | BD137: N/A | BE137: N/A | BF137: N/A | BG137: N/A | BH137: N/A | BI137: N/A | BJ137: N/A | BK137: N/A | BL137: N/A | BM137: N/A | BN137: N/A | BO137: N/A | BP137: N/A | BQ137: N/A | BR137: N/A | BS137: N/A | BT137: N/A | BU137: N/A | BV137: N/A | BW137: N/A | BX137: N/A | BY137: N/A | BZ137: N/A | CA137: N/A | CB137: N/A | CC137: N/A | CD137: N/A
B138: Unimproved facilities | C138: N/A | D138: N/A | E138: N/A | F138: N/A | G138: N/A | H138: N/A | I138: N/A | J138: N/A | K138: N/A | L138: N/A | M138: N/A | N138: N/A | O138: N/A | P138: N/A | Q138: N/A | R138: N/A | S138: N/A | T138: N/A | U138: N/A | V138: N/A | W138: N/A | X138: N/A | Y138: N/A | Z138: N/A | AA138: N/A | AB138: N/A | AC138: N/A | AD138: N/A | BB138: Unimproved facilities | BC138: N/A | BD138: N/A | BE138: N/A | BF138: N/A | BG138: N/A | BH138: N/A | BI138: N/A | BJ138: N/A | BK138: N/A | BL138: N/A | BM138: N/A | BN138: N/A | BO138: N/A | BP138: N/A | BQ138: N/A | BR138: N/A | BS138: N/A | BT138: N/A | BU138: N/A | BV138: N/A | BW138: N/A | BX138: N/A | BY138: N/A | BZ138: N/A | CA138: N/A | CB138: N/A | CC138: N/A | CD138: N/A
B139: Open defecation | C139: 94.83118658 | D139: 87.94760684 | E139: 70.5952901 | F139: 27.81069808 | G139: 0.4038382951 | H139: 40.62121829 | I139: 14.67018243 | J139: 0.7686450894 | K139: 0 | L139: 0 | M139: 97.40644157 | N139: 93.93697874 | O139: 86.71029561 | P139: 78.06505918 | Q139: 37.55115586 | R139: 94.47478293 | S139: 0.4265024819 | T139: 23.59594351 | U139: 8.649069207 | V139: 72.70890382 | W139: 15.02431453 | X139: 62.37252505 | Y139: 92.46696664 | Z139: 80.30429185 | AA139: 82.57905063 | AB139: 53.76051422 | AC139: 62.70159695 | AD139: 47.67708427 | BB139: Open defecation | BC139: N/A | BD139: N/A | BE139: N/A | BF139: N/A | BG139: N/A | BH139: N/A | BI139: N/A | BJ139: N/A | BK139: N/A | BL139: N/A | BM139: N/A | BN139: N/A | BO139: N/A | BP139: N/A | BQ139: N/A | BR139: N/A | BS139: N/A | BT139: N/A | BU139: N/A | BV139: N/A | BW139: N/A | BX139: N/A | BY139: N/A | BZ139: N/A | CA139: N/A | CB139: N/A | CC139: N/A | CD139: N/A
A140: Septic tank emptying practices | B140: Not emptied/treated and disposed in situ | C140: N/A | D140: N/A | E140: N/A | F140: N/A | G140: N/A | H140: N/A | I140: N/A | J140: N/A | K140: N/A | L140: N/A | M140: N/A | N140: N/A | O140: N/A | P140: N/A | Q140: N/A | R140: N/A | S140: N/A | T140: N/A | U140: N/A | V140: N/A | W140: N/A | X140: N/A | Y140: N/A | Z140: N/A | AA140: N/A | AB140: N/A | AC140: N/A | AD140: N/A | BA140: Septic tank emptying practices | BB140: Not emptied/treated and disposed in situ | BC140: N/A | BD140: N/A | BE140: N/A | BF140: N/A | BG140: N/A | BH140: N/A | BI140: N/A | BJ140: N/A | BK140: N/A | BL140: N/A | BM140: N/A | BN140: N/A | BO140: N/A | BP140: N/A | BQ140: N/A | BR140: N/A | BS140: N/A | BT140: N/A | BU140: N/A | BV140: N/A | BW140: N/A | BX140: N/A | BY140: N/A | BZ140: N/A | CA140: N/A | CB140: N/A | CC140: N/A | CD140: N/A
B141: Emptied and buried on site | C141: N/A | D141: N/A | E141: N/A | F141: N/A | G141: N/A | H141: N/A | I141: N/A | J141: N/A | K141: N/A | L141: N/A | M141: N/A | N141: N/A | O141: N/A | P141: N/A | Q141: N/A | R141: N/A | S141: N/A | T141: N/A | U141: N/A | V141: N/A | W141: N/A | X141: N/A | Y141: N/A | Z141: N/A | AA141: N/A | AB141: N/A | AC141: N/A | AD141: N/A | BB141: Emptied and buried on site | BC141: N/A | BD141: N/A | BE141: N/A | BF141: N/A | BG141: N/A | BH141: N/A | BI141: N/A | BJ141: N/A | BK141: N/A | BL141: N/A | BM141: N/A | BN141: N/A | BO141: N/A | BP141: N/A | BQ141: N/A | BR141: N/A | BS141: N/A | BT141: N/A | BU141: N/A | BV141: N/A | BW141: N/A | BX141: N/A | BY141: N/A | BZ141: N/A | CA141: N/A | CB141: N/A | CC141: N/A | CD141: N/A
B142: Emptied and discharged locally | C142: N/A | D142: N/A | E142: N/A | F142: N/A | G142: N/A | H142: N/A | I142: N/A | J142: N/A | K142: N/A | L142: N/A | M142: N/A | N142: N/A | O142: N/A | P142: N/A | Q142: N/A | R142: N/A | S142: N/A | T142: N/A | U142: N/A | V142: N/A | W142: N/A | X142: N/A | Y142: N/A | Z142: N/A | AA142: N/A | AB142: N/A | AC142: N/A | AD142: N/A | BB142: Emptied and discharged locally | BC142: N/A | BD142: N/A | BE142: N/A | BF142: N/A | BG142: N/A | BH142: N/A | BI142: N/A | BJ142: N/A | BK142: N/A | BL142: N/A | BM142: N/A | BN142: N/A | BO142: N/A | BP142: N/A | BQ142: N/A | BR142: N/A | BS142: N/A | BT142: N/A | BU142: N/A | BV142: N/A | BW142: N/A | BX142: N/A | BY142: N/A | BZ142: N/A | CA142: N/A | CB142: N/A | CC142: N/A | CD142: N/A
B143: Emptied and removed offsite | C143: N/A | D143: N/A | E143: N/A | F143: N/A | G143: N/A | H143: N/A | I143: N/A | J143: N/A | K143: N/A | L143: N/A | M143: N/A | N143: N/A | O143: N/A | P143: N/A | Q143: N/A | R143: N/A | S143: N/A | T143: N/A | U143: N/A | V143: N/A | W143: N/A | X143: N/A | Y143: N/A | Z143: N/A | AA143: N/A | AB143: N/A | AC143: N/A | AD143: N/A | BB143: Emptied and removed offsite | BC143: N/A | BD143: N/A | BE143: N/A | BF143: N/A | BG143: N/A | BH143: N/A | BI143: N/A | BJ143: N/A | BK143: N/A | BL143: N/A | BM143: N/A | BN143: N/A | BO143: N/A | BP143: N/A | BQ143: N/A | BR143: N/A | BS143: N/A | BT143: N/A | BU143: N/A | BV143: N/A | BW143: N/A | BX143: N/A | BY143: N/A | BZ143: N/A | CA143: N/A | CB143: N/A | CC143: N/A | CD143: N/A
A144: Latrine emptying practices | B144: Not emptied/treated and disposed in situ | C144: N/A | D144: N/A | E144: N/A | F144: N/A | G144: N/A | H144: N/A | I144: N/A | J144: N/A | K144: N/A | L144: N/A | M144: N/A | N144: N/A | O144: N/A | P144: N/A | Q144: N/A | R144: N/A | S144: N/A | T144: N/A | U144: N/A | V144: N/A | W144: N/A | X144: N/A | Y144: N/A | Z144: N/A | AA144: N/A | AB144: N/A | AC144: N/A | AD144: N/A | BA144: Latrine emptying practices | BB144: Not emptied/treated and disposed in situ | BC144: N/A | BD144: N/A | BE144: N/A | BF144: N/A | BG144: N/A | BH144: N/A | BI144: N/A | BJ144: N/A | BK144: N/A | BL144: N/A | BM144: N/A | BN144: N/A | BO144: N/A | BP144: N/A | BQ144: N/A | BR144: N/A | BS144: N/A | BT144: N/A | BU144: N/A | BV144: N/A | BW144: N/A | BX144: N/A | BY144: N/A | BZ144: N/A | CA144: N/A | CB144: N/A | CC144: N/A | CD144: N/A
B145: Emptied and buried on site | C145: N/A | D145: N/A | E145: N/A | F145: N/A | G145: N/A | H145: N/A | I145: N/A | J145: N/A | K145: N/A | L145: N/A | M145: N/A | N145: N/A | O145: N/A | P145: N/A | Q145: N/A | R145: N/A | S145: N/A | T145: N/A | U145: N/A | V145: N/A | W145: N/A | X145: N/A | Y145: N/A | Z145: N/A | AA145: N/A | AB145: N/A | AC145: N/A | AD145: N/A | BB145: Emptied and buried on site | BC145: N/A | BD145: N/A | BE145: N/A | BF145: N/A | BG145: N/A | BH145: N/A | BI145: N/A | BJ145: N/A | BK145: N/A | BL145: N/A | BM145: N/A | BN145: N/A | BO145: N/A | BP145: N/A | BQ145: N/A | BR145: N/A | BS145: N/A | BT145: N/A | BU145: N/A | BV145: N/A | BW145: N/A | BX145: N/A | BY145: N/A | BZ145: N/A | CA145: N/A | CB145: N/A | CC145: N/A | CD145: N/A
B146: Emptied and discharged locally | C146: N/A | D146: N/A | E146: N/A | F146: N/A | G146: N/A | H146: N/A | I146: N/A | J146: N/A | K146: N/A | L146: N/A | M146: N/A | N146: N/A | O146: N/A | P146: N/A | Q146: N/A | R146: N/A | S146: N/A | T146: N/A | U146: N/A | V146: N/A | W146: N/A | X146: N/A | Y146: N/A | Z146: N/A | AA146: N/A | AB146: N/A | AC146: N/A | AD146: N/A | BB146: Emptied and discharged locally | BC146: N/A | BD146: N/A | BE146: N/A | BF146: N/A | BG146: N/A | BH146: N/A | BI146: N/A | BJ146: N/A | BK146: N/A | BL146: N/A | BM146: N/A | BN146: N/A | BO146: N/A | BP146: N/A | BQ146: N/A | BR146: N/A | BS146: N/A | BT146: N/A | BU146: N/A | BV146: N/A | BW146: N/A | BX146: N/A | BY146: N/A | BZ146: N/A | CA146: N/A | CB146: N/A | CC146: N/A | CD146: N/A
B147: Emptied and removed offsite | C147: N/A | D147: N/A | E147: N/A | F147: N/A | G147: N/A | H147: N/A | I147: N/A | J147: N/A | K147: N/A | L147: N/A | M147: N/A | N147: N/A | O147: N/A | P147: N/A | Q147: N/A | R147: N/A | S147: N/A | T147: N/A | U147: N/A | V147: N/A | W147: N/A | X147: N/A | Y147: N/A | Z147: N/A | AA147: N/A | AB147: N/A | AC147: N/A | AD147: N/A | BB147: Emptied and removed offsite | BC147: N/A | BD147: N/A | BE147: N/A | BF147: N/A | BG147: N/A | BH147: N/A | BI147: N/A | BJ147: N/A | BK147: N/A | BL147: N/A | BM147: N/A | BN147: N/A | BO147: N/A | BP147: N/A | BQ147: N/A | BR147: N/A | BS147: N/A | BT147: N/A | BU147: N/A | BV147: N/A | BW147: N/A | BX147: N/A | BY147: N/A | BZ147: N/A | CA147: N/A | CB147: N/A | CC147: N/A | CD147: N/A
A148: Shared among improved sanitation facilities | B148: Yes | C148: N/A | D148: N/A | E148: N/A | F148: N/A | G148: N/A | H148: N/A | I148: N/A | J148: N/A | K148: N/A | L148: N/A | M148: N/A | N148: N/A | O148: N/A | P148: N/A | Q148: N/A | R148: N/A | S148: N/A | T148: N/A | U148: N/A | V148: N/A | W148: N/A | X148: N/A | Y148: N/A | Z148: N/A | AA148: N/A | AB148: N/A | AC148: N/A | AD148: N/A | BA148: Shared among improved sanitation facilities | BB148: Yes | BC148: N/A | BD148: N/A | BE148: N/A | BF148: N/A | BG148: N/A | BH148: N/A | BI148: N/A | BJ148: N/A | BK148: N/A | BL148: N/A | BM148: N/A | BN148: N/A | BO148: N/A | BP148: N/A | BQ148: N/A | BR148: N/A | BS148: N/A | BT148: N/A | BU148: N/A | BV148: N/A | BW148: N/A | BX148: N/A | BY148: N/A | BZ148: N/A | CA148: N/A | CB148: N/A | CC148: N/A | CD148: N/A
B149: No | C149: N/A | D149: N/A | E149: N/A | F149: N/A | G149: N/A | H149: N/A | I149: N/A | J149: N/A | K149: N/A | L149: N/A | M149: N/A | N149: N/A | O149: N/A | P149: N/A | Q149: N/A | R149: N/A | S149: N/A | T149: N/A | U149: N/A | V149: N/A | W149: N/A | X149: N/A | Y149: N/A | Z149: N/A | AA149: N/A | AB149: N/A | AC149: N/A | AD149: N/A | BB149: No | BC149: N/A | BD149: N/A | BE149: N/A | BF149: N/A | BG149: N/A | BH149: N/A | BI149: N/A | BJ149: N/A | BK149: N/A | BL149: N/A | BM149: N/A | BN149: N/A | BO149: N/A | BP149: N/A | BQ149: N/A | BR149: N/A | BS149: N/A | BT149: N/A | BU149: N/A | BV149: N/A | BW149: N/A | BX149: N/A | BY149: N/A | BZ149: N/A | CA149: N/A | CB149: N/A | CC149: N/A | CD149: N/A
B150: DK/missing | C150: N/A | D150: N/A | E150: N/A | F150: N/A | G150: N/A | H150: N/A | I150: N/A | J150: N/A | K150: N/A | L150: N/A | M150: N/A | N150: N/A | O150: N/A | P150: N/A | Q150: N/A | R150: N/A | S150: N/A | T150: N/A | U150: N/A | V150: N/A | W150: N/A | X150: N/A | Y150: N/A | Z150: N/A | AA150: N/A | AB150: N/A | AC150: N/A | AD150: N/A | BB150: DK/missing | BC150: N/A | BD150: N/A | BE150: N/A | BF150: N/A | BG150: N/A | BH150: N/A | BI150: N/A | BJ150: N/A | BK150: N/A | BL150: N/A | BM150: N/A | BN150: N/A | BO150: N/A | BP150: N/A | BQ150: N/A | BR150: N/A | BS150: N/A | BT150: N/A | BU150: N/A | BV150: N/A | BW150: N/A | BX150: N/A | BY150: N/A | BZ150: N/A | CA150: N/A | CB150: N/A | CC150: N/A | CD150: N/A
A151: Shared among all sanitation facilities | B151: Yes | C151: 2.760745107 | D151: 2.793548686 | E151: 8.443666181 | F151: 23.71101331 | G151: 20.76009225 | H151: 32.133518 | I151: 35.96760699 | J151: 30.147285 | K151: 22.63316444 | L151: 12.59421283 | M151: 1.431043399 | N151: 0.98026054 | O151: 2.229237848 | P151: 3.202582534 | Q151: 13.4723748 | R151: 4.815060173 | S151: 38.82999299 | T151: 16.36250764 | U151: 8.600116209 | V151: 4.472978161 | W151: 32.20172995 | X151: 7.534953249 | Y151: 2.397736583 | Z151: 5.722226284 | AA151: 1.408767692 | AB151: 8.715836254 | AC151: 4.411487856 | AD151: 16.71528354 | BA151: Shared among all sanitation facilities | BB151: Yes | BC151: N/A | BD151: N/A | BE151: N/A | BF151: N/A | BG151: N/A | BH151: N/A | BI151: N/A | BJ151: N/A | BK151: N/A | BL151: N/A | BM151: N/A | BN151: N/A | BO151: N/A | BP151: N/A | BQ151: N/A | BR151: N/A | BS151: N/A | BT151: N/A | BU151: N/A | BV151: N/A | BW151: N/A | BX151: N/A | BY151: N/A | BZ151: N/A | CA151: N/A | CB151: N/A | CC151: N/A | CD151: N/A
B152: No | C152: 97.23925489 | D152: 97.20645131 | E152: 91.55633382 | F152: 76.28898669 | G152: 79.23990775 | H152: 67.866482 | I152: 64.03239301 | J152: 69.852715 | K152: 77.36683556 | L152: 87.40578717 | M152: 98.5689566 | N152: 99.01973946 | O152: 97.77076215 | P152: 96.79741747 | Q152: 86.5276252 | R152: 95.18493983 | S152: 61.17000701 | T152: 83.63749236 | U152: 91.39988379 | V152: 95.52702184 | W152: 67.79827005 | X152: 92.46504675 | Y152: 97.60226342 | Z152: 94.27777372 | AA152: 98.59123231 | AB152: 91.28416375 | AC152: 95.58851214 | AD152: 83.28471646 | BB152: No | BC152: N/A | BD152: N/A | BE152: N/A | BF152: N/A | BG152: N/A | BH152: N/A | BI152: N/A | BJ152: N/A | BK152: N/A | BL152: N/A | BM152: N/A | BN152: N/A | BO152: N/A | BP152: N/A | BQ152: N/A | BR152: N/A | BS152: N/A | BT152: N/A | BU152: N/A | BV152: N/A | BW152: N/A | BX152: N/A | BY152: N/A | BZ152: N/A | CA152: N/A | CB152: N/A | CC152: N/A | CD152: N/A
A153: Type of toilet facility | B153: Flush toilet | C153: 0.461427216 | D153: 0.3548989595 | E153: 5.904385532 | F153: 38.98912528 | G153: 83.23979859 | H153: 23.56179071 | I153: 57.4752151 | J153: 72.84989485 | K153: 86.03192421 | L153: 88.36873054 | M153: 0.0831324466 | N153: 0.1066689838 | O153: 0.1044552594 | P153: 1.632099547 | Q153: 27.76179372 | R153: 3.686779962 | S153: 96.64127312 | T153: 48.41071965 | U153: 73.53579131 | V153: 7.511899308 | W153: 55.41718924 | X153: 25.68232949 | Y153: 0 | Z153: 14.25088268 | AA153: 0 | AB153: 7.907896833 | AC153: 16.97336988 | AD153: 44.78493366 | BA153: Type of toilet facility | BB153: Flush toilet | BC153: 31.095037 | BD153: 22.852553 | BE153: 391.040963 | BF153: 2559.572666 | BG153: 5511.579276 | BH153: 516.787792 | BI153: 1266.832921 | BJ153: 1551.10661 | BK153: 1929.664526 | BL153: 1950.245324 | BM153: 3.69226 | BN153: 4.702144 | BO153: 4.578422 | BP153: 71.727819 | BQ153: 1216.802677 | BR153: 62.412 | BS153: 1554.328513 | BT153: 706.363121 | BU153: 894.050662 | BV153: 206.681819 | BW153: 2517.769229 | BX153: 284.65091 | BY153: 0 | BZ153: 149.115322 | CA153: 0 | CB153: 263.099812 | CC153: 512.139356 | CD153: 1365.529751
B154: Pour flush latrine | C154: 0.3093613905 | D154: 1.245373862 | E154: 1.996253881 | F154: 8.810466939 | G154: 13.66419238 | H154: 5.060138599 | I154: 11.64181641 | J154: 24.43138181 | K154: 13.47678862 | L154: 11.63126946 | M154: 0 | N154: 0 | O154: 1.824075059 | P154: 1.202689518 | Q154: 3.12192851 | R154: 0 | S154: 2.93102705 | T154: 2.411751483 | U154: 4.19129461 | V154: 6.880134946 | W154: 19.64243398 | X154: 4.645856118 | Y154: 0.519520938 | Z154: 1.32944579 | AA154: 0 | AB154: 5.888164137 | AC154: 5.30665182 | AD154: 1.919412035 | BB154: Pour flush latrine | BC154: 20.8475 | BD154: 80.19176 | BE154: 132.2097 | BF154: 578.392826 | BG154: 904.750862 | BH154: 110.985531 | BI154: 256.601672 | BJ154: 520.188504 | BK154: 302.279429 | BL154: 256.695199 | BM154: 0 | BN154: 0 | BO154: 79.951794 | BP154: 52.856026 | BQ154: 136.834493 | BR154: 0 | BS154: 47.141131 | BT154: 35.189981 | BU154: 50.957903 | BV154: 189.299503 | BW154: 892.414728 | BX154: 51.492493 | BY154: 21.441225 | BZ154: 13.910769 | CA154: 0 | CB154: 195.902262 | CC154: 160.118189 | CD154: 58.524464
B155: Traditional pit toilet | C155: 2.8295585 | D155: 7.384389806 | E155: 13.30544212 | F155: 12.82157662 | G155: 1.440942816 | H155: 17.17712941 | I155: 4.987345292 | J155: 0.1665877574 | K155: 0.341971081 | L155: 0 | M155: 1.215633744 | N155: 3.848282546 | O155: 9.020693349 | P155: 12.6603006 | Q155: 18.50761143 | R155: 0 | S155: 0 | T155: 7.61155635 | U155: 5.029106864 | V155: 6.257485642 | W155: 5.785051651 | X155: 4.061450331 | Y155: 5.837416028 | Z155: 1.096029327 | AA155: 10.77816616 | AB155: 19.38699933 | AC155: 13.14333654 | AD155: 3.370170133 | BB155: Traditional pit toilet | BC155: 190.680617 | BD155: 475.493531 | BE155: 881.204805 | BF155: 841.715653 | BG155: 95.409536 | BH155: 376.751109 | BI155: 109.927961 | BJ155: 3.546956 | BK155: 7.670286 | BL155: 0 | BM155: 53.991384 | BN155: 169.638615 | BO155: 395.389769 | BP155: 556.397281 | BQ155: 811.190781 | BR155: 0 | BS155: 0 | BT155: 111.060582 | BU155: 61.144053 | BV155: 172.167978 | BW155: 262.832259 | BX155: 45.015213 | BY155: 240.916855 | BZ155: 11.468396 | CA155: 435.548705 | CB155: 645.015481 | CC155: 396.575339 | CD155: 102.759281
B156: Ventilated improved pit latrine | C156: 0.5053766852 | D156: 1.176326952 | E156: 4.917207694 | F156: 6.592592682 | G156: 0.8560295968 | H156: 4.62886781 | I156: 4.589971446 | J156: 0.6150610897 | K156: 0 | L156: 0 | M156: 0.6968233426 | N156: 0.5914731981 | O156: 0.9526691846 | P156: 4.341651095 | Q156: 9.572397866 | R156: 1.162719264 | S156: 0 | T156: 10.07727291 | U156: 0.6856837131 | V156: 0.1095309456 | W156: 0.1746000435 | X156: 2.749678366 | Y156: 0 | Z156: 2.997558395 | AA156: 4.853341558 | AB156: 11.34258652 | AC156: 1.223105276 | AD156: 2.187162775 | BB156: Ventilated improved pit latrine | BC156: 34.05674 | BD156: 75.745711 | BE156: 325.66126 | BF156: 432.792988 | BG156: 56.680519 | BH156: 101.52634 | BI156: 101.169294 | BJ156: 13.095768 | BK156: 0 | BL156: 0 | BM156: 30.948842 | BN156: 26.07311 | BO156: 41.75684 | BP156: 190.807702 | BQ156: 419.559322 | BR156: 19.683202 | BS156: 0 | BT156: 147.03797 | BU156: 8.336566 | BV156: 3.013626 | BW156: 7.932604 | BX156: 30.476147 | BY156: 0 | BZ156: 31.365207 | CA156: 196.124888 | CB156: 377.373712 | CC156: 36.90489 | CD156: 66.688406
B157: Bucket | C157: 0.8420264288 | D157: 0.8671383603 | E157: 1.368254811 | F157: 3.261823926 | G157: 0.1922061689 | H157: 3.125377544 | I157: 2.844251844 | J157: 0.5348043873 | K157: 0.1493160825 | L157: 0 | M157: 0.5160108904 | N157: 1.29223942 | O157: 0.4338187865 | P157: 1.14962071 | Q157: 3.072310596 | R157: 0 | S157: 0 | T157: 7.60009487 | U157: 7.624982695 | V157: 6.424874531 | W157: 0 | X157: 0.3548335629 | Y157: 0.7619779988 | Z157: 0.02179195758 | AA157: 0.2745954788 | AB157: 0.06151620762 | AC157: 0 | AD157: 0.03064531312 | BB157: Bucket | BC157: 56.74317 | BD157: 55.836527 | BE157: 90.618012 | BF157: 214.133436 | BG157: 12.726599 | BH157: 68.549839 | BI157: 62.691229 | BJ157: 11.386957 | BK157: 3.349105 | BL157: 0 | BM157: 22.918204 | BN157: 56.964036 | BO157: 19.014892 | BP157: 50.523748 | BQ157: 134.659734 | BR157: 0 | BS157: 0 | BT157: 110.893347 | BU157: 92.7048 | BV157: 176.773503 | BW157: 0 | BX157: 3.932809 | BY157: 31.447706 | BZ157: 0.228022 | CA157: 11.09648 | CB157: 2.046676 | CC157: 0 | CD157: 0.934401
B158: No facility, bush, field | C158: 94.99301729 | D158: 88.52591775 | E158: 71.17068919 | F158: 28.03388023 | G158: 0.4051990321 | H158: 40.74163855 | I158: 14.70023459 | J158: 0.7752369001 | K158: 0 | L158: 0 | M158: 97.48839958 | N158: 94.16133585 | O158: 87.49321928 | P158: 78.95237038 | Q158: 37.9426362 | R158: 95.15050077 | S158: 0.4276998297 | T158: 23.59594351 | U158: 8.657029558 | V158: 72.81607463 | W158: 15.05699306 | X158: 62.50585213 | Y158: 92.69940363 | Z158: 80.30429185 | AA158: 84.09389681 | AB158: 54.40004589 | AC158: 63.17391907 | AD158: 47.70767608 | BB158: No facility, bush, field | BC158: 6401.467631 | BD158: 5700.335752 | BE158: 4713.556506 | BF158: 1840.378645 | BG158: 26.829553 | BH158: 893.598525 | BI158: 324.013422 | BJ158: 16.506202 | BK158: 0 | BL158: 0 | BM158: 4329.867975 | BN158: 4150.786334 | BO158: 3834.951752 | BP158: 3469.813679 | BQ158: 1663.030198 | BR158: 1610.764167 | BS158: 6.878904 | BT158: 344.289538 | BU158: 105.252461 | BV158: 2003.455869 | BW158: 684.084385 | BX158: 692.785586 | BY158: 3825.810714 | BZ158: 840.270782 | CA158: 3398.257859 | CB158: 1809.917624 | CC158: 1906.153608 | CD158: 1454.64659
B159: Other | C159: 0.05923249317 | D159: 0.4459543059 | E159: 1.337766762 | F159: 1.490534335 | G159: 0.2016314246 | H159: 5.70505737 | I159: 3.761165312 | J159: 0.627033201 | K159: 0 | L159: 0 | M159: 0 | N159: 0 | O159: 0.1710690771 | P159: 0.06126814493 | Q159: 0.021321686 | R159: 0 | S159: 0 | T159: 0.2926612317 | U159: 0.2761112494 | V159: 0 | W159: 3.923732023 | X159: 0 | Y159: 0.1816814057 | Z159: 0 | AA159: 0 | AB159: 1.01279107 | AC159: 0.1796174144 | AD159: 0 | BB159: Other | BC159: 3.991608 | BD159: 28.715763 | BE159: 88.598822 | BF159: 97.851155 | BG159: 13.350676 | BH159: 125.130727 | BI159: 82.901265 | BJ159: 13.350676 | BK159: 0 | BL159: 0 | BM159: 0 | BN159: 0 | BO159: 7.4982 | BP159: 2.692624 | BQ159: 0.934532 | BR159: 0 | BS159: 0 | BT159: 4.270234 | BU159: 3.35697 | BV159: 0 | BW159: 178.266922 | BX159: 0 | BY159: 7.4982 | BZ159: 0 | CA159: 0 | CB159: 33.696082 | CC159: 5.419616 | CD159: 0
BB160: Total | BC160: 6738.882303 | BD160: 6439.171597 | BE160: 6622.890068 | BF160: 6564.837369 | BG160: 6621.327021 | BH160: 2193.329863 | BI160: 2204.137764 | BJ160: 2129.181673 | BK160: 2242.963346 | BL160: 2206.940523 | BM160: 4441.418665 | BN160: 4408.164239 | BO160: 4383.141669 | BP160: 4394.818879 | BQ160: 4383.011737 | BR160: 1692.859369 | BS160: 1608.348548 | BT160: 1459.104773 | BU160: 1215.803415 | BV160: 2751.392298 | BW160: 4543.300127 | BX160: 1108.353158 | BY160: 4127.1147 | BZ160: 1046.358498 | CA160: 4041.027932 | CB160: 3327.051649 | CC160: 3017.310998 | CD160: 3049.082893
A208: =A1026 -> Namibia
A209: =A1034 -> 2000
A210: Access to hygiene facilities
A211: by wealth quintile and sub-national region
A212: Notes:
A213: WHO/UNICEF JMP customised wealth index excludes water,
A214: sanitation and hygiene assets.
A215: Survey used for analysis: | B215: =A1025 -> DHS00
A220: Access to handwashing | C220: NATIONAL wealth index quintile | H220: URBAN wealth index quintile | M220: RURAL wealth index quintile | R220: SUB-REGIONS: | BA220: Raw numbers of respondents: | BB220: Access to handwashing | BC220: NATIONAL wealth index quintile | BH220: URBAN wealth index quintile | BM220: RURAL wealth index quintile | BR220: SUB-REGIONS:
A221: Weighted percentage (used in graphs) | C221: Poorest | D221: Poor | E221: Middle | F221: Rich | G221: Richest | H221: Poorest | I221: Poor | J221: Middle | K221: Rich | L221: Richest | M221: Poorest | N221: Poor | O221: Middle | P221: Rich | Q221: Richest | R221: Caprivi | S221: Erongo | T221: Hardap | U221: Karas | V221: Kavango | W221: Khomas | X221: Kunene | Y221: Ohangwena | Z221: Omaheke | AA221: Omusati | AB221: Oshana | AC221: Oshikoto | AD221: Otjozondjupa | BA221: Hygiene data, raw numbers (weighted) | BC221: Poorest | BD221: Poor | BE221: Middle | BF221: Rich | BG221: Richest | BH221: Poorest | BI221: Poor | BJ221: Middle | BK221: Rich | BL221: Richest | BM221: Poorest | BN221: Poor | BO221: Middle | BP221: Rich | BQ221: Richest | BR221: Caprivi | BS221: Erongo | BT221: Hardap | BU221: Karas | BV221: Kavango | BW221: Khomas | BX221: Kunene | BY221: Ohangwena | BZ221: Omaheke | CA221: Omusati | CB221: Oshana | CC221: Oshikoto | CD221: Otjozondjupa
A222: Hygiene ladder | B222: Basic | C222: N/A | D222: N/A | E222: N/A | F222: N/A | G222: N/A | H222: N/A | I222: N/A | J222: N/A | K222: N/A | L222: N/A | M222: N/A | N222: N/A | O222: N/A | P222: N/A | Q222: N/A | R222: N/A | S222: N/A | T222: N/A | U222: N/A | V222: N/A | W222: N/A | X222: N/A | Y222: N/A | Z222: N/A | AA222: N/A | AB222: N/A | AC222: N/A | AD222: N/A | BA222: Hygiene ladder | BB222: Basic | BC222: N/A | BD222: N/A | BE222: N/A | BF222: N/A | BG222: N/A | BH222: N/A | BI222: N/A | BJ222: N/A | BK222: N/A | BL222: N/A | BM222: N/A | BN222: N/A | BO222: N/A | BP222: N/A | BQ222: N/A | BR222: N/A | BS222: N/A | BT222: N/A | BU222: N/A | BV222: N/A | BW222: N/A | BX222: N/A | BY222: N/A | BZ222: N/A | CA222: N/A | CB222: N/A | CC222: N/A | CD222: N/A
B223: Limited | C223: N/A | D223: N/A | E223: N/A | F223: N/A | G223: N/A | H223: N/A | I223: N/A | J223: N/A | K223: N/A | L223: N/A | M223: N/A | N223: N/A | O223: N/A | P223: N/A | Q223: N/A | R223: N/A | S223: N/A | T223: N/A | U223: N/A | V223: N/A | W223: N/A | X223: N/A | Y223: N/A | Z223: N/A | AA223: N/A | AB223: N/A | AC223: N/A | AD223: N/A | BB223: Limited | BC223: N/A | BD223: N/A | BE223: N/A | BF223: N/A | BG223: N/A | BH223: N/A | BI223: N/A | BJ223: N/A | BK223: N/A | BL223: N/A | BM223: N/A | BN223: N/A | BO223: N/A | BP223: N/A | BQ223: N/A | BR223: N/A | BS223: N/A | BT223: N/A | BU223: N/A | BV223: N/A | BW223: N/A | BX223: N/A | BY223: N/A | BZ223: N/A | CA223: N/A | CB223: N/A | CC223: N/A | CD223: N/A
B224: No facility | C224: N/A | D224: N/A | E224: N/A | F224: N/A | G224: N/A | H224: N/A | I224: N/A | J224: N/A | K224: N/A | L224: N/A | M224: N/A | N224: N/A | O224: N/A | P224: N/A | Q224: N/A | R224: N/A | S224: N/A | T224: N/A | U224: N/A | V224: N/A | W224: N/A | X224: N/A | Y224: N/A | Z224: N/A | AA224: N/A | AB224: N/A | AC224: N/A | AD224: N/A | BB224: No facility | BC224: N/A | BD224: N/A | BE224: N/A | BF224: N/A | BG224: N/A | BH224: N/A | BI224: N/A | BJ224: N/A | BK224: N/A | BL224: N/A | BM224: N/A | BN224: N/A | BO224: N/A | BP224: N/A | BQ224: N/A | BR224: N/A | BS224: N/A | BT224: N/A | BU224: N/A | BV224: N/A | BW224: N/A | BX224: N/A | BY224: N/A | BZ224: N/A | CA224: N/A | CB224: N/A | CC224: N/A | CD224: N/A
BA225: Observed handwashing place | BB225: Fixed | BC225: N/A | BD225: N/A | BE225: N/A | BF225: N/A | BG225: N/A | BH225: N/A | BI225: N/A | BJ225: N/A | BK225: N/A | BL225: N/A | BM225: N/A | BN225: N/A | BO225: N/A | BP225: N/A | BQ225: N/A | BR225: N/A | BS225: N/A | BT225: N/A | BU225: N/A | BV225: N/A | BW225: N/A | BX225: N/A | BY225: N/A | BZ225: N/A | CA225: N/A | CB225: N/A | CC225: N/A | CD225: N/A
BB226: Mobile | BC226: N/A | BD226: N/A | BE226: N/A | BF226: N/A | BG226: N/A | BH226: N/A | BI226: N/A | BJ226: N/A | BK226: N/A | BL226: N/A | BM226: N/A | BN226: N/A | BO226: N/A | BP226: N/A | BQ226: N/A | BR226: N/A | BS226: N/A | BT226: N/A | BU226: N/A | BV226: N/A | BW226: N/A | BX226: N/A | BY226: N/A | BZ226: N/A | CA226: N/A | CB226: N/A | CC226: N/A | CD226: N/A
BA227: Water / Soap | BB227: Water and soap | BC227: N/A | BD227: N/A | BE227: N/A | BF227: N/A | BG227: N/A | BH227: N/A | BI227: N/A | BJ227: N/A | BK227: N/A | BL227: N/A | BM227: N/A | BN227: N/A | BO227: N/A | BP227: N/A | BQ227: N/A | BR227: N/A | BS227: N/A | BT227: N/A | BU227: N/A | BV227: N/A | BW227: N/A | BX227: N/A | BY227: N/A | BZ227: N/A | CA227: N/A | CB227: N/A | CC227: N/A | CD227: N/A
BB228: Water only | BC228: N/A | BD228: N/A | BE228: N/A | BF228: N/A | BG228: N/A | BH228: N/A | BI228: N/A | BJ228: N/A | BK228: N/A | BL228: N/A | BM228: N/A | BN228: N/A | BO228: N/A | BP228: N/A | BQ228: N/A | BR228: N/A | BS228: N/A | BT228: N/A | BU228: N/A | BV228: N/A | BW228: N/A | BX228: N/A | BY228: N/A | BZ228: N/A | CA228: N/A | CB228: N/A | CC228: N/A | CD228: N/A
BB229: Soap only | BC229: N/A | BD229: N/A | BE229: N/A | BF229: N/A | BG229: N/A | BH229: N/A | BI229: N/A | BJ229: N/A | BK229: N/A | BL229: N/A | BM229: N/A | BN229: N/A | BO229: N/A | BP229: N/A | BQ229: N/A | BR229: N/A | BS229: N/A | BT229: N/A | BU229: N/A | BV229: N/A | BW229: N/A | BX229: N/A | BY229: N/A | BZ229: N/A | CA229: N/A | CB229: N/A | CC229: N/A | CD229: N/A
BB230: Neither | BC230: N/A | BD230: N/A | BE230: N/A | BF230: N/A | BG230: N/A | BH230: N/A | BI230: N/A | BJ230: N/A | BK230: N/A | BL230: N/A | BM230: N/A | BN230: N/A | BO230: N/A | BP230: N/A | BQ230: N/A | BR230: N/A | BS230: N/A | BT230: N/A | BU230: N/A | BV230: N/A | BW230: N/A | BX230: N/A | BY230: N/A | BZ230: N/A | CA230: N/A | CB230: N/A | CC230: N/A | CD230: N/A
BA259: Raw numbers of respondents: | BB259: Menstrual health and hygiene | BC259: NATIONAL wealth index quintile | BH259: URBAN wealth index quintile | BM259: RURAL wealth index quintile | BR259: SUB-REGIONS:
BA260: MHH data, raw numbers (weighted) | BC260: Poorest | BD260: Poor | BE260: Middle | BF260: Rich | BG260: Richest | BH260: Poorest | BI260: Poor | BJ260: Middle | BK260: Rich | BL260: Richest | BM260: Poorest | BN260: Poor | BO260: Middle | BP260: Rich | BQ260: Richest | BR260: Caprivi | BS260: Erongo | BT260: Hardap | BU260: Karas | BV260: Kavango | BW260: Khomas | BX260: Kunene | BY260: Ohangwena | BZ260: Omaheke | CA260: Omusati | CB260: Oshana | CC260: Oshikoto | CD260: Otjozondjupa
BA261: Private place to wash and change | BB261: Yes | BC261: N/A | BD261: N/A | BE261: N/A | BF261: N/A | BG261: N/A | BH261: N/A | BI261: N/A | BJ261: N/A | BK261: N/A | BL261: N/A | BM261: N/A | BN261: N/A | BO261: N/A | BP261: N/A | BQ261: N/A | BR261: N/A | BS261: N/A | BT261: N/A | BU261: N/A | BV261: N/A | BW261: N/A | BX261: N/A | BY261: N/A | BZ261: N/A | CA261: N/A | CB261: N/A | CC261: N/A | CD261: N/A
BB262: No | BC262: N/A | BD262: N/A | BE262: N/A | BF262: N/A | BG262: N/A | BH262: N/A | BI262: N/A | BJ262: N/A | BK262: N/A | BL262: N/A | BM262: N/A | BN262: N/A | BO262: N/A | BP262: N/A | BQ262: N/A | BR262: N/A | BS262: N/A | BT262: N/A | BU262: N/A | BV262: N/A | BW262: N/A | BX262: N/A | BY262: N/A | BZ262: N/A | CA262: N/A | CB262: N/A | CC262: N/A | CD262: N/A
BB263: DK/not sure/missing | BC263: N/A | BD263: N/A | BE263: N/A | BF263: N/A | BG263: N/A | BH263: N/A | BI263: N/A | BJ263: N/A | BK263: N/A | BL263: N/A | BM263: N/A | BN263: N/A | BO263: N/A | BP263: N/A | BQ263: N/A | BR263: N/A | BS263: N/A | BT263: N/A | BU263: N/A | BV263: N/A | BW263: N/A | BX263: N/A | BY263: N/A | BZ263: N/A | CA263: N/A | CB263: N/A | CC263: N/A | CD263: N/A
BA264: Use of menstrual materials | BB264: Materials reusable | BC264: N/A | BD264: N/A | BE264: N/A | BF264: N/A | BG264: N/A | BH264: N/A | BI264: N/A | BJ264: N/A | BK264: N/A | BL264: N/A | BM264: N/A | BN264: N/A | BO264: N/A | BP264: N/A | BQ264: N/A | BR264: N/A | BS264: N/A | BT264: N/A | BU264: N/A | BV264: N/A | BW264: N/A | BX264: N/A | BY264: N/A | BZ264: N/A | CA264: N/A | CB264: N/A | CC264: N/A | CD264: N/A
BB265: Materials not reusable | BC265: N/A | BD265: N/A | BE265: N/A | BF265: N/A | BG265: N/A | BH265: N/A | BI265: N/A | BJ265: N/A | BK265: N/A | BL265: N/A | BM265: N/A | BN265: N/A | BO265: N/A | BP265: N/A | BQ265: N/A | BR265: N/A | BS265: N/A | BT265: N/A | BU265: N/A | BV265: N/A | BW265: N/A | BX265: N/A | BY265: N/A | BZ265: N/A | CA265: N/A | CB265: N/A | CC265: N/A | CD265: N/A
BB266: No materials used | BC266: N/A | BD266: N/A | BE266: N/A | BF266: N/A | BG266: N/A | BH266: N/A | BI266: N/A | BJ266: N/A | BK266: N/A | BL266: N/A | BM266: N/A | BN266: N/A | BO266: N/A | BP266: N/A | BQ266: N/A | BR266: N/A | BS266: N/A | BT266: N/A | BU266: N/A | BV266: N/A | BW266: N/A | BX266: N/A | BY266: N/A | BZ266: N/A | CA266: N/A | CB266: N/A | CC266: N/A | CD266: N/A
BB267: DK/not sure/missing | BC267: N/A | BD267: N/A | BE267: N/A | BF267: N/A | BG267: N/A | BH267: N/A | BI267: N/A | BJ267: N/A | BK267: N/A | BL267: N/A | BM267: N/A | BN267: N/A | BO267: N/A | BP267: N/A | BQ267: N/A | BR267: N/A | BS267: N/A | BT267: N/A | BU267: N/A | BV267: N/A | BW267: N/A | BX267: N/A | BY267: N/A | BZ267: N/A | CA267: N/A | CB267: N/A | CC267: N/A | CD267: N/A
BA268: Use of menstrual materials with private place to wash and change | BB268: Materials reusable | BC268: N/A | BD268: N/A | BE268: N/A | BF268: N/A | BG268: N/A | BH268: N/A | BI268: N/A | BJ268: N/A | BK268: N/A | BL268: N/A | BM268: N/A | BN268: N/A | BO268: N/A | BP268: N/A | BQ268: N/A | BR268: N/A | BS268: N/A | BT268: N/A | BU268: N/A | BV268: N/A | BW268: N/A | BX268: N/A | BY268: N/A | BZ268: N/A | CA268: N/A | CB268: N/A | CC268: N/A | CD268: N/A
BB269: Materials not reusable | BC269: N/A | BD269: N/A | BE269: N/A | BF269: N/A | BG269: N/A | BH269: N/A | BI269: N/A | BJ269: N/A | BK269: N/A | BL269: N/A | BM269: N/A | BN269: N/A | BO269: N/A | BP269: N/A | BQ269: N/A | BR269: N/A | BS269: N/A | BT269: N/A | BU269: N/A | BV269: N/A | BW269: N/A | BX269: N/A | BY269: N/A | BZ269: N/A | CA269: N/A | CB269: N/A | CC269: N/A | CD269: N/A
BB270: No materials used | BC270: N/A | BD270: N/A | BE270: N/A | BF270: N/A | BG270: N/A | BH270: N/A | BI270: N/A | BJ270: N/A | BK270: N/A | BL270: N/A | BM270: N/A | BN270: N/A | BO270: N/A | BP270: N/A | BQ270: N/A | BR270: N/A | BS270: N/A | BT270: N/A | BU270: N/A | BV270: N/A | BW270: N/A | BX270: N/A | BY270: N/A | BZ270: N/A | CA270: N/A | CB270: N/A | CC270: N/A | CD270: N/A
BA271: Awareness of menstruation before menarche | BB271: Yes | BC271: N/A | BD271: N/A | BE271: N/A | BF271: N/A | BG271: N/A | BH271: N/A | BI271: N/A | BJ271: N/A | BK271: N/A | BL271: N/A | BM271: N/A | BN271: N/A | BO271: N/A | BP271: N/A | BQ271: N/A | BR271: N/A | BS271: N/A | BT271: N/A | BU271: N/A | BV271: N/A | BW271: N/A | BX271: N/A | BY271: N/A | BZ271: N/A | CA271: N/A | CB271: N/A | CC271: N/A | CD271: N/A
BB272: No | BC272: N/A | BD272: N/A | BE272: N/A | BF272: N/A | BG272: N/A | BH272: N/A | BI272: N/A | BJ272: N/A | BK272: N/A | BL272: N/A | BM272: N/A | BN272: N/A | BO272: N/A | BP272: N/A | BQ272: N/A | BR272: N/A | BS272: N/A | BT272: N/A | BU272: N/A | BV272: N/A | BW272: N/A | BX272: N/A | BY272: N/A | BZ272: N/A | CA272: N/A | CB272: N/A | CC272: N/A | CD272: N/A
BB273: DK/not sure/missing | BC273: N/A | BD273: N/A | BE273: N/A | BF273: N/A | BG273: N/A | BH273: N/A | BI273: N/A | BJ273: N/A | BK273: N/A | BL273: N/A | BM273: N/A | BN273: N/A | BO273: N/A | BP273: N/A | BQ273: N/A | BR273: N/A | BS273: N/A | BT273: N/A | BU273: N/A | BV273: N/A | BW273: N/A | BX273: N/A | BY273: N/A | BZ273: N/A | CA273: N/A | CB273: N/A | CC273: N/A | CD273: N/A
BA274: Participation in (all) activities during menstruation | BB274: Yes | BC274: N/A | BD274: N/A | BE274: N/A | BF274: N/A | BG274: N/A | BH274: N/A | BI274: N/A | BJ274: N/A | BK274: N/A | BL274: N/A | BM274: N/A | BN274: N/A | BO274: N/A | BP274: N/A | BQ274: N/A | BR274: N/A | BS274: N/A | BT274: N/A | BU274: N/A | BV274: N/A | BW274: N/A | BX274: N/A | BY274: N/A | BZ274: N/A | CA274: N/A | CB274: N/A | CC274: N/A | CD274: N/A
BB275: No | BC275: N/A | BD275: N/A | BE275: N/A | BF275: N/A | BG275: N/A | BH275: N/A | BI275: N/A | BJ275: N/A | BK275: N/A | BL275: N/A | BM275: N/A | BN275: N/A | BO275: N/A | BP275: N/A | BQ275: N/A | BR275: N/A | BS275: N/A | BT275: N/A | BU275: N/A | BV275: N/A | BW275: N/A | BX275: N/A | BY275: N/A | BZ275: N/A | CA275: N/A | CB275: N/A | CC275: N/A | CD275: N/A
BB276: DK/not sure/missing/no such activity | BC276: N/A | BD276: N/A | BE276: N/A | BF276: N/A | BG276: N/A | BH276: N/A | BI276: N/A | BJ276: N/A | BK276: N/A | BL276: N/A | BM276: N/A | BN276: N/A | BO276: N/A | BP276: N/A | BQ276: N/A | BR276: N/A | BS276: N/A | BT276: N/A | BU276: N/A | BV276: N/A | BW276: N/A | BX276: N/A | BY276: N/A | BZ276: N/A | CA276: N/A | CB276: N/A | CC276: N/A | CD276: N/A
BA277: Participation in specific activities during menstruation | BB277: Did not go to school (amongst those usually attending school) | BC277: N/A | BD277: N/A | BE277: N/A | BF277: N/A | BG277: N/A | BH277: N/A | BI277: N/A | BJ277: N/A | BK277: N/A | BL277: N/A | BM277: N/A | BN277: N/A | BO277: N/A | BP277: N/A | BQ277: N/A | BR277: N/A | BS277: N/A | BT277: N/A | BU277: N/A | BV277: N/A | BW277: N/A | BX277: N/A | BY277: N/A | BZ277: N/A | CA277: N/A | CB277: N/A | CC277: N/A | CD277: N/A
BB278: Did not go to work (amongst those who usually work) | BC278: N/A | BD278: N/A | BE278: N/A | BF278: N/A | BG278: N/A | BH278: N/A | BI278: N/A | BJ278: N/A | BK278: N/A | BL278: N/A | BM278: N/A | BN278: N/A | BO278: N/A | BP278: N/A | BQ278: N/A | BR278: N/A | BS278: N/A | BT278: N/A | BU278: N/A | BV278: N/A | BW278: N/A | BX278: N/A | BY278: N/A | BZ278: N/A | CA278: N/A | CB278: N/A | CC278: N/A | CD278: N/A
BB279: Did not participate in social activities | BC279: N/A | BD279: N/A | BE279: N/A | BF279: N/A | BG279: N/A | BH279: N/A | BI279: N/A | BJ279: N/A | BK279: N/A | BL279: N/A | BM279: N/A | BN279: N/A | BO279: N/A | BP279: N/A | BQ279: N/A | BR279: N/A | BS279: N/A | BT279: N/A | BU279: N/A | BV279: N/A | BW279: N/A | BX279: N/A | BY279: N/A | BZ279: N/A | CA279: N/A | CB279: N/A | CC279: N/A | CD279: N/A
BB280: Did not cook food | BC280: N/A | BD280: N/A | BE280: N/A | BF280: N/A | BG280: N/A | BH280: N/A | BI280: N/A | BJ280: N/A | BK280: N/A | BL280: N/A | BM280: N/A | BN280: N/A | BO280: N/A | BP280: N/A | BQ280: N/A | BR280: N/A | BS280: N/A | BT280: N/A | BU280: N/A | BV280: N/A | BW280: N/A | BX280: N/A | BY280: N/A | BZ280: N/A | CA280: N/A | CB280: N/A | CC280: N/A | CD280: N/A
BB281: Did not eat with others | BC281: N/A | BD281: N/A | BE281: N/A | BF281: N/A | BG281: N/A | BH281: N/A | BI281: N/A | BJ281: N/A | BK281: N/A | BL281: N/A | BM281: N/A | BN281: N/A | BO281: N/A | BP281: N/A | BQ281: N/A | BR281: N/A | BS281: N/A | BT281: N/A | BU281: N/A | BV281: N/A | BW281: N/A | BX281: N/A | BY281: N/A | BZ281: N/A | CA281: N/A | CB281: N/A | CC281: N/A | CD281: N/A
BB282: Did not bathe in regular place | BC282: N/A | BD282: N/A | BE282: N/A | BF282: N/A | BG282: N/A | BH282: N/A | BI282: N/A | BJ282: N/A | BK282: N/A | BL282: N/A | BM282: N/A | BN282: N/A | BO282: N/A | BP282: N/A | BQ282: N/A | BR282: N/A | BS282: N/A | BT282: N/A | BU282: N/A | BV282: N/A | BW282: N/A | BX282: N/A | BY282: N/A | BZ282: N/A | CA282: N/A | CB282: N/A | CC282: N/A | CD282: N/A
BB283: Did not participate in other activities | BC283: N/A | BD283: N/A | BE283: N/A | BF283: N/A | BG283: N/A | BH283: N/A | BI283: N/A | BJ283: N/A | BK283: N/A | BL283: N/A | BM283: N/A | BN283: N/A | BO283: N/A | BP283: N/A | BQ283: N/A | BR283: N/A | BS283: N/A | BT283: N/A | BU283: N/A | BV283: N/A | BW283: N/A | BX283: N/A | BY283: N/A | BZ283: N/A | CA283: N/A | CB283: N/A | CC283: N/A | CD283: N/A
BB284: DK/not sure/missing/no such activity | BC284: N/A | BD284: N/A | BE284: N/A | BF284: N/A | BG284: N/A | BH284: N/A | BI284: N/A | BJ284: N/A | BK284: N/A | BL284: N/A | BM284: N/A | BN284: N/A | BO284: N/A | BP284: N/A | BQ284: N/A | BR284: N/A | BS284: N/A | BT284: N/A | BU284: N/A | BV284: N/A | BW284: N/A | BX284: N/A | BY284: N/A | BZ284: N/A | CA284: N/A | CB284: N/A | CC284: N/A | CD284: N/A
BA339: Raw numbers of respondents: | BB339: Basic water, sanitation and hygiene | BC339: NATIONAL wealth index quintile | BH339: URBAN wealth index quintile | BM339: RURAL wealth index quintile | BR339: SUB-REGIONS:
BA340: WatSan data, raw numbers (weighted) | BC340: Poorest | BD340: Poor | BE340: Middle | BF340: Rich | BG340: Richest | BH340: Poorest | BI340: Poor | BJ340: Middle | BK340: Rich | BL340: Richest | BM340: Poorest | BN340: Poor | BO340: Middle | BP340: Rich | BQ340: Richest | BR340: Caprivi | BS340: Erongo | BT340: Hardap | BU340: Karas | BV340: Kavango | BW340: Khomas | BX340: Kunene | BY340: Ohangwena | BZ340: Omaheke | CA340: Omusati | CB340: Oshana | CC340: Oshikoto | CD340: Otjozondjupa
BA341: Use of Basic Water Sanitation and Hygiene | BB341: Yes | BC341: N/A | BD341: N/A | BE341: N/A | BF341: N/A | BG341: N/A | BH341: N/A | BI341: N/A | BJ341: N/A | BK341: N/A | BL341: N/A | BM341: N/A | BN341: N/A | BO341: N/A | BP341: N/A | BQ341: N/A | BR341: N/A | BS341: N/A | BT341: N/A | BU341: N/A | BV341: N/A | BW341: N/A | BX341: N/A | BY341: N/A | BZ341: N/A | CA341: N/A | CB341: N/A | CC341: N/A | CD341: N/A
BB342: No | BC342: N/A | BD342: N/A | BE342: N/A | BF342: N/A | BG342: N/A | BH342: N/A | BI342: N/A | BJ342: N/A | BK342: N/A | BL342: N/A | BM342: N/A | BN342: N/A | BO342: N/A | BP342: N/A | BQ342: N/A | BR342: N/A | BS342: N/A | BT342: N/A | BU342: N/A | BV342: N/A | BW342: N/A | BX342: N/A | BY342: N/A | BZ342: N/A | CA342: N/A | CB342: N/A | CC342: N/A | CD342: N/A
BA343: Use of Basic Water and Sanitation | BB343: Yes | BC343: N/A | BD343: N/A | BE343: N/A | BF343: N/A | BG343: N/A | BH343: N/A | BI343: N/A | BJ343: N/A | BK343: N/A | BL343: N/A | BM343: N/A | BN343: N/A | BO343: N/A | BP343: N/A | BQ343: N/A | BR343: N/A | BS343: N/A | BT343: N/A | BU343: N/A | BV343: N/A | BW343: N/A | BX343: N/A | BY343: N/A | BZ343: N/A | CA343: N/A | CB343: N/A | CC343: N/A | CD343: N/A
BB344: No | BC344: N/A | BD344: N/A | BE344: N/A | BF344: N/A | BG344: N/A | BH344: N/A | BI344: N/A | BJ344: N/A | BK344: N/A | BL344: N/A | BM344: N/A | BN344: N/A | BO344: N/A | BP344: N/A | BQ344: N/A | BR344: N/A | BS344: N/A | BT344: N/A | BU344: N/A | BV344: N/A | BW344: N/A | BX344: N/A | BY344: N/A | BZ344: N/A | CA344: N/A | CB344: N/A | CC344: N/A | CD344: N/A
BA345: Use of Basic Water and Hygiene | BB345: Yes | BC345: N/A | BD345: N/A | BE345: N/A | BF345: N/A | BG345: N/A | BH345: N/A | BI345: N/A | BJ345: N/A | BK345: N/A | BL345: N/A | BM345: N/A | BN345: N/A | BO345: N/A | BP345: N/A | BQ345: N/A | BR345: N/A | BS345: N/A | BT345: N/A | BU345: N/A | BV345: N/A | BW345: N/A | BX345: N/A | BY345: N/A | BZ345: N/A | CA345: N/A | CB345: N/A | CC345: N/A | CD345: N/A
BB346: No | BC346: N/A | BD346: N/A | BE346: N/A | BF346: N/A | BG346: N/A | BH346: N/A | BI346: N/A | BJ346: N/A | BK346: N/A | BL346: N/A | BM346: N/A | BN346: N/A | BO346: N/A | BP346: N/A | BQ346: N/A | BR346: N/A | BS346: N/A | BT346: N/A | BU346: N/A | BV346: N/A | BW346: N/A | BX346: N/A | BY346: N/A | BZ346: N/A | CA346: N/A | CB346: N/A | CC346: N/A | CD346: N/A
BA347: Use of Basic Sanitation and Hygiene | BB347: Yes | BC347: N/A | BD347: N/A | BE347: N/A | BF347: N/A | BG347: N/A | BH347: N/A | BI347: N/A | BJ347: N/A | BK347: N/A | BL347: N/A | BM347: N/A | BN347: N/A | BO347: N/A | BP347: N/A | BQ347: N/A | BR347: N/A | BS347: N/A | BT347: N/A | BU347: N/A | BV347: N/A | BW347: N/A | BX347: N/A | BY347: N/A | BZ347: N/A | CA347: N/A | CB347: N/A | CC347: N/A | CD347: N/A
BB348: No | BC348: N/A | BD348: N/A | BE348: N/A | BF348: N/A | BG348: N/A | BH348: N/A | BI348: N/A | BJ348: N/A | BK348: N/A | BL348: N/A | BM348: N/A | BN348: N/A | BO348: N/A | BP348: N/A | BQ348: N/A | BR348: N/A | BS348: N/A | BT348: N/A | BU348: N/A | BV348: N/A | BW348: N/A | BX348: N/A | BY348: N/A | BZ348: N/A | CA348: N/A | CB348: N/A | CC348: N/A | CD348: N/A
BA349: Use of Basic Water | BB349: Yes | BC349: N/A | BD349: N/A | BE349: N/A | BF349: N/A | BG349: N/A | BH349: N/A | BI349: N/A | BJ349: N/A | BK349: N/A | BL349: N/A | BM349: N/A | BN349: N/A | BO349: N/A | BP349: N/A | BQ349: N/A | BR349: N/A | BS349: N/A | BT349: N/A | BU349: N/A | BV349: N/A | BW349: N/A | BX349: N/A | BY349: N/A | BZ349: N/A | CA349: N/A | CB349: N/A | CC349: N/A | CD349: N/A
BB350: No | BC350: N/A | BD350: N/A | BE350: N/A | BF350: N/A | BG350: N/A | BH350: N/A | BI350: N/A | BJ350: N/A | BK350: N/A | BL350: N/A | BM350: N/A | BN350: N/A | BO350: N/A | BP350: N/A | BQ350: N/A | BR350: N/A | BS350: N/A | BT350: N/A | BU350: N/A | BV350: N/A | BW350: N/A | BX350: N/A | BY350: N/A | BZ350: N/A | CA350: N/A | CB350: N/A | CC350: N/A | CD350: N/A
BA351: Use of Basic Sanitation | BB351: Yes | BC351: N/A | BD351: N/A | BE351: N/A | BF351: N/A | BG351: N/A | BH351: N/A | BI351: N/A | BJ351: N/A | BK351: N/A | BL351: N/A | BM351: N/A | BN351: N/A | BO351: N/A | BP351: N/A | BQ351: N/A | BR351: N/A | BS351: N/A | BT351: N/A | BU351: N/A | BV351: N/A | BW351: N/A | BX351: N/A | BY351: N/A | BZ351: N/A | CA351: N/A | CB351: N/A | CC351: N/A | CD351: N/A
BB352: No | BC352: N/A | BD352: N/A | BE352: N/A | BF352: N/A | BG352: N/A | BH352: N/A | BI352: N/A | BJ352: N/A | BK352: N/A | BL352: N/A | BM352: N/A | BN352: N/A | BO352: N/A | BP352: N/A | BQ352: N/A | BR352: N/A | BS352: N/A | BT352: N/A | BU352: N/A | BV352: N/A | BW352: N/A | BX352: N/A | BY352: N/A | BZ352: N/A | CA352: N/A | CB352: N/A | CC352: N/A | CD352: N/A
BA353: Access to Basic Hygiene | BB353: Yes | BC353: N/A | BD353: N/A | BE353: N/A | BF353: N/A | BG353: N/A | BH353: N/A | BI353: N/A | BJ353: N/A | BK353: N/A | BL353: N/A | BM353: N/A | BN353: N/A | BO353: N/A | BP353: N/A | BQ353: N/A | BR353: N/A | BS353: N/A | BT353: N/A | BU353: N/A | BV353: N/A | BW353: N/A | BX353: N/A | BY353: N/A | BZ353: N/A | CA353: N/A | CB353: N/A | CC353: N/A | CD353: N/A
BB354: No | BC354: N/A | BD354: N/A | BE354: N/A | BF354: N/A | BG354: N/A | BH354: N/A | BI354: N/A | BJ354: N/A | BK354: N/A | BL354: N/A | BM354: N/A | BN354: N/A | BO354: N/A | BP354: N/A | BQ354: N/A | BR354: N/A | BS354: N/A | BT354: N/A | BU354: N/A | BV354: N/A | BW354: N/A | BX354: N/A | BY354: N/A | BZ354: N/A | CA354: N/A | CB354: N/A | CC354: N/A | CD354: N/A
C399: INITIAL (national) Wealth Index | H399: URBAN Wealth Index | M399: RURAL Wealth Index
C400: Component Matrix | H400: Component Matrix | M400: Component Matrix
E401: Component | J401: Component | O401: Component
B402: Note: The INITIAL (national) Wealth Index is based on the first component of the Principal Component Analysis (PCA) which has been obtained at national level. The final national-level (NATIONAL) Wealth Index is based on the URBAN and RURAL specific wealth indexes. Regression procedures are used to establish the relationships between the two sets of scores (urban and rural) and the initial (national) wealth factors. This allows best use of the available information for each area and a better precision of the FINAL (NATIONAL) Wealth Index. For dependency reasons, all WASH variables (contained in the generic MICS and DHS scripts) have been excluded from the sets of asset variables used in the PCAs. The PCA can extracts as many components as there are asset variables in the input. Only the first of the components is used to represent the Wealth Index. The scores represent the weights of the asset variables on the Wealth Index (correlations between the variables and the component). The communalities are the proportion of each variable's variance that can be explained by the component. Proportion of explained variance is the part of the model's total variance that is explained by the component. For more information on the procedure used: The DHS Wealth Index, DHS Comparative Reports No. 6, Shea Oscar Rutstein, Kiersten Johnson, ORC Macro International Inc., 2004. The DHS Wealth Index: Approaches for Rural and Urban Areas, Shea O. Rutstein, ORC Macro International Inc., 2008. MICS Methodological Paper No. 4, Review of options for reporting water, sanitation and hygiene coverage by wealth quintile, UNICEF, 2016. | E402: 1 | J402: 1 | O402: 1
C403: Electric lighting | E403: 0.9041777388 | H403: Electric lighting | J403: 0.8892990995 | M403: Has electricity | O403: 0.8406259729
C404: Has electricity | E404: 0.9005791238 | H404: Has electricity | J404: 0.880519706 | M404: Electric lighting | O404: 0.8390237248
C405: Has refrigerator | E405: 0.8647756285 | H405: Has refrigerator | J405: 0.8157507806 | M405: Has refrigerator | O405: 0.817071722
C406: Has television | E406: 0.8307985817 | H406: Has television | J406: 0.7797118474 | M406: if uses wood as cooking fuel | O406: -0.7661968638
C407: if uses wood as cooking fuel | E407: -0.7973324785 | H407: if uses electricity as cooking fuel | J407: 0.755594999 | M407: Has television | O407: 0.7530856455
C408: if uses electricity as cooking fuel | E408: 0.7885240024 | H408: Candle lighting | J408: -0.7237470167 | M408: Has telephone | O408: 0.7219104698
C409: if has dirt, sand, dung as principal floor in dwelling | E409: -0.738443037 | H409: Has telephone | J409: 0.6641868837 | M409: if has dirt, sand, dung as principal floor in dwelling | O409: -0.6763528472
C410: Has telephone | E410: 0.7355905108 | H410: if has dirt, sand, dung as principal floor in dwelling | J410: -0.609404126 | M410: if uses electricity as cooking fuel | O410: 0.6388971903
C411: Has car/truck | E411: 0.561718455 | H411: if uses wood as cooking fuel | J411: -0.5588635686 | M411: if has tiles for main flooring material | O411: 0.5310114194
C412: if has tiles for main flooring material | E412: 0.5405192435 | H412: Has car/truck | J412: 0.5504018032 | M412: Has car/truck | O412: 0.5265238983
C413: Candle lighting | E413: -0.5105624163 | H413: Has radio | J413: 0.4930369653 | M413: if uses gas as cooking fuel | O413: 0.5058489232
C414: Has radio | E414: 0.409681861 | H414: if has tiles for main flooring material | J414: 0.4611617405 | M414: if has cement for main flooring material | O414: 0.3667091639
C415: if has carpeted floors | E415: 0.3703975051 | H415: if uses kerosene as cooking fuel | J415: -0.3917055126 | M415: Has motorcycle/scooter | O415: 0.3543284019
C416: Kerosene, paraffin lighting | E416: -0.3664847268 | H416: Kerosene, paraffin lighting | J416: -0.389246397 | M416: if has carpeted floors | O416: 0.345581463
C417: Has bicycle | E417: 0.2366141945 | H417: Number of members per sleeping room | J417: -0.3079379461 | M417: Candle lighting | O417: -0.3450080177
C418: if uses gas as cooking fuel | E418: 0.2340876949 | H418: Has bicycle | J418: 0.2911715777 | M418: Has radio | O418: 0.290909778
C419: Other form of lighting | E419: -0.2302973831 | H419: if has carpeted floors | J419: 0.2154364811 | M419: Kerosene, paraffin lighting | O419: -0.1939287242
... 129 more rows

Sheet DHS07
A2: =A1026 -> Namibia
A3: =A1034 -> 2007
A4: Use of drinking water sources
A5: by wealth quintile and sub-national region
A6: Notes:
A7: WHO/UNICEF JMP customised wealth index excludes water,
A8: sanitation and hygiene assets.
A9: Survey used for analysis: | B9: =A1025 -> DHS07
A10: =B1028 -> 
A11: =B1027 -> 
A14: Use of drinking water sources | C14: NATIONAL wealth index quintile | H14: URBAN wealth index quintile | M14: RURAL wealth index quintile | R14: SUB-REGIONS: | BA14: Raw numbers of respondents: | BB14: Use of drinking water sources | BC14: NATIONAL wealth index quintile | BH14: URBAN wealth index quintile | BM14: RURAL wealth index quintile | BR14: SUB-REGIONS:
A15: Weighted percentage (used in graphs) | C15: Poorest | D15: Poor | E15: Middle | F15: Rich | G15: Richest | H15: Poorest | I15: Poor | J15: Middle | K15: Rich | L15: Richest | M15: Poorest | N15: Poor | O15: Middle | P15: Rich | Q15: Richest | R15: Caprivi | S15: Erongo | T15: Hardap | U15: Karas | V15: Kavango | W15: Khomas | X15: Kunene | Y15: Ohangwena | Z15: Omaheke | AA15: Omusati | AB15: Oshana | AC15: Oshikoto | AD15: Otjozondjupa | BA15: Water data, raw numbers (weighted) | BC15: Poorest | BD15: Poor | BE15: Middle | BF15: Rich | BG15: Richest | BH15: Poorest | BI15: Poor | BJ15: Middle | BK15: Rich | BL15: Richest | BM15: Poorest | BN15: Poor | BO15: Middle | BP15: Rich | BQ15: Richest | BR15: Caprivi | BS15: Erongo | BT15: Hardap | BU15: Karas | BV15: Kavango | BW15: Khomas | BX15: Kunene | BY15: Ohangwena | BZ15: Omaheke | CA15: Omusati | CB15: Oshana | CC15: Oshikoto | CD15: Otjozondjupa
A16: Water | B16: Improved | C16: 73.42309146 | D16: 78.88929306 | E16: 89.62827771 | F16: 96.63032996 | G16: 99.35138601 | H16: 93.75611968 | I16: 97.3627475 | J16: 97.26935823 | K16: 100 | L16: 98.7649611 | M16: 70.34176743 | N16: 77.5750556 | O16: 76.69844202 | P16: 83.96155451 | Q16: 94.62875391 | R16: 87.25398131 | S16: 95.91073865 | T16: 98.54586537 | U16: 96.63243823 | V16: 71.94789321 | W16: 97.76246777 | X16: 74.14775116 | Y16: 87.02530492 | Z16: 96.99967424 | AA16: 62.96801275 | AB16: 96.62451123 | AC16: 85.85977389 | AD16: 98.15655293 | BA16: Water | BB16: Improved | BC16: N/A | BD16: N/A | BE16: N/A | BF16: N/A | BG16: N/A | BH16: N/A | BI16: N/A | BJ16: N/A | BK16: N/A | BL16: N/A | BM16: N/A | BN16: N/A | BO16: N/A | BP16: N/A | BQ16: N/A | BR16: N/A | BS16: N/A | BT16: N/A | BU16: N/A | BV16: N/A | BW16: N/A | BX16: N/A | BY16: N/A | BZ16: N/A | CA16: N/A | CB16: N/A | CC16: N/A | CD16: N/A
B17: Not Improved | C17: 26.57690854 | D17: 21.11070694 | E17: 10.37172229 | F17: 3.369670045 | G17: 0.6486139948 | H17: 6.243880315 | I17: 2.637252502 | J17: 2.73064177 | K17: 0 | L17: 1.235038899 | M17: 29.65823257 | N17: 22.4249444 | O17: 23.30155798 | P17: 16.03844549 | Q17: 5.371246089 | R17: 12.74601869 | S17: 4.08926135 | T17: 1.454134625 | U17: 3.367561765 | V17: 28.05210679 | W17: 2.237532235 | X17: 25.85224884 | Y17: 12.97469508 | Z17: 3.000325757 | AA17: 37.03198725 | AB17: 3.375488771 | AC17: 14.14022611 | AD17: 1.843447073 | BB17: Not Improved | BC17: N/A | BD17: N/A | BE17: N/A | BF17: N/A | BG17: N/A | BH17: N/A | BI17: N/A | BJ17: N/A | BK17: N/A | BL17: N/A | BM17: N/A | BN17: N/A | BO17: N/A | BP17: N/A | BQ17: N/A | BR17: N/A | BS17: N/A | BT17: N/A | BU17: N/A | BV17: N/A | BW17: N/A | BX17: N/A | BY17: N/A | BZ17: N/A | CA17: N/A | CB17: N/A | CC17: N/A | CD17: N/A
A18: Water ladder | B18: Basic | C18: =C16*C23/100 -> 60.35378118 | D18: =D16*D23/100 -> 65.63589183 | E18: =E16*E23/100 -> 81.651361 | F18: 95.85728732 | G18: 99.25203462 | H18: 91.69348505 | I18: 96.97329651 | J18: 97.17208887 | K18: 100 | L18: 98.7649611 | M18: 56.97683162 | N18: 64.23214603 | O18: 62.20243648 | P18: 71.45128288 | Q18: 90.18120248 | R18: 79.31386901 | S18: 94.37616683 | T18: 97.56040672 | U18: 95.95601117 | V18: 63.67388549 | W18: 97.46918036 | X18: 63.47047499 | Y18: 75.53796467 | Z18: 88.85170161 | AA18: 52.3264186 | AB18: 86.38231304 | AC18: 70.66259391 | AD18: 94.23029081 | BA18: Water ladder | BB18: Basic | BC18: N/A | BD18: N/A | BE18: N/A | BF18: N/A | BG18: N/A | BH18: N/A | BI18: N/A | BJ18: N/A | BK18: N/A | BL18: N/A | BM18: N/A | BN18: N/A | BO18: N/A | BP18: N/A | BQ18: N/A | BR18: N/A | BS18: N/A | BT18: N/A | BU18: N/A | BV18: N/A | BW18: N/A | BX18: N/A | BY18: N/A | BZ18: N/A | CA18: N/A | CB18: N/A | CC18: N/A | CD18: N/A
B19: Limited | C19: =C16*C22/100 -> 13.06931028 | D19: =D16*D22/100 -> 13.25340123 | E19: =E16*E22/100 -> 7.976916717 | F19: 0.7730426396 | G19: 0.09935138601 | H19: 2.062634633 | I19: 0.38945099 | J19: 0.09726935823 | K19: 0 | L19: 0 | M19: 13.36493581 | N19: 13.34290956 | O19: 14.49600554 | P19: 12.51027162 | Q19: 4.447551434 | R19: 7.940112299 | S19: 1.534571818 | T19: 0.9854586537 | U19: 0.6764270676 | V19: 8.274007719 | W19: 0.2932874033 | X19: 10.67727617 | Y19: 11.48734025 | Z19: 8.147972636 | AA19: 10.64159415 | AB19: 10.24219819 | AC19: 15.19717998 | AD19: 3.926262117 | BB19: Limited | BC19: N/A | BD19: N/A | BE19: N/A | BF19: N/A | BG19: N/A | BH19: N/A | BI19: N/A | BJ19: N/A | BK19: N/A | BL19: N/A | BM19: N/A | BN19: N/A | BO19: N/A | BP19: N/A | BQ19: N/A | BR19: N/A | BS19: N/A | BT19: N/A | BU19: N/A | BV19: N/A | BW19: N/A | BX19: N/A | BY19: N/A | BZ19: N/A | CA19: N/A | CB19: N/A | CC19: N/A | CD19: N/A
B20: Unimproved | C20: =100-C18-C19-C21 -> 10.39704503 | D20: =100-D18-D19-D21 -> 7.334954691 | E20: =100-E18-E19-E21 -> 5.008486563 | F20: 2.674890662 | G20: 0.5717268633 | H20: 5.079023515 | I20: 2.637252502 | J20: 2.73064177 | K20: 0 | L20: 1.235038899 | M20: 11.96728315 | N20: 7.132397729 | O20: 8.81948531 | P20: 6.224016276 | Q20: 1.987614713 | R20: 4.786397572 | S20: 2.449523898 | T20: 0.8154416269 | U20: 0.8972277943 | V20: 5.89069549 | W20: 2.21995698 | X20: 21.43640139 | Y20: 5.742664828 | Z20: 2.53473487 | AA20: 7.287922789 | AB20: 2.15998283 | AC20: 13.26210161 | AD20: 1.843447073 | BB20: Unimproved | BC20: N/A | BD20: N/A | BE20: N/A | BF20: N/A | BG20: N/A | BH20: N/A | BI20: N/A | BJ20: N/A | BK20: N/A | BL20: N/A | BM20: N/A | BN20: N/A | BO20: N/A | BP20: N/A | BQ20: N/A | BR20: N/A | BS20: N/A | BT20: N/A | BU20: N/A | BV20: N/A | BW20: N/A | BX20: N/A | BY20: N/A | BZ20: N/A | CA20: N/A | CB20: N/A | CC20: N/A | CD20: N/A
B21: Surface water | C21: 16.17986351 | D21: 13.77575225 | E21: 5.363235723 | F21: 0.6947793828 | G21: 0.0768871315 | H21: 1.1648568 | I21: 0 | J21: 0 | K21: 0 | L21: 0 | M21: 17.69094942 | N21: 15.29254667 | O21: 14.48207267 | P21: 9.814429219 | Q21: 3.383631377 | R21: 7.959621116 | S21: 1.639737451 | T21: 0.6386929985 | U21: 2.470333971 | V21: 22.1614113 | W21: 0.01757525462 | X21: 4.415847448 | Y21: 7.232030251 | Z21: 0.465590887 | AA21: 29.74406446 | AB21: 1.215505941 | AC21: 0.8781245065 | AD21: 0 | BB21: Surface water | BC21: N/A | BD21: N/A | BE21: N/A | BF21: N/A | BG21: N/A | BH21: N/A | BI21: N/A | BJ21: N/A | BK21: N/A | BL21: N/A | BM21: N/A | BN21: N/A | BO21: N/A | BP21: N/A | BQ21: N/A | BR21: N/A | BS21: N/A | BT21: N/A | BU21: N/A | BV21: N/A | BW21: N/A | BX21: N/A | BY21: N/A | BZ21: N/A | CA21: N/A | CB21: N/A | CC21: N/A | CD21: N/A
A22: Improved water point at more than 30 minutes | B22: Yes | C22: 17.8 | D22: 16.8 | E22: 8.9 | F22: 0.8 | G22: 0.1 | H22: 2.2 | I22: 0.4 | J22: 0.1 | K22: 0 | L22: 0 | M22: 19 | N22: 17.2 | O22: 18.9 | P22: 14.9 | Q22: 4.7 | R22: 9.1 | S22: 1.6 | T22: 1 | U22: 0.7 | V22: 11.5 | W22: 0.3 | X22: 14.4 | Y22: 13.2 | Z22: 8.4 | AA22: 16.9 | AB22: 10.6 | AC22: 17.7 | AD22: 4 | BA22: Improved water point at more than 30 minutes | BB22: Yes | BC22: N/A | BD22: N/A | BE22: N/A | BF22: N/A | BG22: N/A | BH22: N/A | BI22: N/A | BJ22: N/A | BK22: N/A | BL22: N/A | BM22: N/A | BN22: N/A | BO22: N/A | BP22: N/A | BQ22: N/A | BR22: N/A | BS22: N/A | BT22: N/A | BU22: N/A | BV22: N/A | BW22: N/A | BX22: N/A | BY22: N/A | BZ22: N/A | CA22: N/A | CB22: N/A | CC22: N/A | CD22: N/A
B23: No | C23: 82.2 | D23: 83.2 | E23: 91.1 | F23: 99.2 | G23: 99.9 | H23: 97.8 | I23: 99.6 | J23: 99.9 | K23: 100 | L23: 100 | M23: 81 | N23: 82.8 | O23: 81.1 | P23: 85.1 | Q23: 95.3 | R23: 90.9 | S23: 98.4 | T23: 99 | U23: 99.3 | V23: 88.5 | W23: 99.7 | X23: 85.6 | Y23: 86.8 | Z23: 91.6 | AA23: 83.1 | AB23: 89.4 | AC23: 82.3 | AD23: 96 | BB23: No | BC23: N/A | BD23: N/A | BE23: N/A | BF23: N/A | BG23: N/A | BH23: N/A | BI23: N/A | BJ23: N/A | BK23: N/A | BL23: N/A | BM23: N/A | BN23: N/A | BO23: N/A | BP23: N/A | BQ23: N/A | BR23: N/A | BS23: N/A | BT23: N/A | BU23: N/A | BV23: N/A | BW23: N/A | BX23: N/A | BY23: N/A | BZ23: N/A | CA23: N/A | CB23: N/A | CC23: N/A | CD23: N/A
A24: Manually calculated ratios | B24: Improved wells
B25: Improved springs
B26: Other
C27: NATIONAL wealth index quintile | H27: URBAN wealth index quintile | M27: RURAL wealth index quintile | R27: SUB-REGIONS: | BA27: Raw numbers of respondents: | BB27: Use of drinking water sources | BC27: NATIONAL wealth index quintile | BH27: URBAN wealth index quintile | BM27: RURAL wealth index quintile | BR27: SUB-REGIONS:
A28: Percentage based on weighted population | C28: Poorest | D28: Poor | E28: Middle | F28: Rich | G28: Richest | H28: Poorest | I28: Poor | J28: Middle | K28: Rich | L28: Richest | M28: Poorest | N28: Poor | O28: Middle | P28: Rich | Q28: Richest | R28: Caprivi | S28: Erongo | T28: Hardap | U28: Karas | V28: Kavango | W28: Khomas | X28: Kunene | Y28: Ohangwena | Z28: Omaheke | AA28: Omusati | AB28: Oshana | AC28: Oshikoto | AD28: Otjozondjupa | BA28: Water data, raw numbers (weighted) | BC28: Poorest | BD28: Poor | BE28: Middle | BF28: Rich | BG28: Richest | BH28: Poorest | BI28: Poor | BJ28: Middle | BK28: Rich | BL28: Richest | BM28: Poorest | BN28: Poor | BO28: Middle | BP28: Rich | BQ28: Richest | BR28: Caprivi | BS28: Erongo | BT28: Hardap | BU28: Karas | BV28: Kavango | BW28: Khomas | BX28: Kunene | BY28: Ohangwena | BZ28: Omaheke | CA28: Omusati | CB28: Oshana | CC28: Oshikoto | CD28: Otjozondjupa
A29: Piped water | B29: Yes | C29: 44.5 | D29: 55.1 | E29: 74.3 | F29: 93.2 | G29: 98.8 | H29: 93.3 | I29: 96.8 | J29: 97.3 | K29: 100 | L29: 98.4 | M29: 41.1 | N29: 46.8 | O29: 51.9 | P29: 60.4 | Q29: 80.9 | R29: 48 | S29: 91.5 | T29: 87.9 | U29: 92.5 | V29: 64.6 | W29: 96.1 | X29: 40 | Y29: 47.9 | Z29: 73.5 | AA29: 52.5 | AB29: 90.8 | AC29: 68.1 | AD29: 85.8 | BA29: Piped water | BB29: Yes | BC29: N/A | BD29: N/A | BE29: N/A | BF29: N/A | BG29: N/A | BH29: N/A | BI29: N/A | BJ29: N/A | BK29: N/A | BL29: N/A | BM29: N/A | BN29: N/A | BO29: N/A | BP29: N/A | BQ29: N/A | BR29: N/A | BS29: N/A | BT29: N/A | BU29: N/A | BV29: N/A | BW29: N/A | BX29: N/A | BY29: N/A | BZ29: N/A | CA29: N/A | CB29: N/A | CC29: N/A | CD29: N/A
B30: No | C30: 55.5 | D30: 44.9 | E30: 25.7 | F30: 6.8 | G30: 1.2 | H30: 6.7 | I30: 3.2 | J30: 2.7 | K30: 0 | L30: 1.6 | M30: 58.9 | N30: 53.2 | O30: 48.1 | P30: 39.6 | Q30: 19.1 | R30: 52 | S30: 8.5 | T30: 12.1 | U30: 7.5 | V30: 35.4 | W30: 3.9 | X30: 60 | Y30: 52.1 | Z30: 26.5 | AA30: 47.5 | AB30: 9.2 | AC30: 31.9 | AD30: 14.2 | BB30: No | BC30: N/A | BD30: N/A | BE30: N/A | BF30: N/A | BG30: N/A | BH30: N/A | BI30: N/A | BJ30: N/A | BK30: N/A | BL30: N/A | BM30: N/A | BN30: N/A | BO30: N/A | BP30: N/A | BQ30: N/A | BR30: N/A | BS30: N/A | BT30: N/A | BU30: N/A | BV30: N/A | BW30: N/A | BX30: N/A | BY30: N/A | BZ30: N/A | CA30: N/A | CB30: N/A | CC30: N/A | CD30: N/A
A31: Piped water on premises | B31: Yes | C31: 7.6 | D31: 13.7 | E31: 37.1 | F31: 81.2 | G31: 98.4 | H31: 36.7 | I31: 78 | J31: 94.5 | K31: 99.8 | L31: 98.4 | M31: 4.5 | N31: 8.2 | O31: 12.2 | P31: 28.6 | Q31: 65 | R31: 13.1 | S31: 82.1 | T31: 62 | U31: 79.1 | V31: 31.7 | W31: 85 | X31: 29 | Y31: 13.4 | Z31: 61.5 | AA31: 19.5 | AB31: 42.7 | AC31: 32.4 | AD31: 65.1 | BA31: Piped water on premises | BB31: Yes | BC31: N/A | BD31: N/A | BE31: N/A | BF31: N/A | BG31: N/A | BH31: N/A | BI31: N/A | BJ31: N/A | BK31: N/A | BL31: N/A | BM31: N/A | BN31: N/A | BO31: N/A | BP31: N/A | BQ31: N/A | BR31: N/A | BS31: N/A | BT31: N/A | BU31: N/A | BV31: N/A | BW31: N/A | BX31: N/A | BY31: N/A | BZ31: N/A | CA31: N/A | CB31: N/A | CC31: N/A | CD31: N/A
B32: No | C32: 92.4 | D32: 86.3 | E32: 62.9 | F32: 18.8 | G32: 1.6 | H32: 63.3 | I32: 22 | J32: 5.5 | K32: 0.2 | L32: 1.6 | M32: 95.5 | N32: 91.8 | O32: 87.8 | P32: 71.4 | Q32: 35 | R32: 86.9 | S32: 17.9 | T32: 38 | U32: 20.9 | V32: 68.3 | W32: 15 | X32: 71 | Y32: 86.6 | Z32: 38.5 | AA32: 80.5 | AB32: 57.3 | AC32: 67.6 | AD32: 34.9 | BB32: No | BC32: N/A | BD32: N/A | BE32: N/A | BF32: N/A | BG32: N/A | BH32: N/A | BI32: N/A | BJ32: N/A | BK32: N/A | BL32: N/A | BM32: N/A | BN32: N/A | BO32: N/A | BP32: N/A | BQ32: N/A | BR32: N/A | BS32: N/A | BT32: N/A | BU32: N/A | BV32: N/A | BW32: N/A | BX32: N/A | BY32: N/A | BZ32: N/A | CA32: N/A | CB32: N/A | CC32: N/A | CD32: N/A
A33: Piped water into dwelling | B33: Yes | C33: N/A | D33: N/A | E33: N/A | F33: N/A | G33: N/A | H33: N/A | I33: N/A | J33: N/A | K33: N/A | L33: N/A | M33: N/A | N33: N/A | O33: N/A | P33: N/A | Q33: N/A | R33: N/A | S33: N/A | T33: N/A | U33: N/A | V33: N/A | W33: N/A | X33: N/A | Y33: N/A | Z33: N/A | AA33: N/A | AB33: N/A | AC33: N/A | AD33: N/A | BA33: Piped water into dwelling | BB33: Yes | BC33: N/A | BD33: N/A | BE33: N/A | BF33: N/A | BG33: N/A | BH33: N/A | BI33: N/A | BJ33: N/A | BK33: N/A | BL33: N/A | BM33: N/A | BN33: N/A | BO33: N/A | BP33: N/A | BQ33: N/A | BR33: N/A | BS33: N/A | BT33: N/A | BU33: N/A | BV33: N/A | BW33: N/A | BX33: N/A | BY33: N/A | BZ33: N/A | CA33: N/A | CB33: N/A | CC33: N/A | CD33: N/A
B34: No | C34: N/A | D34: N/A | E34: N/A | F34: N/A | G34: N/A | H34: N/A | I34: N/A | J34: N/A | K34: N/A | L34: N/A | M34: N/A | N34: N/A | O34: N/A | P34: N/A | Q34: N/A | R34: N/A | S34: N/A | T34: N/A | U34: N/A | V34: N/A | W34: N/A | X34: N/A | Y34: N/A | Z34: N/A | AA34: N/A | AB34: N/A | AC34: N/A | AD34: N/A | BB34: No | BC34: N/A | BD34: N/A | BE34: N/A | BF34: N/A | BG34: N/A | BH34: N/A | BI34: N/A | BJ34: N/A | BK34: N/A | BL34: N/A | BM34: N/A | BN34: N/A | BO34: N/A | BP34: N/A | BQ34: N/A | BR34: N/A | BS34: N/A | BT34: N/A | BU34: N/A | BV34: N/A | BW34: N/A | BX34: N/A | BY34: N/A | BZ34: N/A | CA34: N/A | CB34: N/A | CC34: N/A | CD34: N/A
A35: Water source on premises | B35: Yes | C35: 14 | D35: 20.9 | E35: 41.8 | F35: 83 | G35: 99.1 | H35: 38.2 | I35: 79.1 | J35: 94.8 | K35: 99.8 | L35: 99.2 | M35: 10.1 | N35: 16 | O35: 19.7 | P35: 35.9 | Q35: 69.6 | R35: 18.5 | S35: 84.3 | T35: 67.5 | U35: 81.8 | V35: 32.4 | W35: 85.9 | X35: 31.3 | Y35: 23.4 | Z35: 63.8 | AA35: 28.1 | AB35: 48.3 | AC35: 37.1 | AD35: 67.7 | BA35: Water source on premises | BB35: Yes | BC35: N/A | BD35: N/A | BE35: N/A | BF35: N/A | BG35: N/A | BH35: N/A | BI35: N/A | BJ35: N/A | BK35: N/A | BL35: N/A | BM35: N/A | BN35: N/A | BO35: N/A | BP35: N/A | BQ35: N/A | BR35: N/A | BS35: N/A | BT35: N/A | BU35: N/A | BV35: N/A | BW35: N/A | BX35: N/A | BY35: N/A | BZ35: N/A | CA35: N/A | CB35: N/A | CC35: N/A | CD35: N/A
B36: No | C36: 86 | D36: 79.1 | E36: 58.2 | F36: 17 | G36: 0.9 | H36: 61.8 | I36: 20.9 | J36: 5.2 | K36: 0.2 | L36: 0.8 | M36: 89.9 | N36: 84 | O36: 80.3 | P36: 64.1 | Q36: 30.4 | R36: 81.5 | S36: 15.7 | T36: 32.5 | U36: 18.2 | V36: 67.6 | W36: 14.1 | X36: 68.7 | Y36: 76.6 | Z36: 36.2 | AA36: 71.9 | AB36: 51.7 | AC36: 62.9 | AD36: 32.3 | BB36: No | BC36: N/A | BD36: N/A | BE36: N/A | BF36: N/A | BG36: N/A | BH36: N/A | BI36: N/A | BJ36: N/A | BK36: N/A | BL36: N/A | BM36: N/A | BN36: N/A | BO36: N/A | BP36: N/A | BQ36: N/A | BR36: N/A | BS36: N/A | BT36: N/A | BU36: N/A | BV36: N/A | BW36: N/A | BX36: N/A | BY36: N/A | BZ36: N/A | CA36: N/A | CB36: N/A | CC36: N/A | CD36: N/A
A37: Improved Water source on premises | B37: Yes | C37: 12 | D37: 19.8 | E37: 41.2 | F37: 82.8 | G37: 98.8 | H37: 38.1 | I37: 79.1 | J37: 94.8 | K37: 99.8 | L37: 98.7 | M37: 7.8 | N37: 14.7 | O37: 18.4 | P37: 34.8 | Q37: 68.9 | R37: 17.9 | S37: 83.7 | T37: 67.5 | U37: 81.5 | V37: 32.3 | W37: 85.7 | X37: 30.9 | Y37: 21.7 | Z37: 63.8 | AA37: 25.8 | AB37: 48 | AC37: 34.9 | AD37: 67.3 | BA37: Improved water source on premises | BB37: Yes | BC37: N/A | BD37: N/A | BE37: N/A | BF37: N/A | BG37: N/A | BH37: N/A | BI37: N/A | BJ37: N/A | BK37: N/A | BL37: N/A | BM37: N/A | BN37: N/A | BO37: N/A | BP37: N/A | BQ37: N/A | BR37: N/A | BS37: N/A | BT37: N/A | BU37: N/A | BV37: N/A | BW37: N/A | BX37: N/A | BY37: N/A | BZ37: N/A | CA37: N/A | CB37: N/A | CC37: N/A | CD37: N/A
B38: No | C38: 88 | D38: 80.2 | E38: 58.8 | F38: 17.2 | G38: 1.2 | H38: 61.9 | I38: 20.9 | J38: 5.2 | K38: 0.2 | L38: 1.3 | M38: 92.2 | N38: 85.3 | O38: 81.6 | P38: 65.2 | Q38: 31.1 | R38: 82.1 | S38: 16.3 | T38: 32.5 | U38: 18.5 | V38: 67.7 | W38: 14.3 | X38: 69.1 | Y38: 78.3 | Z38: 36.2 | AA38: 74.2 | AB38: 52 | AC38: 65.1 | AD38: 32.7 | BB38: No | BC38: N/A | BD38: N/A | BE38: N/A | BF38: N/A | BG38: N/A | BH38: N/A | BI38: N/A | BJ38: N/A | BK38: N/A | BL38: N/A | BM38: N/A | BN38: N/A | BO38: N/A | BP38: N/A | BQ38: N/A | BR38: N/A | BS38: N/A | BT38: N/A | BU38: N/A | BV38: N/A | BW38: N/A | BX38: N/A | BY38: N/A | BZ38: N/A | CA38: N/A | CB38: N/A | CC38: N/A | CD38: N/A
A39: Piped water on premises available when needed | B39: Yes | C39: N/A | D39: N/A | E39: N/A | F39: N/A | G39: N/A | H39: N/A | I39: N/A | J39: N/A | K39: N/A | L39: N/A | M39: N/A | N39: N/A | O39: N/A | P39: N/A | Q39: N/A | R39: N/A | S39: N/A | T39: N/A | U39: N/A | V39: N/A | W39: N/A | X39: N/A | Y39: N/A | Z39: N/A | AA39: N/A | AB39: N/A | AC39: N/A | AD39: N/A | BA39: Piped water on premises available when needed | BB39: Yes | BC39: N/A | BD39: N/A | BE39: N/A | BF39: N/A | BG39: N/A | BH39: N/A | BI39: N/A | BJ39: N/A | BK39: N/A | BL39: N/A | BM39: N/A | BN39: N/A | BO39: N/A | BP39: N/A | BQ39: N/A | BR39: N/A | BS39: N/A | BT39: N/A | BU39: N/A | BV39: N/A | BW39: N/A | BX39: N/A | BY39: N/A | BZ39: N/A | CA39: N/A | CB39: N/A | CC39: N/A | CD39: N/A
B40: No | C40: N/A | D40: N/A | E40: N/A | F40: N/A | G40: N/A | H40: N/A | I40: N/A | J40: N/A | K40: N/A | L40: N/A | M40: N/A | N40: N/A | O40: N/A | P40: N/A | Q40: N/A | R40: N/A | S40: N/A | T40: N/A | U40: N/A | V40: N/A | W40: N/A | X40: N/A | Y40: N/A | Z40: N/A | AA40: N/A | AB40: N/A | AC40: N/A | AD40: N/A | BB40: No | BC40: N/A | BD40: N/A | BE40: N/A | BF40: N/A | BG40: N/A | BH40: N/A | BI40: N/A | BJ40: N/A | BK40: N/A | BL40: N/A | BM40: N/A | BN40: N/A | BO40: N/A | BP40: N/A | BQ40: N/A | BR40: N/A | BS40: N/A | BT40: N/A | BU40: N/A | BV40: N/A | BW40: N/A | BX40: N/A | BY40: N/A | BZ40: N/A | CA40: N/A | CB40: N/A | CC40: N/A | CD40: N/A
A41: Water point at more than 30 minutes | B41: Yes | C41: 19.1 | D41: 17.7 | E41: 9.8 | F41: 1.1 | G41: 0.1 | H41: 2.8 | I41: 0.7 | J41: 0.2 | K41: 0 | L41: 0.1 | M41: 21.1 | N41: 18 | O41: 18.9 | P41: 16 | Q41: 4.8 | R41: 8.7 | S41: 2.1 | T41: 0.9 | U41: 1.4 | V41: 15 | W41: 0.4 | X41: 18.3 | Y41: 13.6 | Z41: 8.3 | AA41: 18.6 | AB41: 10.8 | AC41: 18.8 | AD41: 4.4 | BA41: Water point at more than 30 minutes | BB41: Yes | BC41: N/A | BD41: N/A | BE41: N/A | BF41: N/A | BG41: N/A | BH41: N/A | BI41: N/A | BJ41: N/A | BK41: N/A | BL41: N/A | BM41: N/A | BN41: N/A | BO41: N/A | BP41: N/A | BQ41: N/A | BR41: N/A | BS41: N/A | BT41: N/A | BU41: N/A | BV41: N/A | BW41: N/A | BX41: N/A | BY41: N/A | BZ41: N/A | CA41: N/A | CB41: N/A | CC41: N/A | CD41: N/A
B42: No | C42: 80.9 | D42: 82.3 | E42: 90.2 | F42: 98.9 | G42: 99.9 | H42: 97.2 | I42: 99.3 | J42: 99.8 | K42: 100 | L42: 99.9 | M42: 78.9 | N42: 82 | O42: 81.1 | P42: 84 | Q42: 95.2 | R42: 91.3 | S42: 97.9 | T42: 99.1 | U42: 98.6 | V42: 85 | W42: 99.6 | X42: 81.7 | Y42: 86.4 | Z42: 91.7 | AA42: 81.4 | AB42: 89.2 | AC42: 81.2 | AD42: 95.6 | BB42: No | BC42: N/A | BD42: N/A | BE42: N/A | BF42: N/A | BG42: N/A | BH42: N/A | BI42: N/A | BJ42: N/A | BK42: N/A | BL42: N/A | BM42: N/A | BN42: N/A | BO42: N/A | BP42: N/A | BQ42: N/A | BR42: N/A | BS42: N/A | BT42: N/A | BU42: N/A | BV42: N/A | BW42: N/A | BX42: N/A | BY42: N/A | BZ42: N/A | CA42: N/A | CB42: N/A | CC42: N/A | CD42: N/A
A43: Water source available when needed | B43: Yes | C43: N/A | D43: N/A | E43: N/A | F43: N/A | G43: N/A | H43: N/A | I43: N/A | J43: N/A | K43: N/A | L43: N/A | M43: N/A | N43: N/A | O43: N/A | P43: N/A | Q43: N/A | R43: N/A | S43: N/A | T43: N/A | U43: N/A | V43: N/A | W43: N/A | X43: N/A | Y43: N/A | Z43: N/A | AA43: N/A | AB43: N/A | AC43: N/A | AD43: N/A | BA43: Water source available when needed | BB43: Yes | BC43: N/A | BD43: N/A | BE43: N/A | BF43: N/A | BG43: N/A | BH43: N/A | BI43: N/A | BJ43: N/A | BK43: N/A | BL43: N/A | BM43: N/A | BN43: N/A | BO43: N/A | BP43: N/A | BQ43: N/A | BR43: N/A | BS43: N/A | BT43: N/A | BU43: N/A | BV43: N/A | BW43: N/A | BX43: N/A | BY43: N/A | BZ43: N/A | CA43: N/A | CB43: N/A | CC43: N/A | CD43: N/A
B44: No | C44: N/A | D44: N/A | E44: N/A | F44: N/A | G44: N/A | H44: N/A | I44: N/A | J44: N/A | K44: N/A | L44: N/A | M44: N/A | N44: N/A | O44: N/A | P44: N/A | Q44: N/A | R44: N/A | S44: N/A | T44: N/A | U44: N/A | V44: N/A | W44: N/A | X44: N/A | Y44: N/A | Z44: N/A | AA44: N/A | AB44: N/A | AC44: N/A | AD44: N/A | BB44: No | BC44: N/A | BD44: N/A | BE44: N/A | BF44: N/A | BG44: N/A | BH44: N/A | BI44: N/A | BJ44: N/A | BK44: N/A | BL44: N/A | BM44: N/A | BN44: N/A | BO44: N/A | BP44: N/A | BQ44: N/A | BR44: N/A | BS44: N/A | BT44: N/A | BU44: N/A | BV44: N/A | BW44: N/A | BX44: N/A | BY44: N/A | BZ44: N/A | CA44: N/A | CB44: N/A | CC44: N/A | CD44: N/A
A45: Improved water source available when needed | B45: Yes | C45: N/A | D45: N/A | E45: N/A | F45: N/A | G45: N/A | H45: N/A | I45: N/A | J45: N/A | K45: N/A | L45: N/A | M45: N/A | N45: N/A | O45: N/A | P45: N/A | Q45: N/A | R45: N/A | S45: N/A | T45: N/A | U45: N/A | V45: N/A | W45: N/A | X45: N/A | Y45: N/A | Z45: N/A | AA45: N/A | AB45: N/A | AC45: N/A | AD45: N/A | BA45: Improved water source available when needed | BB45: Yes | BC45: N/A | BD45: N/A | BE45: N/A | BF45: N/A | BG45: N/A | BH45: N/A | BI45: N/A | BJ45: N/A | BK45: N/A | BL45: N/A | BM45: N/A | BN45: N/A | BO45: N/A | BP45: N/A | BQ45: N/A | BR45: N/A | BS45: N/A | BT45: N/A | BU45: N/A | BV45: N/A | BW45: N/A | BX45: N/A | BY45: N/A | BZ45: N/A | CA45: N/A | CB45: N/A | CC45: N/A | CD45: N/A
B46: No | C46: N/A | D46: N/A | E46: N/A | F46: N/A | G46: N/A | H46: N/A | I46: N/A | J46: N/A | K46: N/A | L46: N/A | M46: N/A | N46: N/A | O46: N/A | P46: N/A | Q46: N/A | R46: N/A | S46: N/A | T46: N/A | U46: N/A | V46: N/A | W46: N/A | X46: N/A | Y46: N/A | Z46: N/A | AA46: N/A | AB46: N/A | AC46: N/A | AD46: N/A | BB46: No | BC46: N/A | BD46: N/A | BE46: N/A | BF46: N/A | BG46: N/A | BH46: N/A | BI46: N/A | BJ46: N/A | BK46: N/A | BL46: N/A | BM46: N/A | BN46: N/A | BO46: N/A | BP46: N/A | BQ46: N/A | BR46: N/A | BS46: N/A | BT46: N/A | BU46: N/A | BV46: N/A | BW46: N/A | BX46: N/A | BY46: N/A | BZ46: N/A | CA46: N/A | CB46: N/A | CC46: N/A | CD46: N/A
A47: Microbiological quality at point of collection | B47: Not contaminated (No E. coli in 100 mL) | C47: N/A | D47: N/A | E47: N/A | F47: N/A | G47: N/A | H47: N/A | I47: N/A | J47: N/A | K47: N/A | L47: N/A | M47: N/A | N47: N/A | O47: N/A | P47: N/A | Q47: N/A | R47: N/A | S47: N/A | T47: N/A | U47: N/A | V47: N/A | W47: N/A | X47: N/A | Y47: N/A | Z47: N/A | AA47: N/A | AB47: N/A | AC47: N/A | AD47: N/A | BA47: Microbiological quality at point of collection | BB47: Not contaminated (No E. coli in 100 mL) | BC47: N/A | BD47: N/A | BE47: N/A | BF47: N/A | BG47: N/A | BH47: N/A | BI47: N/A | BJ47: N/A | BK47: N/A | BL47: N/A | BM47: N/A | BN47: N/A | BO47: N/A | BP47: N/A | BQ47: N/A | BR47: N/A | BS47: N/A | BT47: N/A | BU47: N/A | BV47: N/A | BW47: N/A | BX47: N/A | BY47: N/A | BZ47: N/A | CA47: N/A | CB47: N/A | CC47: N/A | CD47: N/A
B48: Contaminated (E. coli detected in 100 mL) | C48: N/A | D48: N/A | E48: N/A | F48: N/A | G48: N/A | H48: N/A | I48: N/A | J48: N/A | K48: N/A | L48: N/A | M48: N/A | N48: N/A | O48: N/A | P48: N/A | Q48: N/A | R48: N/A | S48: N/A | T48: N/A | U48: N/A | V48: N/A | W48: N/A | X48: N/A | Y48: N/A | Z48: N/A | AA48: N/A | AB48: N/A | AC48: N/A | AD48: N/A | BB48: Contaminated (E. coli detected in 100 mL) | BC48: N/A | BD48: N/A | BE48: N/A | BF48: N/A | BG48: N/A | BH48: N/A | BI48: N/A | BJ48: N/A | BK48: N/A | BL48: N/A | BM48: N/A | BN48: N/A | BO48: N/A | BP48: N/A | BQ48: N/A | BR48: N/A | BS48: N/A | BT48: N/A | BU48: N/A | BV48: N/A | BW48: N/A | BX48: N/A | BY48: N/A | BZ48: N/A | CA48: N/A | CB48: N/A | CC48: N/A | CD48: N/A
B49: Highly contaminated (>100 CFU/100 mL) | C49: N/A | D49: N/A | E49: N/A | F49: N/A | G49: N/A | H49: N/A | I49: N/A | J49: N/A | K49: N/A | L49: N/A | M49: N/A | N49: N/A | O49: N/A | P49: N/A | Q49: N/A | R49: N/A | S49: N/A | T49: N/A | U49: N/A | V49: N/A | W49: N/A | X49: N/A | Y49: N/A | Z49: N/A | AA49: N/A | AB49: N/A | AC49: N/A | AD49: N/A | BB49: Highly contaminated (>100 CFU/100 mL) | BC49: N/A | BD49: N/A | BE49: N/A | BF49: N/A | BG49: N/A | BH49: N/A | BI49: N/A | BJ49: N/A | BK49: N/A | BL49: N/A | BM49: N/A | BN49: N/A | BO49: N/A | BP49: N/A | BQ49: N/A | BR49: N/A | BS49: N/A | BT49: N/A | BU49: N/A | BV49: N/A | BW49: N/A | BX49: N/A | BY49: N/A | BZ49: N/A | CA49: N/A | CB49: N/A | CC49: N/A | CD49: N/A
A50: Microbiological quality of improved water sources at point of collection | B50: Not contaminated (No E. coli in 100 mL) | C50: N/A | D50: N/A | E50: N/A | F50: N/A | G50: N/A | H50: N/A | I50: N/A | J50: N/A | K50: N/A | L50: N/A | M50: N/A | N50: N/A | O50: N/A | P50: N/A | Q50: N/A | R50: N/A | S50: N/A | T50: N/A | U50: N/A | V50: N/A | W50: N/A | X50: N/A | Y50: N/A | Z50: N/A | AA50: N/A | AB50: N/A | AC50: N/A | AD50: N/A | BA50: Microbiological quality of improved water sources at point of collection | BB50: Not contaminated (No E. coli in 100 mL) | BC50: N/A | BD50: N/A | BE50: N/A | BF50: N/A | BG50: N/A | BH50: N/A | BI50: N/A | BJ50: N/A | BK50: N/A | BL50: N/A | BM50: N/A | BN50: N/A | BO50: N/A | BP50: N/A | BQ50: N/A | BR50: N/A | BS50: N/A | BT50: N/A | BU50: N/A | BV50: N/A | BW50: N/A | BX50: N/A | BY50: N/A | BZ50: N/A | CA50: N/A | CB50: N/A | CC50: N/A | CD50: N/A
B51: Contaminated (E. coli detected in 100 mL) | C51: N/A | D51: N/A | E51: N/A | F51: N/A | G51: N/A | H51: N/A | I51: N/A | J51: N/A | K51: N/A | L51: N/A | M51: N/A | N51: N/A | O51: N/A | P51: N/A | Q51: N/A | R51: N/A | S51: N/A | T51: N/A | U51: N/A | V51: N/A | W51: N/A | X51: N/A | Y51: N/A | Z51: N/A | AA51: N/A | AB51: N/A | AC51: N/A | AD51: N/A | BB51: Contaminated (E. coli detected in 100 mL) | BC51: N/A | BD51: N/A | BE51: N/A | BF51: N/A | BG51: N/A | BH51: N/A | BI51: N/A | BJ51: N/A | BK51: N/A | BL51: N/A | BM51: N/A | BN51: N/A | BO51: N/A | BP51: N/A | BQ51: N/A | BR51: N/A | BS51: N/A | BT51: N/A | BU51: N/A | BV51: N/A | BW51: N/A | BX51: N/A | BY51: N/A | BZ51: N/A | CA51: N/A | CB51: N/A | CC51: N/A | CD51: N/A
B52: Highly contaminated (>100 CFU/100 mL) | C52: N/A | D52: N/A | E52: N/A | F52: N/A | G52: N/A | H52: N/A | I52: N/A | J52: N/A | K52: N/A | L52: N/A | M52: N/A | N52: N/A | O52: N/A | P52: N/A | Q52: N/A | R52: N/A | S52: N/A | T52: N/A | U52: N/A | V52: N/A | W52: N/A | X52: N/A | Y52: N/A | Z52: N/A | AA52: N/A | AB52: N/A | AC52: N/A | AD52: N/A | BB52: Highly contaminated (>100 CFU/100 mL) | BC52: N/A | BD52: N/A | BE52: N/A | BF52: N/A | BG52: N/A | BH52: N/A | BI52: N/A | BJ52: N/A | BK52: N/A | BL52: N/A | BM52: N/A | BN52: N/A | BO52: N/A | BP52: N/A | BQ52: N/A | BR52: N/A | BS52: N/A | BT52: N/A | BU52: N/A | BV52: N/A | BW52: N/A | BX52: N/A | BY52: N/A | BZ52: N/A | CA52: N/A | CB52: N/A | CC52: N/A | CD52: N/A
A53: Microbiological quality of piped on premises at point of collection | B53: Not contaminated (No E. coli in 100 mL) | C53: N/A | D53: N/A | E53: N/A | F53: N/A | G53: N/A | H53: N/A | I53: N/A | J53: N/A | K53: N/A | L53: N/A | M53: N/A | N53: N/A | O53: N/A | P53: N/A | Q53: N/A | R53: N/A | S53: N/A | T53: N/A | U53: N/A | V53: N/A | W53: N/A | X53: N/A | Y53: N/A | Z53: N/A | AA53: N/A | AB53: N/A | AC53: N/A | AD53: N/A | BA53: Microbiological quality of piped on premises at point of collection | BB53: Not contaminated (No E. coli in 100 mL) | BC53: N/A | BD53: N/A | BE53: N/A | BF53: N/A | BG53: N/A | BH53: N/A | BI53: N/A | BJ53: N/A | BK53: N/A | BL53: N/A | BM53: N/A | BN53: N/A | BO53: N/A | BP53: N/A | BQ53: N/A | BR53: N/A | BS53: N/A | BT53: N/A | BU53: N/A | BV53: N/A | BW53: N/A | BX53: N/A | BY53: N/A | BZ53: N/A | CA53: N/A | CB53: N/A | CC53: N/A | CD53: N/A
B54: Contaminated (E. coli detected in 100 mL) | C54: N/A | D54: N/A | E54: N/A | F54: N/A | G54: N/A | H54: N/A | I54: N/A | J54: N/A | K54: N/A | L54: N/A | M54: N/A | N54: N/A | O54: N/A | P54: N/A | Q54: N/A | R54: N/A | S54: N/A | T54: N/A | U54: N/A | V54: N/A | W54: N/A | X54: N/A | Y54: N/A | Z54: N/A | AA54: N/A | AB54: N/A | AC54: N/A | AD54: N/A | BB54: Contaminated (E. coli detected in 100 mL) | BC54: N/A | BD54: N/A | BE54: N/A | BF54: N/A | BG54: N/A | BH54: N/A | BI54: N/A | BJ54: N/A | BK54: N/A | BL54: N/A | BM54: N/A | BN54: N/A | BO54: N/A | BP54: N/A | BQ54: N/A | BR54: N/A | BS54: N/A | BT54: N/A | BU54: N/A | BV54: N/A | BW54: N/A | BX54: N/A | BY54: N/A | BZ54: N/A | CA54: N/A | CB54: N/A | CC54: N/A | CD54: N/A
B55: Highly contaminated (>100 CFU/100 mL) | C55: N/A | D55: N/A | E55: N/A | F55: N/A | G55: N/A | H55: N/A | I55: N/A | J55: N/A | K55: N/A | L55: N/A | M55: N/A | N55: N/A | O55: N/A | P55: N/A | Q55: N/A | R55: N/A | S55: N/A | T55: N/A | U55: N/A | V55: N/A | W55: N/A | X55: N/A | Y55: N/A | Z55: N/A | AA55: N/A | AB55: N/A | AC55: N/A | AD55: N/A | BB55: Highly contaminated (>100 CFU/100 mL) | BC55: N/A | BD55: N/A | BE55: N/A | BF55: N/A | BG55: N/A | BH55: N/A | BI55: N/A | BJ55: N/A | BK55: N/A | BL55: N/A | BM55: N/A | BN55: N/A | BO55: N/A | BP55: N/A | BQ55: N/A | BR55: N/A | BS55: N/A | BT55: N/A | BU55: N/A | BV55: N/A | BW55: N/A | BX55: N/A | BY55: N/A | BZ55: N/A | CA55: N/A | CB55: N/A | CC55: N/A | CD55: N/A
C56: NATIONAL wealth index quintile | H56: URBAN wealth index quintile | M56: RURAL wealth index quintile | R56: SUB-REGIONS: | BA56: Raw numbers of respondents: | BB56: Use of drinking water sources | BC56: NATIONAL wealth index quintile | BH56: URBAN wealth index quintile | BM56: RURAL wealth index quintile | BR56: SUB-REGIONS:
A57: Percentage based on weighted population | C57: Poorest | D57: Poor | E57: Middle | F57: Rich | G57: Richest | H57: Poorest | I57: Poor | J57: Middle | K57: Rich | L57: Richest | M57: Poorest | N57: Poor | O57: Middle | P57: Rich | Q57: Richest | R57: Caprivi | S57: Erongo | T57: Hardap | U57: Karas | V57: Kavango | W57: Khomas | X57: Kunene | Y57: Ohangwena | Z57: Omaheke | AA57: Omusati | AB57: Oshana | AC57: Oshikoto | AD57: Otjozondjupa | BA57: Water data, raw numbers (weighted) | BC57: Poorest | BD57: Poor | BE57: Middle | BF57: Rich | BG57: Richest | BH57: Poorest | BI57: Poor | BJ57: Middle | BK57: Rich | BL57: Richest | BM57: Poorest | BN57: Poor | BO57: Middle | BP57: Rich | BQ57: Richest | BR57: Caprivi | BS57: Erongo | BT57: Hardap | BU57: Karas | BV57: Kavango | BW57: Khomas | BX57: Kunene | BY57: Ohangwena | BZ57: Omaheke | CA57: Omusati | CB57: Oshana | CC57: Oshikoto | CD57: Otjozondjupa
A58: Source of drinking water | B58: Piped into dwelling | C58: 2.902456579 | D58: 6.208061027 | E58: 13.95428236 | F58: 47.66660851 | G58: 90.21649265 | H58: 13.13682075 | I58: 40.86411575 | J58: 68.16966165 | K58: 91.53028158 | L58: 94.07463723 | M58: 1.771969848 | N58: 3.75509717 | O58: 5.184973004 | P58: 10.02019382 | Q58: 36.53412673 | R58: 8.512443088 | S58: 65.07126952 | T58: 41.89019642 | U58: 50.27234335 | V58: 15.67870277 | W58: 69.07178493 | X58: 18.34950251 | Y58: 7.680440395 | Z58: 14.59114465 | AA58: 12.96912954 | AB58: 24.41065039 | AC58: 24.60748277 | AD58: 36.43891806
B59: Piped to yard/plot | C59: 4.710689269 | D59: 7.536252107 | E59: 23.17821212 | F59: 33.53717454 | G59: 6.804587894 | H59: 23.59381082 | I59: 37.07205297 | J59: 26.2983268 | K59: 7.983012041 | L59: 1.382880534 | M59: 2.770331854 | N59: 4.398061366 | O59: 7.034877612 | P59: 18.62852187 | Q59: 28.43419883 | R59: 4.580599328 | S59: 16.17582702 | T59: 20.13972799 | U59: 28.8204682 | V59: 16.04903195 | W59: 14.8418904 | X59: 10.54631803 | Y59: 5.728526749 | Z59: 46.84087809 | AA59: 6.513920033 | AB59: 18.27309568 | AC59: 7.806409906 | AD59: 28.64489763
B60: Public tap/standpipe | C60: 36.8663657 | D60: 41.32948263 | E60: 37.15918881 | F60: 11.96772329 | G60: 0.3964241208 | H60: 56.56738843 | I60: 18.80697148 | J60: 2.756659587 | K60: 0.2217081022 | L60: 0 | M60: 36.53845985 | N60: 38.69113132 | O60: 39.71918289 | P60: 31.74195004 | Q60: 15.9274247 | R60: 34.90435986 | S60: 9.365443476 | T60: 25.88379081 | U60: 13.36241285 | V60: 32.89916998 | W60: 11.12240608 | X60: 10.94929094 | Y60: 34.53830309 | Z60: 11.93337271 | AA60: 33.05639012 | AB60: 48.07258953 | AC60: 35.65330265 | AD60: 20.66115156
B61: Tube well or borehole | C61: 21.58136752 | D61: 13.18194725 | E61: 10.77863532 | F61: 1.80988267 | G61: 0.337259035 | H61: 0.05836326551 | I61: 0 | J61: 0 | K61: 0.01994288067 | L61: 0 | M61: 23.62271622 | N61: 18.97279508 | O61: 13.81474911 | P61: 15.10302666 | Q61: 9.738452959 | R61: 34.46879957 | S61: 2.985451508 | T61: 6.454491823 | U61: 1.837054648 | V61: 5.13836595 | W61: 1.278932454 | X61: 29.02301548 | Y61: 24.99402812 | Z61: 21.92035094 | AA61: 3.609429575 | AB61: 0.7079044516 | AC61: 7.814988411 | AD61: 9.005376006
B62: Protected well | C62: 4.107099981 | D62: 6.550194017 | E62: 2.473650724 | F62: 0.8153734641 | G62: 0 | H62: 0 | I62: 0 | J62: 0 | K62: 0 | L62: 0 | M62: 3.280697327 | N62: 6.887787662 | O62: 6.790684296 | P62: 4.582878392 | Q62: 2.281896248 | R62: 4.433233242 | S62: 1.201411037 | T62: 1.030462017 | U62: 0.05567213921 | V62: 0.3191911844 | W62: 0.1843740744 | X62: 2.824836951 | Y62: 11.48610952 | Z62: 1.477262441 | AA62: 0.5009489313 | AB62: 0.5012325735 | AC62: 8.124901296 | AD62: 1.584847656
B63: Unprotected well | C63: 8.032683371 | D63: 6.097430566 | E63: 2.303348404 | F63: 0.2978102492 | G63: 0 | H63: 0.4579484273 | I63: 0.04200368672 | J63: 0 | K63: 0 | L63: 0 | M63: 9.766480434 | N63: 5.969486797 | O63: 7.238754064 | P63: 4.245806989 | Q63: 0.9513807153 | R63: 3.645240995 | S63: 0 | T63: 0 | U63: 0.364820917 | V63: 2.713289796 | W63: 0.06905068579 | X63: 5.595375588 | Y63: 5.417829498 | Z63: 1.317427903 | AA63: 7.047919487 | AB63: 1.982665815 | AC63: 12.29425611 | AD63: 0
B64: Protected spring | C64: 0.5968299739 | D64: 0.4645391928 | E64: 0.05796850296 | F64: 0.1211122891 | G64: 0.05274704956 | H64: 0 | I64: 0.2140269928 | J64: 0 | K64: 0 | L64: 0.0902658306 | M64: 0.5367950512 | N64: 0.4926058305 | O64: 0.320910117 | P64: 0.5588309794 | Q64: 0.08189067412 | R64: 0 | S64: 0 | T64: 0.2265283055 | U64: 0 | V64: 0.08680291404 | W64: 0.01335439568 | X64: 0.4983134305 | Y64: 1.228440156 | Z64: 0 | AA64: 0 | AB64: 0.01687485036 | AC64: 0.5175914708 | AD64: 0.6274608304
B65: Unprotected spring | C65: 0.8876801627 | D65: 0.5693780822 | E65: 0.6350872473 | F65: 0.09745803543 | G65: 0.02190569809 | H65: 0 | I65: 0.04501858979 | J65: 0 | K65: 0 | L65: 0 | M65: 1.189669067 | N65: 0.4272310397 | O65: 0.7893937418 | P65: 0.8764273865 | Q65: 0.4546106793 | R65: 0.0726808358 | S65: 0 | T65: 0 | U65: 0 | V65: 0.2117122838 | W65: 0.04423335852 | X65: 7.841123229 | Y65: 0.388798412 | Z65: 0 | AA65: 0.2894112744 | AB65: 0 | AC65: 0.694241127 | AD65: 0.273300321
B66: River/dam/lake/ponds/stream/canal/irrigation channel | C66: 15.89017265 | D66: 13.62192983 | E66: 5.317957808 | F66: 0.6928553644 | G66: 0.0768871315 | H66: 1.146225005 | I66: 0 | J66: 0 | K66: 0 | L66: 0 | M66: 17.35655088 | N66: 15.09760527 | O66: 14.3738534 | P66: 9.715177069 | Q66: 3.371547233 | R66: 7.901751709 | S66: 1.639150884 | T66: 0.6292720354 | U66: 2.45565824 | V66: 21.49065675 | W66: 0.0175686933 | X66: 4.375718522 | Y66: 7.168067168 | Z66: 0.4620235528 | AA66: 29.60500004 | AB66: 1.205745299 | AC66: 0.8746891989 | AD66: 0
B67: Rainwater | C67: 1.908086159 | D67: 2.565201986 | E67: 1.139914533 | F67: 0.1221495128 | G67: 0 | H67: 0 | I67: 0.2288307051 | J67: 0 | K67: 0 | L67: 0 | M67: 1.44271839 | N67: 2.887280413 | O67: 2.813674065 | P67: 2.249402068 | Q67: 0.2405678911 | R67: 0 | S67: 0 | T67: 0.166734711 | U67: 0 | V67: 0.06352224971 | W67: 0 | X67: 0 | Y67: 1.163761961 | Z67: 0 | AA67: 5.617643639 | AB67: 4.642163749 | AC67: 0.8212289064 | AD67: 0
B68: Tanker truck | C68: 0.04985202921 | D68: 0.5257227602 | E68: 0.4569625922 | F68: 0.1251347427 | G68: 0 | H68: 0.2112305352 | I68: 0 | J68: 0 | K68: 0 | L68: 0 | M68: 0.02688081116 | N68: 0.2203433187 | O68: 0.5808311448 | P68: 0.6582327862 | Q68: 0.3433572159 | R68: 0.330319279 | S68: 0.2046784945 | T68: 1.672541166 | U68: 0.4625566305 | V68: 0 | W68: 0.03056634835 | X68: 1.480157449 | Y68: 0 | Z68: 0 | AA68: 0 | AB68: 0 | AC68: 0.09753301443 | AD68: 1.155535756
B69: Cart with small tank | C69: 0.7003442483 | D69: 0.5278920861 | E69: 0.4294627465 | F69: 0.4589634606 | G69: 0.06859750118 | H69: 0.1885058841 | I69: 0.1617434091 | J69: 0 | K69: 0 | L69: 0 | M69: 0.3511980863 | N69: 1.269953434 | O69: 0.4385597794 | P69: 0.4185179007 | Q69: 1.005199808 | R69: 0 | S69: 0.0373787435 | T69: 1.081392141 | U69: 1.821930416 | V69: 1.713106212 | W69: 0.005136514084 | X69: 0.3626821691 | Y69: 0.2056949377 | Z69: 0.1494611041 | AA69: 0.7005509114 | AB69: 0 | AC69: 0.4163354566 | AD69: 0
B70: Bottled water | C70: 0 | D70: 0 | E70: 0 | F70: 0.006207469034 | G70: 1.475277759 | H70: 0 | I70: 0.0150061966 | J70: 0.04471019199 | K70: 0.2450553936 | L70: 3.217177505 | M70: 0 | N70: 0 | O70: 0 | P70: 0 | Q70: 0.04163885999 | R70: 0.02422694527 | S70: 0.869278855 | T70: 0 | U70: 0 | V70: 0 | W70: 1.214022564 | X70: 0.1136342005 | Y70: 0 | Z70: 0.08720430262 | AA70: 0 | AB70: 0 | AC70: 0 | AD70: 0.03836543271
B71: Other | C71: 1.766372363 | D71: 0.8219684648 | E71: 2.115328826 | F71: 2.281546396 | G71: 0.5498211652 | H71: 4.639706883 | I71: 2.550230225 | J71: 2.73064177 | K71: 0 | L71: 1.235038899 | M71: 1.345532188 | N71: 0.9306212978 | O71: 0.8995567731 | P71: 1.20103405 | Q71: 0.5937074617 | R71: 1.126345148 | S71: 2.450110466 | T71: 0.82486259 | U71: 0.5470826077 | V71: 3.636447962 | W71: 2.106679497 | X71: 8.040031499 | Y71: 0 | Z71: 1.220874302 | AA71: 0.08965644871 | AB71: 0.187077658 | AC71: 0.2770396809 | AD71: 1.570146752
A108: =A1026 -> Namibia
A109: =A1034 -> 2007
A110: Use of sanitation facilities
A111: by wealth quintile and sub-national region
A112: Notes:
A113: WHO/UNICEF JMP customised wealth index excludes water,
A114: sanitation and hygiene assets.
A115: Survey used for analysis: | B115: =A1025 -> DHS07
A116: =B1030 -> 
A117: =B1029 -> 
A120: Use of sanitation facilities | C120: NATIONAL wealth index quintile | H120: URBAN wealth index quintile | M120: RURAL wealth index quintile | R120: SUB-REGIONS: | BA120: Raw numbers of respondents: | BB120: Use of sanitation facilities | BC120: NATIONAL wealth index quintile | BH120: URBAN wealth index quintile | BM120: RURAL wealth index quintile | BR120: SUB-REGIONS:
A121: Weighted percentage (used in graphs) | C121: Poorest | D121: Poor | E121: Middle | F121: Rich | G121: Richest | H121: Poorest | I121: Poor | J121: Middle | K121: Rich | L121: Richest | M121: Poorest | N121: Poor | O121: Middle | P121: Rich | Q121: Richest | R121: Caprivi | S121: Erongo | T121: Hardap | U121: Karas | V121: Kavango | W121: Khomas | X121: Kunene | Y121: Ohangwena | Z121: Omaheke | AA121: Omusati | AB121: Oshana | AC121: Oshikoto | AD121: Otjozondjupa | BA121: Sanitation data, raw numbers (weighted) | BC121: Poorest | BD121: Poor | BE121: Middle | BF121: Rich | BG121: Richest | BH121: Poorest | BI121: Poor | BJ121: Middle | BK121: Rich | BL121: Richest | BM121: Poorest | BN121: Poor | BO121: Middle | BP121: Rich | BQ121: Richest | BR121: Caprivi | BS121: Erongo | BT121: Hardap | BU121: Karas | BV121: Kavango | BW121: Khomas | BX121: Kunene | BY121: Ohangwena | BZ121: Omaheke | CA121: Omusati | CB121: Oshana | CC121: Oshikoto | CD121: Otjozondjupa
A122: Sanitation | B122: Improved | C122: 3.186038733 | D122: 7.711768197 | E122: 24.96633215 | F122: 78.38108625 | G122: 98.68169042 | H122: 30.53502868 | I122: 78.99784508 | J122: 93.39177639 | K122: 99.21615733 | L122: 98.97540007 | M122: 2.131005882 | N122: 3.839819126 | O122: 7.660870735 | P122: 13.84367259 | Q122: 52.56611545 | R122: 12.00598449 | S122: 86.38936949 | T122: 54.98628589 | U122: 75.15504727 | V122: 14.17582173 | W122: 87.77559853 | X122: 23.51224793 | Y122: 5.960668155 | Z122: 24.96189719 | AA122: 17.10056562 | AB122: 39.99868154 | AC122: 35.96048371 | AD122: 54.41424428 | BA122: Sanitation | BB122: Improved | BC122: 273.310669 | BD122: 666.194523 | BE122: 2148.266882 | BF122: 6745.13807 | BG122: 8494.265427 | BH122: 1088.103731 | BI122: 2812.151673 | BJ122: 3328.626533 | BK122: 3537.515223 | BL122: 3524.320765 | BM122: 107.869642 | BN122: 193.092802 | BO122: 386.440238 | BP122: 698.211041 | BQ122: 2650.843923 | BR122: 264.723958 | BS122: 2548.768519 | BT122: 780.195525 | BU122: 1149.292106 | BV122: 641.544797 | BW122: 7009.929933 | BX122: 329.722103 | BY122: 290.912686 | BZ122: 527.103993 | CA122: 766.722384 | CB122: 1277.077377 | CC122: 1390.433486 | CD122: 1350.748704
B123: Not Improved | C123: 96.81396127 | D123: 92.2882318 | E123: 75.03366785 | F123: 21.61891375 | G123: 1.318309581 | H123: 69.46497132 | I123: 21.00215492 | J123: 6.608223612 | K123: 0.7838426661 | L123: 1.024599925 | M123: 97.86899412 | N123: 96.16018087 | O123: 92.33912926 | P123: 86.15632741 | Q123: 47.43388455 | R123: 87.99401551 | S123: 13.61063051 | T123: 45.01371411 | U123: 24.84495273 | V123: 85.82417827 | W123: 12.22440147 | X123: 76.48775207 | Y123: 94.03933184 | Z123: 75.03810281 | AA123: 82.89943438 | AB123: 60.00131846 | AC123: 64.03951629 | AD123: 45.58575572 | BB123: Not Improved | BC123: 8305.074339 | BD123: 7972.479592 | BE123: 6456.388656 | BF123: 1860.430432 | BG123: 113.476689 | BH123: 2475.356918 | BI123: 747.631091 | BJ123: 235.527252 | BK123: 27.947619 | BL123: 36.484003 | BM123: 4954.042337 | BN123: 4835.602448 | BO123: 4657.89808 | BP123: 4345.328068 | BQ123: 2392.031892 | BR123: 1940.209409 | BS123: 401.558048 | BT123: 638.69559 | BU123: 379.936 | BV123: 3884.082071 | BW123: 976.264465 | BX123: 1072.619791 | BY123: 4589.625509 | BZ123: 1584.530347 | CA123: 3716.885943 | CB123: 1915.721305 | CC123: 2476.125978 | CD123: 1131.595252
A124: Sanitation ladder | B124: Basic | C124: =C122*C129/100 -> 2.101833548 | D124: =D122*D129/100 -> 6.406300835 | E124: =E122*E129/100 -> 15.70763203 | F124: 55.45160563 | G124: 88.39028101 | H124: 13.68302771 | I124: 45.16783384 | J124: 71.23055436 | K124: 86.02898787 | L124: 93.65843191 | M124: 1.48178108 | N124: 3.052808062 | O124: 6.677084085 | P124: 11.26849793 | Q124: 45.55425577 | R124: 9.403277401 | S124: 57.66319017 | T124: 51.09705768 | U124: 59.72160016 | V124: 12.29041495 | W124: 67.72889918 | X124: 18.95040454 | Y124: 5.437947341 | Z124: 22.45231023 | AA124: 15.01449861 | AB124: 30.87373769 | AC124: 30.09061467 | AD124: 45.46003201 | BA124: Sanitation ladder | BB124: Basic | BC124: 180.303374 | BD124: 553.419452 | BE124: 1350.606946 | BF124: 4751.958265 | BG124: 7608.407445 | BH124: 487.589308 | BI124: 1606.568654 | BJ124: 2521.443369 | BK124: 3067.331596 | BL124: 3334.993909 | BM124: 75.006454 | BN124: 153.516414 | BO124: 336.814711 | BP124: 568.3311 | BQ124: 2293.099967 | BR124: 207.336001 | BS124: 1700.211993 | BT124: 722.015843 | BU124: 913.279495 | BV124: 556.218321 | BW124: 5391.436113 | BX124: 265.749462 | BY124: 265.128274 | BZ124: 474.110693 | CA124: 673.19131 | CB124: 985.73629 | CC124: 1161.80733 | CD124: 1128.474357
B125: Limited | C125: =C122*C128/100 -> 1.084205184 | D125: =D122*D128/100 -> 1.305467361 | E125: =E122*E128/100 -> 9.25870012 | F125: 22.92948062 | G125: 10.29140941 | H125: 16.85200097 | I125: 33.83001124 | J125: 22.16122202 | K125: 13.18716946 | L125: 5.316968167 | M125: 0.6492248015 | N125: 0.7870110642 | O125: 0.9837866509 | P125: 2.575174658 | Q125: 7.011859685 | R125: 2.602707087 | S125: 28.72617931 | T125: 3.889228209 | U125: 15.43344711 | V125: 1.885406784 | W125: 20.04669936 | X125: 4.56184339 | Y125: 0.5227208147 | Z125: 2.509586958 | AA125: 2.086067006 | AB125: 9.124943851 | AC125: 5.869869033 | AD125: 8.954212266 | BB125: Limited | BC125: 93.007295 | BD125: 112.775071 | BE125: 796.101199 | BF125: 1964.955455 | BG125: 885.857982 | BH125: 600.514423 | BI125: 1203.295155 | BJ125: 784.470468 | BK125: 470.183627 | BL125: 189.326856 | BM125: 32.863188 | BN125: 39.576388 | BO125: 49.625527 | BP125: 129.879941 | BQ125: 352.961429 | BR125: 57.387957 | BS125: 846.997789 | BT125: 54.955892 | BU125: 236.012611 | BV125: 85.326476 | BW125: 1595.781124 | BX125: 63.972641 | BY125: 25.485364 | BZ125: 52.9933 | CA125: 93.531074 | CB125: 291.341087 | CC125: 226.63734 | CD125: 222.274347
B126: Unimproved | C126: =100-C124-C125-C127 -> 2.280414178 | D126: =100-D124-D125-D127 -> 4.420314436 | E126: =100-E124-E125-E127 -> 7.461837642 | F126: 7.136425486 | G126: 1.086370348 | H126: 8.316666471 | I126: 6.122412888 | J126: 5.103165003 | K126: 0.6074731377 | L126: 1.024599925 | M126: 2.226052596 | N126: 1.484312934 | O126: 4.183865825 | P126: 5.848220002 | Q126: 9.561455756 | R126: 1.405607193 | S126: 5.183016191 | T126: 11.59802762 | U126: 5.57347695 | V126: 5.83285016 | W126: 1.533958254 | X126: 6.181090601 | Y126: 5.557949828 | Z126: 1.124912469 | AA126: 6.575805835 | AB126: 9.936404096 | AC126: 1.785390077 | AD126: 1.780539957 | BB126: Unimproved | BC126: 195.622708 | BD126: 381.856559 | BE126: 643.118693 | BF126: 618.217572 | BG126: 93.511958 | BH126: 296.361137 | BI126: 218.285027 | BJ126: 182.226488 | BK126: 21.659229 | BL126: 36.484003 | BM126: 112.680823 | BN126: 74.641574 | BO126: 211.048347 | BP126: 294.957263 | BQ126: 483.983599 | BR126: 30.992702 | BS126: 153.047268 | BT126: 165.640635 | BU126: 85.231176 | BV126: 263.973034 | BW126: 124.932976 | BX126: 86.680023 | BY126: 271.522466 | BZ126: 23.754038 | CA126: 294.833378 | CB126: 317.249379 | CC126: 70.271289 | CD126: 44.199126
B127: Open defecation | C127: 94.53354709 | D127: 87.86791737 | E127: 67.57183021 | F127: 14.48248826 | G127: 0.2319392325 | H127: 61.14830485 | I127: 14.87974203 | J127: 1.505058609 | K127: 0.1763695284 | L127: 0 | M127: 95.64294152 | N127: 94.67586794 | O127: 88.15526344 | P127: 80.30810741 | Q127: 37.87242879 | R127: 86.58840832 | S127: 8.427614323 | T127: 33.41568649 | U127: 19.27147578 | V127: 79.99132811 | W127: 10.69044321 | X127: 70.30666147 | Y127: 88.48138202 | Z127: 73.91319034 | AA127: 76.32362855 | AB127: 50.06491437 | AC127: 62.25412622 | AD127: 43.80521577 | BB127: Open defecation | BC127: 8109.451631 | BD127: 7590.623033 | BE127: 5813.269963 | BF127: 1242.21286 | BG127: 19.964731 | BH127: 2178.995781 | BI127: 529.346064 | BJ127: 53.300764 | BK127: 6.28839 | BL127: 0 | BM127: 4841.361514 | BN127: 4760.960874 | BO127: 4446.849733 | BP127: 4050.370805 | BQ127: 1908.048293 | BR127: 1909.216707 | BS127: 248.51078 | BT127: 473.054955 | BU127: 294.704824 | BV127: 3620.109037 | BW127: 851.331489 | BX127: 985.939768 | BY127: 4318.103043 | BZ127: 1560.776309 | CA127: 3422.052565 | CB127: 1598.471926 | CC127: 2405.854689 | CD127: 1087.396126
A128: Shared among Improved Sanitation | B128: Yes | C128: 34.02988085 | D128: 16.9282495 | E128: 37.08474302 | F128: 29.25384391 | G128: 10.42889452 | H128: 55.18907857 | I128: 42.82396717 | J128: 23.72930774 | K128: 13.29135275 | L128: 5.372009775 | M128: 30.46565038 | N128: 20.49604521 | O128: 12.84170801 | P128: 18.60181713 | Q128: 13.33912469 | R128: 21.67841454 | S128: 33.25198399 | T128: 7.073087672 | U128: 20.53547656 | V128: 13.30015868 | W128: 22.83857893 | X128: 19.40198744 | Y128: 8.769500349 | Z128: 10.05367076 | AA128: 12.19881876 | AB128: 22.81311158 | AC128: 16.32310922 | AD128: 16.45564022 | BA128: Shared among improved sanitation facilities | BB128: Yes | BC128: N/A | BD128: N/A | BE128: N/A | BF128: N/A | BG128: N/A | BH128: N/A | BI128: N/A | BJ128: N/A | BK128: N/A | BL128: N/A | BM128: N/A | BN128: N/A | BO128: N/A | BP128: N/A | BQ128: N/A | BR128: N/A | BS128: N/A | BT128: N/A | BU128: N/A | BV128: N/A | BW128: N/A | BX128: N/A | BY128: N/A | BZ128: N/A | CA128: N/A | CB128: N/A | CC128: N/A | CD128: N/A
B129: No | C129: 65.97011915 | D129: 83.0717505 | E129: 62.91525698 | F129: 70.74615609 | G129: 89.57110548 | H129: 44.81092143 | I129: 57.17603283 | J129: 76.27069226 | K129: 86.70864725 | L129: 94.62799022 | M129: 69.53434962 | N129: 79.50395479 | O129: 87.15829199 | P129: 81.39818287 | Q129: 86.66087531 | R129: 78.32158546 | S129: 66.74801601 | T129: 92.92691233 | U129: 79.46452344 | V129: 86.69984132 | W129: 77.16142107 | X129: 80.59801256 | Y129: 91.23049965 | Z129: 89.94632924 | AA129: 87.80118124 | AB129: 77.18688842 | AC129: 83.67689078 | AD129: 83.54435978 | BB129: No | BC129: N/A | BD129: N/A | BE129: N/A | BF129: N/A | BG129: N/A | BH129: N/A | BI129: N/A | BJ129: N/A | BK129: N/A | BL129: N/A | BM129: N/A | BN129: N/A | BO129: N/A | BP129: N/A | BQ129: N/A | BR129: N/A | BS129: N/A | BT129: N/A | BU129: N/A | BV129: N/A | BW129: N/A | BX129: N/A | BY129: N/A | BZ129: N/A | CA129: N/A | CB129: N/A | CC129: N/A | CD129: N/A
A130: Manually calculated ratios | B130: Improved latrines | C130: =C159/(C159+C160)*100 -> 23.16515076 | D130: =D159/(D159+D160)*100 -> 30.68716407 | E130: 43.96737673 | F130: 40.97627654 | G130: 53.41880373 | H130: 22.34526989 | I130: 22.28754327 | J130: 37.331648 | K130: 50 | L130: 50 | M130: 7.285087134 | N130: 54.02581846 | O130: 35.79336943 | P130: 42.67540851 | Q130: 49.42184117 | R130: 29.48637309 | S130: 50.19712886 | T130: 20.20524283 | U130: 62.30655218 | V130: 27.82393925 | W130: 31.4378451 | X130: 30.99214937 | Y130: 2.734528024 | Z130: 0 | AA130: 58.32579893 | AB130: 26.31987846 | AC130: 68.08719167 | AD130: 46.98150118
B131: Other
B132: Other
C133: NATIONAL wealth index quintile | H133: URBAN wealth index quintile | M133: RURAL wealth index quintile | R133: SUB-REGIONS: | BA133: Raw numbers of respondents: | BB133: Use of sanitation facilities | BC133: NATIONAL wealth index quintile | BH133: URBAN wealth index quintile | BM133: RURAL wealth index quintile | BR133: SUB-REGIONS:
A134: Percentage based on weighted population | C134: Poorest | D134: Poor | E134: Middle | F134: Rich | G134: Richest | H134: Poorest | I134: Poor | J134: Middle | K134: Rich | L134: Richest | M134: Poorest | N134: Poor | O134: Middle | P134: Rich | Q134: Richest | R134: Caprivi | S134: Erongo | T134: Hardap | U134: Karas | V134: Kavango | W134: Khomas | X134: Kunene | Y134: Ohangwena | Z134: Omaheke | AA134: Omusati | AB134: Oshana | AC134: Oshikoto | AD134: Otjozondjupa | BA134: Sanitation data, raw numbers (weighted) | BC134: Poorest | BD134: Poor | BE134: Middle | BF134: Rich | BG134: Richest | BH134: Poorest | BI134: Poor | BJ134: Middle | BK134: Rich | BL134: Richest | BM134: Poorest | BN134: Poor | BO134: Middle | BP134: Rich | BQ134: Richest | BR134: Caprivi | BS134: Erongo | BT134: Hardap | BU134: Karas | BV134: Kavango | BW134: Khomas | BX134: Kunene | BY134: Ohangwena | BZ134: Omaheke | CA134: Omusati | CB134: Oshana | CC134: Oshikoto | CD134: Otjozondjupa
A135: Sanitation type | B135: Sewer connection | C135: 0 | D135: 0.6023706336 | E135: 10.10748523 | F135: 63.37407397 | G135: 96.29749807 | H135: 17.09263876 | I135: 64.95510061 | J135: 88.28484537 | K135: 97.05612604 | L135: 97.99329394 | M135: 0 | N135: 0.03983979741 | O135: 0.01445093398 | P135: 2.460744793 | Q135: 30.13840199 | R135: 10.65144038 | S135: 78.86783748 | T135: 51.082628 | U135: 58.8423367 | V135: 6.701980385 | W135: 85.51582086 | X135: 21.14936673 | Y135: 2.32557887 | Z135: 21.82249669 | AA135: 2.822908398 | AB135: 11.7824996 | AC135: 20.52444398 | AD135: 47.45998608 | BA135: Sanitation type | BB135: Sewer connection | BC135: N/A | BD135: N/A | BE135: N/A | BF135: N/A | BG135: N/A | BH135: N/A | BI135: N/A | BJ135: N/A | BK135: N/A | BL135: N/A | BM135: N/A | BN135: N/A | BO135: N/A | BP135: N/A | BQ135: N/A | BR135: N/A | BS135: N/A | BT135: N/A | BU135: N/A | BV135: N/A | BW135: N/A | BX135: N/A | BY135: N/A | BZ135: N/A | CA135: N/A | CB135: N/A | CC135: N/A | CD135: N/A
B136: Septic tank connection | C136: 0 | D136: 0.05850383905 | E136: 0.1819703756 | F136: 1.382822959 | G136: 0.5103512327 | H136: 0.2298539203 | I136: 1.770305779 | J136: 0.7921399497 | K136: 0.1667750377 | L136: 0.4362442204 | M136: 0 | N136: 0 | O136: 0.06025698136 | P136: 0.0993869561 | Q136: 1.08402832 | R136: 0.1310335289 | S136: 0.01714698317 | T136: 1.55155535 | U136: 1.423797334 | V136: 0.2152160194 | W136: 0.4200350671 | X136: 0.05806679551 | Y136: 0.1293752399 | Z136: 0.5027488329 | AA136: 0 | AB136: 0.6727163263 | AC136: 0.8070464269 | AD136: 0.9162901034 | BB136: Septic tank connection | BC136: N/A | BD136: N/A | BE136: N/A | BF136: N/A | BG136: N/A | BH136: N/A | BI136: N/A | BJ136: N/A | BK136: N/A | BL136: N/A | BM136: N/A | BN136: N/A | BO136: N/A | BP136: N/A | BQ136: N/A | BR136: N/A | BS136: N/A | BT136: N/A | BU136: N/A | BV136: N/A | BW136: N/A | BX136: N/A | BY136: N/A | BZ136: N/A | CA136: N/A | CB136: N/A | CC136: N/A | CD136: N/A
B137: Improved latrines | C137: 3.186038733 | D137: 7.050893724 | E137: 14.67687654 | F137: 13.62418932 | G137: 1.873841117 | H137: 13.212536 | I137: 12.27243868 | J137: 4.314791063 | K137: 1.993256252 | L137: 0.5458619123 | M137: 2.131005882 | N137: 3.799979329 | O137: 7.58616282 | P137: 11.28354084 | Q137: 21.34368514 | R137: 1.223510579 | S137: 7.504385022 | T137: 2.352102543 | U137: 14.88891324 | V137: 7.258625326 | W137: 1.839742607 | X137: 2.304814406 | Y137: 3.505714046 | Z137: 2.636651666 | AA137: 14.27765722 | AB137: 27.54346561 | AC137: 14.6289933 | AD137: 6.037968092 | BB137: Improved latrines | BC137: N/A | BD137: N/A | BE137: N/A | BF137: N/A | BG137: N/A | BH137: N/A | BI137: N/A | BJ137: N/A | BK137: N/A | BL137: N/A | BM137: N/A | BN137: N/A | BO137: N/A | BP137: N/A | BQ137: N/A | BR137: N/A | BS137: N/A | BT137: N/A | BU137: N/A | BV137: N/A | BW137: N/A | BX137: N/A | BY137: N/A | BZ137: N/A | CA137: N/A | CB137: N/A | CC137: N/A | CD137: N/A
B138: Unimproved facilities | C138: 2.280414178 | D138: 4.420314436 | E138: 7.474078307 | F138: 7.183924826 | G138: 1.086370348 | H138: 8.316666471 | I138: 6.131976063 | J138: 5.112756042 | K138: 0.6074731377 | L138: 1.024599925 | M138: 2.226052596 | N138: 1.484312934 | O138: 4.183865825 | P138: 5.848220002 | Q138: 9.597372943 | R138: 1.405607193 | S138: 5.187468727 | T138: 11.6739497 | U138: 5.57347695 | V138: 5.83285016 | W138: 1.56436182 | X138: 6.181090601 | Y138: 5.563371398 | Z138: 1.124912469 | AA138: 6.575805835 | AB138: 9.936404096 | AC138: 1.81741131 | AD138: 1.780539957 | BB138: Unimproved facilities | BC138: N/A | BD138: N/A | BE138: N/A | BF138: N/A | BG138: N/A | BH138: N/A | BI138: N/A | BJ138: N/A | BK138: N/A | BL138: N/A | BM138: N/A | BN138: N/A | BO138: N/A | BP138: N/A | BQ138: N/A | BR138: N/A | BS138: N/A | BT138: N/A | BU138: N/A | BV138: N/A | BW138: N/A | BX138: N/A | BY138: N/A | BZ138: N/A | CA138: N/A | CB138: N/A | CC138: N/A | CD138: N/A
B139: Open defecation | C139: 94.53354709 | D139: 87.86791737 | E139: 67.55958954 | F139: 14.43498892 | G139: 0.2319392325 | H139: 61.14830485 | I139: 14.87017886 | J139: 1.49546757 | K139: 0.1763695284 | L139: 0 | M139: 95.64294152 | N139: 94.67586794 | O139: 88.15526344 | P139: 80.30810741 | Q139: 37.83651161 | R139: 86.58840832 | S139: 8.423161788 | T139: 33.33976441 | U139: 19.27147578 | V139: 79.99132811 | W139: 10.66003965 | X139: 70.30666147 | Y139: 88.47596045 | Z139: 73.91319034 | AA139: 76.32362855 | AB139: 50.06491437 | AC139: 62.22210499 | AD139: 43.80521577 | BB139: Open defecation | BC139: N/A | BD139: N/A | BE139: N/A | BF139: N/A | BG139: N/A | BH139: N/A | BI139: N/A | BJ139: N/A | BK139: N/A | BL139: N/A | BM139: N/A | BN139: N/A | BO139: N/A | BP139: N/A | BQ139: N/A | BR139: N/A | BS139: N/A | BT139: N/A | BU139: N/A | BV139: N/A | BW139: N/A | BX139: N/A | BY139: N/A | BZ139: N/A | CA139: N/A | CB139: N/A | CC139: N/A | CD139: N/A
A140: Septic tank emptying practices | B140: Not emptied/treated and disposed in situ | C140: N/A | D140: N/A | E140: N/A | F140: N/A | G140: N/A | H140: N/A | I140: N/A | J140: N/A | K140: N/A | L140: N/A | M140: N/A | N140: N/A | O140: N/A | P140: N/A | Q140: N/A | R140: N/A | S140: N/A | T140: N/A | U140: N/A | V140: N/A | W140: N/A | X140: N/A | Y140: N/A | Z140: N/A | AA140: N/A | AB140: N/A | AC140: N/A | AD140: N/A | BA140: Septic tank emptying practices | BB140: Not emptied/treated and disposed in situ | BC140: N/A | BD140: N/A | BE140: N/A | BF140: N/A | BG140: N/A | BH140: N/A | BI140: N/A | BJ140: N/A | BK140: N/A | BL140: N/A | BM140: N/A | BN140: N/A | BO140: N/A | BP140: N/A | BQ140: N/A | BR140: N/A | BS140: N/A | BT140: N/A | BU140: N/A | BV140: N/A | BW140: N/A | BX140: N/A | BY140: N/A | BZ140: N/A | CA140: N/A | CB140: N/A | CC140: N/A | CD140: N/A
B141: Emptied and buried on site | C141: N/A | D141: N/A | E141: N/A | F141: N/A | G141: N/A | H141: N/A | I141: N/A | J141: N/A | K141: N/A | L141: N/A | M141: N/A | N141: N/A | O141: N/A | P141: N/A | Q141: N/A | R141: N/A | S141: N/A | T141: N/A | U141: N/A | V141: N/A | W141: N/A | X141: N/A | Y141: N/A | Z141: N/A | AA141: N/A | AB141: N/A | AC141: N/A | AD141: N/A | BB141: Emptied and buried on site | BC141: N/A | BD141: N/A | BE141: N/A | BF141: N/A | BG141: N/A | BH141: N/A | BI141: N/A | BJ141: N/A | BK141: N/A | BL141: N/A | BM141: N/A | BN141: N/A | BO141: N/A | BP141: N/A | BQ141: N/A | BR141: N/A | BS141: N/A | BT141: N/A | BU141: N/A | BV141: N/A | BW141: N/A | BX141: N/A | BY141: N/A | BZ141: N/A | CA141: N/A | CB141: N/A | CC141: N/A | CD141: N/A
B142: Emptied and discharged locally | C142: N/A | D142: N/A | E142: N/A | F142: N/A | G142: N/A | H142: N/A | I142: N/A | J142: N/A | K142: N/A | L142: N/A | M142: N/A | N142: N/A | O142: N/A | P142: N/A | Q142: N/A | R142: N/A | S142: N/A | T142: N/A | U142: N/A | V142: N/A | W142: N/A | X142: N/A | Y142: N/A | Z142: N/A | AA142: N/A | AB142: N/A | AC142: N/A | AD142: N/A | BB142: Emptied and discharged locally | BC142: N/A | BD142: N/A | BE142: N/A | BF142: N/A | BG142: N/A | BH142: N/A | BI142: N/A | BJ142: N/A | BK142: N/A | BL142: N/A | BM142: N/A | BN142: N/A | BO142: N/A | BP142: N/A | BQ142: N/A | BR142: N/A | BS142: N/A | BT142: N/A | BU142: N/A | BV142: N/A | BW142: N/A | BX142: N/A | BY142: N/A | BZ142: N/A | CA142: N/A | CB142: N/A | CC142: N/A | CD142: N/A
B143: Emptied and removed offsite | C143: N/A | D143: N/A | E143: N/A | F143: N/A | G143: N/A | H143: N/A | I143: N/A | J143: N/A | K143: N/A | L143: N/A | M143: N/A | N143: N/A | O143: N/A | P143: N/A | Q143: N/A | R143: N/A | S143: N/A | T143: N/A | U143: N/A | V143: N/A | W143: N/A | X143: N/A | Y143: N/A | Z143: N/A | AA143: N/A | AB143: N/A | AC143: N/A | AD143: N/A | BB143: Emptied and removed offsite | BC143: N/A | BD143: N/A | BE143: N/A | BF143: N/A | BG143: N/A | BH143: N/A | BI143: N/A | BJ143: N/A | BK143: N/A | BL143: N/A | BM143: N/A | BN143: N/A | BO143: N/A | BP143: N/A | BQ143: N/A | BR143: N/A | BS143: N/A | BT143: N/A | BU143: N/A | BV143: N/A | BW143: N/A | BX143: N/A | BY143: N/A | BZ143: N/A | CA143: N/A | CB143: N/A | CC143: N/A | CD143: N/A
A144: Latrine emptying practices | B144: Not emptied/treated and disposed in situ | C144: N/A | D144: N/A | E144: N/A | F144: N/A | G144: N/A | H144: N/A | I144: N/A | J144: N/A | K144: N/A | L144: N/A | M144: N/A | N144: N/A | O144: N/A | P144: N/A | Q144: N/A | R144: N/A | S144: N/A | T144: N/A | U144: N/A | V144: N/A | W144: N/A | X144: N/A | Y144: N/A | Z144: N/A | AA144: N/A | AB144: N/A | AC144: N/A | AD144: N/A | BA144: Latrine emptying practices | BB144: Not emptied/treated and disposed in situ | BC144: N/A | BD144: N/A | BE144: N/A | BF144: N/A | BG144: N/A | BH144: N/A | BI144: N/A | BJ144: N/A | BK144: N/A | BL144: N/A | BM144: N/A | BN144: N/A | BO144: N/A | BP144: N/A | BQ144: N/A | BR144: N/A | BS144: N/A | BT144: N/A | BU144: N/A | BV144: N/A | BW144: N/A | BX144: N/A | BY144: N/A | BZ144: N/A | CA144: N/A | CB144: N/A | CC144: N/A | CD144: N/A
B145: Emptied and buried on site | C145: N/A | D145: N/A | E145: N/A | F145: N/A | G145: N/A | H145: N/A | I145: N/A | J145: N/A | K145: N/A | L145: N/A | M145: N/A | N145: N/A | O145: N/A | P145: N/A | Q145: N/A | R145: N/A | S145: N/A | T145: N/A | U145: N/A | V145: N/A | W145: N/A | X145: N/A | Y145: N/A | Z145: N/A | AA145: N/A | AB145: N/A | AC145: N/A | AD145: N/A | BB145: Emptied and buried on site | BC145: N/A | BD145: N/A | BE145: N/A | BF145: N/A | BG145: N/A | BH145: N/A | BI145: N/A | BJ145: N/A | BK145: N/A | BL145: N/A | BM145: N/A | BN145: N/A | BO145: N/A | BP145: N/A | BQ145: N/A | BR145: N/A | BS145: N/A | BT145: N/A | BU145: N/A | BV145: N/A | BW145: N/A | BX145: N/A | BY145: N/A | BZ145: N/A | CA145: N/A | CB145: N/A | CC145: N/A | CD145: N/A
B146: Emptied and discharged locally | C146: N/A | D146: N/A | E146: N/A | F146: N/A | G146: N/A | H146: N/A | I146: N/A | J146: N/A | K146: N/A | L146: N/A | M146: N/A | N146: N/A | O146: N/A | P146: N/A | Q146: N/A | R146: N/A | S146: N/A | T146: N/A | U146: N/A | V146: N/A | W146: N/A | X146: N/A | Y146: N/A | Z146: N/A | AA146: N/A | AB146: N/A | AC146: N/A | AD146: N/A | BB146: Emptied and discharged locally | BC146: N/A | BD146: N/A | BE146: N/A | BF146: N/A | BG146: N/A | BH146: N/A | BI146: N/A | BJ146: N/A | BK146: N/A | BL146: N/A | BM146: N/A | BN146: N/A | BO146: N/A | BP146: N/A | BQ146: N/A | BR146: N/A | BS146: N/A | BT146: N/A | BU146: N/A | BV146: N/A | BW146: N/A | BX146: N/A | BY146: N/A | BZ146: N/A | CA146: N/A | CB146: N/A | CC146: N/A | CD146: N/A
B147: Emptied and removed offsite | C147: N/A | D147: N/A | E147: N/A | F147: N/A | G147: N/A | H147: N/A | I147: N/A | J147: N/A | K147: N/A | L147: N/A | M147: N/A | N147: N/A | O147: N/A | P147: N/A | Q147: N/A | R147: N/A | S147: N/A | T147: N/A | U147: N/A | V147: N/A | W147: N/A | X147: N/A | Y147: N/A | Z147: N/A | AA147: N/A | AB147: N/A | AC147: N/A | AD147: N/A | BB147: Emptied and removed offsite | BC147: N/A | BD147: N/A | BE147: N/A | BF147: N/A | BG147: N/A | BH147: N/A | BI147: N/A | BJ147: N/A | BK147: N/A | BL147: N/A | BM147: N/A | BN147: N/A | BO147: N/A | BP147: N/A | BQ147: N/A | BR147: N/A | BS147: N/A | BT147: N/A | BU147: N/A | BV147: N/A | BW147: N/A | BX147: N/A | BY147: N/A | BZ147: N/A | CA147: N/A | CB147: N/A | CC147: N/A | CD147: N/A
A148: Shared among improved sanitation facilities | B148: Yes | C148: 1.084205184 | D148: 1.305467361 | E148: 9.251982203 | F148: 22.83353453 | G148: 10.29140941 | H148: 16.85200097 | I148: 33.80248838 | J148: 22.01000617 | K148: 13.18716946 | L148: 5.316968167 | M148: 0.6492248015 | N148: 0.7870110642 | O148: 0.9837866509 | P148: 2.575174658 | Q148: 6.99920922 | R148: 2.602707087 | S148: 28.70861139 | T148: 3.873157807 | U148: 15.43344711 | V148: 1.885406784 | W148: 19.98174656 | X148: 4.56184339 | Y148: 0.5221834761 | Z148: 2.509586958 | AA148: 2.086067006 | AB148: 9.124943851 | AC148: 5.861473026 | AD148: 8.954212266 | BA148: Shared among improved sanitation facilities | BB148: Yes | BC148: N/A | BD148: N/A | BE148: N/A | BF148: N/A | BG148: N/A | BH148: N/A | BI148: N/A | BJ148: N/A | BK148: N/A | BL148: N/A | BM148: N/A | BN148: N/A | BO148: N/A | BP148: N/A | BQ148: N/A | BR148: N/A | BS148: N/A | BT148: N/A | BU148: N/A | BV148: N/A | BW148: N/A | BX148: N/A | BY148: N/A | BZ148: N/A | CA148: N/A | CB148: N/A | CC148: N/A | CD148: N/A
B149: No | C149: 2.101833548 | D149: 6.406300835 | E149: 15.6962349 | F149: 55.21957398 | G149: 88.39028101 | H149: 13.68302771 | I149: 45.13108694 | J149: 70.74451668 | K149: 86.02898787 | L149: 93.65843191 | M149: 1.48178108 | N149: 3.052808062 | O149: 6.677084085 | P149: 11.26849793 | Q149: 45.47206894 | R149: 9.403277401 | S149: 57.6279254 | T149: 50.8859232 | U149: 59.72160016 | V149: 12.29041495 | W149: 67.50945249 | X149: 18.95040454 | Y149: 5.432357322 | Z149: 22.45231023 | AA149: 15.01449861 | AB149: 30.87373769 | AC149: 30.04757436 | AD149: 45.46003201 | BB149: No | BC149: N/A | BD149: N/A | BE149: N/A | BF149: N/A | BG149: N/A | BH149: N/A | BI149: N/A | BJ149: N/A | BK149: N/A | BL149: N/A | BM149: N/A | BN149: N/A | BO149: N/A | BP149: N/A | BQ149: N/A | BR149: N/A | BS149: N/A | BT149: N/A | BU149: N/A | BV149: N/A | BW149: N/A | BX149: N/A | BY149: N/A | BZ149: N/A | CA149: N/A | CB149: N/A | CC149: N/A | CD149: N/A
B150: DK/missing | C150: 96.81396127 | D150: 92.2882318 | E150: 75.05178289 | F150: 21.9468915 | G150: 1.318309581 | H150: 69.46497132 | I150: 21.06642469 | J150: 7.245477148 | K150: 0.7838426661 | L150: 1.024599925 | M150: 97.86899412 | N150: 96.16018087 | O150: 92.33912926 | P150: 86.15632741 | Q150: 47.52872184 | R150: 87.99401551 | S150: 13.66346321 | T150: 45.240919 | U150: 24.84495273 | V150: 85.82417827 | W150: 12.50880095 | X150: 76.48775207 | Y150: 94.0454592 | Z150: 75.03810281 | AA150: 82.89943438 | AB150: 60.00131846 | AC150: 64.09095262 | AD150: 45.58575572 | BB150: DK/missing | BC150: N/A | BD150: N/A | BE150: N/A | BF150: N/A | BG150: N/A | BH150: N/A | BI150: N/A | BJ150: N/A | BK150: N/A | BL150: N/A | BM150: N/A | BN150: N/A | BO150: N/A | BP150: N/A | BQ150: N/A | BR150: N/A | BS150: N/A | BT150: N/A | BU150: N/A | BV150: N/A | BW150: N/A | BX150: N/A | BY150: N/A | BZ150: N/A | CA150: N/A | CB150: N/A | CC150: N/A | CD150: N/A
A151: Shared among all sanitation facilities | B151: Yes | C151: 26.47848055 | D151: 19.34446331 | E151: 32.92833481 | F151: 29.29831229 | G151: 10.49265927 | H151: 52.77203199 | I151: 43.11493212 | J151: 23.51640579 | K151: 13.26667252 | L151: 5.316968167 | M151: 16.64699551 | N151: 20.32474455 | O151: 13.90676292 | P151: 17.83615912 | Q151: 13.67871709 | R151: 25.73388121 | S151: 35.95457121 | T151: 7.102068713 | U151: 22.28522734 | V151: 14.65087196 | W151: 22.9844368 | X151: 22.24624233 | Y151: 6.442752177 | Z151: 12.31542924 | AA151: 11.79240851 | AB151: 19.74003621 | AC151: 17.76602004 | AD151: 17.63324525 | BA151: Shared among all sanitation facilities | BB151: Yes | BC151: N/A | BD151: N/A | BE151: N/A | BF151: N/A | BG151: N/A | BH151: N/A | BI151: N/A | BJ151: N/A | BK151: N/A | BL151: N/A | BM151: N/A | BN151: N/A | BO151: N/A | BP151: N/A | BQ151: N/A | BR151: N/A | BS151: N/A | BT151: N/A | BU151: N/A | BV151: N/A | BW151: N/A | BX151: N/A | BY151: N/A | BZ151: N/A | CA151: N/A | CB151: N/A | CC151: N/A | CD151: N/A
B152: No | C152: 71.9474997 | D152: 80.65553669 | E152: 67.01582421 | F152: 70.30203118 | G152: 89.50734073 | H152: 47.22796801 | I152: 56.8095717 | J152: 75.80237863 | K152: 86.73332748 | L152: 94.68303183 | M152: 80.00633098 | N152: 79.67525545 | O152: 86.09323708 | P152: 82.16384088 | Q152: 86.16872182 | R152: 74.26611879 | S152: 63.98773659 | T152: 92.55709107 | U152: 77.71477266 | V152: 84.53400284 | W152: 76.69722918 | X152: 77.75375767 | Y152: 93.5040776 | Z152: 87.68457076 | AA152: 88.20759149 | AB152: 80.25996379 | AC152: 82.01541437 | AD152: 82.36675475 | BB152: No | BC152: N/A | BD152: N/A | BE152: N/A | BF152: N/A | BG152: N/A | BH152: N/A | BI152: N/A | BJ152: N/A | BK152: N/A | BL152: N/A | BM152: N/A | BN152: N/A | BO152: N/A | BP152: N/A | BQ152: N/A | BR152: N/A | BS152: N/A | BT152: N/A | BU152: N/A | BV152: N/A | BW152: N/A | BX152: N/A | BY152: N/A | BZ152: N/A | CA152: N/A | CB152: N/A | CC152: N/A | CD152: N/A
A153: Type of toilet facility | B153: Flush - to piped sewer system | C153: 0 | D153: 0.6029224455 | E153: 10.10748523 | F153: 63.41172239 | G153: 96.31318783 | H153: 17.09263876 | I153: 64.95510061 | J153: 88.41158416 | K153: 97.05612604 | L153: 98.03189855 | M153: 0 | N153: 0.03985839994 | O153: 0.01447361955 | P153: 2.460744793 | Q153: 30.13840199 | R153: 10.65144038 | S153: 79.00465427 | T153: 51.13316081 | U153: 58.8423367 | V153: 6.710185504 | W153: 85.51582086 | X153: 21.14936673 | Y153: 2.32669774 | Z153: 21.82249669 | AA153: 2.824402924 | AB153: 11.7824996 | AC153: 20.52444398 | AD153: 47.45998608 | BA153: Type of toilet facility | BB153: Flush - to piped sewer system | BC153: 0 | BD153: 52.036836 | BE153: 869.714288 | BF153: 5453.699348 | BG153: 8289.040298 | BH153: 609.089456 | BI153: 2312.260476 | BJ153: 3146.607658 | BK153: 3460.50011 | BL153: 3489.349883 | BM153: 0 | BN153: 2.003422 | BO153: 0.728954 | BP153: 124.108626 | BQ153: 1519.842185 | BR153: 234.857163 | BS153: 2326.858762 | BT153: 724.80687 | BU153: 899.833551 | BV153: 303.306625 | BW153: 6829.459695 | BX153: 296.58643 | BY153: 113.500765 | BZ153: 460.811334 | CA153: 126.568156 | CB153: 376.191492 | CC153: 793.589831 | CD153: 1178.120096
B154: Flush - to septic tank | C154: 0 | D154: 0.05855743249 | E154: 0.1819703756 | F154: 1.383644448 | G154: 0.5104343843 | H154: 0.2298539203 | I154: 1.770305779 | J154: 0.7932771195 | K154: 0.1667750377 | L154: 0.4364160795 | M154: 0 | N154: 0 | O154: 0.06035157482 | P154: 0.0993869561 | Q154: 1.08402832 | R154: 0.1310335289 | S154: 0.01717672908 | T154: 1.553090205 | U154: 1.423797334 | V154: 0.2154795047 | W154: 0.4200350671 | X154: 0.05806679551 | Y154: 0.1294374843 | Z154: 0.5027488329 | AA154: 0 | AB154: 0.6727163263 | AC154: 0.8070464269 | AD154: 0.9162901034 | BB154: Flush - to septic tank | BC154: 0 | BD154: 5.053956 | BE154: 15.657924 | BF154: 118.999777 | BG154: 43.929718 | BH154: 8.190754 | BI154: 63.01904 | BJ154: 28.233086 | BK154: 5.946302 | BL154: 15.533805 | BM154: 0 | BN154: 0 | BO154: 3.039566 | BP154: 5.01262 | BQ154: 54.666202 | BR154: 2.889202 | BS154: 0.505892 | BT154: 22.014881 | BU154: 21.773109 | BV154: 9.739874 | BW154: 33.544817 | BX154: 0.814295 | BY154: 6.314208 | BZ154: 10.616217 | CA154: 0 | CB154: 21.478478 | CC154: 31.20493 | CD154: 22.745472
B155: Flush - to pit latrine | C155: 0.05948238543 | D155: 0.1164513898 | E155: 0.5833366342 | F155: 2.096607723 | G155: 1.012180441 | H155: 0.721152765 | I155: 2.568099827 | J155: 1.638640831 | K155: 0.8858175053 | L155: 0.4178930832 | M155: 0 | N155: 0.1014898235 | O155: 0.1509334002 | P155: 0.2802940494 | Q155: 1.666533662 | R155: 0.04168479709 | S155: 0.4442137396 | T155: 0.09070095825 | U155: 0.8207339344 | V155: 0.1631089672 | W155: 0.8156450213 | X155: 0.4404596359 | Y155: 0.6032084156 | Z155: 0.921085466 | AA155: 0.3392607877 | AB155: 2.204569283 | AC155: 1.220869004 | AD155: 1.795746995 | BB155: Flush - to pit latrine | BC155: 5.101232 | BD155: 10.050649 | BE155: 50.194108 | BF155: 180.317893 | BG155: 87.111689 | BH155: 25.697995 | BI155: 91.418775 | BJ155: 58.319957 | BK155: 31.583494 | BL155: 14.874497 | BM155: 0 | BN155: 5.101232 | BO155: 7.601658 | BP155: 14.13674 | BQ155: 84.041223 | BR155: 0.919122 | BS155: 13.08306 | BT155: 1.285676 | BU155: 12.550894 | BV155: 7.372677 | BW155: 65.138997 | BX155: 6.17675 | BY155: 29.42566 | BZ155: 19.449957 | CA155: 15.203076 | CB155: 70.387459 | CC155: 47.205626 | CD155: 44.576617
B156: Flush - to somewhere else | C156: 0.054896958 | D156: 0.2158790566 | E156: 0.5980666835 | F156: 1.929543877 | G156: 0.7559272685 | H156: 1.562990881 | I156: 2.185415576 | J156: 2.063116553 | K156: 0.5017299238 | L156: 0.9856084173 | M156: 0 | N156: 0.09366609192 | O156: 0 | P156: 0.0509030057 | Q156: 0.7662884715 | R156: 0 | S156: 2.877413031 | T156: 0.3966048741 | U156: 0.8339887261 | V156: 1.623398945 | W156: 0.4530215043 | X156: 0.3613013361 | Y156: 0 | Z156: 0.2013791839 | AA156: 0.02931586392 | AB156: 1.125193743 | AC156: 0.9515427952 | AD156: 0.3939484686 | BB156: Flush - to somewhere else | BC156: 4.707984 | BD156: 18.63202 | BE156: 51.461578 | BF156: 165.949635 | BG156: 65.05767 | BH156: 55.696565 | BI156: 77.796047 | BJ156: 73.427237 | BK156: 17.888994 | BL156: 35.081771 | BM156: 0 | BN156: 4.707984 | BO156: 0 | BP156: 2.567313 | BQ156: 38.642976 | BR156: 0 | BS156: 84.746067 | BT156: 5.62183 | BU156: 12.75359 | BV156: 73.379142 | BW156: 36.179178 | BX156: 5.06668 | BY156: 0 | BZ156: 4.252392 | CA156: 1.313713 | CB156: 35.925171 | CC156: 36.791968 | CD156: 9.779156
B157: Flush - don't know where | C157: 0 | D157: 0.07810264617 | E157: 0.3929390532 | F157: 0.5186706509 | G157: 0.3239100869 | H157: 0.6432964541 | I157: 0.9386358161 | J157: 0.380228397 | K157: 0.4832691789 | L157: 0.1281838723 | M157: 0 | N157: 0 | O157: 0.0346511184 | P157: 0.2052151431 | Q157: 0.1839944575 | R157: 0 | S157: 0.3622118451 | T157: 0 | U157: 0.7378076531 | V157: 0.3764771215 | W157: 0.2107807444 | X157: 0.1463283675 | Y157: 0.03577514533 | Z157: 0.145421579 | AA157: 0 | AB157: 0.930542009 | AC157: 0.2801984064 | AD157: 0.3957251765 | BB157: Flush - don't know where | BC157: 0 | BD157: 6.740858 | BE157: 33.811052 | BF157: 44.608058 | BG157: 27.876803 | BH157: 22.923616 | BI157: 33.413396 | BJ157: 13.532498 | BK157: 17.230783 | BL157: 4.56258 | BM157: 0 | BN157: 0 | BO157: 1.74518 | BP157: 10.350106 | BQ157: 9.278612 | BR157: 0 | BS157: 10.667926 | BT157: 0 | BU157: 11.282762 | BV157: 17.017116 | BW157: 16.83336 | BX157: 2.052024 | BY157: 1.74518 | BZ157: 3.070772 | CA157: 0 | CB157: 29.710333 | CC157: 10.834038 | CD157: 9.82326
B158: Pit latrine - ventilated improved pit (VIP) | C158: 2.451971739 | D158: 4.763327189 | E158: 9.822088209 | F158: 8.269589191 | G158: 0.3821910527 | H158: 9.603412068 | I158: 7.074517427 | J158: 1.564999437 | K158: 0.6241695675 | L158: 0 | M158: 1.832764188 | N158: 2.616500085 | O158: 5.172734592 | P158: 7.195254724 | Q158: 13.70164653 | R158: 0.9286494688 | S158: 5.108990292 | T158: 0.5155397046 | U158: 9.236002428 | V158: 3.70480621 | W158: 0.6602759008 | X158: 0.6228272176 | Y158: 2.46801883 | Z158: 1.570144621 | AA158: 6.44188803 | AB158: 21.89992861 | AC158: 11.56592103 | AD158: 2.964757113 | BB158: Pit latrine - ventilated improved pit (VIP) | BC158: 210.282029 | BD158: 411.111707 | BE158: 845.156857 | BF158: 711.222649 | BG158: 32.892661 | BH158: 342.21381 | BI158: 251.837452 | BJ158: 55.699027 | BK158: 22.254534 | BL158: 0 | BM158: 92.77291 | BN158: 131.514407 | BO158: 260.521258 | BP158: 362.895486 | BQ158: 690.957019 | BR158: 20.476102 | BS158: 150.470867 | BT158: 7.307718 | BU158: 141.239545 | BV158: 167.460686 | BW158: 52.730917 | BX158: 8.734167 | BY158: 120.394678 | BZ158: 33.155713 | CA158: 288.676195 | CB158: 699.220632 | CC158: 447.203214 | CD158: 73.595469
B159: Pit latrine - with slab | C159: 0.4249836911 | D159: 1.335569225 | E159: 3.352799571 | F159: 2.083499447 | G159: 0.09453413541 | H159: 1.020156881 | I159: 0.8886534122 | J159: 0.5888090967 | K159: 0 | L159: 0 | M159: 0.1407032763 | N159: 0.8770660039 | O159: 1.842936087 | P159: 2.717635138 | Q159: 5.106353506 | R159: 0.2531763129 | S159: 1.535753565 | T159: 1.566448687 | U159: 3.599929454 | V159: 0.7283360769 | W159: 0.1530409403 | X159: 1.095199185 | Y159: 0.1403635832 | Z159: 0 | AA159: 7.15227702 | AB159: 1.890633235 | AC159: 1.136757042 | AD159: 0.2938259214 | BB159: Pit latrine - with slab | BC159: 36.446763 | BD159: 115.269878 | BE159: 288.496854 | BF159: 179.190521 | BG159: 8.135929 | BH159: 36.352889 | BI159: 31.634131 | BJ159: 20.955978 | BK159: 0 | BL159: 0 | BM159: 7.122276 | BN159: 44.084392 | BO159: 92.818222 | BP159: 137.064991 | BQ159: 257.507066 | BR159: 5.582369 | BS159: 45.23128 | BT159: 22.204236 | BU159: 55.051133 | BV159: 32.921468 | BW159: 12.222147 | BX159: 15.358437 | BY159: 6.847204 | BZ159: 0 | CA159: 320.510401 | CB159: 60.364113 | CC159: 43.953387 | CD159: 7.29377
B160: Pit latrine - without slab / open pit | C160: 1.40959833 | D160: 3.016638826 | E160: 4.272853403 | F160: 3.001148605 | G160: 0.08243376506 | H160: 3.545269653 | I160: 3.098566719 | J160: 0.9884293274 | K160: 0 | L160: 0 | M160: 1.790684417 | N160: 0.7463541106 | O160: 3.305883698 | P160: 3.650517464 | Q160: 5.225826327 | R160: 0.6054450987 | S160: 1.523691467 | T160: 6.186235607 | U160: 2.177840825 | V160: 1.889323739 | W160: 0.3337638639 | X160: 2.438596333 | Y160: 4.992645917 | Z160: 0.8653782359 | AA160: 5.110353155 | AB160: 5.292656908 | AC160: 0.5328037288 | AD160: 0.3315817689 | BB160: Pit latrine - without slab / open pit | BC160: 120.887689 | BD160: 260.359091 | BE160: 367.664317 | BF160: 258.112563 | BG160: 7.09453 | BH160: 126.334289 | BI160: 110.302244 | BJ160: 35.17864 | BK160: 0 | BL160: 0 | BM160: 90.642869 | BN160: 37.514357 | BO160: 166.498583 | BP160: 184.115276 | BQ160: 263.531932 | BR160: 13.349661 | BS160: 44.876025 | BT160: 87.689202 | BU160: 33.304154 | BV160: 85.39919 | BW160: 26.655031 | BX160: 34.197458 | BY160: 243.550815 | BZ160: 18.273624 | CA160: 229.006977 | CB160: 168.98388 | CC160: 20.601173 | CD160: 8.231
B161: No facility/bush/field | C161: 94.55941771 | D161: 87.94841027 | E161: 67.55958954 | F161: 14.44356427 | G161: 0.2319770224 | H161: 61.14830485 | I161: 14.87017886 | J161: 1.497614414 | K161: 0.1763695284 | L161: 0 | M161: 95.64294152 | N161: 94.72007527 | O161: 88.29365257 | P161: 80.30810741 | Q161: 37.83651161 | R161: 86.58840832 | S161: 8.437773954 | T161: 33.37274533 | U161: 19.27147578 | V161: 80.08926011 | W161: 10.66003965 | X161: 70.30666147 | Y161: 88.51852754 | Z161: 73.91319034 | AA161: 76.36403638 | AB161: 50.06491437 | AC161: 62.22210499 | AD161: 43.80521577 | BB161: No facility/bush/field | BC161: 8109.451631 | BD161: 7590.623033 | BE161: 5813.269963 | BF161: 1242.21286 | BG161: 19.964731 | BH161: 2178.995781 | BI161: 529.346064 | BJ161: 53.300764 | BK161: 6.28839 | BL161: 0 | BM161: 4841.361514 | BN161: 4760.960874 | BO161: 4446.849733 | BP161: 4050.370805 | BQ161: 1908.048293 | BR161: 1909.216707 | BS161: 248.51078 | BT161: 473.054955 | BU161: 294.704824 | BV161: 3620.109037 | BW161: 851.331489 | BX161: 985.939768 | BY161: 4318.103043 | BZ161: 1560.776309 | CA161: 3422.052565 | CB161: 1598.471926 | CC161: 2405.854689 | CD161: 1087.396126
B162: Composting toilet | C162: 0.250472828 | D162: 0.7639023652 | E162: 0.5257130724 | F162: 0.6639159875 | G162: 0.06133070587 | H162: 1.22451783 | I162: 0.8025322019 | J162: 0.1483074725 | K162: 0 | L162: 0 | M162: 0.157538417 | N162: 0.2066977539 | O162: 0.3968166387 | P162: 0.8851417831 | Q162: 0.6851569872 | R162: 0 | S162: 0.06623388998 | T162: 0.1817399791 | U162: 0.4944397746 | V162: 2.294783561 | W162: 0 | X162: 0 | Y162: 0.2600347222 | Z162: 0 | AA162: 0.3517903671 | AB162: 0.617792475 | AC162: 0.4252478244 | AD162: 0.5879128863 | BB162: Composting toilet | BC162: 21.480645 | BD162: 65.930639 | BE162: 45.235799 | BF162: 57.099824 | BG162: 5.278329 | BH162: 43.635211 | BI162: 28.568403 | BJ162: 5.278329 | BK162: 0 | BL162: 0 | BM162: 7.974456 | BN162: 10.389349 | BO162: 19.9854 | BP162: 44.642472 | BQ162: 34.551616 | BR162: 0 | BS162: 1.950732 | BT162: 2.576144 | BU162: 7.561112 | BV162: 103.726351 | BW162: 0 | BX162: 0 | BY162: 12.684991 | BZ162: 0 | CA162: 15.764556 | CB162: 19.72487 | CC162: 16.44246 | CD162: 14.59402
B163: Bucket toilet | C163: 0.4655202417 | D163: 0.564188962 | E163: 2.322329536 | F163: 1.389219615 | G163: 0.08463839563 | H163: 2.503713687 | I163: 0.7580286717 | J163: 0.3587166685 | K163: 0.1057432139 | L163: 0 | M163: 0.1801892652 | N163: 0.1338215863 | O163: 0.2937438077 | P163: 1.860745639 | Q163: 3.132733797 | R163: 0 | S163: 0.6218872159 | T163: 4.777801774 | U163: 1.641202375 | V163: 1.50510556 | W163: 0.1421675761 | X163: 3.27545759 | Y163: 0.2900421559 | Z163: 0.0581550497 | AA163: 0.5353331285 | AB163: 3.518553444 | AC163: 0.3330647859 | AD163: 0.5706962553 | BB163: Bucket toilet | BC163: 39.923193 | BD163: 48.693839 | BE163: 199.828457 | BF163: 119.479267 | BG163: 7.284268 | BH163: 89.218852 | BI163: 26.984174 | BJ163: 12.766886 | BK163: 3.770235 | BL163: 0 | BM163: 9.121022 | BN163: 6.726339 | BO163: 14.794207 | BP163: 93.847434 | BQ163: 157.979875 | BR163: 0 | BS163: 18.31593 | BT163: 67.724809 | BU163: 25.097728 | BV163: 68.032171 | BW163: 11.353779 | BX163: 45.933114 | BY163: 14.148811 | BZ163: 1.228022 | CA163: 23.98954 | CB163: 112.340328 | CC163: 12.878148 | CD163: 14.166644
B164: Hanging toilet/latrine | C164: 0.3236561204 | D164: 0.4074632061 | E164: 0.2635964903 | F164: 0.1261534027 | G164: 0.1472549094 | H164: 0.6630818277 | I164: 0.08996509653 | J164: 0 | K164: 0 | L164: 0 | M164: 0.2551789137 | N164: 0.4644708782 | O164: 0.2134676115 | P164: 0.2860538937 | Q164: 0.4135776245 | R164: 0.800162094 | S164: 0 | T164: 0.2259320717 | U164: 0.7260587192 | V164: 0.6997346963 | W164: 0 | X164: 0 | Y164: 0.2352484655 | Z164: 0 | AA164: 0.6036864603 | AB164: 0 | AC164: 0 | AD164: 0.2829114387 | BB164: Hanging toilet/latrine | BC164: 27.756872 | BD164: 35.167203 | BE164: 22.68157 | BF164: 10.849772 | BG164: 12.673258 | BH164: 23.62866 | BI164: 3.202562 | BJ164: 0 | BK164: 0 | BL164: 0 | BM164: 12.916932 | BN164: 23.345924 | BO164: 10.751151 | BP164: 14.42724 | BQ164: 20.856206 | BR164: 17.643041 | BS164: 0 | BT164: 3.202562 | BU164: 11.103094 | BV164: 31.628659 | BW164: 0 | BX164: 0 | BY164: 11.47587 | BZ164: 0 | CA164: 27.052614 | CB164: 0 | CC164: 0 | CD164: 7.022835
B165: OTHER | C165: 0 | D165: 0.1285869846 | E165: 0.01723219475 | F165: 0.6827203903 | G165: 0 | H165: 0.04161042161 | I165: 0 | J165: 1.566276521 | K165: 0 | L165: 0 | M165: 0 | N165: 0 | O165: 0.2203552852 | P165: 0 | Q165: 0.05894672225 | R165: 0 | S165: 0 | T165: 0 | U165: 0.1943863043 | V165: 0 | W165: 0.6354088753 | X165: 0.1057353422 | Y165: 0 | Z165: 0 | AA165: 0.247655879 | AB165: 0 | AC165: 0 | AD165: 0.2014020252 | BB165: OTHER | BC165: 0 | BD165: 11.098044 | BE165: 1.482771 | BF165: 58.717089 | BG165: 0 | BH165: 1.482771 | BI165: 0 | BJ165: 55.744479 | BK165: 0 | BL165: 0 | BM165: 0 | BN165: 0 | BO165: 11.098044 | BP165: 0 | BQ165: 2.97261 | BR165: 0 | BS165: 0 | BT165: 0 | BU165: 2.97261 | BV165: 0 | BW165: 50.744988 | BX165: 1.482771 | BY165: 0 | BZ165: 0 | CA165: 11.098044 | CB165: 0 | CC165: 0 | CD165: 4.999491
BB166: Total | BC166: 8576.038038 | BD166: 8630.767753 | BE166: 8604.655538 | BF166: 8600.459256 | BG166: 8606.339884 | BH166: 3563.460649 | BI166: 3559.782764 | BJ166: 3559.044539 | BK166: 3565.462842 | BL166: 3559.402536 | BM166: 5061.911979 | BN166: 5026.34828 | BO166: 5036.431956 | BP166: 5043.539109 | BQ166: 5042.875815 | BR166: 2204.933367 | BS166: 2945.217321 | BT166: 1417.488883 | BU166: 1529.228106 | BV166: 4520.092996 | BW166: 7986.194398 | BX166: 1402.341894 | BY166: 4878.191225 | BZ166: 2111.63434 | CA166: 4481.235837 | CB166: 3192.798682 | CC166: 3866.559464 | CD166: 2482.343956
A208: =A1026 -> Namibia
A209: =A1034 -> 2007
A210: Access to hygiene facilities
A211: by wealth quintile and sub-national region
A212: Notes:
A213: WHO/UNICEF JMP customised wealth index excludes water,
A214: sanitation and hygiene assets.
A215: Survey used for analysis: | B215: =A1025 -> DHS07
A220: Access to handwashing | C220: NATIONAL wealth index quintile | H220: URBAN wealth index quintile | M220: RURAL wealth index quintile | R220: SUB-REGIONS: | BA220: Raw numbers of respondents: | BB220: Access to handwashing | BC220: NATIONAL wealth index quintile | BH220: URBAN wealth index quintile | BM220: RURAL wealth index quintile | BR220: SUB-REGIONS:
A221: Weighted percentage (used in graphs) | C221: Poorest | D221: Poor | E221: Middle | F221: Rich | G221: Richest | H221: Poorest | I221: Poor | J221: Middle | K221: Rich | L221: Richest | M221: Poorest | N221: Poor | O221: Middle | P221: Rich | Q221: Richest | R221: Caprivi | S221: Erongo | T221: Hardap | U221: Karas | V221: Kavango | W221: Khomas | X221: Kunene | Y221: Ohangwena | Z221: Omaheke | AA221: Omusati | AB221: Oshana | AC221: Oshikoto | AD221: Otjozondjupa | BA221: Hygiene data, raw numbers (weighted) | BC221: Poorest | BD221: Poor | BE221: Middle | BF221: Rich | BG221: Richest | BH221: Poorest | BI221: Poor | BJ221: Middle | BK221: Rich | BL221: Richest | BM221: Poorest | BN221: Poor | BO221: Middle | BP221: Rich | BQ221: Richest | BR221: Caprivi | BS221: Erongo | BT221: Hardap | BU221: Karas | BV221: Kavango | BW221: Khomas | BX221: Kunene | BY221: Ohangwena | BZ221: Omaheke | CA221: Omusati | CB221: Oshana | CC221: Oshikoto | CD221: Otjozondjupa
A222: Hygiene ladder | B222: Basic | C222: N/A | D222: N/A | E222: N/A | F222: N/A | G222: N/A | H222: N/A | I222: N/A | J222: N/A | K222: N/A | L222: N/A | M222: N/A | N222: N/A | O222: N/A | P222: N/A | Q222: N/A | R222: N/A | S222: N/A | T222: N/A | U222: N/A | V222: N/A | W222: N/A | X222: N/A | Y222: N/A | Z222: N/A | AA222: N/A | AB222: N/A | AC222: N/A | AD222: N/A | BA222: Hygiene ladder | BB222: Basic | BC222: N/A | BD222: N/A | BE222: N/A | BF222: N/A | BG222: N/A | BH222: N/A | BI222: N/A | BJ222: N/A | BK222: N/A | BL222: N/A | BM222: N/A | BN222: N/A | BO222: N/A | BP222: N/A | BQ222: N/A | BR222: N/A | BS222: N/A | BT222: N/A | BU222: N/A | BV222: N/A | BW222: N/A | BX222: N/A | BY222: N/A | BZ222: N/A | CA222: N/A | CB222: N/A | CC222: N/A | CD222: N/A
B223: Limited | C223: N/A | D223: N/A | E223: N/A | F223: N/A | G223: N/A | H223: N/A | I223: N/A | J223: N/A | K223: N/A | L223: N/A | M223: N/A | N223: N/A | O223: N/A | P223: N/A | Q223: N/A | R223: N/A | S223: N/A | T223: N/A | U223: N/A | V223: N/A | W223: N/A | X223: N/A | Y223: N/A | Z223: N/A | AA223: N/A | AB223: N/A | AC223: N/A | AD223: N/A | BB223: Limited | BC223: N/A | BD223: N/A | BE223: N/A | BF223: N/A | BG223: N/A | BH223: N/A | BI223: N/A | BJ223: N/A | BK223: N/A | BL223: N/A | BM223: N/A | BN223: N/A | BO223: N/A | BP223: N/A | BQ223: N/A | BR223: N/A | BS223: N/A | BT223: N/A | BU223: N/A | BV223: N/A | BW223: N/A | BX223: N/A | BY223: N/A | BZ223: N/A | CA223: N/A | CB223: N/A | CC223: N/A | CD223: N/A
B224: No facility | C224: N/A | D224: N/A | E224: N/A | F224: N/A | G224: N/A | H224: N/A | I224: N/A | J224: N/A | K224: N/A | L224: N/A | M224: N/A | N224: N/A | O224: N/A | P224: N/A | Q224: N/A | R224: N/A | S224: N/A | T224: N/A | U224: N/A | V224: N/A | W224: N/A | X224: N/A | Y224: N/A | Z224: N/A | AA224: N/A | AB224: N/A | AC224: N/A | AD224: N/A | BB224: No facility | BC224: N/A | BD224: N/A | BE224: N/A | BF224: N/A | BG224: N/A | BH224: N/A | BI224: N/A | BJ224: N/A | BK224: N/A | BL224: N/A | BM224: N/A | BN224: N/A | BO224: N/A | BP224: N/A | BQ224: N/A | BR224: N/A | BS224: N/A | BT224: N/A | BU224: N/A | BV224: N/A | BW224: N/A | BX224: N/A | BY224: N/A | BZ224: N/A | CA224: N/A | CB224: N/A | CC224: N/A | CD224: N/A
BA225: Observed handwashing place | BB225: Fixed | BC225: N/A | BD225: N/A | BE225: N/A | BF225: N/A | BG225: N/A | BH225: N/A | BI225: N/A | BJ225: N/A | BK225: N/A | BL225: N/A | BM225: N/A | BN225: N/A | BO225: N/A | BP225: N/A | BQ225: N/A | BR225: N/A | BS225: N/A | BT225: N/A | BU225: N/A | BV225: N/A | BW225: N/A | BX225: N/A | BY225: N/A | BZ225: N/A | CA225: N/A | CB225: N/A | CC225: N/A | CD225: N/A
BB226: Mobile | BC226: N/A | BD226: N/A | BE226: N/A | BF226: N/A | BG226: N/A | BH226: N/A | BI226: N/A | BJ226: N/A | BK226: N/A | BL226: N/A | BM226: N/A | BN226: N/A | BO226: N/A | BP226: N/A | BQ226: N/A | BR226: N/A | BS226: N/A | BT226: N/A | BU226: N/A | BV226: N/A | BW226: N/A | BX226: N/A | BY226: N/A | BZ226: N/A | CA226: N/A | CB226: N/A | CC226: N/A | CD226: N/A
BA227: Water / Soap | BB227: Water and soap | BC227: N/A | BD227: N/A | BE227: N/A | BF227: N/A | BG227: N/A | BH227: N/A | BI227: N/A | BJ227: N/A | BK227: N/A | BL227: N/A | BM227: N/A | BN227: N/A | BO227: N/A | BP227: N/A | BQ227: N/A | BR227: N/A | BS227: N/A | BT227: N/A | BU227: N/A | BV227: N/A | BW227: N/A | BX227: N/A | BY227: N/A | BZ227: N/A | CA227: N/A | CB227: N/A | CC227: N/A | CD227: N/A
BB228: Water only | BC228: N/A | BD228: N/A | BE228: N/A | BF228: N/A | BG228: N/A | BH228: N/A | BI228: N/A | BJ228: N/A | BK228: N/A | BL228: N/A | BM228: N/A | BN228: N/A | BO228: N/A | BP228: N/A | BQ228: N/A | BR228: N/A | BS228: N/A | BT228: N/A | BU228: N/A | BV228: N/A | BW228: N/A | BX228: N/A | BY228: N/A | BZ228: N/A | CA228: N/A | CB228: N/A | CC228: N/A | CD228: N/A
BB229: Soap only | BC229: N/A | BD229: N/A | BE229: N/A | BF229: N/A | BG229: N/A | BH229: N/A | BI229: N/A | BJ229: N/A | BK229: N/A | BL229: N/A | BM229: N/A | BN229: N/A | BO229: N/A | BP229: N/A | BQ229: N/A | BR229: N/A | BS229: N/A | BT229: N/A | BU229: N/A | BV229: N/A | BW229: N/A | BX229: N/A | BY229: N/A | BZ229: N/A | CA229: N/A | CB229: N/A | CC229: N/A | CD229: N/A
BB230: Neither | BC230: N/A | BD230: N/A | BE230: N/A | BF230: N/A | BG230: N/A | BH230: N/A | BI230: N/A | BJ230: N/A | BK230: N/A | BL230: N/A | BM230: N/A | BN230: N/A | BO230: N/A | BP230: N/A | BQ230: N/A | BR230: N/A | BS230: N/A | BT230: N/A | BU230: N/A | BV230: N/A | BW230: N/A | BX230: N/A | BY230: N/A | BZ230: N/A | CA230: N/A | CB230: N/A | CC230: N/A | CD230: N/A
BA259: Raw numbers of respondents: | BB259: Menstrual health and hygiene | BC259: NATIONAL wealth index quintile | BH259: URBAN wealth index quintile | BM259: RURAL wealth index quintile | BR259: SUB-REGIONS:
BA260: MHH data, raw numbers (weighted) | BC260: Poorest | BD260: Poor | BE260: Middle | BF260: Rich | BG260: Richest | BH260: Poorest | BI260: Poor | BJ260: Middle | BK260: Rich | BL260: Richest | BM260: Poorest | BN260: Poor | BO260: Middle | BP260: Rich | BQ260: Richest | BR260: Caprivi | BS260: Erongo | BT260: Hardap | BU260: Karas | BV260: Kavango | BW260: Khomas | BX260: Kunene | BY260: Ohangwena | BZ260: Omaheke | CA260: Omusati | CB260: Oshana | CC260: Oshikoto | CD260: Otjozondjupa
BA261: Private place to wash and change | BB261: Yes | BC261: N/A | BD261: N/A | BE261: N/A | BF261: N/A | BG261: N/A | BH261: N/A | BI261: N/A | BJ261: N/A | BK261: N/A | BL261: N/A | BM261: N/A | BN261: N/A | BO261: N/A | BP261: N/A | BQ261: N/A | BR261: N/A | BS261: N/A | BT261: N/A | BU261: N/A | BV261: N/A | BW261: N/A | BX261: N/A | BY261: N/A | BZ261: N/A | CA261: N/A | CB261: N/A | CC261: N/A | CD261: N/A
BB262: No | BC262: N/A | BD262: N/A | BE262: N/A | BF262: N/A | BG262: N/A | BH262: N/A | BI262: N/A | BJ262: N/A | BK262: N/A | BL262: N/A | BM262: N/A | BN262: N/A | BO262: N/A | BP262: N/A | BQ262: N/A | BR262: N/A | BS262: N/A | BT262: N/A | BU262: N/A | BV262: N/A | BW262: N/A | BX262: N/A | BY262: N/A | BZ262: N/A | CA262: N/A | CB262: N/A | CC262: N/A | CD262: N/A
BB263: DK/not sure/missing | BC263: N/A | BD263: N/A | BE263: N/A | BF263: N/A | BG263: N/A | BH263: N/A | BI263: N/A | BJ263: N/A | BK263: N/A | BL263: N/A | BM263: N/A | BN263: N/A | BO263: N/A | BP263: N/A | BQ263: N/A | BR263: N/A | BS263: N/A | BT263: N/A | BU263: N/A | BV263: N/A | BW263: N/A | BX263: N/A | BY263: N/A | BZ263: N/A | CA263: N/A | CB263: N/A | CC263: N/A | CD263: N/A
BA264: Use of menstrual materials | BB264: Materials reusable | BC264: N/A | BD264: N/A | BE264: N/A | BF264: N/A | BG264: N/A | BH264: N/A | BI264: N/A | BJ264: N/A | BK264: N/A | BL264: N/A | BM264: N/A | BN264: N/A | BO264: N/A | BP264: N/A | BQ264: N/A | BR264: N/A | BS264: N/A | BT264: N/A | BU264: N/A | BV264: N/A | BW264: N/A | BX264: N/A | BY264: N/A | BZ264: N/A | CA264: N/A | CB264: N/A | CC264: N/A | CD264: N/A
BB265: Materials not reusable | BC265: N/A | BD265: N/A | BE265: N/A | BF265: N/A | BG265: N/A | BH265: N/A | BI265: N/A | BJ265: N/A | BK265: N/A | BL265: N/A | BM265: N/A | BN265: N/A | BO265: N/A | BP265: N/A | BQ265: N/A | BR265: N/A | BS265: N/A | BT265: N/A | BU265: N/A | BV265: N/A | BW265: N/A | BX265: N/A | BY265: N/A | BZ265: N/A | CA265: N/A | CB265: N/A | CC265: N/A | CD265: N/A
BB266: No materials used | BC266: N/A | BD266: N/A | BE266: N/A | BF266: N/A | BG266: N/A | BH266: N/A | BI266: N/A | BJ266: N/A | BK266: N/A | BL266: N/A | BM266: N/A | BN266: N/A | BO266: N/A | BP266: N/A | BQ266: N/A | BR266: N/A | BS266: N/A | BT266: N/A | BU266: N/A | BV266: N/A | BW266: N/A | BX266: N/A | BY266: N/A | BZ266: N/A | CA266: N/A | CB266: N/A | CC266: N/A | CD266: N/A
BB267: DK/not sure/missing | BC267: N/A | BD267: N/A | BE267: N/A | BF267: N/A | BG267: N/A | BH267: N/A | BI267: N/A | BJ267: N/A | BK267: N/A | BL267: N/A | BM267: N/A | BN267: N/A | BO267: N/A | BP267: N/A | BQ267: N/A | BR267: N/A | BS267: N/A | BT267: N/A | BU267: N/A | BV267: N/A | BW267: N/A | BX267: N/A | BY267: N/A | BZ267: N/A | CA267: N/A | CB267: N/A | CC267: N/A | CD267: N/A
BA268: Use of menstrual materials with private place to wash and change | BB268: Materials reusable | BC268: N/A | BD268: N/A | BE268: N/A | BF268: N/A | BG268: N/A | BH268: N/A | BI268: N/A | BJ268: N/A | BK268: N/A | BL268: N/A | BM268: N/A | BN268: N/A | BO268: N/A | BP268: N/A | BQ268: N/A | BR268: N/A | BS268: N/A | BT268: N/A | BU268: N/A | BV268: N/A | BW268: N/A | BX268: N/A | BY268: N/A | BZ268: N/A | CA268: N/A | CB268: N/A | CC268: N/A | CD268: N/A
BB269: Materials not reusable | BC269: N/A | BD269: N/A | BE269: N/A | BF269: N/A | BG269: N/A | BH269: N/A | BI269: N/A | BJ269: N/A | BK269: N/A | BL269: N/A | BM269: N/A | BN269: N/A | BO269: N/A | BP269: N/A | BQ269: N/A | BR269: N/A | BS269: N/A | BT269: N/A | BU269: N/A | BV269: N/A | BW269: N/A | BX269: N/A | BY269: N/A | BZ269: N/A | CA269: N/A | CB269: N/A | CC269: N/A | CD269: N/A
BB270: No materials used | BC270: N/A | BD270: N/A | BE270: N/A | BF270: N/A | BG270: N/A | BH270: N/A | BI270: N/A | BJ270: N/A | BK270: N/A | BL270: N/A | BM270: N/A | BN270: N/A | BO270: N/A | BP270: N/A | BQ270: N/A | BR270: N/A | BS270: N/A | BT270: N/A | BU270: N/A | BV270: N/A | BW270: N/A | BX270: N/A | BY270: N/A | BZ270: N/A | CA270: N/A | CB270: N/A | CC270: N/A | CD270: N/A
BA271: Awareness of menstruation before menarche | BB271: Yes | BC271: N/A | BD271: N/A | BE271: N/A | BF271: N/A | BG271: N/A | BH271: N/A | BI271: N/A | BJ271: N/A | BK271: N/A | BL271: N/A | BM271: N/A | BN271: N/A | BO271: N/A | BP271: N/A | BQ271: N/A | BR271: N/A | BS271: N/A | BT271: N/A | BU271: N/A | BV271: N/A | BW271: N/A | BX271: N/A | BY271: N/A | BZ271: N/A | CA271: N/A | CB271: N/A | CC271: N/A | CD271: N/A
BB272: No | BC272: N/A | BD272: N/A | BE272: N/A | BF272: N/A | BG272: N/A | BH272: N/A | BI272: N/A | BJ272: N/A | BK272: N/A | BL272: N/A | BM272: N/A | BN272: N/A | BO272: N/A | BP272: N/A | BQ272: N/A | BR272: N/A | BS272: N/A | BT272: N/A | BU272: N/A | BV272: N/A | BW272: N/A | BX272: N/A | BY272: N/A | BZ272: N/A | CA272: N/A | CB272: N/A | CC272: N/A | CD272: N/A
BB273: DK/not sure/missing | BC273: N/A | BD273: N/A | BE273: N/A | BF273: N/A | BG273: N/A | BH273: N/A | BI273: N/A | BJ273: N/A | BK273: N/A | BL273: N/A | BM273: N/A | BN273: N/A | BO273: N/A | BP273: N/A | BQ273: N/A | BR273: N/A | BS273: N/A | BT273: N/A | BU273: N/A | BV273: N/A | BW273: N/A | BX273: N/A | BY273: N/A | BZ273: N/A | CA273: N/A | CB273: N/A | CC273: N/A | CD273: N/A
BA274: Participation in (all) activities during menstruation | BB274: Yes | BC274: N/A | BD274: N/A | BE274: N/A | BF274: N/A | BG274: N/A | BH274: N/A | BI274: N/A | BJ274: N/A | BK274: N/A | BL274: N/A | BM274: N/A | BN274: N/A | BO274: N/A | BP274: N/A | BQ274: N/A | BR274: N/A | BS274: N/A | BT274: N/A | BU274: N/A | BV274: N/A | BW274: N/A | BX274: N/A | BY274: N/A | BZ274: N/A | CA274: N/A | CB274: N/A | CC274: N/A | CD274: N/A
BB275: No | BC275: N/A | BD275: N/A | BE275: N/A | BF275: N/A | BG275: N/A | BH275: N/A | BI275: N/A | BJ275: N/A | BK275: N/A | BL275: N/A | BM275: N/A | BN275: N/A | BO275: N/A | BP275: N/A | BQ275: N/A | BR275: N/A | BS275: N/A | BT275: N/A | BU275: N/A | BV275: N/A | BW275: N/A | BX275: N/A | BY275: N/A | BZ275: N/A | CA275: N/A | CB275: N/A | CC275: N/A | CD275: N/A
BB276: DK/not sure/missing/no such activity | BC276: N/A | BD276: N/A | BE276: N/A | BF276: N/A | BG276: N/A | BH276: N/A | BI276: N/A | BJ276: N/A | BK276: N/A | BL276: N/A | BM276: N/A | BN276: N/A | BO276: N/A | BP276: N/A | BQ276: N/A | BR276: N/A | BS276: N/A | BT276: N/A | BU276: N/A | BV276: N/A | BW276: N/A | BX276: N/A | BY276: N/A | BZ276: N/A | CA276: N/A | CB276: N/A | CC276: N/A | CD276: N/A
BA277: Participation in specific activities during menstruation | BB277: Did not go to school (amongst those usually attending school) | BC277: N/A | BD277: N/A | BE277: N/A | BF277: N/A | BG277: N/A | BH277: N/A | BI277: N/A | BJ277: N/A | BK277: N/A | BL277: N/A | BM277: N/A | BN277: N/A | BO277: N/A | BP277: N/A | BQ277: N/A | BR277: N/A | BS277: N/A | BT277: N/A | BU277: N/A | BV277: N/A | BW277: N/A | BX277: N/A | BY277: N/A | BZ277: N/A | CA277: N/A | CB277: N/A | CC277: N/A | CD277: N/A
BB278: Did not go to work (amongst those who usually work) | BC278: N/A | BD278: N/A | BE278: N/A | BF278: N/A | BG278: N/A | BH278: N/A | BI278: N/A | BJ278: N/A | BK278: N/A | BL278: N/A | BM278: N/A | BN278: N/A | BO278: N/A | BP278: N/A | BQ278: N/A | BR278: N/A | BS278: N/A | BT278: N/A | BU278: N/A | BV278: N/A | BW278: N/A | BX278: N/A | BY278: N/A | BZ278: N/A | CA278: N/A | CB278: N/A | CC278: N/A | CD278: N/A
